Workbook

Sheet PANEL
E106: SUBREGION | F106: CLAS | G106: EJECUTORA | H106: ESTABLEC | I106: PROVINCIA | J106: RED | K106: DISTRITO | L106: NIVEL | N106: SO1 | O106: Tamizaje de recien nacidos con factores de riesgo menores de 1 mes (normal) | P106: SO1
D107: =VLOOKUP(Informe!$B$5,$C$109:$D$127,2,0) -> 13 | E107: LUCIANO CASTILLO COLONNA | F107: (Todas) | G107: (Todas) | H107: (Todas) | I107: (Todas) | J107: (Todas) | K107: (Todas) | N107: SO2 | O107: Tamizaje de recien nacidos con factores de riesgo de 1 mes (normal) | P107: SO2
C108: MESES | E108: MORROPON HUANCABAMBA | F108: CLAS ALGARROBOS | G108: SALUD PIURA | H108: HOSPITAL DE APOYO II - 2, SULLANA | I108: AYABACA | J108: AYABACA | K108: AMOTAPE | L108: SUBREGION | N108: SO3 | O108: Tamizaje de recien nacidos con factores de riesgo de 2 meses (normal) | P108: SO3
C109: Enero | D109: 3 | E109: PIURA SECHURA | F109: CLAS BATANES | G109: HOSPITAL DE APOYO I SANTA ROSA | H109: AYABACA | I109: HUANCABAMBA | J109: BAJO PIURA | K109: ARENAL | L109: EJECUTORA | N109: SO4 | O109: Tamizaje de recien nacidos con factores de riesgo menores de 1 mes (anormal) | P109: SO4
B110: VAL. CLINICA_FCAT_RIESGO_18-29 (5001502) | C110: Febrero | D110: 4 | F110: CLAS BELLAVISTA | G110: HOSPITAL DE APOYO I CHULUCANAS | H110: TAPAL | I110: MORROPON | J110: HUANCABAMBA | K110: AYABACA | L110: RED | N110: SO5 | O110: Tamizaje de recien nacidos con factores de riesgo de 1 mes (anormal) | P110: SO5
B111: VAL. CLINICA_FACT_RIESGO_30-39 (5001503) | C111: Marzo | D111: 5 | F111: CLAS BERNAL | G111: HOSPITAL DE APOYO I NUESTRA SEÑORA DE LAS MERCEDES DE PAITA | H111: CHINCHIN | I111: PAITA | J111: HUARMACA | K111: BELLAVISTA | L111: PROVINCIA | N111: SO6 | O111: Tamizaje de recien nacidos con factores de riesgo de 2 meses (anormal) | P111: SO6
B112: VAL. CLINICA_FACT_RIESGO_(5001507) | C112: Abril | D112: 6 | F112: CLAS BUENOS AIRES | G112: HOSPITAL DE APOYO III SULLANA | H112: OLLEROS | I112: PIURA | J112: MORROPON CHULUCANAS | K112: BELLAVISTA DE LA UNION | L112: CLAS | N112: SO7 | O112: Diagnostico de casos de retinopatía de la prematuridad menores de 1 mes | P112: SO7
B113: VAL. CLINICA_FCAT_RIESGO_60ymás (5001507) | C113: Mayo | D113: 7 | F113: CLAS CANCHAQUE | G113: SALUD LUCIANO CASTILLO COLONNA | H113: ARAGOTO | I113: SECHURA | J113: PIURA CASTILLA | K113: BERNAL | L113: DISTRITO | N113: SO8 | O113: Diagnostico de casos de retinopatía de la prematuridad de 1 mes | P113: SO8
B114: EMERGENCIAS_URGENCIAS HIPERTENS_(5001601) | C114: Junio | D114: 8 | F114: CLAS CASA GRANDE | G114: REGION PIURA-SALUD MORROPON-CHULUCANAS | H114: CHOCAN | I114: SULLANA | J114: SULLANA | K114: BUENOS AIRES | L114: IPRESS | N114: SO9 | O114: Diagnostico de casos de retinopatía de la prematuridad de 2 meses | P114: SO9
B115: TTO_CONT_PERS_DISLIPIDEMIAS_(5001602) | C115: Julio | D115: 9 | F115: CLAS CATACAOS | H115: YANCHALA | I115: TALARA | K115: CANCHAQUE | N115: SO10 | O115: Tratamiento de casos del recien nacido menores de 1 mes | P115: SO10
B116: HIPERTENSO_NO ALTO RIESGO NO PC_(5001603) | C116: Agosto | D116: 10 | F116: CLAS CAYETANO HEREDIA | H116: ARREYPITE - PINGOLA | K116: CASTILLA | N116: SO11 | O116: Tratamiento de casos del recien nacido de 1 mes | P116: SO11
B117: HIPERTENSO_NO ALTO RIESGO PC_(5001604) | C117: Septiembre | D117: 11 | F117: CLAS CHALACO | H117: CALVAS DE SAMANGA | K117: CATACAOS | N117: SO12 | O117: Tratamiento de casos del recien nacido de 2 meses | P117: SO12
B118: PACIENTES_ENF. CARDIOMET_RECIBEN EDUC_(5001605) | C118: Octubre | D118: 12 | F118: CLAS CHATITO | H118: ESPINDOLA | K118: CHALACO | N118: SO13 | O118: Complicaciones de tratamiento del recien nacido menores de 1 mes | P118: SO13
B119: HIPERTENSOS_TTO. ESPECIALIZADO_(5001606) | C119: Noviembre | D119: 13 | F119: CLAS CURA MORI | H119: REMOLINOS | K119: CHULUCANAS | N119: SO14 | O119: Complicaciones de tratamiento del recien nacido de 1 mes | P119: SO14
B120: HIPERTENSOS_ESTRATIF_RIESGO_CARDIOVAS_(5001608) | C120: Diciembre | D120: 14 | F120: CLAS FRIAS | H120: ANDURCO | K120: COLAN | N120: SO15 | O120: Complicaciones de tratamiento del recien nacido de 2 meses | P120: SO15
B121: MANEJO BASICO_CRISIS HIPOGLU_HIPERGLU_(5001701) | C121: Total | D121: 15 | F121: CLAS HIGUERON | H121: HUIRIQUINGUE | K121: CRISTO NOS VALGA | N121: SO16 | O121: Control Post Operatorio de recién nacidos menores de 1 mes | P121: SO16
B122: DIABETICO NO COMPLIC_NO PC_(5001702) | C122: I-Trim | D122: 16 | F122: CLAS HOSPITALES PIURA | H122: HUACHUMA | K122: CURA MORI | N122: SO17 | O122: Control Post Operatorio de recién nacidos de 1 mes | P122: SO17
B123: VAL. CLINICA_FACT_RIESGO_5-11 (5001504) | C123: II-Trim | D123: 17 | F123: CLAS HOSPITALES SULLANA | H123: SAUSAL | K123: EL ALTO | N123: SO18 | O123: Control Post Operatorio de recién nacidos de 1 mes | P123: SO18
B124: VAL. CLINICA_FACT_RIESGO_12-17 (5001501) | C124: III-Trim | D124: 18 | F124: CLAS IGNACIO MERINO | H124: EL TOLDO | K124: EL CARMEN DE LA FRONTERA | N124: SO19 | O124: Control Post Operatorio de recién nacidos de 2 meses | P124: SO19
B125: DIABETICOS_NO_COMPLIC_PC_(5001703) | C125: IV-Trim | D125: 19 | F125: CLAS KM 50 | H125: SAMANGUILLA | K125: EL TALLAN | N125: SO20 | O125: Examen de los Ojos y de la Visión recien nacido menores de 1 mes (normal) | P125: SO20
B126: DIABETICOS_TTO_ESPECIALIZADO_(5001704) | C126: I-Sem | D126: 20 | F126: CLAS LA ARENA | H126: CHARAN | K126: FRIAS | N126: SO21 | O126: Examen de los Ojos y de la Visión recien nacido de 1 mes (normal) | P126: SO21
B127: VALORACION_COMPLICACIONES_PERS_DIABET_(5001705) | C127: II-Sem | D127: 21 | F127: CLAS LA LEGUA | H127: LAGUNAS DE CANGLY | K127: HUANCABAMBA | N127: SO22 | O127: Examen de los Ojos y de la Visión recien nacido de 2 meses (normal) | P127: SO22
F128: CLAS LA MATANZA | H128: PORTACHUELO DE YANTA | K128: HUARMACA | N128: SO23 | O128: Examen de los Ojos y de la Visión recien nacido menores de 1 mes (anormal) | P128: SO23
F129: CLAS LA UNION | H129: GICLAS | K129: IGNACIO ESCUDERO | N129: SO24 | O129: Examen de los Ojos y de la Visión recien nacido de 1 mes (anormal) | P129: SO24
F130: CLAS LAGRIMAS DE CURUMUY | H130: LAS LOMAS | K130: JILILI | N130: SO25 | O130: Examen de los Ojos y de la Visión recien nacido de 2 meses (anormal) | P130: SO25
F131: CLAS LALAQUIZ | H131: POTRERILLO | K131: LA ARENA | N131: SO26 | P131: SO26
F132: CLAS LETIRA-BECARA | H132: CHIPILLICO | K132: LA BREA | N132: SO27 | P132: SO27
F133: CLAS MEDIO PIURA | H133: EL SAUCE-LAS LOMAS | K133: LA HUACA | N133: SO28 | P133: SO28
F134: CLAS MONTE SULLON- NARIHUALA-PEDRE | H134: PAMPA ELERA BAJA | K134: LA MATANZA | N134: SO29 | P134: SO29
F135: CLAS MORROPON | H135: PELINGARA | K135: LA UNION | N135: SO30 | P135: SO30
F136: CLAS NANGAY DE MATALACAS | H136: HUACHUMA ALTA | K136: LAGUNAS | N136: SO31 | P136: SO31
F137: CLAS PACAIPAMPA | H137: SAN FRANCISCO DE PAMPA ELERA | K137: LALAQUIZ | N137: SO32 | P137: SO32
F138: CLAS PACHITEA | H138: SANTA ELENA - LAS LOMAS | K138: LANCONES | N138: SO33 | P138: SO33
F139: CLAS PARACHIQUE | H139: PUERTA PULACHE | K139: LAS LOMAS | N139: SO34 | P139: SO34
F140: CLAS RINCONADA LICUAR | H140: GARABATOS | K140: LOBITOS | N140: SO35 | P140: SO35
F141: CLAS SALITRAL | H141: EL PARTIDOR | K141: LOS ORGANOS | N141: SO36 | P141: SO36
F142: CLAS SALUD PARA TODOS | H142: LA MENTA | K142: MANCORA | N142: SO37 | P142: SO37
F143: CLAS SAN JUAN DE BIGOTE | H143: SUYO | K143: MARCAVELICA | N143: SO38 | P143: SO38
F144: CLAS SAN MIGUEL DE PIURA | H144: CHIRINOS | K144: MIGUEL CHECA | N144: SO39 | P144: SO39
F145: CLAS SAN MIGUEL DEL FAIQUE | H145: PAMPA LARGA-GUITARRAS | K145: MONTERO | N145: SO40 | P145: SO40
F146: CLAS SANTA CATALINA DE MOSSA | H146: LA TINA | K146: MORROPON | N146: SO41 | P146: SO41
F147: CLAS SANTA ROSA | H147: LA TIENDA | K147: PACAIPAMPA | N147: SO42 | P147: SO42
F148: CLAS SANTA ROSA - NUEVO TALLAN | H148: SURPAMPA | K148: PAIMAS | N148: SO43 | P148: SO43
F149: CLAS SANTO CRISTO DE CRISTO NOS VA | H149: SARAYUYO | K149: PAITA | N149: SO44 | P149: SO44
F150: CLAS SANTO DOMINGO | H150: PUENTE INTERNACIONAL | K150: PARIÑAS | N150: SO45 | P150: SO45
F151: CLAS SECHURA | H151: SANTA ANA DE QUIROZ | K151: PIURA | N151: SO46 | P151: SO46
F152: CLAS SILAHUA | H152: LA LAGUNA | K152: QUERECOTILLO | N152: SO47 | P152: SO47
F153: CLAS SIN CLAS PIURA | H153: SAPILLLICA | K153: RINCONADA LLICUAR | N153: SO48 | P153: SO48
F154: CLAS SIN CLAS SULLANA | H154: TASAJERAS | K154: SALITRAL | N154: SO49 | P154: SO49
F155: CLAS SINCHAO GRANDE - EL TALLAN | H155: COLETAS-CHACHACOMAL | K155: SAN JUAN DE BIGOTE | N155: SO50 | P155: SO50
F156: CLAS TAMBOYA | H156: EL SAUCE-SAPILLICA | K156: SAN MIGUEL DE EL FAIQUE | N156: SO51 | P156: SO51
F157: CLAS VICE | H157: PAIMAS | K157: SANTA CATALINA DE MOSSA | N157: SO52 | P157: SO52
F158: CLAS VILLA LOS RANCHOS | H158: LA SAUCHA | K158: SANTO DOMINGO | N158: SO53 | P158: SO53
F159: CLAS YAMANGO | H159: TONDOPA | K159: SAPILLICA | N159: SO54 | P159: SO54
F160: CLAS YAPATERA | H160: JILILI | K160: SECHURA | N160: SO55 | P160: SO55
F161: CLAS EL OBRERO | H161: ANCHALAY | K161: SICCHEZ | N161: SO56 | P161: SO56
F162: CLAS IGNACIO ESCUDERO | H162: CUCUYAS | K162: SONDOR | N162: SO57 | P162: SO57
F163: CLAS JILILI | H163: LAGUNAS | K163: SONDORILLO | N163: SO58 | P163: SO58
F164: CLAS LA HUACA | H164: EL LUCUMO | K164: SULLANA | N164: SO59 | P164: SO59
F165: CLAS LA PEÐA-LA HORCA | H165: SALVIA | K165: SUYO | N165: SO60 | P165: SO60
F166: CLAS LA TORTUGA | H166: SAN JUAN DE LAGUNAS | K166: TAMARINDO | N166: SO61 | P166: SO61
F167: CLAS MALLARES | H167: PILLO | K167: TAMBO GRANDE | N167: SO62 | P167: SO62
F168: CLAS NEGRITOS | H168: MONTERO | K168: VEINTISEIS DE OCTUB | N168: SO63 | P168: SO63
F169: CLAS NUEVE DE OCTUBRE | H169: SICACATE | K169: VICE | N169: SO64 | P169: SO64
F170: CLAS PUEBLO NUEVO COLAN | H170: MARMAS ALTO | K170: VICHAYAL | N170: SO65 | P170: SO65
F171: CLAS QUERECOTILLO | H171: QUEBRADA DE AGUA | K171: YAMANGO | N171: SO66 | P171: SO66
F172: CLAS SAN FRANCISCO DE CHOCAN | H172: SICCHEZ | N172: SO67 | P172: SO67
F173: CLAS SANTA CRUZ | H173: OXAHUAY | N173: SO68 | P173: SO68
F174: CLAS SANTA TERESITA | H174: AMBASAL | N174: SO69 | P174: SO69
F175: CLAS SICCHEZ | H175: TAMBOGRANDE | N175: SO70 | P175: SO70
F176: CLAS TAMBOGRANDE | H176: SAN ISIDRO | N176: SO71 | P176: SO71
F177: CLAS VICHAYAL | H177: CRUCETA | N177: SO72 | P177: SO72
H178: TEJEDORES | N178: SO73 | P178: SO73
H179: MALINGAS | N179: SO74 | P179: SO74
H180: MALINGUITAS | N180: SO75 | P180: SO75
H181: PAPAYO - ALGARROBO | N181: SO76 | P181: SO76
H182: SANTA ANA | N182: SO77 | P182: SO77
H183: LA PEÑITA | N183: SO78 | P183: SO78
H184: CHICA ALTA | N184: SO79 | P184: SO79
H185: SINCHI ROCA | N185: SO80 | P185: SO80
H186: LAS MONICAS | N186: SO81 | P186: SO81
H187: PEDREGAL | N187: SO82 | P187: SO82
H188: PALOMINOS | N188: SO83 | P188: SO83
H189: LLOQUE YUPANQUI | N189: SO84 | P189: SO84
H190: EL PORVENIR | N190: SO85 | P190: SO85
H191: YAHUAR HUACA | N191: SO86 | P191: SO86
H192: OCOTO ALTO | N192: SO87 | P192: SO87
H193: PROGRESO BAJO | N193: SO88 | P193: SO88
H194: CP3-SAN MARTIN | N194: SO89 | P194: SO89
H195: CP4 | N195: SO90 | P195: SO90
H196: GUARAGUAOS | N196: SO91 | P196: SO91
H197: LA GREDA | N197: SO92 | P197: SO92
H198: LA RITA | N198: SO93 | P198: SO93
H199: BELLAVISTA | N199: SO94 | P199: SO94
H200: SOMATE CENTRO DE SERVICIOS | N200: SO95 | P200: SO95
H201: HUANGALA | N201: SO96 | P201: SO96
H202: CHALACALA | N202: SO97 | P202: SO97
H203: STA. ROSA DE PIEDRA RODADA | N203: SO98 | P203: SO98
H204: SOMATE BAJO | N204: SO99 | P204: SO99
H205: SAN VICENTE-PIEDRA RODADA | N205: SO101 | P205: SO101
H206: SOMATE ALTO | N206: SO102 | P206: SO102
H207: EL CUCHO | N207: SO103 | P207: SO103
H208: JOSE OLAYA | N208: SO106 | P208: SO106
H209: SANTA TERESITA | N209: SO107 | P209: SO107
H210: VILLA PRIMAVERA | N210: SO108 | P210: SO108
H211: NUEVE DE OCTUBRE | N211: SO109 | P211: SO109
H212: EL OBRERO | N212: SO110 | P212: SO110
H213: CIENEGUILLO CENTRO | N213: SO111 | P213: SO111
H214: CANAL MOCHO-CIENEG.SUR | N214: SO112 | P214: SO112
H215: NUEVO SULLANA | N215: SO113 | P215: SO113
H216: COMUNIDAD SALUDABLE | N216: SO114 | P216: SO114
H217: MIGUEL CHECA | N217: SO115 | P217: SO115
H218: JIBITO | N218: SO116 | P218: SO116
H219: HOSPITAL NUESTRA SEÑORA DE LAS MERCEDES - PAITA | N219: SO117 | P219: SO117
H220: LA ISLILLA | N220: SO118 | P220: SO118
H221: YACILA | N221: SO119 | P221: SO119
H222: SAN LUCAS DE COLAN | N222: SO120 | P222: SO120
H223: EL ARENAL | N223: SO121 | P223: SO121
H224: PUEBLO NUEVO DE COLAN | N224: SO122 | P224: SO122
H225: LA HUACA | N225: SO123 | P225: SO123
H226: VIVIATE | N226: SO124 | P226: SO124
H227: NOMARA | N227: SO125 | P227: SO125
H228: MACACARA | N228: SO126 | P228: SO126
H229: LA ISLA SAN LORENZO | N229: SO127 | P229: SO127
H230: MARCAVELICA | N230: SO128 | P230: SO128
H231: MALLARITOS | N231: SO129 | P231: SO129
H232: LA GOLONDRINA | N232: SO130 | P232: SO130
H233: MALLARES | N233: SO131 | P233: SO131
H234: MONTERON | N234: SO132 | P234: SO132
H235: TANGARARA | N235: SO133 | P235: SO133
H236: SAMAN | N236: SO134 | P236: SO134
H237: VISTA FLORIDA | N237: SO135 | P237: SO135
H238: LA NORIA | N238: SO136 | P238: SO136
H239: LA QUINTA | N239: SO137 | P239: SO137
H240: IGNACIO ESCUDERO | N240: SO138 | P240: SO138
H241: SAN JUAN DE LA VIRGEN | N241: SO139 | P241: SO139
H242: MONTELIMA | N242: SO140 | P242: SO140
H243: SANTA SOFIA | N243: SO141 | P243: SO141
H244: SAN MIGUEL | N244: SO142 | P244: SO142
H245: AMOTAPE | N245: SO143 | P245: SO143
H246: EL TAMBO | N246: SO144 | P246: SO144
H247: TAMARINDO | N247: SO145 | P247: SO145
H248: CLAS QUERECOTILLO | N248: SO146 | P248: SO146
H249: SAN FRANCISCO CHOCAN | N249: SO147 | P249: SO147
H250: LA PEÑA - LA HORCA | N250: SO148 | P250: SO148
H251: LA MARGARITA | N251: SO149 | P251: SO149
H252: SANTA VICTORIA | N252: SO150 | P252: SO150
H253: PUENTE DE LOS SERRANOS | N253: SO151 | P253: SO151
H254: SANTA CRUZ | N254: SO152 | P254: SO152
H255: SALITRAL | N255: SO153 | P255: SO153
H256: MIRAFLORES | N256: SO154 | P256: SO154
H257: LANCONES | N257: SO155 | P257: SO155
H258: ENCUENTRO DE PILARES | N258: SO156 | P258: SO156
H259: JAHUAY NEGRO | N259: SO157 | P259: SO157
H260: HUASIMAL DE LA SOLANA | N260: SO158 | P260: SO158
H261: PLAYAS DE ROMERO | N261: SO159 | P261: SO159
H262: EL ALAMOR | N262: SO160 | P262: SO160
H263: QUEBRADA SECA | N263: SO161 | P263: SO161
H264: EL PITAYO | N264: SO162 | P264: SO162
H265: CHILACO PELADOS | N265: SO163 | P265: SO163
H266: PILARES | N266: SO164 | P266: SO164
H267: CHORRERA DE PULGUERAS | N267: SO165 | P267: SO165
H268: LA PEÑITA | N268: SO166 | P268: SO166
H269: CASAS QUEMADAS | N269: SO167 | P269: SO167
H270: JOSE ABELARDO QUINONES | N270: SO168 | P270: SO168
H271: TALARA II | N271: SO169 | P271: SO169
H272: NEGRITOS | N272: SO170 | P272: SO170
H273: SAN PABLO | N273: SO171 | P273: SO171
H274: LOBITOS | N274: SO172 | P274: SO172
H275: VICHAYAL | N275: SO173 | P275: SO173
H276: MIRAMAR | N276: SO174 | P276: SO174
H277: LOS ORGANOS | N277: SO175 | P277: SO175
H278: EL ÑURO | N278: SO176 | P278: SO176
H279: EL ALTO | N279: SO177 | P279: SO177
H280: CABO BLANCO | N280: SO178 | P280: SO178
H281: HOSPITAL DE LA AMISTAD PERU - COREA SANTA ROSA II-2 | N281: SO179 | P281: SO179
H282: LOS ALGARROBOS | N282: SO180 | P282: SO180
H283: C.S PACHITEA | N283: SO181 | P283: SO181
H284: C.S MICAELA BASTIDAS | N284: SO182 | P284: SO182
H285: E.S I-4 CONSUELO DE VELASCO | N285: SO183 | P285: SO183
H286: C.S NUEVA ESPERANZA | N286: SO184 | P286: SO184
H287: E.S SANTA JULIA | N287: SO185 | P287: SO185
H288: C.S SAN JOSE | N288: SO186 | P288: SO186
H289: C.S SAN PEDRO | N289: SO187 | P289: SO187
H290: P.S SAN SEBASTIAN | N290: SO188 | P290: SO188
H291: P.S VICTOR RAUL HAYA DE LA TORRE | N291: SO189 | P291: SO189
H292: E.S. CIENEGUILLO SUR | N292: SO190 | P292: SO190
H293: P.S LAS VEGAS DE CIENEGUILLO | N293: SO191 | P293: SO191
H294: P.S. LAGRIMAS DE CURUMUY | N294: SO192 | P294: SO192
H295: E.S. I-4 CASTILLA | N295: SO193 | P295: SO193
H296: C.S. EL INDIO | N296: SO194 | P296: SO194
H297: C.S TACALA | N297: SO195 | P297: SO195
H298: C.S CHICLAYITO | N298: SO196 | P298: SO196
H299: C. S. MARIA GORETTI | N299: SO197 | P299: SO197
H300: P.S SAN RAFAEL | N300: SO198 | P300: SO198
H301: P.S TERELA | N301: SO199 | P301: SO199
H302: P.S LA OBRILLA | N302: SO200 | P302: SO200
H303: P.S CHAPAIRA | N303: SO201 | P303: SO201
H304: P.S EL PAPAYO
H305: P.S CRUZ DE CAÑA
... 221 more rows

Sheet Informe
A1: INFORME MENSUAL DE ACTIVIDADES ESTRATEGIA SANITARIA NACIONAL SALUD OCULAR
A3: =IF(B2="REGION DE SALUD PIURA","REGION",Tabla!B2) -> SUBREGION | B3: =IF(Tabla!C2="(Todas)","REGION DE SALUD PIURA",Tabla!C2) -> REGION DE SALUD PIURA
A5: Periodo: | B5: Noviembre | E5: Año: | F5: =YEAR(TODAY()) -> 2024
A6: Tamizaje y seguimiento del recién nacido con factores de riesgo para retinopatía de la prematuridad
B7: U. M. | C7: Total | D7: < 1 m | E7: 1 m | F7: 2 m
A8: Tamizaje de recien nacidos con factores de riesgo | B8: Normal | C8: =SUM(D8:F8) -> 103 | D8: =VLOOKUP(Formato_VAL!D8,Tabla!$A$5:$U$540,PANEL!$D$107,0) -> 64 | E8: =VLOOKUP(Formato_VAL!E8,Tabla!$A$5:$U$540,PANEL!$D$107,0) -> 36 | F8: =VLOOKUP(Formato_VAL!F8,Tabla!$A$5:$U$540,PANEL!$D$107,0) -> 3
B9: Anormal | C9: =SUM(D9:F9) -> 0 | D9: =VLOOKUP(Formato_VAL!D9,Tabla!$A$5:$U$540,PANEL!$D$107,0) -> 0 | E9: =VLOOKUP(Formato_VAL!E9,Tabla!$A$5:$U$540,PANEL!$D$107,0) -> 0 | F9: =VLOOKUP(Formato_VAL!F9,Tabla!$A$5:$U$540,PANEL!$D$107,0) -> 0
A10: Diagnostico de casos de retinopatía de la prematuridad | B10: Caso | C10: 6 | D10: =VLOOKUP(Formato_VAL!D10,Tabla!$A$5:$U$540,PANEL!$D$107,0) -> 3 | E10: =VLOOKUP(Formato_VAL!E10,Tabla!$A$5:$U$540,PANEL!$D$107,0) -> 0 | F10: =VLOOKUP(Formato_VAL!F10,Tabla!$A$5:$U$540,PANEL!$D$107,0) -> 3
A11: Tratamiento de casos | B11: Caso tratado | C11: 1 | D11: =VLOOKUP(Formato_VAL!D11,Tabla!$A$5:$U$540,PANEL!$D$107,0) -> 1 | E11: =VLOOKUP(Formato_VAL!E11,Tabla!$A$5:$U$540,PANEL!$D$107,0) -> 0 | F11: =VLOOKUP(Formato_VAL!F11,Tabla!$A$5:$U$540,PANEL!$D$107,0) -> 0
A12: Complicaciones de tratamiento | B12: Caso | C12: 0 | D12: =VLOOKUP(Formato_VAL!D12,Tabla!$A$5:$U$540,PANEL!$D$107,0) -> 0 | E12: =VLOOKUP(Formato_VAL!E12,Tabla!$A$5:$U$540,PANEL!$D$107,0) -> 0 | F12: =VLOOKUP(Formato_VAL!F12,Tabla!$A$5:$U$540,PANEL!$D$107,0) -> 0
A13: Control Post Operatorio de recién nacidos | B13: Control | C13: 0 | D13: =VLOOKUP(Formato_VAL!D13,Tabla!$A$5:$U$540,PANEL!$D$107,0) -> 0 | E13: =VLOOKUP(Formato_VAL!E13,Tabla!$A$5:$U$540,PANEL!$D$107,0) -> 0 | F13: =VLOOKUP(Formato_VAL!F13,Tabla!$A$5:$U$540,PANEL!$D$107,0) -> 0
A15: Evaluación visual de niños menores de 3 AÑOS
B16: U. M. | C16: Total | D16: < 1 año | E16: 1 año | F16: 2 años
A17: Examen de los Ojos y de la Visión | B17: Normal | C17: =SUM(D17:F17) -> 838 | D17: =VLOOKUP(Formato_VAL!D17,Tabla!$A$5:$U$540,PANEL!$D$107,0) -> 367 | E17: =VLOOKUP(Formato_VAL!E17,Tabla!$A$5:$U$540,PANEL!$D$107,0) -> 265 | F17: =VLOOKUP(Formato_VAL!F17,Tabla!$A$5:$U$540,PANEL!$D$107,0) -> 206
B18: Anormal | C18: =SUM(D18:F18) -> 7 | D18: =VLOOKUP(Formato_VAL!D18,Tabla!$A$5:$U$540,PANEL!$D$107,0) -> 5 | E18: =VLOOKUP(Formato_VAL!E18,Tabla!$A$5:$U$540,PANEL!$D$107,0) -> 1 | F18: =VLOOKUP(Formato_VAL!F18,Tabla!$A$5:$U$540,PANEL!$D$107,0) -> 1
A20: Tamizaje y Detección de Errores Refractivos en Niños de 3 a 11 años
B21: U. M. | C21: Total | D21: 3 años | E21: 4 años | F21: 5 - 11 a
A22: Determinación de la Agudeza Visual | B22: Número | C22: =SUM(D22:F22) -> 6,888 | D22: =VLOOKUP(Formato_VAL!D22,Tabla!$A$5:$U$540,PANEL!$D$107,0) -> 565 | E22: =VLOOKUP(Formato_VAL!E22,Tabla!$A$5:$U$540,PANEL!$D$107,0) -> 866 | F22: =VLOOKUP(Formato_VAL!F22,Tabla!$A$5:$U$540,PANEL!$D$107,0) -> 5,457
A23: Examen de los Ojos y de la Visión | B23: Normal | C23: =SUM(D23:F23) -> 4,325 | D23: =VLOOKUP(Formato_VAL!D23,Tabla!$A$5:$U$540,PANEL!$D$107,0) -> 462 | E23: =VLOOKUP(Formato_VAL!E23,Tabla!$A$5:$U$540,PANEL!$D$107,0) -> 667 | F23: =VLOOKUP(Formato_VAL!F23,Tabla!$A$5:$U$540,PANEL!$D$107,0) -> 3,196
B24: Anormal | C24: 432 | D24: =VLOOKUP(Formato_VAL!D24,Tabla!$A$5:$U$540,PANEL!$D$107,0) -> 26 | E24: =VLOOKUP(Formato_VAL!E24,Tabla!$A$5:$U$540,PANEL!$D$107,0) -> 32 | F24: =VLOOKUP(Formato_VAL!F24,Tabla!$A$5:$U$540,PANEL!$D$107,0) -> 374
A26: Diagnostico de Errores Refractivos
A27: Astigmatismo | B27: Caso | C27: =SUM(D27:F27) -> 37 | D27: =VLOOKUP(Formato_VAL!D27,Tabla!$A$5:$U$540,PANEL!$D$107,0) -> 0 | E27: =VLOOKUP(Formato_VAL!E27,Tabla!$A$5:$U$540,PANEL!$D$107,0) -> 3 | F27: =VLOOKUP(Formato_VAL!F27,Tabla!$A$5:$U$540,PANEL!$D$107,0) -> 34
A28: Hipermetropía | B28: Caso | C28: =SUM(D28:F28) -> 27 | D28: =VLOOKUP(Formato_VAL!D28,Tabla!$A$5:$U$540,PANEL!$D$107,0) -> 0 | E28: =VLOOKUP(Formato_VAL!E28,Tabla!$A$5:$U$540,PANEL!$D$107,0) -> 3 | F28: =VLOOKUP(Formato_VAL!F28,Tabla!$A$5:$U$540,PANEL!$D$107,0) -> 24
A29: Miopía | B29: Caso | C29: 275 | D29: =VLOOKUP(Formato_VAL!D29,Tabla!$A$5:$U$540,PANEL!$D$107,0) -> 0 | E29: =VLOOKUP(Formato_VAL!E29,Tabla!$A$5:$U$540,PANEL!$D$107,0) -> 9 | F29: =VLOOKUP(Formato_VAL!F29,Tabla!$A$5:$U$540,PANEL!$D$107,0) -> 266
A31: Tratamiento de Errores Refractivos
A32: Provisión de anteojos | B32: Niño | C32: =SUM(D32:F32) -> 249 | D32: =VLOOKUP(Formato_VAL!D32,Tabla!$A$5:$U$540,PANEL!$D$107,0) -> 0 | E32: =VLOOKUP(Formato_VAL!E32,Tabla!$A$5:$U$540,PANEL!$D$107,0) -> 9 | F32: =VLOOKUP(Formato_VAL!F32,Tabla!$A$5:$U$540,PANEL!$D$107,0) -> 240
A34: Control de Pacientes con Errores Refractivos
A35: Prueba y ajuste de anteojos | B35: Control | C35: =SUM(D35:F35) -> 248 | D35: =VLOOKUP(Formato_VAL!D35,Tabla!$A$5:$U$540,PANEL!$D$107,0) -> 0 | E35: =VLOOKUP(Formato_VAL!E35,Tabla!$A$5:$U$540,PANEL!$D$107,0) -> 9 | F35: =VLOOKUP(Formato_VAL!F35,Tabla!$A$5:$U$540,PANEL!$D$107,0) -> 239
A37: Tamizaje y detección de glaucoma
B38: U. M. | C38: Total | D38: 40 - 49 a | E38: 50 - 59 a | F38: 60 y más
A39: Tamizaje de personas con riesgo de glaucoma
A40: Examen de los Ojos y de la Visión | B40: Normal | C40: =SUM(D40:F40) -> 636 | D40: =VLOOKUP(Formato_VAL!D40,Tabla!$A$5:$U$540,PANEL!$D$107,0) -> 102 | E40: =VLOOKUP(Formato_VAL!E40,Tabla!$A$5:$U$540,PANEL!$D$107,0) -> 207 | F40: =VLOOKUP(Formato_VAL!F40,Tabla!$A$5:$U$540,PANEL!$D$107,0) -> 327
B41: Anormal | C41: =SUM(D41:F41) -> 1,101 | D41: =VLOOKUP(Formato_VAL!D41,Tabla!$A$5:$U$540,PANEL!$D$107,0) -> 79 | E41: =VLOOKUP(Formato_VAL!E41,Tabla!$A$5:$U$540,PANEL!$D$107,0) -> 273 | F41: =VLOOKUP(Formato_VAL!F41,Tabla!$A$5:$U$540,PANEL!$D$107,0) -> 749
A43: Determinación de presión intraocular | B43: Normal | C43: 369 | D43: =VLOOKUP(Formato_VAL!D43,Tabla!$A$5:$U$540,PANEL!$D$107,0) -> 44 | E43: =VLOOKUP(Formato_VAL!E43,Tabla!$A$5:$U$540,PANEL!$D$107,0) -> 67 | F43: =VLOOKUP(Formato_VAL!F43,Tabla!$A$5:$U$540,PANEL!$D$107,0) -> 258
B44: Anormal | C44: 92 | D44: =VLOOKUP(Formato_VAL!D44,Tabla!$A$5:$U$540,PANEL!$D$107,0) -> 4 | E44: =VLOOKUP(Formato_VAL!E44,Tabla!$A$5:$U$540,PANEL!$D$107,0) -> 21 | F44: =VLOOKUP(Formato_VAL!F44,Tabla!$A$5:$U$540,PANEL!$D$107,0) -> 67
A47: Diagnóstico de casos
A48: Diagnóstico de glaucoma | B48: Caso | C48: =SUM(D48:F48) -> 286 | D48: =VLOOKUP(Formato_VAL!D47,Tabla!$A$5:$U$540,PANEL!$D$107,0) -> 27 | E48: =VLOOKUP(Formato_VAL!E47,Tabla!$A$5:$U$540,PANEL!$D$107,0) -> 56 | F48: =VLOOKUP(Formato_VAL!F47,Tabla!$A$5:$U$540,PANEL!$D$107,0) -> 203
A50: Tratamiento de casos
A51: Reciben tratamiento Laser | B51: Caso | C51: =SUM(D52:F52) -> 0 | D51: =VLOOKUP(Formato_VAL!D50,Tabla!$A$5:$U$540,PANEL!$D$107,0) -> 0 | E51: =VLOOKUP(Formato_VAL!E50,Tabla!$A$5:$U$540,PANEL!$D$107,0) -> 0 | F51: =VLOOKUP(Formato_VAL!F50,Tabla!$A$5:$U$540,PANEL!$D$107,0) -> 0
A52: Reciben tratamiento quirúrgico | B52: Caso | C52: =SUM(D52:F52) -> 0 | D52: =VLOOKUP(Formato_VAL!D51,Tabla!$A$5:$U$540,PANEL!$D$107,0) -> 0 | E52: =VLOOKUP(Formato_VAL!E51,Tabla!$A$5:$U$540,PANEL!$D$107,0) -> 0 | F52: =VLOOKUP(Formato_VAL!F51,Tabla!$A$5:$U$540,PANEL!$D$107,0) -> 0
A53: Control de Pacientes
A54: Atenciones de control | B54: Atención | C54: =SUM(D54:F54) -> 61 | D54: =VLOOKUP(Formato_VAL!D54,Tabla!$A$5:$U$540,PANEL!$D$107,0) -> 16 | E54: =VLOOKUP(Formato_VAL!E54,Tabla!$A$5:$U$540,PANEL!$D$107,0) -> 45 | F54: =VLOOKUP(Formato_VAL!F54,Tabla!$A$5:$U$540,PANEL!$D$107,0) -> 0
A56: Diagnóstico de ceguera por catarata
B57: U. M | C57: Total | D57: Niños | E57: 50 - 59 a | F57: 60 y más
A58: Tamizaje y detección de catarata
A59: Determinación de la Agudeza Visual | B59: Número | C59: =SUM(D59:F59) -> 2830 | E59: =VLOOKUP(Formato_VAL!E59,Tabla!$A$5:$U$540,PANEL!$D$107,0) -> 843 | F59: =VLOOKUP(Formato_VAL!F59,Tabla!$A$5:$U$540,PANEL!$D$107,0) -> 1,987
A61: Diagnóstico de casos de catarata
A62: Casos de catarata senil | B62: Caso | C62: =SUM(D62:F62) -> 286 | E62: =VLOOKUP(Formato_VAL!E62,Tabla!$A$5:$U$540,PANEL!$D$107,0) -> 41 | F62: =VLOOKUP(Formato_VAL!F62,Tabla!$A$5:$U$540,PANEL!$D$107,0) -> 245
A63: Casos de catarata congénita | B63: Caso | C63: =SUM(D63:F63) -> 2 | D63: =VLOOKUP(Formato_VAL!D63,Tabla!$A$5:$U$540,PANEL!$D$107,0) -> 2
A64: Casos de otras cataratas | B64: Caso | C64: =SUM(D64:F64) -> 71 | D64: =VLOOKUP(Formato_VAL!D64,Tabla!$A$5:$U$540,PANEL!$D$107,0) -> 2 | E64: =VLOOKUP(Formato_VAL!E64,Tabla!$A$5:$U$540,PANEL!$D$107,0) -> 9 | F64: =VLOOKUP(Formato_VAL!F64,Tabla!$A$5:$U$540,PANEL!$D$107,0) -> 60
A66: Tratamiento de casos de catarata
A67: Facofragmentación (facoemulsificación) con aspiración | B67: Procedim. | C67: =SUM(D67:F67) -> 8 | D67: =VLOOKUP(Formato_VAL!D67,Tabla!$A$5:$U$540,PANEL!$D$107,0) -> 0 | E67: =VLOOKUP(Formato_VAL!E67,Tabla!$A$5:$U$540,PANEL!$D$107,0) -> 1 | F67: =VLOOKUP(Formato_VAL!F67,Tabla!$A$5:$U$540,PANEL!$D$107,0) -> 7
A68: Extracción extracapsular de Catarata con implente de lente intraocular | B68: Procedim. | C68: =SUM(D68:F68) -> 11 | D68: =VLOOKUP(Formato_VAL!D68,Tabla!$A$5:$U$540,PANEL!$D$107,0) -> 0 | E68: =VLOOKUP(Formato_VAL!E68,Tabla!$A$5:$U$540,PANEL!$D$107,0) -> 3 | F68: =VLOOKUP(Formato_VAL!F68,Tabla!$A$5:$U$540,PANEL!$D$107,0) -> 8
A69: Mininuc con implante de lente intraocular (LIO) | B69: Procedim. | C69: =SUM(D69:F69) -> 0 | D69: =VLOOKUP(Formato_VAL!D69,Tabla!$A$5:$U$540,PANEL!$D$107,0) -> 0 | E69: =VLOOKUP(Formato_VAL!E69,Tabla!$A$5:$U$540,PANEL!$D$107,0) -> 0 | F69: =VLOOKUP(Formato_VAL!F69,Tabla!$A$5:$U$540,PANEL!$D$107,0) -> 0
A71: Control Post operatorio
A72: Pacientes con 1º Control Post Operatorio | B72: Control | C72: =SUM(D72:F72) -> 10 | D72: =VLOOKUP(Formato_VAL!D72,Tabla!$A$5:$U$540,PANEL!$D$107,0) -> 0 | E72: =VLOOKUP(Formato_VAL!E72,Tabla!$A$5:$U$540,PANEL!$D$107,0) -> 2 | F72: =VLOOKUP(Formato_VAL!F72,Tabla!$A$5:$U$540,PANEL!$D$107,0) -> 8
A73: Pacientes con 2º Control Post Operatorio | B73: Control | C73: =SUM(D73:F73) -> 9 | D73: =VLOOKUP(Formato_VAL!D73,Tabla!$A$5:$U$540,PANEL!$D$107,0) -> 0 | E73: =VLOOKUP(Formato_VAL!E73,Tabla!$A$5:$U$540,PANEL!$D$107,0) -> 4 | F73: =VLOOKUP(Formato_VAL!F73,Tabla!$A$5:$U$540,PANEL!$D$107,0) -> 5
A74: Pacientes con 3º Control Post Operatorio | B74: Control | C74: =SUM(D74:F74) -> 0 | D74: =VLOOKUP(Formato_VAL!D74,Tabla!$A$5:$U$540,PANEL!$D$107,0) -> 0 | E74: =VLOOKUP(Formato_VAL!E74,Tabla!$A$5:$U$540,PANEL!$D$107,0) -> 0 | F74: =VLOOKUP(Formato_VAL!F74,Tabla!$A$5:$U$540,PANEL!$D$107,0) -> 0
A75: Pacientes con 4º Control Post Operatorio | B75: Control | C75: =SUM(D75:F75) -> 0 | D75: =VLOOKUP(Formato_VAL!D75,Tabla!$A$5:$U$540,PANEL!$D$107,0) -> 0 | E75: =VLOOKUP(Formato_VAL!E75,Tabla!$A$5:$U$540,PANEL!$D$107,0) -> 0 | F75: =VLOOKUP(Formato_VAL!F75,Tabla!$A$5:$U$540,PANEL!$D$107,0) -> 0
A77: Control Especializado de Complicaciones Post quirúrgicas
A78: Complicaciones post quirúrgicas | B78: Caso | C78: =SUM(D78:F78) -> 0 | D78: =VLOOKUP(Formato_VAL!D78,Tabla!$A$5:$U$540,PANEL!$D$107,0) -> 0 | E78: =VLOOKUP(Formato_VAL!E78,Tabla!$A$5:$U$540,PANEL!$D$107,0) -> 0 | F78: =VLOOKUP(Formato_VAL!F78,Tabla!$A$5:$U$540,PANEL!$D$107,0) -> 0
A80: Detección de personas con diabetes mellitus con riesgo de retinopatia diabetica
B81: U. M | C81: Total | D81: 18 - 29 a | E81: 30 - 59 a | F81: 60 y más
A82: Examen de los Ojos y de la Visión | B82: Normal | C82: =SUM(D82:F82) -> 15 | D82: =VLOOKUP(Formato_VAL!D82,Tabla!$A$5:$U$540,PANEL!$D$107,0) -> 0 | E82: =VLOOKUP(Formato_VAL!E82,Tabla!$A$5:$U$540,PANEL!$D$107,0) -> 6 | F82: =VLOOKUP(Formato_VAL!F82,Tabla!$A$5:$U$540,PANEL!$D$107,0) -> 9
B83: Anormal | C83: 42 | D83: =VLOOKUP(Formato_VAL!D83,Tabla!$A$5:$U$540,PANEL!$D$107,0) -> 0 | E83: =VLOOKUP(Formato_VAL!E83,Tabla!$A$5:$U$540,PANEL!$D$107,0) -> 14 | F83: =VLOOKUP(Formato_VAL!F83,Tabla!$A$5:$U$540,PANEL!$D$107,0) -> 28
A85: Determinacion de presion intraocular | B85: Normal | C85: =SUM(D85:F85) -> 0 | D85: =VLOOKUP(Formato_VAL!D85,Tabla!$A$5:$U$540,PANEL!$D$107,0) -> 0 | E85: =VLOOKUP(Formato_VAL!E85,Tabla!$A$5:$U$540,PANEL!$D$107,0) -> 0 | F85: =VLOOKUP(Formato_VAL!F85,Tabla!$A$5:$U$540,PANEL!$D$107,0) -> 0
B86: Anormal | C86: =SUM(D86:F86) -> 0 | D86: =VLOOKUP(Formato_VAL!D86,Tabla!$A$5:$U$540,PANEL!$D$107,0) -> 0 | E86: =VLOOKUP(Formato_VAL!E86,Tabla!$A$5:$U$540,PANEL!$D$107,0) -> 0 | F86: =VLOOKUP(Formato_VAL!F86,Tabla!$A$5:$U$540,PANEL!$D$107,0) -> 0
A88: Retinografia | B88: Normal | C88: =SUM(D88:F88) -> 0 | D88: =VLOOKUP(Formato_VAL!D88,Tabla!$A$5:$U$540,PANEL!$D$107,0) -> 0 | E88: =VLOOKUP(Formato_VAL!E88,Tabla!$A$5:$U$540,PANEL!$D$107,0) -> 0 | F88: =VLOOKUP(Formato_VAL!F88,Tabla!$A$5:$U$540,PANEL!$D$107,0) -> 0
B89: Anormal | C89: =SUM(D89:F89) -> 0 | D89: =VLOOKUP(Formato_VAL!D89,Tabla!$A$5:$U$540,PANEL!$D$107,0) -> 0 | E89: =VLOOKUP(Formato_VAL!E89,Tabla!$A$5:$U$540,PANEL!$D$107,0) -> 0 | F89: =VLOOKUP(Formato_VAL!F89,Tabla!$A$5:$U$540,PANEL!$D$107,0) -> 0
A91: Diagnóstico de casos
A92: Casos de retinopatía diabética | B92: Caso | C92: =SUM(D92:F92) -> 82 | D92: =VLOOKUP(Formato_VAL!D92,Tabla!$A$5:$U$540,PANEL!$D$107,0) -> 2 | E92: =VLOOKUP(Formato_VAL!E92,Tabla!$A$5:$U$540,PANEL!$D$107,0) -> 48 | F92: =VLOOKUP(Formato_VAL!F92,Tabla!$A$5:$U$540,PANEL!$D$107,0) -> 32
A94: Tratamiento de casos
A95: Terapia Laser | B95: Procedim. | C95: =SUM(D95:F95) -> 0 | D95: =VLOOKUP(Formato_VAL!D95,Tabla!$A$5:$U$540,PANEL!$D$107,0) -> 0 | E95: =VLOOKUP(Formato_VAL!E95,Tabla!$A$5:$U$540,PANEL!$D$107,0) -> 0 | F95: =VLOOKUP(Formato_VAL!F95,Tabla!$A$5:$U$540,PANEL!$D$107,0) -> 0
A96: Terapia intravítrea | B96: Procedim. | C96: =SUM(D96:F96) -> 0 | D96: =VLOOKUP(Formato_VAL!D96,Tabla!$A$5:$U$540,PANEL!$D$107,0) -> 0 | E96: =VLOOKUP(Formato_VAL!E96,Tabla!$A$5:$U$540,PANEL!$D$107,0) -> 0 | F96: =VLOOKUP(Formato_VAL!F96,Tabla!$A$5:$U$540,PANEL!$D$107,0) -> 0
A97: Cirugía vítrea | B97: Procedim. | C97: =SUM(D97:F97) -> 0 | D97: =VLOOKUP(Formato_VAL!D97,Tabla!$A$5:$U$540,PANEL!$D$107,0) -> 0 | E97: =VLOOKUP(Formato_VAL!E97,Tabla!$A$5:$U$540,PANEL!$D$107,0) -> 0 | F97: =VLOOKUP(Formato_VAL!F97,Tabla!$A$5:$U$540,PANEL!$D$107,0) -> 0
A99: Control de Pacientes
A100: Atenciones de control | B100: Atención | C100: =SUM(D100:F100) -> 51 | D100: =VLOOKUP(Formato_VAL!D100,Tabla!$A$5:$U$540,PANEL!$D$107,0) -> 0 | E100: =VLOOKUP(Formato_VAL!E100,Tabla!$A$5:$U$540,PANEL!$D$107,0) -> 34 | F100: =VLOOKUP(Formato_VAL!F100,Tabla!$A$5:$U$540,PANEL!$D$107,0) -> 17
A102: Detección de personas con tracoma
B103: U. M | C103: Total | D103: 0 - 11 a | E103: 12 - 17 a | F103: 18 - 29 a
A105: Diagnóstico de casos
A106: Casos de tracoma | B106: Caso | C106: =SUM(D106:F106) -> 0 | D106: =VLOOKUP(Formato_VAL!D106,Tabla!$A$5:$U$540,PANEL!$D$107,0) -> 0 | E106: =VLOOKUP(Formato_VAL!E106,Tabla!$A$5:$U$540,PANEL!$D$107,0) -> 0 | F106: =VLOOKUP(Formato_VAL!F106,Tabla!$A$5:$U$540,PANEL!$D$107,0) -> 0
A108: Tratamiento de casos
A109: Tratamiento quirúrgico | B109: Caso Tratado | C109: =SUM(D109:F109) -> 0 | D109: =VLOOKUP(Formato_VAL!D109,Tabla!$A$5:$U$540,PANEL!$D$107,0) -> 0 | E109: =VLOOKUP(Formato_VAL!E109,Tabla!$A$5:$U$540,PANEL!$D$107,0) -> 0 | F109: =VLOOKUP(Formato_VAL!F109,Tabla!$A$5:$U$540,PANEL!$D$107,0) -> 0
A110: Tratamiento farmacológico | B110: Caso Tratado | C110: =SUM(D110:F110) -> 1 | D110: =VLOOKUP(Formato_VAL!D110,Tabla!$A$5:$U$540,PANEL!$D$107,0) -> 1 | E110: =VLOOKUP(Formato_VAL!E110,Tabla!$A$5:$U$540,PANEL!$D$107,0) -> 0 | F110: =VLOOKUP(Formato_VAL!F110,Tabla!$A$5:$U$540,PANEL!$D$107,0) -> 0
A112: Control de Pacientes
A113: Atenciones de control | B113: Atención | C113: =SUM(D113:F113) -> 0 | D113: =VLOOKUP(Formato_VAL!D113,Tabla!$A$5:$U$540,PANEL!$D$107,0) -> 0 | E113: =VLOOKUP(Formato_VAL!E113,Tabla!$A$5:$U$540,PANEL!$D$107,0) -> 0 | F113: =VLOOKUP(Formato_VAL!F113,Tabla!$A$5:$U$540,PANEL!$D$107,0) -> 0
A115: Enfermedades externas del ojo
B116: U. M | C116: Total | D116: 0 - 11 a | E116: 12 - 17 a | F116: 18 - 29 a
A117: Diagnóstico de Enfermedades externas del ojo
A118: Orzuelo | B118: Caso | C118: =SUM(D118:F118) -> 32 | D118: =VLOOKUP(Formato_VAL!D118,Tabla!$A$5:$U$540,PANEL!$D$107,0) -> 16 | E118: =VLOOKUP(Formato_VAL!E118,Tabla!$A$5:$U$540,PANEL!$D$107,0) -> 8 | F118: =VLOOKUP(Formato_VAL!F118,Tabla!$A$5:$U$540,PANEL!$D$107,0) -> 8
A119: Chalazion | B119: Caso | C119: =SUM(D119:F119) -> 27 | D119: =VLOOKUP(Formato_VAL!D119,Tabla!$A$5:$U$540,PANEL!$D$107,0) -> 8 | E119: =VLOOKUP(Formato_VAL!E119,Tabla!$A$5:$U$540,PANEL!$D$107,0) -> 8 | F119: =VLOOKUP(Formato_VAL!F119,Tabla!$A$5:$U$540,PANEL!$D$107,0) -> 11
A120: Blefaritis | B120: Caso | C120: =SUM(D120:F120) -> 25 | D120: =VLOOKUP(Formato_VAL!D120,Tabla!$A$5:$U$540,PANEL!$D$107,0) -> 13 | E120: =VLOOKUP(Formato_VAL!E120,Tabla!$A$5:$U$540,PANEL!$D$107,0) -> 2 | F120: =VLOOKUP(Formato_VAL!F120,Tabla!$A$5:$U$540,PANEL!$D$107,0) -> 10
A121: Conjuntivitis | B121: Caso | C121: =SUM(D121:F121) -> 452 | D121: =VLOOKUP(Formato_VAL!D121,Tabla!$A$5:$U$540,PANEL!$D$107,0) -> 341 | E121: =VLOOKUP(Formato_VAL!E121,Tabla!$A$5:$U$540,PANEL!$D$107,0) -> 52 | F121: =VLOOKUP(Formato_VAL!F121,Tabla!$A$5:$U$540,PANEL!$D$107,0) -> 59

Sheet Tabla
B2: SUBREGION | C2: (Todas) | Y2: =VLOOKUP(X6,PANEL!$N$106:$O$303,2,0) -> Tamizaje de recien nacidos con factores de riesgo menores de 1 mes (normal)
A3: 1 | B3: 2 | C3: 3 | D3: 4 | E3: 5 | F3: 6 | G3: 7 | H3: 8 | I3: 9 | J3: 10 | K3: 11 | L3: 12 | M3: 13 | N3: 14 | O3: 15 | P3: 16 | Q3: 17 | R3: 18 | S3: 19 | T3: 20 | U3: 21 | X3: 1 | Y3: 2 | Z3: 3 | AA3: 4 | AB3: 5 | AC3: 6 | AD3: 7 | AE3: 8 | AF3: 9 | AG3: 10 | AH3: 11 | AI3: 12 | AJ3: 13 | AK3: 14
C4: Etiquetas de columna | Z4: Etiquetas de columna
B5: Valores | C5: 1 | D5: 2 | E5: 3 | F5: 4 | G5: 5 | H5: 6 | I5: 7 | J5: 8 | K5: 9 | L5: 10 | M5: 11 | N5: 12 | O5: Total | P5: I-Trim | Q5: II-Trim | R5: III-Trim | S5: IV-Trim | T5: I-Sem | U5: II-Sem | Y5: Valores | Z5: 1 | AA5: 2 | AB5: 3 | AC5: 4 | AD5: 5 | AE5: 6 | AF5: 7 | AG5: 8 | AH5: 9 | AI5: 10 | AJ5: 11 | AK5: 12
A6: =MID(B6,9,15) -> SO1 | B6: Suma de SO1 | C6: 75 | D6: 49 | E6: 105 | F6: 27 | G6: 34 | H6: 64 | I6: 64 | J6: 91 | K6: 61 | L6: 58 | M6: 64 | N6: 103 | O6: =SUM(C6:N6) -> 795 | P6: =SUM(C6:E6) -> 229 | Q6: =SUM(F6:H6) -> 125 | R6: =SUM(I6:K6) -> 216 | S6: =SUM(L6:N6) -> 225 | T6: =SUM(C6:H6) -> 354 | U6: =SUM(I6:N6) -> 441 | X6: =MID(Y6,9,15) -> SO1 | Y6: Suma de SO1 | Z6: 0 | AA6: 25 | AB6: 25 | AC6: 22 | AD6: 6 | AE6: 2 | AF6: 8 | AG6: 13 | AH6: 0 | AI6: 1 | AJ6: 14 | AK6: 59
A7: SO2 | B7: Suma de SO2 | C7: 15 | D7: 9 | E7: 2 | F7: 1 | G7: 9 | H7: 12 | I7: 7 | J7: 23 | K7: 13 | L7: 14 | M7: 36 | N7: 23 | O7: 164 | P7: 26 | Q7: 22 | R7: 43 | S7: 73 | T7: 48 | U7: 116 | X7: =MID(Y7,9,15) -> SO2 | Y7: Suma de SO2 | Z7: 0 | AA7: 4 | AB7: 0 | AC7: 1 | AD7: 0 | AE7: 8 | AF7: 5 | AG7: 8 | AH7: 2 | AI7: 4 | AJ7: 25 | AK7: 16
A8: SO3 | B8: Suma de SO3 | C8: 1 | D8: 3 | E8: 2 | F8: 0 | G8: 1 | H8: 6 | I8: 4 | J8: 3 | K8: 4 | L8: 3 | M8: 3 | N8: 4 | O8: 34 | P8: 6 | Q8: 7 | R8: 11 | S8: 10 | T8: 13 | U8: 21 | X8: SO3 | Y8: Suma de SO3 | Z8: 0 | AA8: 2 | AB8: 0 | AC8: 0 | AD8: 0 | AE8: 4 | AF8: 2 | AG8: 1 | AH8: 2 | AI8: 2 | AJ8: 0 | AK8: 2
A9: SO4 | B9: Suma de SO4 | C9: 0 | D9: 0 | E9: 0 | F9: 0 | G9: 0 | H9: 0 | I9: 0 | J9: 0 | K9: 0 | L9: 0 | M9: 0 | N9: 0 | O9: 0 | P9: 0 | Q9: 0 | R9: 0 | S9: 0 | T9: 0 | U9: 0 | X9: SO4 | Y9: Suma de SO4 | Z9: 0 | AA9: 0 | AB9: 0 | AC9: 0 | AD9: 0 | AE9: 0 | AF9: 0 | AG9: 0 | AH9: 0 | AI9: 0 | AJ9: 0 | AK9: 0
A10: SO5 | B10: Suma de SO5 | C10: 0 | D10: 0 | E10: 0 | F10: 0 | G10: 0 | H10: 0 | I10: 0 | J10: 0 | K10: 0 | L10: 0 | M10: 0 | N10: 0 | O10: 0 | P10: 0 | Q10: 0 | R10: 0 | S10: 0 | T10: 0 | U10: 0 | X10: SO5 | Y10: Suma de SO5 | Z10: 0 | AA10: 0 | AB10: 0 | AC10: 0 | AD10: 0 | AE10: 0 | AF10: 0 | AG10: 0 | AH10: 0 | AI10: 0 | AJ10: 0 | AK10: 0
A11: SO6 | B11: Suma de SO6 | C11: 0 | D11: 0 | E11: 0 | F11: 0 | G11: 0 | H11: 0 | I11: 0 | J11: 0 | K11: 0 | L11: 0 | M11: 0 | N11: 0 | O11: 0 | P11: 0 | Q11: 0 | R11: 0 | S11: 0 | T11: 0 | U11: 0 | X11: SO6 | Y11: Suma de SO6 | Z11: 0 | AA11: 0 | AB11: 0 | AC11: 0 | AD11: 0 | AE11: 0 | AF11: 0 | AG11: 0 | AH11: 0 | AI11: 0 | AJ11: 0 | AK11: 0
A12: SO7 | B12: Suma de SO7 | C12: 0 | D12: 2 | E12: 1 | F12: 4 | G12: 4 | H12: 5 | I12: 0 | J12: 0 | K12: 1 | L12: 15 | M12: 3 | N12: 0 | O12: 35 | P12: 3 | Q12: 13 | R12: 1 | S12: 18 | T12: 16 | U12: 19 | X12: SO7 | Y12: Suma de SO7 | Z12: 0 | AA12: 2 | AB12: 1 | AC12: 3 | AD12: 2 | AE12: 2 | AF12: 0 | AG12: 0 | AH12: 0 | AI12: 1 | AJ12: 0 | AK12: 0
A13: SO8 | B13: Suma de SO8 | C13: 0 | D13: 1 | E13: 2 | F13: 2 | G13: 0 | H13: 4 | I13: 2 | J13: 2 | K13: 0 | L13: 1 | M13: 0 | N13: 1 | O13: 15 | P13: 3 | Q13: 6 | R13: 4 | S13: 2 | T13: 9 | U13: 6 | X13: SO8 | Y13: Suma de SO8 | Z13: 0 | AA13: 1 | AB13: 1 | AC13: 2 | AD13: 0 | AE13: 2 | AF13: 2 | AG13: 2 | AH13: 0 | AI13: 0 | AJ13: 0 | AK13: 1
A14: SO9 | B14: Suma de SO9 | C14: 0 | D14: 0 | E14: 1 | F14: 0 | G14: 1 | H14: 1 | I14: 0 | J14: 0 | K14: 0 | L14: 2 | M14: 3 | N14: 0 | O14: 8 | P14: 1 | Q14: 2 | R14: 0 | S14: 5 | T14: 3 | U14: 5 | X14: SO9 | Y14: Suma de SO9 | Z14: 0 | AA14: 0 | AB14: 1 | AC14: 0 | AD14: 1 | AE14: 1 | AF14: 0 | AG14: 0 | AH14: 0 | AI14: 1 | AJ14: 2 | AK14: 0
A15: SO10 | B15: Suma de SO10 | C15: 0 | D15: 0 | E15: 0 | F15: 0 | G15: 0 | H15: 0 | I15: 0 | J15: 0 | K15: 0 | L15: 0 | M15: 1 | N15: 0 | O15: 1 | P15: 0 | Q15: 0 | R15: 0 | S15: 1 | T15: 0 | U15: 1 | X15: SO10 | Y15: Suma de SO10 | Z15: 0 | AA15: 0 | AB15: 0 | AC15: 0 | AD15: 0 | AE15: 0 | AF15: 0 | AG15: 0 | AH15: 0 | AI15: 0 | AJ15: 0 | AK15: 0
A16: SO11 | B16: Suma de SO11 | C16: 0 | D16: 0 | E16: 0 | F16: 0 | G16: 0 | H16: 0 | I16: 0 | J16: 0 | K16: 0 | L16: 1 | M16: 0 | N16: 0 | O16: 1 | P16: 0 | Q16: 0 | R16: 0 | S16: 1 | T16: 0 | U16: 1 | X16: SO11 | Y16: Suma de SO11 | Z16: 0 | AA16: 0 | AB16: 0 | AC16: 0 | AD16: 0 | AE16: 0 | AF16: 0 | AG16: 0 | AH16: 0 | AI16: 0 | AJ16: 0 | AK16: 0
A17: SO12 | B17: Suma de SO12 | C17: 0 | D17: 0 | E17: 0 | F17: 0 | G17: 0 | H17: 0 | I17: 0 | J17: 0 | K17: 0 | L17: 0 | M17: 0 | N17: 0 | O17: 0 | P17: 0 | Q17: 0 | R17: 0 | S17: 0 | T17: 0 | U17: 0 | X17: SO12 | Y17: Suma de SO12 | Z17: 0 | AA17: 0 | AB17: 0 | AC17: 0 | AD17: 0 | AE17: 0 | AF17: 0 | AG17: 0 | AH17: 0 | AI17: 0 | AJ17: 0 | AK17: 0
A18: SO13 | B18: Suma de SO13 | C18: 0 | D18: 0 | E18: 0 | F18: 0 | G18: 0 | H18: 0 | I18: 0 | J18: 0 | K18: 0 | L18: 0 | M18: 0 | N18: 0 | O18: 0 | P18: 0 | Q18: 0 | R18: 0 | S18: 0 | T18: 0 | U18: 0 | X18: SO13 | Y18: Suma de SO13 | Z18: 0 | AA18: 0 | AB18: 0 | AC18: 0 | AD18: 0 | AE18: 0 | AF18: 0 | AG18: 0 | AH18: 0 | AI18: 0 | AJ18: 0 | AK18: 0
A19: SO14 | B19: Suma de SO14 | C19: 0 | D19: 0 | E19: 0 | F19: 0 | G19: 0 | H19: 0 | I19: 0 | J19: 0 | K19: 0 | L19: 0 | M19: 0 | N19: 0 | O19: 0 | P19: 0 | Q19: 0 | R19: 0 | S19: 0 | T19: 0 | U19: 0 | X19: SO14 | Y19: Suma de SO14 | Z19: 0 | AA19: 0 | AB19: 0 | AC19: 0 | AD19: 0 | AE19: 0 | AF19: 0 | AG19: 0 | AH19: 0 | AI19: 0 | AJ19: 0 | AK19: 0
A20: SO15 | B20: Suma de SO15 | C20: 0 | D20: 0 | E20: 0 | F20: 0 | G20: 0 | H20: 0 | I20: 0 | J20: 0 | K20: 0 | L20: 0 | M20: 0 | N20: 0 | O20: 0 | P20: 0 | Q20: 0 | R20: 0 | S20: 0 | T20: 0 | U20: 0 | X20: SO15 | Y20: Suma de SO15 | Z20: 0 | AA20: 0 | AB20: 0 | AC20: 0 | AD20: 0 | AE20: 0 | AF20: 0 | AG20: 0 | AH20: 0 | AI20: 0 | AJ20: 0 | AK20: 0
A21: SO16 | B21: Suma de SO16 | C21: 0 | D21: 0 | E21: 0 | F21: 0 | G21: 0 | H21: 0 | I21: 0 | J21: 0 | K21: 0 | L21: 0 | M21: 0 | N21: 0 | O21: 0 | P21: 0 | Q21: 0 | R21: 0 | S21: 0 | T21: 0 | U21: 0 | X21: SO16 | Y21: Suma de SO16 | Z21: 0 | AA21: 0 | AB21: 0 | AC21: 0 | AD21: 0 | AE21: 0 | AF21: 0 | AG21: 0 | AH21: 0 | AI21: 0 | AJ21: 0 | AK21: 0
A22: SO17 | B22: Suma de SO17 | C22: 0 | D22: 0 | E22: 0 | F22: 0 | G22: 0 | H22: 0 | I22: 0 | J22: 0 | K22: 0 | L22: 0 | M22: 0 | N22: 0 | O22: 0 | P22: 0 | Q22: 0 | R22: 0 | S22: 0 | T22: 0 | U22: 0 | X22: SO17 | Y22: Suma de SO17 | Z22: 0 | AA22: 0 | AB22: 0 | AC22: 0 | AD22: 0 | AE22: 0 | AF22: 0 | AG22: 0 | AH22: 0 | AI22: 0 | AJ22: 0 | AK22: 0
A23: SO18 | B23: Suma de SO18 | C23: 0 | D23: 0 | E23: 0 | F23: 0 | G23: 0 | H23: 0 | I23: 0 | J23: 0 | K23: 0 | L23: 0 | M23: 0 | N23: 0 | O23: 0 | P23: 0 | Q23: 0 | R23: 0 | S23: 0 | T23: 0 | U23: 0 | X23: SO18 | Y23: Suma de SO18 | Z23: 0 | AA23: 0 | AB23: 0 | AC23: 0 | AD23: 0 | AE23: 0 | AF23: 0 | AG23: 0 | AH23: 0 | AI23: 0 | AJ23: 0 | AK23: 0
A24: SO19 | B24: Suma de SO19 | C24: 112 | D24: 113 | E24: 136 | F24: 119 | G24: 131 | H24: 198 | I24: 312 | J24: 437 | K24: 514 | L24: 408 | M24: 367 | N24: 355 | O24: 3202 | P24: 361 | Q24: 448 | R24: 1263 | S24: 1130 | T24: 809 | U24: 2393 | X24: SO19 | Y24: Suma de SO19 | Z24: 63 | AA24: 72 | AB24: 101 | AC24: 70 | AD24: 72 | AE24: 155 | AF24: 247 | AG24: 388 | AH24: 406 | AI24: 349 | AJ24: 306 | AK24: 303
A25: SO20 | B25: Suma de SO20 | C25: 126 | D25: 105 | E25: 116 | F25: 102 | G25: 99 | H25: 142 | I25: 218 | J25: 273 | K25: 299 | L25: 273 | M25: 265 | N25: 230 | O25: 2248 | P25: 347 | Q25: 343 | R25: 790 | S25: 768 | T25: 690 | U25: 1558 | X25: SO20 | Y25: Suma de SO20 | Z25: 68 | AA25: 59 | AB25: 69 | AC25: 62 | AD25: 54 | AE25: 112 | AF25: 163 | AG25: 235 | AH25: 229 | AI25: 229 | AJ25: 194 | AK25: 196
A26: SO21 | B26: Suma de SO21 | C26: 85 | D26: 74 | E26: 122 | F26: 73 | G26: 86 | H26: 101 | I26: 142 | J26: 188 | K26: 208 | L26: 196 | M26: 206 | N26: 177 | O26: 1658 | P26: 281 | Q26: 260 | R26: 538 | S26: 579 | T26: 541 | U26: 1117 | X26: SO21 | Y26: Suma de SO21 | Z26: 36 | AA26: 30 | AB26: 63 | AC26: 25 | AD26: 37 | AE26: 64 | AF26: 84 | AG26: 138 | AH26: 141 | AI26: 134 | AJ26: 141 | AK26: 120
A27: SO22 | B27: Suma de SO22 | C27: 0 | D27: 0 | E27: 1 | F27: 0 | G27: 0 | H27: 2 | I27: 2 | J27: 2 | K27: 1 | L27: 2 | M27: 5 | N27: 3 | O27: 18 | P27: 1 | Q27: 2 | R27: 5 | S27: 10 | T27: 3 | U27: 15 | X27: SO22 | Y27: Suma de SO22 | Z27: 0 | AA27: 0 | AB27: 0 | AC27: 0 | AD27: 0 | AE27: 0 | AF27: 1 | AG27: 1 | AH27: 0 | AI27: 0 | AJ27: 1 | AK27: 0
A28: SO23 | B28: Suma de SO23 | C28: 0 | D28: 0 | E28: 0 | F28: 0 | G28: 0 | H28: 0 | I28: 0 | J28: 1 | K28: 2 | L28: 0 | M28: 1 | N28: 0 | O28: 4 | P28: 0 | Q28: 0 | R28: 3 | S28: 1 | T28: 0 | U28: 4 | X28: SO23 | Y28: Suma de SO23 | Z28: 0 | AA28: 0 | AB28: 0 | AC28: 0 | AD28: 0 | AE28: 0 | AF28: 0 | AG28: 0 | AH28: 1 | AI28: 0 | AJ28: 1 | AK28: 0
A29: SO24 | B29: Suma de SO24 | C29: 0 | D29: 0 | E29: 0 | F29: 0 | G29: 0 | H29: 0 | I29: 1 | J29: 3 | K29: 1 | L29: 1 | M29: 1 | N29: 1 | O29: 8 | P29: 0 | Q29: 0 | R29: 5 | S29: 3 | T29: 0 | U29: 8 | X29: SO24 | Y29: Suma de SO24 | Z29: 0 | AA29: 0 | AB29: 0 | AC29: 0 | AD29: 0 | AE29: 0 | AF29: 1 | AG29: 2 | AH29: 0 | AI29: 0 | AJ29: 1 | AK29: 0
A30: SO25 | B30: Suma de SO25 | C30: 155 | D30: 134 | E30: 142 | F30: 181 | G30: 280 | H30: 175 | I30: 240 | J30: 218 | K30: 230 | L30: 413 | M30: 565 | N30: 442 | O30: 3175 | P30: 431 | Q30: 636 | R30: 688 | S30: 1420 | T30: 1067 | U30: 2108 | X30: SO25 | Y30: Suma de SO25 | Z30: 15 | AA30: 16 | AB30: 10 | AC30: 34 | AD30: 45 | AE30: 41 | AF30: 34 | AG30: 34 | AH30: 43 | AI30: 225 | AJ30: 219 | AK30: 141
A31: SO26 | B31: Suma de SO26 | C31: 205 | D31: 199 | E31: 204 | F31: 196 | G31: 288 | H31: 247 | I31: 317 | J31: 284 | K31: 317 | L31: 643 | M31: 866 | N31: 606 | O31: 4372 | P31: 608 | Q31: 731 | R31: 918 | S31: 2115 | T31: 1339 | U31: 3033 | X31: SO26 | Y31: Suma de SO26 | Z31: 24 | AA31: 28 | AB31: 41 | AC31: 31 | AD31: 68 | AE31: 77 | AF31: 91 | AG31: 52 | AH31: 49 | AI31: 323 | AJ31: 354 | AK31: 215
A32: SO27 | B32: Suma de SO27 | C32: 1537 | D32: 1583 | E32: 1643 | F32: 1969 | G32: 2640 | H32: 2231 | I32: 2601 | J32: 2501 | K32: 2371 | L32: 4369 | M32: 5457 | N32: 4187 | O32: 33089 | P32: 4763 | Q32: 6840 | R32: 7473 | S32: 14013 | T32: 11603 | U32: 21486 | X32: SO27 | Y32: Suma de SO27 | Z32: 151 | AA32: 153 | AB32: 171 | AC32: 262 | AD32: 610 | AE32: 256 | AF32: 459 | AG32: 472 | AH32: 324 | AI32: 1666 | AJ32: 1708 | AK32: 761
A33: SO28 | B33: Suma de SO28 | C33: 151 | D33: 145 | E33: 139 | F33: 150 | G33: 168 | H33: 125 | I33: 202 | J33: 247 | K33: 306 | L33: 357 | M33: 462 | N33: 353 | O33: 2805 | P33: 435 | Q33: 443 | R33: 755 | S33: 1172 | T33: 878 | U33: 1927 | X33: SO28 | Y33: Suma de SO28 | Z33: 40 | AA33: 46 | AB33: 45 | AC33: 44 | AD33: 60 | AE33: 45 | AF33: 92 | AG33: 112 | AH33: 145 | AI33: 209 | AJ33: 179 | AK33: 125
A34: SO29 | B34: Suma de SO29 | C34: 146 | D34: 149 | E34: 157 | F34: 157 | G34: 199 | H34: 148 | I34: 264 | J34: 311 | K34: 349 | L34: 503 | M34: 667 | N34: 472 | O34: 3522 | P34: 452 | Q34: 504 | R34: 924 | S34: 1642 | T34: 956 | U34: 2566 | X34: SO29 | Y34: Suma de SO29 | Z34: 41 | AA34: 36 | AB34: 52 | AC34: 64 | AD34: 89 | AE34: 54 | AF34: 123 | AG34: 147 | AH34: 128 | AI34: 259 | AJ34: 277 | AK34: 182
A35: SO30 | B35: Suma de SO30 | C35: 638 | D35: 662 | E35: 741 | F35: 883 | G35: 1155 | H35: 906 | I35: 1418 | J35: 1542 | K35: 1474 | L35: 2491 | M35: 3196 | N35: 2484 | O35: 17590 | P35: 2041 | Q35: 2944 | R35: 4434 | S35: 8171 | T35: 4985 | U35: 12605 | X35: SO30 | Y35: Suma de SO30 | Z35: 47 | AA35: 44 | AB35: 36 | AC35: 94 | AD35: 310 | AE35: 87 | AF35: 223 | AG35: 370 | AH35: 194 | AI35: 692 | AJ35: 937 | AK35: 447
A36: SO31 | B36: Suma de SO31 | C36: 1 | D36: 0 | E36: 2 | F36: 1 | G36: 0 | H36: 1 | I36: 1 | J36: 0 | K36: 4 | L36: 5 | M36: 26 | N36: 14 | O36: 55 | P36: 3 | Q36: 2 | R36: 5 | S36: 45 | T36: 5 | U36: 50 | X36: SO31 | Y36: Suma de SO31 | Z36: 0 | AA36: 0 | AB36: 1 | AC36: 0 | AD36: 0 | AE36: 1 | AF36: 0 | AG36: 0 | AH36: 1 | AI36: 2 | AJ36: 3 | AK36: 2
A37: SO32 | B37: Suma de SO32 | C37: 1 | D37: 1 | E37: 1 | F37: 3 | G37: 2 | H37: 4 | I37: 5 | J37: 2 | K37: 11 | L37: 5 | M37: 32 | N37: 2 | O37: 69 | P37: 3 | Q37: 9 | R37: 18 | S37: 39 | T37: 12 | U37: 57 | X37: SO32 | Y37: Suma de SO32 | Z37: 0 | AA37: 0 | AB37: 0 | AC37: 0 | AD37: 0 | AE37: 3 | AF37: 0 | AG37: 1 | AH37: 2 | AI37: 3 | AJ37: 2 | AK37: 0
A38: =MID(B38,9,15) -> SO33 | B38: Suma de SO33 | C38: 11 | D38: 13 | E38: 17 | F38: 32 | G38: 127 | H38: 85 | I38: 131 | J38: 159 | K38: 118 | L38: 181 | M38: 374 | N38: 139 | O38: 1387 | P38: =SUM(C38:E38) -> 41 | Q38: =SUM(F38:H38) -> 244 | R38: =SUM(I38:K38) -> 408 | S38: =SUM(L38:N38) -> 694 | T38: =SUM(C38:H38) -> 285 | U38: =SUM(I38:N38) -> 1102 | X38: SO33 | Y38: Suma de SO33 | Z38: 1 | AA38: 2 | AB38: 1 | AC38: 7 | AD38: 75 | AE38: 51 | AF38: 51 | AG38: 63 | AH38: 37 | AI38: 84 | AJ38: 170 | AK38: 42
A39: SO40 | B39: Suma de SO40 | C39: 0 | D39: 0 | E39: 0 | F39: 0 | G39: 0 | H39: 0 | I39: 0 | J39: 0 | K39: 3 | L39: 0 | M39: 0 | N39: 0 | O39: 3 | P39: 0 | Q39: 0 | R39: 3 | S39: 0 | T39: 0 | U39: 3 | X39: SO40 | Y39: Suma de SO40 | Z39: 0 | AA39: 0 | AB39: 0 | AC39: 0 | AD39: 0 | AE39: 0 | AF39: 0 | AG39: 0 | AH39: 0 | AI39: 0 | AJ39: 0 | AK39: 0
A40: SO41 | B40: Suma de SO41 | C40: 3 | D40: 0 | E40: 0 | F40: 0 | G40: 3 | H40: 5 | I40: 1 | J40: 0 | K40: 2 | L40: 1 | M40: 3 | N40: 1 | O40: 19 | P40: 3 | Q40: 8 | R40: 3 | S40: 5 | T40: 11 | U40: 8 | X40: SO41 | Y40: Suma de SO41 | Z40: 0 | AA40: 0 | AB40: 0 | AC40: 0 | AD40: 0 | AE40: 0 | AF40: 0 | AG40: 0 | AH40: 0 | AI40: 0 | AJ40: 0 | AK40: 0
A41: SO42 | B41: Suma de SO42 | C41: 11 | D41: 14 | E41: 6 | F41: 12 | G41: 16 | H41: 14 | I41: 9 | J41: 19 | K41: 34 | L41: 13 | M41: 34 | N41: 14 | O41: 196 | P41: 31 | Q41: 42 | R41: 62 | S41: 61 | T41: 73 | U41: 123 | X41: SO42 | Y41: Suma de SO42 | Z41: 1 | AA41: 2 | AB41: 2 | AC41: 1 | AD41: 0 | AE41: 3 | AF41: 1 | AG41: 1 | AH41: 2 | AI41: 0 | AJ41: 3 | AK41: 0
A42: SO43 | B42: Suma de SO43 | C42: 0 | D42: 0 | E42: 0 | F42: 0 | G42: 0 | H42: 0 | I42: 0 | J42: 0 | K42: 2 | L42: 0 | M42: 0 | N42: 0 | O42: 2 | P42: 0 | Q42: 0 | R42: 2 | S42: 0 | T42: 0 | U42: 2 | X42: SO43 | Y42: Suma de SO43 | Z42: 0 | AA42: 0 | AB42: 0 | AC42: 0 | AD42: 0 | AE42: 0 | AF42: 0 | AG42: 0 | AH42: 0 | AI42: 0 | AJ42: 0 | AK42: 0
A43: SO44 | B43: Suma de SO44 | C43: 1 | D43: 0 | E43: 0 | F43: 2 | G43: 2 | H43: 3 | I43: 0 | J43: 1 | K43: 2 | L43: 1 | M43: 3 | N43: 1 | O43: 16 | P43: 1 | Q43: 7 | R43: 3 | S43: 5 | T43: 8 | U43: 8 | X43: SO44 | Y43: Suma de SO44 | Z43: 0 | AA43: 0 | AB43: 0 | AC43: 0 | AD43: 1 | AE43: 0 | AF43: 0 | AG43: 0 | AH43: 0 | AI43: 0 | AJ43: 0 | AK43: 0
A44: SO45 | B44: Suma de SO45 | C44: 3 | D44: 0 | E44: 4 | F44: 8 | G44: 12 | H44: 7 | I44: 15 | J44: 16 | K44: 20 | L44: 12 | M44: 24 | N44: 13 | O44: 134 | P44: 7 | Q44: 27 | R44: 51 | S44: 49 | T44: 34 | U44: 100 | X44: SO45 | Y44: Suma de SO45 | Z44: 0 | AA44: 0 | AB44: 0 | AC44: 0 | AD44: 1 | AE44: 0 | AF44: 0 | AG44: 0 | AH44: 2 | AI44: 1 | AJ44: 0 | AK44: 0
A45: SO46 | B45: Suma de SO46 | C45: 0 | D45: 0 | E45: 0 | F45: 0 | G45: 0 | H45: 1 | I45: 2 | J45: 1 | K45: 2 | L45: 1 | M45: 0 | N45: 0 | O45: 7 | P45: 0 | Q45: 1 | R45: 5 | S45: 1 | T45: 1 | U45: 6 | X45: SO46 | Y45: Suma de SO46 | Z45: 0 | AA45: 0 | AB45: 0 | AC45: 0 | AD45: 0 | AE45: 1 | AF45: 2 | AG45: 1 | AH45: 0 | AI45: 1 | AJ45: 0 | AK45: 0
A46: SO47 | B46: Suma de SO47 | C46: 1 | D46: 0 | E46: 0 | F46: 1 | G46: 0 | H46: 3 | I46: 0 | J46: 2 | K46: 1 | L46: 3 | M46: 9 | N46: 0 | O46: 20 | P46: 1 | Q46: 4 | R46: 3 | S46: 12 | T46: 5 | U46: 15 | X46: SO47 | Y46: Suma de SO47 | Z46: 1 | AA46: 0 | AB46: 0 | AC46: 1 | AD46: 0 | AE46: 3 | AF46: 0 | AG46: 2 | AH46: 0 | AI46: 3 | AJ46: 9 | AK46: 0
A47: SO48 | B47: Suma de SO48 | C47: 8 | D47: 12 | E47: 21 | F47: 7 | G47: 14 | H47: 46 | I47: 38 | J47: 58 | K47: 36 | L47: 84 | M47: 266 | N47: 51 | O47: 641 | P47: 41 | Q47: 67 | R47: 132 | S47: 401 | T47: 108 | U47: 533 | X47: SO48 | Y47: Suma de SO48 | Z47: 5 | AA47: 5 | AB47: 11 | AC47: 4 | AD47: 11 | AE47: 37 | AF47: 32 | AG47: 51 | AH47: 22 | AI47: 72 | AJ47: 254 | AK47: 41
A48: SO49 | B48: Suma de SO49 | C48: 0 | D48: 0 | E48: 0 | F48: 0 | G48: 0 | H48: 0 | I48: 0 | J48: 1 | K48: 1 | L48: 2 | M48: 0 | N48: 0 | O48: 4 | P48: 0 | Q48: 0 | R48: 2 | S48: 2 | T48: 0 | U48: 4 | X48: SO49 | Y48: Suma de SO49 | Z48: 0 | AA48: 0 | AB48: 0 | AC48: 0 | AD48: 0 | AE48: 0 | AF48: 0 | AG48: 1 | AH48: 1 | AI48: 2 | AJ48: 0 | AK48: 0
A49: SO50 | B49: Suma de SO50 | C49: 0 | D49: 0 | E49: 0 | F49: 0 | G49: 0 | H49: 1 | I49: 0 | J49: 3 | K49: 1 | L49: 3 | M49: 9 | N49: 0 | O49: 17 | P49: 0 | Q49: 1 | R49: 4 | S49: 12 | T49: 1 | U49: 16 | X49: SO50 | Y49: Suma de SO50 | Z49: 0 | AA49: 0 | AB49: 0 | AC49: 0 | AD49: 0 | AE49: 1 | AF49: 0 | AG49: 3 | AH49: 1 | AI49: 3 | AJ49: 9 | AK49: 0
A50: SO51 | B50: Suma de SO51 | C50: 0 | D50: 0 | E50: 0 | F50: 0 | G50: 1 | H50: 3 | I50: 25 | J50: 79 | K50: 31 | L50: 83 | M50: 240 | N50: 37 | O50: 499 | P50: 0 | Q50: 4 | R50: 135 | S50: 360 | T50: 4 | U50: 495 | X50: SO51 | Y50: Suma de SO51 | Z50: 0 | AA50: 0 | AB50: 0 | AC50: 0 | AD50: 0 | AE50: 3 | AF50: 25 | AG50: 78 | AH50: 31 | AI50: 83 | AJ50: 240 | AK50: 37
A51: SO52 | B51: Suma de SO52 | C51: 0 | D51: 0 | E51: 0 | F51: 0 | G51: 0 | H51: 0 | I51: 0 | J51: 1 | K51: 2 | L51: 2 | M51: 0 | N51: 0 | O51: 5 | P51: 0 | Q51: 0 | R51: 3 | S51: 2 | T51: 0 | U51: 5 | X51: SO52 | Y51: Suma de SO52 | Z51: 0 | AA51: 0 | AB51: 0 | AC51: 0 | AD51: 0 | AE51: 0 | AF51: 0 | AG51: 1 | AH51: 2 | AI51: 2 | AJ51: 0 | AK51: 0
A52: SO53 | B52: Suma de SO53 | C52: 0 | D52: 0 | E52: 0 | F52: 0 | G52: 0 | H52: 1 | I52: 0 | J52: 3 | K52: 1 | L52: 3 | M52: 9 | N52: 0 | O52: 17 | P52: 0 | Q52: 1 | R52: 4 | S52: 12 | T52: 1 | U52: 16 | X52: SO53 | Y52: Suma de SO53 | Z52: 0 | AA52: 0 | AB52: 0 | AC52: 0 | AD52: 0 | AE52: 1 | AF52: 0 | AG52: 3 | AH52: 1 | AI52: 3 | AJ52: 9 | AK52: 0
A53: SO54 | B53: Suma de SO54 | C53: 0 | D53: 2 | E53: 2 | F53: 3 | G53: 1 | H53: 3 | I53: 25 | J53: 78 | K53: 31 | L53: 84 | M53: 239 | N53: 38 | O53: 506 | P53: 4 | Q53: 7 | R53: 134 | S53: 361 | T53: 11 | U53: 495 | X53: SO54 | Y53: Suma de SO54 | Z53: 0 | AA53: 0 | AB53: 0 | AC53: 0 | AD53: 0 | AE53: 3 | AF53: 25 | AG53: 76 | AH53: 31 | AI53: 83 | AJ53: 239 | AK53: 37
A54: SO55 | B54: Suma de SO55 | C54: 38 | D54: 50 | E54: 49 | F54: 28 | G54: 101 | H54: 46 | I54: 66 | J54: 88 | K54: 46 | L54: 73 | M54: 102 | N54: 82 | O54: 769 | P54: 137 | Q54: 175 | R54: 200 | S54: 257 | T54: 312 | U54: 457 | X54: SO55 | Y54: Suma de SO55 | Z54: 3 | AA54: 13 | AB54: 3 | AC54: 3 | AD54: 57 | AE54: 23 | AF54: 25 | AG54: 32 | AH54: 6 | AI54: 37 | AJ54: 40 | AK54: 30
A55: SO56 | B55: Suma de SO56 | C55: 43 | D55: 49 | E55: 34 | F55: 62 | G55: 149 | H55: 62 | I55: 74 | J55: 75 | K55: 65 | L55: 150 | M55: 207 | N55: 240 | O55: 1210 | P55: 126 | Q55: 273 | R55: 214 | S55: 597 | T55: 399 | U55: 811 | X55: SO56 | Y55: Suma de SO56 | Z55: 7 | AA55: 2 | AB55: 6 | AC55: 6 | AD55: 72 | AE55: 20 | AF55: 26 | AG55: 25 | AH55: 23 | AI55: 87 | AJ55: 114 | AK55: 65
A56: SO57 | B56: Suma de SO57 | C56: 80 | D56: 99 | E56: 57 | F56: 107 | G56: 135 | H56: 80 | I56: 114 | J56: 179 | K56: 85 | L56: 285 | M56: 327 | N56: 316 | O56: 1864 | P56: 236 | Q56: 322 | R56: 378 | S56: 928 | T56: 558 | U56: 1306 | X56: SO57 | Y56: Suma de SO57 | Z56: 8 | AA56: 16 | AB56: 16 | AC56: 26 | AD56: 30 | AE56: 11 | AF56: 56 | AG56: 61 | AH56: 26 | AI56: 153 | AJ56: 171 | AK56: 83
A57: SO58 | B57: Suma de SO58 | C57: 16 | D57: 22 | E57: 27 | F57: 20 | G57: 23 | H57: 31 | I57: 39 | J57: 40 | K57: 22 | L57: 63 | M57: 79 | N57: 34 | O57: 416 | P57: 65 | Q57: 74 | R57: 101 | S57: 176 | T57: 139 | U57: 277 | X57: SO58 | Y57: Suma de SO58 | Z57: 1 | AA57: 7 | AB57: 5 | AC57: 0 | AD57: 1 | AE57: 8 | AF57: 5 | AG57: 20 | AH57: 3 | AI57: 46 | AJ57: 35 | AK57: 18
A58: SO59 | B58: Suma de SO59 | C58: 30 | D58: 32 | E58: 59 | F58: 37 | G58: 61 | H58: 54 | I58: 68 | J58: 78 | K58: 55 | L58: 175 | M58: 273 | N58: 158 | O58: 1080 | P58: 121 | Q58: 152 | R58: 201 | S58: 606 | T58: 273 | U58: 807 | X58: SO59 | Y58: Suma de SO59 | Z58: 3 | AA58: 11 | AB58: 9 | AC58: 1 | AD58: 6 | AE58: 5 | AF58: 11 | AG58: 29 | AH58: 10 | AI58: 125 | AJ58: 126 | AK58: 85
A59: SO60 | B59: Suma de SO60 | C59: 145 | D59: 157 | E59: 186 | F59: 168 | G59: 256 | H59: 130 | I59: 265 | J59: 347 | K59: 189 | L59: 629 | M59: 749 | N59: 470 | O59: 3691 | P59: 488 | Q59: 554 | R59: 801 | S59: 1848 | T59: 1042 | U59: 2649 | X59: SO60 | Y59: Suma de SO60 | Z59: 20 | AA59: 31 | AB59: 53 | AC59: 62 | AD59: 37 | AE59: 12 | AF59: 58 | AG59: 143 | AH59: 36 | AI59: 453 | AJ59: 389 | AK59: 200
A60: SO64 | B60: Suma de SO64 | C60: 20 | D60: 17 | E60: 45 | F60: 44 | G60: 19 | H60: 18 | I60: 31 | J60: 46 | K60: 44 | L60: 36 | M60: 44 | N60: 39 | O60: 403 | P60: 82 | Q60: 81 | R60: 121 | S60: 119 | T60: 163 | U60: 240 | X60: SO64 | Y60: Suma de SO64 | Z60: 9 | AA60: 6 | AB60: 19 | AC60: 25 | AD60: 10 | AE60: 9 | AF60: 16 | AG60: 33 | AH60: 22 | AI60: 21 | AJ60: 33 | AK60: 23
A61: SO65 | B61: Suma de SO65 | C61: 30 | D61: 15 | E61: 58 | F61: 52 | G61: 66 | H61: 46 | I61: 66 | J61: 70 | K61: 65 | L61: 61 | M61: 67 | N61: 57 | O61: 653 | P61: 103 | Q61: 164 | R61: 201 | S61: 185 | T61: 267 | U61: 386 | X61: SO65 | Y61: Suma de SO65 | Z61: 5 | AA61: 4 | AB61: 29 | AC61: 28 | AD61: 26 | AE61: 19 | AF61: 36 | AG61: 47 | AH61: 29 | AI61: 29 | AJ61: 40 | AK61: 33
A62: SO66 | B62: Suma de SO66 | C62: 99 | D62: 72 | E62: 205 | F62: 182 | G62: 190 | H62: 172 | I62: 255 | J62: 252 | K62: 277 | L62: 262 | M62: 258 | N62: 202 | O62: 2426 | P62: 376 | Q62: 544 | R62: 784 | S62: 722 | T62: 920 | U62: 1506 | X62: SO66 | Y62: Suma de SO66 | Z62: 17 | AA62: 18 | AB62: 93 | AC62: 91 | AD62: 76 | AE62: 91 | AF62: 132 | AG62: 135 | AH62: 128 | AI62: 140 | AJ62: 160 | AK62: 91
A63: SO67 | B63: Suma de SO67 | C63: 1 | D63: 2 | E63: 5 | F63: 6 | G63: 4 | H63: 7 | I63: 14 | J63: 13 | K63: 11 | L63: 8 | M63: 4 | N63: 6 | O63: 81 | P63: 8 | Q63: 17 | R63: 38 | S63: 18 | T63: 25 | U63: 56 | X63: SO67 | Y63: Suma de SO67 | Z63: 0 | AA63: 0 | AB63: 0 | AC63: 0 | AD63: 2 | AE63: 2 | AF63: 4 | AG63: 8 | AH63: 3 | AI63: 5 | AJ63: 2 | AK63: 3
A64: SO68 | B64: Suma de SO68 | C64: 12 | D64: 9 | E64: 20 | F64: 16 | G64: 17 | H64: 16 | I64: 14 | J64: 21 | K64: 13 | L64: 25 | M64: 21 | N64: 9 | O64: 193 | P64: 41 | Q64: 49 | R64: 48 | S64: 55 | T64: 90 | U64: 103 | X64: SO68 | Y64: Suma de SO68 | Z64: 1 | AA64: 0 | AB64: 6 | AC64: 1 | AD64: 4 | AE64: 6 | AF64: 5 | AG64: 10 | AH64: 4 | AI64: 11 | AJ64: 10 | AK64: 4
A65: SO69 | B65: Suma de SO69 | C65: 32 | D65: 54 | E65: 62 | F65: 74 | G65: 54 | H65: 60 | I65: 78 | J65: 82 | K65: 73 | L65: 119 | M65: 67 | N65: 53 | O65: 808 | P65: 148 | Q65: 188 | R65: 233 | S65: 239 | T65: 336 | U65: 472 | X65: SO69 | Y65: Suma de SO69 | Z65: 3 | AA65: 4 | AB65: 19 | AC65: 31 | AD65: 21 | AE65: 32 | AF65: 36 | AG65: 40 | AH65: 39 | AI65: 55 | AJ65: 31 | AK65: 20
A66: SO76 | B66: Suma de SO76 | C66: 20 | D66: 16 | E66: 17 | F66: 15 | G66: 14 | H66: 18 | I66: 14 | J66: 23 | K66: 19 | L66: 22 | M66: 27 | N66: 17 | O66: 222 | P66: 53 | Q66: 47 | R66: 56 | S66: 66 | T66: 100 | U66: 122 | X66: SO76 | Y66: Suma de SO76 | Z66: 10 | AA66: 10 | AB66: 2 | AC66: 4 | AD66: 8 | AE66: 9 | AF66: 4 | AG66: 8 | AH66: 8 | AI66: 13 | AJ66: 15 | AK66: 8
A67: SO77 | B67: Suma de SO77 | C67: 39 | D67: 31 | E67: 53 | F67: 41 | G67: 37 | H67: 39 | I67: 30 | J67: 37 | K67: 38 | L67: 49 | M67: 56 | N67: 49 | O67: 499 | P67: 123 | Q67: 117 | R67: 105 | S67: 154 | T67: 240 | U67: 259 | X67: SO77 | Y67: Suma de SO77 | Z67: 18 | AA67: 20 | AB67: 24 | AC67: 15 | AD67: 14 | AE67: 20 | AF67: 9 | AG67: 16 | AH67: 17 | AI67: 27 | AJ67: 28 | AK67: 20
A68: SO78 | B68: Suma de SO78 | C68: 210 | D68: 142 | E68: 204 | F68: 164 | G68: 158 | H68: 161 | I68: 140 | J68: 168 | K68: 142 | L68: 215 | M68: 203 | N68: 165 | O68: 2072 | P68: 556 | Q68: 483 | R68: 450 | S68: 583 | T68: 1039 | U68: 1033 | X68: SO78 | Y68: Suma de SO78 | Z68: 115 | AA68: 84 | AB68: 97 | AC68: 67 | AD68: 79 | AE68: 69 | AF68: 50 | AG68: 60 | AH68: 68 | AI68: 87 | AJ68: 97 | AK68: 48
A69: SO79 | B69: Suma de SO79 | C69: 0 | D69: 0 | E69: 0 | F69: 0 | G69: 0 | H69: 0 | I69: 0 | J69: 0 | K69: 0 | L69: 0 | M69: 0 | N69: 0 | O69: 0 | P69: 0 | Q69: 0 | R69: 0 | S69: 0 | T69: 0 | U69: 0 | X69: SO79 | Y69: Suma de SO79 | Z69: 0 | AA69: 0 | AB69: 0 | AC69: 0 | AD69: 0 | AE69: 0 | AF69: 0 | AG69: 0 | AH69: 0 | AI69: 0 | AJ69: 0 | AK69: 0
A70: =MID(B70,9,15) -> SO80 | B70: Suma de SO80 | C70: 0 | D70: 0 | E70: 0 | F70: 0 | G70: 0 | H70: 0 | I70: 0 | J70: 0 | K70: 0 | L70: 0 | M70: 0 | N70: 0 | O70: =SUM(C70:N70) -> 0 | P70: =SUM(C70:E70) -> 0 | Q70: =SUM(F70:H70) -> 0 | R70: =SUM(I70:K70) -> 0 | S70: =SUM(L70:N70) -> 0 | T70: =SUM(C70:H70) -> 0 | U70: =SUM(I70:N70) -> 0 | X70: SO80 | Y70: Suma de SO80 | Z70: 0 | AA70: 0 | AB70: 0 | AC70: 0 | AD70: 0 | AE70: 0 | AF70: 0 | AG70: 0 | AH70: 0 | AI70: 0 | AJ70: 0 | AK70: 0
A71: SO81 | B71: Suma de SO81 | C71: 0 | D71: 0 | E71: 0 | F71: 0 | G71: 0 | H71: 0 | I71: 0 | J71: 0 | K71: 0 | L71: 0 | M71: 0 | N71: 0 | O71: 0 | P71: 0 | Q71: 0 | R71: 0 | S71: 0 | T71: 0 | U71: 0 | X71: =MID(Y71,9,15) -> SO81 | Y71: Suma de SO81 | Z71: 0 | AA71: 0 | AB71: 0 | AC71: 0 | AD71: 0 | AE71: 0 | AF71: 0 | AG71: 0 | AH71: 0 | AI71: 0 | AJ71: 0 | AK71: 0
A72: SO82 | B72: Suma de SO82 | C72: 0 | D72: 0 | E72: 0 | F72: 0 | G72: 0 | H72: 0 | I72: 0 | J72: 0 | K72: 0 | L72: 0 | M72: 0 | N72: 0 | O72: 0 | P72: 0 | Q72: 0 | R72: 0 | S72: 0 | T72: 0 | U72: 0 | X72: SO82 | Y72: Suma de SO82 | Z72: 0 | AA72: 0 | AB72: 0 | AC72: 0 | AD72: 0 | AE72: 0 | AF72: 0 | AG72: 0 | AH72: 0 | AI72: 0 | AJ72: 0 | AK72: 0
A73: SO83 | B73: Suma de SO83 | C73: 0 | D73: 0 | E73: 0 | F73: 0 | G73: 0 | H73: 0 | I73: 0 | J73: 0 | K73: 0 | L73: 0 | M73: 0 | N73: 0 | O73: 0 | P73: 0 | Q73: 0 | R73: 0 | S73: 0 | T73: 0 | U73: 0 | X73: SO83 | Y73: Suma de SO83 | Z73: 0 | AA73: 0 | AB73: 0 | AC73: 0 | AD73: 0 | AE73: 0 | AF73: 0 | AG73: 0 | AH73: 0 | AI73: 0 | AJ73: 0 | AK73: 0
A74: SO84 | B74: Suma de SO84 | C74: 0 | D74: 0 | E74: 0 | F74: 0 | G74: 0 | H74: 0 | I74: 0 | J74: 0 | K74: 0 | L74: 0 | M74: 0 | N74: 0 | O74: 0 | P74: 0 | Q74: 0 | R74: 0 | S74: 0 | T74: 0 | U74: 0 | X74: SO84 | Y74: Suma de SO84 | Z74: 0 | AA74: 0 | AB74: 0 | AC74: 0 | AD74: 0 | AE74: 0 | AF74: 0 | AG74: 0 | AH74: 0 | AI74: 0 | AJ74: 0 | AK74: 0
A75: SO85 | B75: Suma de SO85 | C75: 6 | D75: 9 | E75: 14 | F75: 14 | G75: 9 | H75: 12 | I75: 13 | J75: 18 | K75: 15 | L75: 12 | M75: 16 | N75: 11 | O75: 149 | P75: 29 | Q75: 35 | R75: 46 | S75: 39 | T75: 64 | U75: 85 | X75: SO85 | Y75: Suma de SO85 | Z75: 3 | AA75: 6 | AB75: 9 | AC75: 7 | AD75: 6 | AE75: 9 | AF75: 9 | AG75: 14 | AH75: 8 | AI75: 8 | AJ75: 13 | AK75: 11
A76: SO86 | B76: Suma de SO86 | C76: 23 | D76: 25 | E76: 42 | F76: 44 | G76: 43 | H76: 51 | I76: 41 | J76: 49 | K76: 60 | L76: 42 | M76: 45 | N76: 40 | O76: 505 | P76: 90 | Q76: 138 | R76: 150 | S76: 127 | T76: 228 | U76: 277 | X76: SO86 | Y76: Suma de SO86 | Z76: 13 | AA76: 16 | AB76: 37 | AC76: 33 | AD76: 28 | AE76: 38 | AF76: 30 | AG76: 37 | AH76: 41 | AI76: 37 | AJ76: 36 | AK76: 38
A77: SO87 | B77: Suma de SO87 | C77: 0 | D77: 0 | E77: 0 | F77: 0 | G77: 0 | H77: 0 | I77: 0 | J77: 0 | K77: 0 | L77: 0 | M77: 0 | N77: 0 | O77: 0 | P77: 0 | Q77: 0 | R77: 0 | S77: 0 | T77: 0 | U77: 0 | X77: SO87 | Y77: Suma de SO87 | Z77: 0 | AA77: 0 | AB77: 0 | AC77: 0 | AD77: 0 | AE77: 0 | AF77: 0 | AG77: 0 | AH77: 0 | AI77: 0 | AJ77: 0 | AK77: 0
A78: SO88 | B78: Suma de SO88 | C78: 1897 | D78: 1916 | E78: 1989 | F78: 2346 | G78: 3208 | H78: 2653 | I78: 3158 | J78: 3003 | K78: 2918 | L78: 5425 | M78: 6888 | N78: 5235 | O78: 40636 | P78: 5802 | Q78: 8207 | R78: 9079 | S78: 17548 | T78: 14009 | U78: 26627 | X78: SO88 | Y78: Suma de SO88 | Z78: 190 | AA78: 197 | AB78: 222 | AC78: 327 | AD78: 723 | AE78: 374 | AF78: 584 | AG78: 558 | AH78: 416 | AI78: 2214 | AJ78: 2281 | AK78: 1117
A79: SO89 | B79: Suma de SO89 | C79: 320 | D79: 275 | E79: 270 | F79: 300 | G79: 413 | H79: 279 | I79: 319 | J79: 319 | K79: 343 | L79: 630 | M79: 843 | N79: 710 | O79: 5021 | P79: 865 | Q79: 992 | R79: 981 | S79: 2183 | T79: 1857 | U79: 3164 | X79: SO89 | Y79: Suma de SO89 | Z79: 131 | AA79: 136 | AB79: 98 | AC79: 85 | AD79: 137 | AE79: 84 | AF79: 113 | AG79: 79 | AH79: 115 | AI79: 371 | AJ79: 450 | AK79: 320
A80: SO90 | B80: Suma de SO90 | C80: 796 | D80: 833 | E80: 695 | F80: 787 | G80: 857 | H80: 609 | I80: 739 | J80: 903 | K80: 767 | L80: 1566 | M80: 1987 | N80: 1546 | O80: 12085 | P80: 2324 | Q80: 2253 | R80: 2409 | S80: 5099 | T80: 4577 | U80: 7508 | X80: SO90 | Y80: Suma de SO90 | Z80: 369 | AA80: 406 | AB80: 268 | AC80: 304 | AD80: 246 | AE80: 186 | AF80: 236 | AG80: 320 | AH80: 270 | AI80: 849 | AJ80: 1094 | AK80: 639
A81: SO101 | B81: Suma de SO101 | C81: 23 | D81: 22 | E81: 25 | F81: 27 | G81: 32 | H81: 26 | I81: 18 | J81: 36 | K81: 23 | L81: 39 | M81: 41 | N81: 28 | O81: 340 | P81: 70 | Q81: 85 | R81: 77 | S81: 108 | T81: 155 | U81: 185 | X81: SO101 | Y81: Suma de SO101 | Z81: 12 | AA81: 12 | AB81: 6 | AC81: 12 | AD81: 14 | AE81: 14 | AF81: 4 | AG81: 18 | AH81: 8 | AI81: 17 | AJ81: 13 | AK81: 11
A82: SO102 | B82: Suma de SO102 | C82: 185 | D82: 147 | E82: 210 | F82: 185 | G82: 180 | H82: 175 | I82: 184 | J82: 205 | K82: 170 | L82: 244 | M82: 245 | N82: 217 | O82: 2347 | P82: 542 | Q82: 540 | R82: 559 | S82: 706 | T82: 1082 | U82: 1265 | X82: SO102 | Y82: Suma de SO102 | Z82: 95 | AA82: 74 | AB82: 83 | AC82: 91 | AD82: 83 | AE82: 93 | AF82: 67 | AG82: 119 | AH82: 86 | AI82: 119 | AJ82: 125 | AK82: 80
A83: SO103 | B83: Suma de SO103 | C83: 2 | D83: 2 | E83: 1 | F83: 0 | G83: 0 | H83: 3 | I83: 2 | J83: 7 | K83: 1 | L83: 6 | M83: 2 | N83: 1 | O83: 27 | P83: 5 | Q83: 3 | R83: 10 | S83: 9 | T83: 8 | U83: 19 | X83: SO103 | Y83: Suma de SO103 | Z83: 1 | AA83: 2 | AB83: 1 | AC83: 0 | AD83: 0 | AE83: 2 | AF83: 1 | AG83: 7 | AH83: 1 | AI83: 4 | AJ83: 1 | AK83: 1
A84: SO106 | B84: Suma de SO106 | C84: 2 | D84: 1 | E84: 5 | F84: 0 | G84: 2 | H84: 2 | I84: 2 | J84: 0 | K84: 4 | L84: 2 | M84: 2 | N84: 2 | O84: 24 | P84: 8 | Q84: 4 | R84: 6 | S84: 6 | T84: 12 | U84: 12 | X84: SO106 | Y84: Suma de SO106 | Z84: 0 | AA84: 0 | AB84: 2 | AC84: 0 | AD84: 1 | AE84: 1 | AF84: 0 | AG84: 0 | AH84: 2 | AI84: 1 | AJ84: 1 | AK84: 1
A85: SO107 | B85: Suma de SO107 | C85: 11 | D85: 8 | E85: 13 | F85: 3 | G85: 3 | H85: 10 | I85: 11 | J85: 15 | K85: 14 | L85: 11 | M85: 9 | N85: 7 | O85: 115 | P85: 32 | Q85: 16 | R85: 40 | S85: 27 | T85: 48 | U85: 67 | X85: SO107 | Y85: Suma de SO107 | Z85: 5 | AA85: 4 | AB85: 7 | AC85: 3 | AD85: 0 | AE85: 1 | AF85: 7 | AG85: 11 | AH85: 5 | AI85: 6 | AJ85: 3 | AK85: 3
A86: SO108 | B86: Suma de SO108 | C86: 75 | D86: 52 | E86: 50 | F86: 36 | G86: 45 | H86: 50 | I86: 45 | J86: 68 | K86: 98 | L86: 77 | M86: 60 | N86: 66 | O86: 722 | P86: 177 | Q86: 131 | R86: 211 | S86: 203 | T86: 308 | U86: 414 | X86: SO108 | Y86: Suma de SO108 | Z86: 59 | AA86: 30 | AB86: 37 | AC86: 26 | AD86: 24 | AE86: 16 | AF86: 18 | AG86: 31 | AH86: 44 | AI86: 41 | AJ86: 36 | AK86: 24
A87: SO109 | B87: Suma de SO109 | C87: 0 | D87: 0 | E87: 0 | F87: 0 | G87: 0 | H87: 0 | I87: 0 | J87: 0 | K87: 0 | L87: 0 | M87: 0 | N87: 0 | O87: 0 | P87: 0 | Q87: 0 | R87: 0 | S87: 0 | T87: 0 | U87: 0 | X87: SO109 | Y87: Suma de SO109 | Z87: 0 | AA87: 0 | AB87: 0 | AC87: 0 | AD87: 0 | AE87: 0 | AF87: 0 | AG87: 0 | AH87: 0 | AI87: 0 | AJ87: 0 | AK87: 0
A88: SO110 | B88: Suma de SO110 | C88: 0 | D88: 0 | E88: 0 | F88: 0 | G88: 0 | H88: 2 | I88: 0 | J88: 0 | K88: 3 | L88: 3 | M88: 1 | N88: 0 | O88: 9 | P88: 0 | Q88: 2 | R88: 3 | S88: 4 | T88: 2 | U88: 7 | X88: SO110 | Y88: Suma de SO110 | Z88: 0 | AA88: 0 | AB88: 0 | AC88: 0 | AD88: 0 | AE88: 2 | AF88: 0 | AG88: 0 | AH88: 3 | AI88: 3 | AJ88: 1 | AK88: 0
A89: SO111 | B89: Suma de SO111 | C89: 0 | D89: 0 | E89: 0 | F89: 0 | G89: 0 | H89: 14 | I89: 4 | J89: 5 | K89: 5 | L89: 13 | M89: 7 | N89: 4 | O89: 52 | P89: 0 | Q89: 14 | R89: 14 | S89: 24 | T89: 14 | U89: 38 | X89: SO111 | Y89: Suma de SO111 | Z89: 0 | AA89: 0 | AB89: 0 | AC89: 0 | AD89: 0 | AE89: 14 | AF89: 4 | AG89: 5 | AH89: 5 | AI89: 13 | AJ89: 7 | AK89: 4
A90: SO112 | B90: Suma de SO112 | C90: 0 | D90: 0 | E90: 0 | F90: 0 | G90: 0 | H90: 0 | I90: 0 | J90: 0 | K90: 0 | L90: 0 | M90: 0 | N90: 0 | O90: 0 | P90: 0 | Q90: 0 | R90: 0 | S90: 0 | T90: 0 | U90: 0 | X90: SO112 | Y90: Suma de SO112 | Z90: 0 | AA90: 0 | AB90: 0 | AC90: 0 | AD90: 0 | AE90: 0 | AF90: 0 | AG90: 0 | AH90: 0 | AI90: 0 | AJ90: 0 | AK90: 0
A91: SO113 | B91: Suma de SO113 | C91: 0 | D91: 0 | E91: 0 | F91: 0 | G91: 0 | H91: 0 | I91: 0 | J91: 0 | K91: 0 | L91: 0 | M91: 3 | N91: 2 | O91: 5 | P91: 0 | Q91: 0 | R91: 0 | S91: 5 | T91: 0 | U91: 5 | X91: SO113 | Y91: Suma de SO113 | Z91: 0 | AA91: 0 | AB91: 0 | AC91: 0 | AD91: 0 | AE91: 0 | AF91: 0 | AG91: 0 | AH91: 0 | AI91: 0 | AJ91: 0 | AK91: 0
A92: SO114 | B92: Suma de SO114 | C92: 0 | D92: 0 | E92: 0 | F92: 0 | G92: 0 | H92: 0 | I92: 0 | J92: 0 | K92: 0 | L92: 0 | M92: 8 | N92: 12 | O92: 20 | P92: 0 | Q92: 0 | R92: 0 | S92: 20 | T92: 0 | U92: 20 | X92: SO114 | Y92: Suma de SO114 | Z92: 0 | AA92: 0 | AB92: 0 | AC92: 0 | AD92: 0 | AE92: 0 | AF92: 0 | AG92: 0 | AH92: 0 | AI92: 0 | AJ92: 0 | AK92: 0
A93: SO115 | B93: Suma de SO115 | C93: 0 | D93: 0 | E93: 0 | F93: 0 | G93: 0 | H93: 0 | I93: 0 | J93: 0 | K93: 0 | L93: 0 | M93: 0 | N93: 0 | O93: 0 | P93: 0 | Q93: 0 | R93: 0 | S93: 0 | T93: 0 | U93: 0 | X93: SO115 | Y93: Suma de SO115 | Z93: 0 | AA93: 0 | AB93: 0 | AC93: 0 | AD93: 0 | AE93: 0 | AF93: 0 | AG93: 0 | AH93: 0 | AI93: 0 | AJ93: 0 | AK93: 0
A94: SO116 | B94: Suma de SO116 | C94: 0 | D94: 0 | E94: 0 | F94: 0 | G94: 0 | H94: 0 | I94: 0 | J94: 0 | K94: 0 | L94: 0 | M94: 0 | N94: 0 | O94: 0 | P94: 0 | Q94: 0 | R94: 0 | S94: 0 | T94: 0 | U94: 0 | X94: SO116 | Y94: Suma de SO116 | Z94: 0 | AA94: 0 | AB94: 0 | AC94: 0 | AD94: 0 | AE94: 0 | AF94: 0 | AG94: 0 | AH94: 0 | AI94: 0 | AJ94: 0 | AK94: 0
A95: SO117 | B95: Suma de SO117 | C95: 0 | D95: 0 | E95: 0 | F95: 0 | G95: 0 | H95: 0 | I95: 0 | J95: 0 | K95: 0 | L95: 0 | M95: 0 | N95: 1 | O95: 1 | P95: 0 | Q95: 0 | R95: 0 | S95: 1 | T95: 0 | U95: 1 | X95: SO117 | Y95: Suma de SO117 | Z95: 0 | AA95: 0 | AB95: 0 | AC95: 0 | AD95: 0 | AE95: 0 | AF95: 0 | AG95: 0 | AH95: 0 | AI95: 0 | AJ95: 0 | AK95: 1
A96: SO118 | B96: Suma de SO118 | C96: 0 | D96: 0 | E96: 0 | F96: 0 | G96: 0 | H96: 0 | I96: 0 | J96: 0 | K96: 0 | L96: 0 | M96: 0 | N96: 0 | O96: 0 | P96: 0 | Q96: 0 | R96: 0 | S96: 0 | T96: 0 | U96: 0 | X96: SO118 | Y96: Suma de SO118 | Z96: 0 | AA96: 0 | AB96: 0 | AC96: 0 | AD96: 0 | AE96: 0 | AF96: 0 | AG96: 0 | AH96: 0 | AI96: 0 | AJ96: 0 | AK96: 0
A97: SO119 | B97: Suma de SO119 | C97: 0 | D97: 0 | E97: 0 | F97: 0 | G97: 0 | H97: 0 | I97: 0 | J97: 0 | K97: 0 | L97: 0 | M97: 2 | N97: 2 | O97: 4 | P97: 0 | Q97: 0 | R97: 0 | S97: 4 | T97: 0 | U97: 4 | X97: SO119 | Y97: Suma de SO119 | Z97: 0 | AA97: 0 | AB97: 0 | AC97: 0 | AD97: 0 | AE97: 0 | AF97: 0 | AG97: 0 | AH97: 0 | AI97: 0 | AJ97: 0 | AK97: 0
A98: SO120 | B98: Suma de SO120 | C98: 0 | D98: 0 | E98: 0 | F98: 0 | G98: 0 | H98: 0 | I98: 0 | J98: 0 | K98: 0 | L98: 0 | M98: 8 | N98: 12 | O98: 20 | P98: 0 | Q98: 0 | R98: 0 | S98: 20 | T98: 0 | U98: 20 | X98: SO120 | Y98: Suma de SO120 | Z98: 0 | AA98: 0 | AB98: 0 | AC98: 0 | AD98: 0 | AE98: 0 | AF98: 0 | AG98: 0 | AH98: 0 | AI98: 0 | AJ98: 0 | AK98: 0
A99: SO121 | B99: Suma de SO121 | C99: 0 | D99: 0 | E99: 0 | F99: 0 | G99: 0 | H99: 0 | I99: 0 | J99: 0 | K99: 0 | L99: 0 | M99: 0 | N99: 0 | O99: 0 | P99: 0 | Q99: 0 | R99: 0 | S99: 0 | T99: 0 | U99: 0 | X99: SO121 | Y99: Suma de SO121 | Z99: 0 | AA99: 0 | AB99: 0 | AC99: 0 | AD99: 0 | AE99: 0 | AF99: 0 | AG99: 0 | AH99: 0 | AI99: 0 | AJ99: 0 | AK99: 0
A100: SO122 | B100: Suma de SO122 | C100: 0 | D100: 0 | E100: 0 | F100: 0 | G100: 0 | H100: 0 | I100: 0 | J100: 0 | K100: 0 | L100: 0 | M100: 4 | N100: 0 | O100: 4 | P100: 0 | Q100: 0 | R100: 0 | S100: 4 | T100: 0 | U100: 4 | X100: SO122 | Y100: Suma de SO122 | Z100: 0 | AA100: 0 | AB100: 0 | AC100: 0 | AD100: 0 | AE100: 0 | AF100: 0 | AG100: 0 | AH100: 0 | AI100: 0 | AJ100: 0 | AK100: 0
A101: SO123 | B101: Suma de SO123 | C101: 0 | D101: 0 | E101: 0 | F101: 0 | G101: 0 | H101: 0 | I101: 0 | J101: 0 | K101: 0 | L101: 0 | M101: 5 | N101: 11 | O101: 16 | P101: 0 | Q101: 0 | R101: 0 | S101: 16 | T101: 0 | U101: 16 | X101: SO123 | Y101: Suma de SO123 | Z101: 0 | AA101: 0 | AB101: 0 | AC101: 0 | AD101: 0 | AE101: 0 | AF101: 0 | AG101: 0 | AH101: 0 | AI101: 0 | AJ101: 0 | AK101: 0
A102: =MID(B102,9,15) -> SO124 | B102: Suma de SO124 | C102: 0 | D102: 0 | E102: 0 | F102: 0 | G102: 0 | H102: 0 | I102: 0 | J102: 0 | K102: 0 | L102: 0 | M102: 0 | N102: 0 | O102: 0 | P102: =SUM(C102:E102) -> 0 | Q102: =SUM(F102:H102) -> 0 | R102: =SUM(I102:K102) -> 0 | S102: =SUM(L102:N102) -> 0 | T102: =SUM(C102:H102) -> 0 | U102: =SUM(I102:N102) -> 0 | X102: SO124 | Y102: Suma de SO124 | Z102: 0 | AA102: 0 | AB102: 0 | AC102: 0 | AD102: 0 | AE102: 0 | AF102: 0 | AG102: 0 | AH102: 0 | AI102: 0 | AJ102: 0 | AK102: 0
A103: SO125 | B103: Suma de SO125 | C103: 0 | D103: 0 | E103: 0 | F103: 0 | G103: 0 | H103: 0 | I103: 0 | J103: 0 | K103: 0 | L103: 0 | M103: 0 | N103: 0 | O103: 0 | P103: 0 | Q103: 0 | R103: 0 | S103: 0 | T103: 0 | U103: 0 | X103: SO125 | Y103: Suma de SO125 | Z103: 0 | AA103: 0 | AB103: 0 | AC103: 0 | AD103: 0 | AE103: 0 | AF103: 0 | AG103: 0 | AH103: 0 | AI103: 0 | AJ103: 0 | AK103: 0
A104: SO126 | B104: Suma de SO126 | C104: 0 | D104: 0 | E104: 0 | F104: 0 | G104: 0 | H104: 0 | I104: 0 | J104: 0 | K104: 0 | L104: 0 | M104: 0 | N104: 0 | O104: 0 | P104: 0 | Q104: 0 | R104: 0 | S104: 0 | T104: 0 | U104: 0 | X104: SO126 | Y104: Suma de SO126 | Z104: 0 | AA104: 0 | AB104: 0 | AC104: 0 | AD104: 0 | AE104: 0 | AF104: 0 | AG104: 0 | AH104: 0 | AI104: 0 | AJ104: 0 | AK104: 0
A105: SO127 | B105: Suma de SO127 | C105: 0 | D105: 0 | E105: 0 | F105: 0 | G105: 0 | H105: 0 | I105: 0 | J105: 0 | K105: 0 | L105: 0 | M105: 0 | N105: 0 | O105: 0 | P105: 0 | Q105: 0 | R105: 0 | S105: 0 | T105: 0 | U105: 0 | X105: SO127 | Y105: Suma de SO127 | Z105: 0 | AA105: 0 | AB105: 0 | AC105: 0 | AD105: 0 | AE105: 0 | AF105: 0 | AG105: 0 | AH105: 0 | AI105: 0 | AJ105: 0 | AK105: 0
A106: SO128 | B106: Suma de SO128 | C106: 0 | D106: 0 | E106: 0 | F106: 0 | G106: 0 | H106: 0 | I106: 0 | J106: 0 | K106: 0 | L106: 0 | M106: 0 | N106: 0 | O106: 0 | P106: 0 | Q106: 0 | R106: 0 | S106: 0 | T106: 0 | U106: 0 | X106: SO128 | Y106: Suma de SO128 | Z106: 0 | AA106: 0 | AB106: 0 | AC106: 0 | AD106: 0 | AE106: 0 | AF106: 0 | AG106: 0 | AH106: 0 | AI106: 0 | AJ106: 0 | AK106: 0
A107: SO129 | B107: Suma de SO129 | C107: 0 | D107: 0 | E107: 0 | F107: 0 | G107: 0 | H107: 0 | I107: 0 | J107: 0 | K107: 0 | L107: 0 | M107: 0 | N107: 1 | O107: 1 | P107: 0 | Q107: 0 | R107: 0 | S107: 1 | T107: 0 | U107: 1 | X107: SO129 | Y107: Suma de SO129 | Z107: 0 | AA107: 0 | AB107: 0 | AC107: 0 | AD107: 0 | AE107: 0 | AF107: 0 | AG107: 0 | AH107: 0 | AI107: 0 | AJ107: 0 | AK107: 0
A108: SO145 | B108: Suma de SO145 | C108: 0 | D108: 0 | E108: 0 | F108: 0 | G108: 0 | H108: 0 | I108: 0 | J108: 0 | K108: 0 | L108: 0 | M108: 0 | N108: 0 | O108: 0 | P108: 0 | Q108: 0 | R108: 0 | S108: 0 | T108: 0 | U108: 0 | X108: SO145 | Y108: Suma de SO145 | Z108: 0 | AA108: 0 | AB108: 0 | AC108: 0 | AD108: 0 | AE108: 0 | AF108: 0 | AG108: 0 | AH108: 0 | AI108: 0 | AJ108: 0 | AK108: 0
A109: SO146 | B109: Suma de SO146 | C109: 0 | D109: 0 | E109: 0 | F109: 0 | G109: 0 | H109: 0 | I109: 0 | J109: 0 | K109: 0 | L109: 0 | M109: 0 | N109: 0 | O109: 0 | P109: 0 | Q109: 0 | R109: 0 | S109: 0 | T109: 0 | U109: 0 | X109: SO146 | Y109: Suma de SO146 | Z109: 0 | AA109: 0 | AB109: 0 | AC109: 0 | AD109: 0 | AE109: 0 | AF109: 0 | AG109: 0 | AH109: 0 | AI109: 0 | AJ109: 0 | AK109: 0
A110: SO147 | B110: Suma de SO147 | C110: 0 | D110: 0 | E110: 0 | F110: 0 | G110: 0 | H110: 0 | I110: 0 | J110: 0 | K110: 0 | L110: 0 | M110: 0 | N110: 0 | O110: 0 | P110: 0 | Q110: 0 | R110: 0 | S110: 0 | T110: 0 | U110: 0 | X110: SO147 | Y110: Suma de SO147 | Z110: 0 | AA110: 0 | AB110: 0 | AC110: 0 | AD110: 0 | AE110: 0 | AF110: 0 | AG110: 0 | AH110: 0 | AI110: 0 | AJ110: 0 | AK110: 0
A111: SO148 | B111: Suma de SO148 | C111: 2 | D111: 0 | E111: 1 | F111: 0 | G111: 0 | H111: 1 | I111: 0 | J111: 1 | K111: 0 | L111: 0 | M111: 2 | N111: 1 | O111: 8 | P111: 3 | Q111: 1 | R111: 1 | S111: 3 | T111: 4 | U111: 4 | X111: SO148 | Y111: Suma de SO148 | Z111: 1 | AA111: 0 | AB111: 0 | AC111: 0 | AD111: 0 | AE111: 0 | AF111: 0 | AG111: 0 | AH111: 0 | AI111: 0 | AJ111: 1 | AK111: 0
A112: SO149 | B112: Suma de SO149 | C112: 30 | D112: 33 | E112: 33 | F112: 16 | G112: 40 | H112: 36 | I112: 41 | J112: 24 | K112: 26 | L112: 36 | M112: 48 | N112: 21 | O112: 384 | P112: 96 | Q112: 92 | R112: 91 | S112: 105 | T112: 188 | U112: 196 | X112: SO149 | Y112: Suma de SO149 | Z112: 5 | AA112: 17 | AB112: 7 | AC112: 4 | AD112: 10 | AE112: 10 | AF112: 15 | AG112: 6 | AH112: 14 | AI112: 26 | AJ112: 37 | AK112: 14
A113: SO150 | B113: Suma de SO150 | C113: 27 | D113: 23 | E113: 27 | F113: 15 | G113: 39 | H113: 33 | I113: 29 | J113: 35 | K113: 25 | L113: 27 | M113: 32 | N113: 35 | O113: 347 | P113: 77 | Q113: 87 | R113: 89 | S113: 94 | T113: 164 | U113: 183 | X113: SO150 | Y113: Suma de SO150 | Z113: 4 | AA113: 10 | AB113: 11 | AC113: 7 | AD113: 14 | AE113: 9 | AF113: 12 | AG113: 13 | AH113: 11 | AI113: 18 | AJ113: 22 | AK113: 20
A114: SO151 | B114: Suma de SO151 | C114: 0 | D114: 0 | E114: 0 | F114: 0 | G114: 0 | H114: 0 | I114: 0 | J114: 0 | K114: 0 | L114: 0 | M114: 0 | N114: 0 | O114: 0 | P114: 0 | Q114: 0 | R114: 0 | S114: 0 | T114: 0 | U114: 0 | X114: SO151 | Y114: Suma de SO151 | Z114: 0 | AA114: 0 | AB114: 0 | AC114: 0 | AD114: 0 | AE114: 0 | AF114: 0 | AG114: 0 | AH114: 0 | AI114: 0 | AJ114: 0 | AK114: 0
A115: SO152 | B115: Suma de SO152 | C115: 0 | D115: 0 | E115: 0 | F115: 0 | G115: 0 | H115: 0 | I115: 0 | J115: 0 | K115: 0 | L115: 0 | M115: 0 | N115: 0 | O115: 0 | P115: 0 | Q115: 0 | R115: 0 | S115: 0 | T115: 0 | U115: 0 | X115: SO152 | Y115: Suma de SO152 | Z115: 0 | AA115: 0 | AB115: 0 | AC115: 0 | AD115: 0 | AE115: 0 | AF115: 0 | AG115: 0 | AH115: 0 | AI115: 0 | AJ115: 0 | AK115: 0
A116: SO153 | B116: Suma de SO153 | C116: 0 | D116: 0 | E116: 0 | F116: 0 | G116: 0 | H116: 0 | I116: 0 | J116: 0 | K116: 0 | L116: 0 | M116: 0 | N116: 0 | O116: 0 | P116: 0 | Q116: 0 | R116: 0 | S116: 0 | T116: 0 | U116: 0 | X116: SO153 | Y116: Suma de SO153 | Z116: 0 | AA116: 0 | AB116: 0 | AC116: 0 | AD116: 0 | AE116: 0 | AF116: 0 | AG116: 0 | AH116: 0 | AI116: 0 | AJ116: 0 | AK116: 0
A117: SO154 | B117: Suma de SO154 | C117: 0 | D117: 0 | E117: 0 | F117: 0 | G117: 0 | H117: 0 | I117: 0 | J117: 0 | K117: 0 | L117: 0 | M117: 0 | N117: 0 | O117: 0 | P117: 0 | Q117: 0 | R117: 0 | S117: 0 | T117: 0 | U117: 0 | X117: SO154 | Y117: Suma de SO154 | Z117: 0 | AA117: 0 | AB117: 0 | AC117: 0 | AD117: 0 | AE117: 0 | AF117: 0 | AG117: 0 | AH117: 0 | AI117: 0 | AJ117: 0 | AK117: 0
A118: SO155 | B118: Suma de SO155 | C118: 0 | D118: 0 | E118: 0 | F118: 0 | G118: 0 | H118: 0 | I118: 0 | J118: 0 | K118: 0 | L118: 0 | M118: 0 | N118: 0 | O118: 0 | P118: 0 | Q118: 0 | R118: 0 | S118: 0 | T118: 0 | U118: 0 | X118: SO155 | Y118: Suma de SO155 | Z118: 0 | AA118: 0 | AB118: 0 | AC118: 0 | AD118: 0 | AE118: 0 | AF118: 0 | AG118: 0 | AH118: 0 | AI118: 0 | AJ118: 0 | AK118: 0
A119: SO156 | B119: Suma de SO156 | C119: 0 | D119: 0 | E119: 0 | F119: 0 | G119: 0 | H119: 0 | I119: 1 | J119: 0 | K119: 0 | L119: 0 | M119: 0 | N119: 0 | O119: 1 | P119: 0 | Q119: 0 | R119: 1 | S119: 0 | T119: 0 | U119: 1 | X119: SO156 | Y119: Suma de SO156 | Z119: 0 | AA119: 0 | AB119: 0 | AC119: 0 | AD119: 0 | AE119: 0 | AF119: 1 | AG119: 0 | AH119: 0 | AI119: 0 | AJ119: 0 | AK119: 0
A120: SO157 | B120: Suma de SO157 | C120: 0 | D120: 0 | E120: 0 | F120: 0 | G120: 0 | H120: 0 | I120: 0 | J120: 0 | K120: 0 | L120: 0 | M120: 0 | N120: 0 | O120: 0 | P120: 0 | Q120: 0 | R120: 0 | S120: 0 | T120: 0 | U120: 0 | X120: SO157 | Y120: Suma de SO157 | Z120: 0 | AA120: 0 | AB120: 0 | AC120: 0 | AD120: 0 | AE120: 0 | AF120: 0 | AG120: 0 | AH120: 0 | AI120: 0 | AJ120: 0 | AK120: 0
A121: SO158 | B121: Suma de SO158 | C121: 0 | D121: 0 | E121: 0 | F121: 0 | G121: 0 | H121: 0 | I121: 0 | J121: 0 | K121: 0 | L121: 0 | M121: 0 | N121: 0 | O121: 0 | P121: 0 | Q121: 0 | R121: 0 | S121: 0 | T121: 0 | U121: 0 | X121: SO158 | Y121: Suma de SO158 | Z121: 0 | AA121: 0 | AB121: 0 | AC121: 0 | AD121: 0 | AE121: 0 | AF121: 0 | AG121: 0 | AH121: 0 | AI121: 0 | AJ121: 0 | AK121: 0
A122: SO159 | B122: Suma de SO159 | C122: 0 | D122: 0 | E122: 0 | F122: 0 | G122: 0 | H122: 0 | I122: 0 | J122: 0 | K122: 0 | L122: 0 | M122: 0 | N122: 0 | O122: 0 | P122: 0 | Q122: 0 | R122: 0 | S122: 0 | T122: 0 | U122: 0 | X122: SO159 | Y122: Suma de SO159 | Z122: 0 | AA122: 0 | AB122: 0 | AC122: 0 | AD122: 0 | AE122: 0 | AF122: 0 | AG122: 0 | AH122: 0 | AI122: 0 | AJ122: 0 | AK122: 0
A123: SO160 | B123: Suma de SO160 | C123: 0 | D123: 1 | E123: 1 | F123: 0 | G123: 0 | H123: 0 | I123: 1 | J123: 0 | K123: 0 | L123: 0 | M123: 0 | N123: 0 | O123: 3 | P123: 2 | Q123: 0 | R123: 1 | S123: 0 | T123: 2 | U123: 1 | X123: SO160 | Y123: Suma de SO160 | Z123: 0 | AA123: 0 | AB123: 1 | AC123: 0 | AD123: 0 | AE123: 0 | AF123: 0 | AG123: 0 | AH123: 0 | AI123: 0 | AJ123: 0 | AK123: 0
A124: SO161 | B124: Suma de SO161 | C124: 15 | D124: 7 | E124: 8 | F124: 9 | G124: 5 | H124: 17 | I124: 20 | J124: 19 | K124: 19 | L124: 15 | M124: 34 | N124: 28 | O124: 196 | P124: 30 | Q124: 31 | R124: 58 | S124: 77 | T124: 61 | U124: 135 | X124: SO161 | Y124: Suma de SO161 | Z124: 11 | AA124: 5 | AB124: 7 | AC124: 6 | AD124: 5 | AE124: 9 | AF124: 15 | AG124: 15 | AH124: 19 | AI124: 12 | AJ124: 28 | AK124: 27
A125: SO162 | B125: Suma de SO162 | C125: 16 | D125: 7 | E125: 14 | F125: 11 | G125: 13 | H125: 14 | I125: 19 | J125: 10 | K125: 11 | L125: 32 | M125: 17 | N125: 22 | O125: 186 | P125: 37 | Q125: 38 | R125: 40 | S125: 71 | T125: 75 | U125: 111 | X125: SO162 | Y125: Suma de SO162 | Z125: 3 | AA125: 1 | AB125: 7 | AC125: 6 | AD125: 10 | AE125: 11 | AF125: 13 | AG125: 8 | AH125: 7 | AI125: 29 | AJ125: 12 | AK125: 19
A126: SO166 | B126: Suma de SO166 | C126: 0 | D126: 0 | E126: 0 | F126: 0 | G126: 0 | H126: 0 | I126: 0 | J126: 0 | K126: 0 | L126: 0 | M126: 0 | N126: 0 | O126: 0 | P126: 0 | Q126: 0 | R126: 0 | S126: 0 | T126: 0 | U126: 0 | X126: SO166 | Y126: Suma de SO166 | Z126: 0 | AA126: 0 | AB126: 0 | AC126: 0 | AD126: 0 | AE126: 0 | AF126: 0 | AG126: 0 | AH126: 0 | AI126: 0 | AJ126: 0 | AK126: 0
A127: SO167 | B127: Suma de SO167 | C127: 0 | D127: 0 | E127: 0 | F127: 0 | G127: 0 | H127: 0 | I127: 0 | J127: 0 | K127: 0 | L127: 0 | M127: 0 | N127: 0 | O127: 0 | P127: 0 | Q127: 0 | R127: 0 | S127: 0 | T127: 0 | U127: 0 | X127: SO167 | Y127: Suma de SO167 | Z127: 0 | AA127: 0 | AB127: 0 | AC127: 0 | AD127: 0 | AE127: 0 | AF127: 0 | AG127: 0 | AH127: 0 | AI127: 0 | AJ127: 0 | AK127: 0
A128: SO168 | B128: Suma de SO168 | C128: 0 | D128: 0 | E128: 0 | F128: 0 | G128: 2 | H128: 1 | I128: 0 | J128: 0 | K128: 0 | L128: 0 | M128: 0 | N128: 0 | O128: 3 | P128: 0 | Q128: 3 | R128: 0 | S128: 0 | T128: 3 | U128: 0 | X128: SO168 | Y128: Suma de SO168 | Z128: 0 | AA128: 0 | AB128: 0 | AC128: 0 | AD128: 2 | AE128: 0 | AF128: 0 | AG128: 0 | AH128: 0 | AI128: 0 | AJ128: 0 | AK128: 0
A129: SO169 | B129: Suma de SO169 | C129: 0 | D129: 0 | E129: 0 | F129: 0 | G129: 0 | H129: 0 | I129: 0 | J129: 0 | K129: 0 | L129: 0 | M129: 0 | N129: 0 | O129: 0 | P129: 0 | Q129: 0 | R129: 0 | S129: 0 | T129: 0 | U129: 0 | X129: SO169 | Y129: Suma de SO169 | Z129: 0 | AA129: 0 | AB129: 0 | AC129: 0 | AD129: 0 | AE129: 0 | AF129: 0 | AG129: 0 | AH129: 0 | AI129: 0 | AJ129: 0 | AK129: 0
A130: SO170 | B130: Suma de SO170 | C130: 0 | D130: 0 | E130: 0 | F130: 0 | G130: 0 | H130: 0 | I130: 0 | J130: 0 | K130: 0 | L130: 0 | M130: 0 | N130: 0 | O130: 0 | P130: 0 | Q130: 0 | R130: 0 | S130: 0 | T130: 0 | U130: 0 | X130: SO170 | Y130: Suma de SO170 | Z130: 0 | AA130: 0 | AB130: 0 | AC130: 0 | AD130: 0 | AE130: 0 | AF130: 0 | AG130: 0 | AH130: 0 | AI130: 0 | AJ130: 0 | AK130: 0
A131: SO171 | B131: Suma de SO171 | C131: 0 | D131: 0 | E131: 0 | F131: 0 | G131: 0 | H131: 0 | I131: 0 | J131: 0 | K131: 0 | L131: 0 | M131: 0 | N131: 0 | O131: 0 | P131: 0 | Q131: 0 | R131: 0 | S131: 0 | T131: 0 | U131: 0 | X131: SO171 | Y131: Suma de SO171 | Z131: 0 | AA131: 0 | AB131: 0 | AC131: 0 | AD131: 0 | AE131: 0 | AF131: 0 | AG131: 0 | AH131: 0 | AI131: 0 | AJ131: 0 | AK131: 0
A132: SO175 | B132: Suma de SO175 | C132: 0 | D132: 0 | E132: 0 | F132: 0 | G132: 0 | H132: 0 | I132: 0 | J132: 0 | K132: 0 | L132: 0 | M132: 0 | N132: 0 | O132: 0 | P132: 0 | Q132: 0 | R132: 0 | S132: 0 | T132: 0 | U132: 0 | X132: SO175 | Y132: Suma de SO175 | Z132: 0 | AA132: 0 | AB132: 0 | AC132: 0 | AD132: 0 | AE132: 0 | AF132: 0 | AG132: 0 | AH132: 0 | AI132: 0 | AJ132: 0 | AK132: 0
A133: SO176 | B133: Suma de SO176 | C133: 0 | D133: 0 | E133: 0 | F133: 0 | G133: 0 | H133: 0 | I133: 0 | J133: 0 | K133: 0 | L133: 0 | M133: 0 | N133: 0 | O133: 0 | P133: 0 | Q133: 0 | R133: 0 | S133: 0 | T133: 0 | U133: 0 | X133: SO176 | Y133: Suma de SO176 | Z133: 0 | AA133: 0 | AB133: 0 | AC133: 0 | AD133: 0 | AE133: 0 | AF133: 0 | AG133: 0 | AH133: 0 | AI133: 0 | AJ133: 0 | AK133: 0
A134: =MID(B134,9,15) -> SO177 | B134: Suma de SO177 | C134: 0 | D134: 0 | E134: 0 | F134: 0 | G134: 0 | H134: 0 | I134: 0 | J134: 0 | K134: 0 | L134: 0 | M134: 0 | N134: 0 | O134: =SUM(C134:N134) -> 0 | P134: =SUM(C134:E134) -> 0 | Q134: =SUM(F134:H134) -> 0 | R134: =SUM(I134:K134) -> 0 | S134: =SUM(L134:N134) -> 0 | T134: =SUM(C134:H134) -> 0 | U134: =SUM(I134:N134) -> 0 | X134: SO177 | Y134: Suma de SO177 | Z134: 0 | AA134: 0 | AB134: 0 | AC134: 0 | AD134: 0 | AE134: 0 | AF134: 0 | AG134: 0 | AH134: 0 | AI134: 0 | AJ134: 0 | AK134: 0
A135: SO178 | B135: Suma de SO178 | C135: 0 | D135: 0 | E135: 0 | F135: 0 | G135: 0 | H135: 0 | I135: 0 | J135: 0 | K135: 0 | L135: 0 | M135: 1 | N135: 0 | O135: 1 | P135: 0 | Q135: 0 | R135: 0 | S135: 1 | T135: 0 | U135: 1 | X135: =MID(Y135,9,15) -> SO178 | Y135: Suma de SO178 | Z135: 0 | AA135: 0 | AB135: 0 | AC135: 0 | AD135: 0 | AE135: 0 | AF135: 0 | AG135: 0 | AH135: 0 | AI135: 0 | AJ135: 1 | AK135: 0
A136: SO179 | B136: Suma de SO179 | C136: 0 | D136: 0 | E136: 0 | F136: 0 | G136: 0 | H136: 0 | I136: 0 | J136: 0 | K136: 0 | L136: 0 | M136: 0 | N136: 0 | O136: 0 | P136: 0 | Q136: 0 | R136: 0 | S136: 0 | T136: 0 | U136: 0 | X136: SO179 | Y136: Suma de SO179 | Z136: 0 | AA136: 0 | AB136: 0 | AC136: 0 | AD136: 0 | AE136: 0 | AF136: 0 | AG136: 0 | AH136: 0 | AI136: 0 | AJ136: 0 | AK136: 0
A137: SO180 | B137: Suma de SO180 | C137: 0 | D137: 0 | E137: 0 | F137: 0 | G137: 0 | H137: 0 | I137: 0 | J137: 0 | K137: 0 | L137: 0 | M137: 0 | N137: 0 | O137: 0 | P137: 0 | Q137: 0 | R137: 0 | S137: 0 | T137: 0 | U137: 0 | X137: SO180 | Y137: Suma de SO180 | Z137: 0 | AA137: 0 | AB137: 0 | AC137: 0 | AD137: 0 | AE137: 0 | AF137: 0 | AG137: 0 | AH137: 0 | AI137: 0 | AJ137: 0 | AK137: 0
A138: SO184 | B138: Suma de SO184 | C138: 15 | D138: 16 | E138: 17 | F138: 12 | G138: 10 | H138: 19 | I138: 15 | J138: 14 | K138: 12 | L138: 8 | M138: 16 | N138: 14 | O138: 168 | P138: 48 | Q138: 41 | R138: 41 | S138: 38 | T138: 89 | U138: 79 | X138: SO184 | Y138: Suma de SO184 | Z138: 7 | AA138: 6 | AB138: 5 | AC138: 3 | AD138: 2 | AE138: 6 | AF138: 6 | AG138: 7 | AH138: 6 | AI138: 4 | AJ138: 6 | AK138: 8
A139: SO185 | B139: Suma de SO185 | C139: 4 | D139: 5 | E139: 4 | F139: 5 | G139: 6 | H139: 4 | I139: 4 | J139: 3 | K139: 6 | L139: 6 | M139: 8 | N139: 6 | O139: 61 | P139: 13 | Q139: 15 | R139: 13 | S139: 20 | T139: 28 | U139: 33 | X139: SO185 | Y139: Suma de SO185 | Z139: 1 | AA139: 2 | AB139: 1 | AC139: 1 | AD139: 1 | AE139: 1 | AF139: 2 | AG139: 1 | AH139: 2 | AI139: 3 | AJ139: 4 | AK139: 4
A140: SO186 | B140: Suma de SO186 | C140: 5 | D140: 1 | E140: 6 | F140: 5 | G140: 2 | H140: 5 | I140: 5 | J140: 5 | K140: 2 | L140: 2 | M140: 8 | N140: 1 | O140: 47 | P140: 12 | Q140: 12 | R140: 12 | S140: 11 | T140: 24 | U140: 23 | X140: SO186 | Y140: Suma de SO186 | Z140: 1 | AA140: 1 | AB140: 2 | AC140: 2 | AD140: 0 | AE140: 2 | AF140: 3 | AG140: 2 | AH140: 2 | AI140: 0 | AJ140: 3 | AK140: 0
A141: SO187 | B141: Suma de SO187 | C141: 13 | D141: 19 | E141: 8 | F141: 16 | G141: 6 | H141: 14 | I141: 10 | J141: 8 | K141: 14 | L141: 13 | M141: 8 | N141: 10 | O141: 139 | P141: 40 | Q141: 36 | R141: 32 | S141: 31 | T141: 76 | U141: 63 | X141: SO187 | Y141: Suma de SO187 | Z141: 6 | AA141: 4 | AB141: 5 | AC141: 7 | AD141: 2 | AE141: 4 | AF141: 1 | AG141: 4 | AH141: 8 | AI141: 6 | AJ141: 5 | AK141: 6
A142: SO188 | B142: Suma de SO188 | C142: 5 | D142: 7 | E142: 6 | F142: 4 | G142: 3 | H142: 4 | I142: 6 | J142: 5 | K142: 6 | L142: 8 | M142: 8 | N142: 1 | O142: 63 | P142: 18 | Q142: 11 | R142: 17 | S142: 17 | T142: 29 | U142: 34 | X142: SO188 | Y142: Suma de SO188 | Z142: 2 | AA142: 4 | AB142: 5 | AC142: 2 | AD142: 1 | AE142: 1 | AF142: 4 | AG142: 3 | AH142: 3 | AI142: 5 | AJ142: 5 | AK142: 1
A143: SO189 | B143: Suma de SO189 | C143: 5 | D143: 4 | E143: 4 | F143: 5 | G143: 4 | H143: 7 | I143: 3 | J143: 8 | K143: 5 | L143: 6 | M143: 11 | N143: 3 | O143: 65 | P143: 13 | Q143: 16 | R143: 16 | S143: 20 | T143: 29 | U143: 36 | X143: SO189 | Y143: Suma de SO189 | Z143: 4 | AA143: 3 | AB143: 1 | AC143: 1 | AD143: 1 | AE143: 6 | AF143: 0 | AG143: 4 | AH143: 4 | AI143: 5 | AJ143: 6 | AK143: 1
A144: SO190 | B144: Suma de SO190 | C144: 11 | D144: 6 | E144: 10 | F144: 10 | G144: 13 | H144: 8 | I144: 6 | J144: 8 | K144: 14 | L144: 23 | M144: 13 | N144: 3 | O144: 125 | P144: 27 | Q144: 31 | R144: 28 | S144: 39 | T144: 58 | U144: 67 | X144: SO190 | Y144: Suma de SO190 | Z144: 3 | AA144: 1 | AB144: 2 | AC144: 2 | AD144: 4 | AE144: 2 | AF144: 3 | AG144: 3 | AH144: 3 | AI144: 11 | AJ144: 5 | AK144: 0
A145: SO191 | B145: Suma de SO191 | C145: 4 | D145: 1 | E145: 9 | F145: 8 | G145: 5 | H145: 5 | I145: 3 | J145: 2 | K145: 4 | L145: 4 | M145: 2 | N145: 1 | O145: 48 | P145: 14 | Q145: 18 | R145: 9 | S145: 7 | T145: 32 | U145: 16 | X145: SO191 | Y145: Suma de SO191 | Z145: 2 | AA145: 1 | AB145: 4 | AC145: 2 | AD145: 1 | AE145: 1 | AF145: 2 | AG145: 1 | AH145: 1 | AI145: 1 | AJ145: 2 | AK145: 1
A146: SO192 | B146: Suma de SO192 | C146: 11 | D146: 11 | E146: 8 | F146: 8 | G146: 8 | H146: 6 | I146: 9 | J146: 9 | K146: 16 | L146: 5 | M146: 10 | N146: 5 | O146: 106 | P146: 30 | Q146: 22 | R146: 34 | S146: 20 | T146: 52 | U146: 54 | X146: SO192 | Y146: Suma de SO192 | Z146: 2 | AA146: 4 | AB146: 3 | AC146: 3 | AD146: 2 | AE146: 4 | AF146: 3 | AG146: 3 | AH146: 6 | AI146: 3 | AJ146: 8 | AK146: 3
A147: SO193 | B147: Suma de SO193 | C147: 194 | D147: 150 | E147: 143 | F147: 101 | G147: 99 | H147: 117 | I147: 122 | J147: 165 | K147: 267 | L147: 323 | M147: 341 | N147: 302 | O147: 2324 | P147: 487 | Q147: 317 | R147: 554 | S147: 966 | T147: 804 | U147: 1520 | X147: SO193 | Y147: Suma de SO193 | Z147: 55 | AA147: 49 | AB147: 52 | AC147: 25 | AD147: 17 | AE147: 44 | AF147: 50 | AG147: 44 | AH147: 110 | AI147: 105 | AJ147: 125 | AK147: 99
A148: SO194 | B148: Suma de SO194 | C148: 18 | D148: 25 | E148: 28 | F148: 32 | G148: 33 | H148: 32 | I148: 23 | J148: 28 | K148: 45 | L148: 42 | M148: 52 | N148: 40 | O148: 398 | P148: 71 | Q148: 97 | R148: 96 | S148: 134 | T148: 168 | U148: 230 | X148: SO194 | Y148: Suma de SO194 | Z148: 5 | AA148: 8 | AB148: 10 | AC148: 11 | AD148: 5 | AE148: 7 | AF148: 6 | AG148: 12 | AH148: 15 | AI148: 12 | AJ148: 17 | AK148: 17
A149: SO183 | B149: Suma de SO183 | C149: 0 | D149: 0 | E149: 0 | F149: 0 | G149: 0 | H149: 0 | I149: 0 | J149: 0 | K149: 0 | L149: 0 | M149: 0 | N149: 0 | O149: 0 | P149: 0 | Q149: 0 | R149: 0 | S149: 0 | T149: 0 | U149: 0
A150: SO182 | B150: Suma de SO182 | C150: 0 | D150: 0 | E150: 0 | F150: 0 | G150: 0 | H150: 0 | I150: 0 | J150: 0 | K150: 0 | L150: 0 | M150: 0 | N150: 0 | O150: 0 | P150: 0 | Q150: 0 | R150: 0 | S150: 0 | T150: 0 | U150: 0
A151: SO181 | B151: Suma de SO181 | C151: 0 | D151: 0 | E151: 0 | F151: 0 | G151: 0 | H151: 0 | I151: 0 | J151: 0 | K151: 0 | L151: 0 | M151: 0 | N151: 0 | O151: 0 | P151: 0 | Q151: 0 | R151: 0 | S151: 0 | T151: 0 | U151: 0
A152: SO144 | B152: Suma de SO144 | C152: 0 | D152: 0 | E152: 0 | F152: 0 | G152: 0 | H152: 0 | I152: 0 | J152: 0 | K152: 0 | L152: 0 | M152: 0 | N152: 0 | O152: 0 | P152: 0 | Q152: 0 | R152: 0 | S152: 0 | T152: 0 | U152: 0
A153: SO143 | B153: Suma de SO143 | C153: 0 | D153: 0 | E153: 0 | F153: 0 | G153: 0 | H153: 0 | I153: 0 | J153: 0 | K153: 0 | L153: 0 | M153: 0 | N153: 0 | O153: 0 | P153: 0 | Q153: 0 | R153: 0 | S153: 0 | T153: 0 | U153: 0
A154: SO142 | B154: Suma de SO142 | C154: 0 | D154: 0 | E154: 0 | F154: 0 | G154: 0 | H154: 0 | I154: 0 | J154: 0 | K154: 0 | L154: 0 | M154: 0 | N154: 0 | O154: 0 | P154: 0 | Q154: 0 | R154: 0 | S154: 0 | T154: 0 | U154: 0
A155: SO141 | B155: Suma de SO141 | C155: 0 | D155: 0 | E155: 0 | F155: 0 | G155: 0 | H155: 0 | I155: 0 | J155: 0 | K155: 0 | L155: 0 | M155: 0 | N155: 0 | O155: 0 | P155: 0 | Q155: 0 | R155: 0 | S155: 0 | T155: 0 | U155: 0
A156: SO140 | B156: Suma de SO140 | C156: 0 | D156: 0 | E156: 0 | F156: 0 | G156: 0 | H156: 0 | I156: 0 | J156: 0 | K156: 0 | L156: 0 | M156: 0 | N156: 0 | O156: 0 | P156: 0 | Q156: 0 | R156: 0 | S156: 0 | T156: 0 | U156: 0
A157: SO139 | B157: Suma de SO139 | C157: 0 | D157: 0 | E157: 0 | F157: 0 | G157: 0 | H157: 0 | I157: 0 | J157: 0 | K157: 0 | L157: 0 | M157: 0 | N157: 0 | O157: 0 | P157: 0 | Q157: 0 | R157: 0 | S157: 0 | T157: 0 | U157: 0
A158: SO138 | B158: Suma de SO138 | C158: 5 | D158: 7 | E158: 7 | F158: 12 | G158: 11 | H158: 8 | I158: 17 | J158: 6 | K158: 3 | L158: 21 | M158: 28 | N158: 6 | O158: 131 | P158: 19 | Q158: 31 | R158: 26 | S158: 55 | T158: 50 | U158: 81
A159: SO137 | B159: Suma de SO137 | C159: 0 | D159: 2 | E159: 5 | F159: 4 | G159: 11 | H159: 10 | I159: 17 | J159: 5 | K159: 6 | L159: 7 | M159: 14 | N159: 8 | O159: 89 | P159: 7 | Q159: 25 | R159: 28 | S159: 29 | T159: 32 | U159: 57
A160: SO136 | B160: Suma de SO136 | C160: 0 | D160: 0 | E160: 1 | F160: 0 | G160: 0 | H160: 0 | I160: 0 | J160: 0 | K160: 0 | L160: 0 | M160: 0 | N160: 0 | O160: 1 | P160: 1 | Q160: 0 | R160: 0 | S160: 0 | T160: 1 | U160: 0
A161: SO135 | B161: Suma de SO135 | C161: 0 | D161: 9 | E161: 8 | F161: 10 | G161: 10 | H161: 12 | I161: 7 | J161: 0 | K161: 5 | L161: 6 | M161: 9 | N161: 12 | O161: 88 | P161: 17 | Q161: 32 | R161: 12 | S161: 27 | T161: 49 | U161: 39
A162: SO134 | B162: Suma de SO134 | C162: 6 | D162: 7 | E162: 17 | F162: 14 | G162: 14 | H162: 9 | I162: 8 | J162: 0 | K162: 4 | L162: 5 | M162: 6 | N162: 14 | O162: 104 | P162: 30 | Q162: 37 | R162: 12 | S162: 25 | T162: 67 | U162: 37
A163: SO133 | B163: Suma de SO133 | C163: 0 | D163: 0 | E163: 0 | F163: 0 | G163: 0 | H163: 0 | I163: 0 | J163: 0 | K163: 0 | L163: 0 | M163: 0 | N163: 0 | O163: 0 | P163: 0 | Q163: 0 | R163: 0 | S163: 0 | T163: 0 | U163: 0
A164: SO132 | B164: Suma de SO132 | C164: 0 | D164: 0 | E164: 0 | F164: 0 | G164: 0 | H164: 0 | I164: 0 | J164: 0 | K164: 0 | L164: 0 | M164: 0 | N164: 0 | O164: 0 | P164: 0 | Q164: 0 | R164: 0 | S164: 0 | T164: 0 | U164: 0
A165: SO130 | B165: Suma de SO130 | C165: 0 | D165: 0 | E165: 0 | F165: 0 | G165: 0 | H165: 0 | I165: 0 | J165: 0 | K165: 0 | L165: 0 | M165: 0 | N165: 0 | O165: 0 | P165: 0 | Q165: 0 | R165: 0 | S165: 0 | T165: 0 | U165: 0
A166: =MID(B166,9,15) -> SO131 | B166: Suma de SO131 | C166: 0 | D166: 0 | E166: 0 | F166: 0 | G166: 0 | H166: 0 | I166: 0 | J166: 0 | K166: 0 | L166: 0 | M166: 0 | N166: 0 | O166: 0 | P166: =SUM(C166:E166) -> 0 | Q166: =SUM(F166:H166) -> 0 | R166: =SUM(I166:K166) -> 0 | S166: =SUM(L166:N166) -> 0 | T166: =SUM(C166:H166) -> 0 | U166: =SUM(I166:N166) -> 0
A167: SO195 | B167: Suma de SO195 | C167: 35 | D167: 31 | E167: 53 | F167: 46 | G167: 41 | H167: 46 | I167: 34 | J167: 31 | K167: 46 | L167: 46 | M167: 59 | N167: 43 | O167: 511 | P167: 119 | Q167: 133 | R167: 111 | S167: 148 | T167: 252 | U167: 259
O168: 0 | P168: 0 | Q168: 0 | R168: 0 | S168: 0 | T168: 0 | U168: 0
O169: 0 | P169: 0 | Q169: 0 | R169: 0 | S169: 0 | T169: 0 | U169: 0
O170: 0 | P170: 0 | Q170: 0 | R170: 0 | S170: 0 | T170: 0 | U170: 0
O171: 0 | P171: 0 | Q171: 0 | R171: 0 | S171: 0 | T171: 0 | U171: 0
O172: 0 | P172: 0 | Q172: 0 | R172: 0 | S172: 0 | T172: 0 | U172: 0
O173: 0 | P173: 0 | Q173: 0 | R173: 0 | S173: 0 | T173: 0 | U173: 0
O174: 0 | P174: 0 | Q174: 0 | R174: 0 | S174: 0 | T174: 0 | U174: 0
O175: 0 | P175: 0 | Q175: 0 | R175: 0 | S175: 0 | T175: 0 | U175: 0
O176: 0 | P176: 0 | Q176: 0 | R176: 0 | S176: 0 | T176: 0 | U176: 0
O177: 0 | P177: 0 | Q177: 0 | R177: 0 | S177: 0 | T177: 0 | U177: 0
O178: 0 | P178: 0 | Q178: 0 | R178: 0 | S178: 0 | T178: 0 | U178: 0
O179: 0 | P179: 0 | Q179: 0 | R179: 0 | S179: 0 | T179: 0 | U179: 0
O180: 0 | P180: 0 | Q180: 0 | R180: 0 | S180: 0 | T180: 0 | U180: 0
O181: 0 | P181: 0 | Q181: 0 | R181: 0 | S181: 0 | T181: 0 | U181: 0
O182: 0 | P182: 0 | Q182: 0 | R182: 0 | S182: 0 | T182: 0 | U182: 0
O183: 0 | P183: 0 | Q183: 0 | R183: 0 | S183: 0 | T183: 0 | U183: 0
O184: 0 | P184: 0 | Q184: 0 | R184: 0 | S184: 0 | T184: 0 | U184: 0
O185: 0 | P185: 0 | Q185: 0 | R185: 0 | S185: 0 | T185: 0 | U185: 0
O186: 0 | P186: 0 | Q186: 0 | R186: 0 | S186: 0 | T186: 0 | U186: 0
O187: 0 | P187: 0 | Q187: 0 | R187: 0 | S187: 0 | T187: 0 | U187: 0
O188: 0 | P188: 0 | Q188: 0 | R188: 0 | S188: 0 | T188: 0 | U188: 0
O189: 0 | P189: 0 | Q189: 0 | R189: 0 | S189: 0 | T189: 0 | U189: 0
O190: 0 | P190: 0 | Q190: 0 | R190: 0 | S190: 0 | T190: 0 | U190: 0
O191: 0 | P191: 0 | Q191: 0 | R191: 0 | S191: 0 | T191: 0 | U191: 0
O192: 0 | P192: 0 | Q192: 0 | R192: 0 | S192: 0 | T192: 0 | U192: 0
O193: 0 | P193: 0 | Q193: 0 | R193: 0 | S193: 0 | T193: 0 | U193: 0
O194: 0 | P194: 0 | Q194: 0 | R194: 0 | S194: 0 | T194: 0 | U194: 0
O195: 0 | P195: 0 | Q195: 0 | R195: 0 | S195: 0 | T195: 0 | U195: 0
O196: 0 | P196: 0 | Q196: 0 | R196: 0 | S196: 0 | T196: 0 | U196: 0
O197: 0 | P197: 0 | Q197: 0 | R197: 0 | S197: 0 | T197: 0 | U197: 0
A198: =MID(B198,9,15) ->  | O198: =SUM(C198:N198) -> 0 | P198: =SUM(C198:E198) -> 0 | Q198: =SUM(F198:H198) -> 0 | R198: =SUM(I198:K198) -> 0 | S198: =SUM(L198:N198) -> 0 | T198: =SUM(C198:H198) -> 0 | U198: =SUM(I198:N198) -> 0
O199: 0 | P199: 0 | Q199: 0 | R199: 0 | S199: 0 | T199: 0 | U199: 0 | X199: =MID(Y199,9,15) -> 
O200: 0 | P200: 0 | Q200: 0 | R200: 0 | S200: 0 | T200: 0 | U200: 0
O201: 0 | P201: 0 | Q201: 0 | R201: 0 | S201: 0 | T201: 0 | U201: 0
... 2 more rows

Sheet XPRODUCTO
A13: Examen de los Ojos y de la Visión recien nacido de 2 meses (anormal)
A15: Variable | B15: Total | C15: Ene | D15: Feb | E15: Mar | F15: Abr | G15: May | H15: Jun | I15: Jul | J15: Ago | K15: Sep | L15: Oct | M15: Nov | N15: Dic
A16: =VLOOKUP(A13,PANEL!O106:P303,2,0) -> SO25 | B16: =SUM(C16:N16) -> 857 | C16: =VLOOKUP($A$16,Tabla!$X$6:$AK$203,Tabla!Z$3,0) -> 15 | D16: =VLOOKUP($A$16,Tabla!$X$6:$AK$203,Tabla!AA$3,0) -> 16 | E16: =VLOOKUP($A$16,Tabla!$X$6:$AK$203,Tabla!AB$3,0) -> 10 | F16: =VLOOKUP($A$16,Tabla!$X$6:$AK$203,Tabla!AC$3,0) -> 34 | G16: =VLOOKUP($A$16,Tabla!$X$6:$AK$203,Tabla!AD$3,0) -> 45 | H16: =VLOOKUP($A$16,Tabla!$X$6:$AK$203,Tabla!AE$3,0) -> 41 | I16: =VLOOKUP($A$16,Tabla!$X$6:$AK$203,Tabla!AF$3,0) -> 34 | J16: =VLOOKUP($A$16,Tabla!$X$6:$AK$203,Tabla!AG$3,0) -> 34 | K16: =VLOOKUP($A$16,Tabla!$X$6:$AK$203,Tabla!AH$3,0) -> 43 | L16: =VLOOKUP($A$16,Tabla!$X$6:$AK$203,Tabla!AI$3,0) -> 225 | M16: =VLOOKUP($A$16,Tabla!$X$6:$AK$203,Tabla!AJ$3,0) -> 219 | N16: =VLOOKUP($A$16,Tabla!$X$6:$AK$203,Tabla!AK$3,0) -> 141

Sheet DATA2023
A1: SUBREGION | B1: PROVINCIA | C1: UBIGUEO_ESTABLECIMIENTO | D1: IPRESS | E1: CATEGORIA | F1: DISTRITO | G1: CLAS | H1: MICRORED | I1: RED | J1: EJECUTORA | K1: RENAES | L1: Mes | M1: SO1 | N1: SO2 | O1: SO3 | P1: SO4 | Q1: SO5 | R1: SO6 | S1: SO7 | T1: SO8 | U1: SO9 | V1: SO10 | W1: SO11 | X1: SO12 | Y1: SO13 | Z1: SO14 | AA1: SO15 | AB1: SO16 | AC1: SO17 | AD1: SO18 | AE1: SO19 | AF1: SO20 | AG1: SO21 | AH1: SO22 | AI1: SO23 | AJ1: SO24 | AK1: SO25 | AL1: SO26 | AM1: SO27 | AN1: SO28 | AO1: SO29 | AP1: SO30 | AQ1: SO31 | AR1: SO32 | AS1: SO33 | AT1: SO40 | AU1: SO41 | AV1: SO42 | AW1: SO43 | AX1: SO44 | AY1: SO45 | AZ1: SO46 | BA1: SO47 | BB1: SO48 | BC1: SO49 | BD1: SO50 | BE1: SO51 | BF1: SO52 | BG1: SO53 | BH1: SO54 | BI1: SO55 | BJ1: SO56 | BK1: SO57 | BL1: SO58 | BM1: SO59 | BN1: SO60 | BO1: SO64 | BP1: SO65 | BQ1: SO66 | BR1: SO67 | BS1: SO68 | BT1: SO69 | BU1: SO76 | BV1: SO77 | BW1: SO78 | BX1: SO79 | BY1: SO80 | BZ1: SO81 | CA1: SO82 | CB1: SO83 | CC1: SO84 | CD1: SO85 | CE1: SO86 | CF1: SO87 | CG1: SO88 | CH1: SO89 | CI1: SO90 | CJ1: SO101 | CK1: SO102 | CL1: SO103 | CM1: SO106 | CN1: SO107 | CO1: SO108 | CP1: SO109 | CQ1: SO110 | CR1: SO111 | CS1: SO112 | CT1: SO113 | CU1: SO114 | CV1: SO115 | CW1: SO116 | CX1: SO117 | CY1: SO118 | CZ1: SO119 | DA1: SO120 | DB1: SO121 | DC1: SO122 | DD1: SO123 | DE1: SO124 | DF1: SO125 | DG1: SO126 | DH1: SO127 | DI1: SO128 | DJ1: SO129 | DK1: SO130 | DL1: SO131 | DM1: SO132 | DN1: SO133 | DO1: SO134 | DP1: SO135 | DQ1: SO136 | DR1: SO137 | DS1: SO138 | DT1: SO139 | DU1: SO140 | DV1: SO141 | DW1: SO142 | DX1: SO143 | DY1: SO144 | DZ1: SO145 | EA1: SO146 | EB1: SO147 | EC1: SO169 | ED1: SO170 | EE1: SO171 | EF1: SO148 | EG1: SO149 | EH1: SO150 | EI1: SO151 | EJ1: SO152 | EK1: SO153 | EL1: SO154 | EM1: SO155 | EN1: SO156 | EO1: SO157 | EP1: SO158 | EQ1: SO159 | ER1: SO160 | ES1: SO161 | ET1: SO162 | EU1: SO166 | EV1: SO167 | EW1: SO168 | EX1: SO175 | EY1: SO176 | EZ1: SO177 | FA1: SO178 | FB1: SO179 | FC1: SO180 | FD1: SO181 | FE1: SO182 | FF1: SO183 | FG1: SO184 | FH1: SO185 | FI1: SO186 | FJ1: SO187 | FK1: SO188 | FL1: SO189 | FM1: SO190 | FN1: SO191 | FO1: SO192 | FP1: SO193 | FQ1: SO194 | FR1: SO195
A2: LUCIANO CASTILLO COLONNA | B2: SULLANA | C2: 200601 | D2: HOSPITAL DE APOYO II - 2, SULLANA | E2: II-2 | F2: SULLANA | G2: CLAS HOSPITALES SULLANA | H2: NO PERTENECE A NINGUNA MICRORED | I2: NO PERTENECE A NINGUNA RED | J2: HOSPITAL DE APOYO III SULLANA | K2: 1910 | L2: 2 | M2: 24 | N2: 5 | O2: 1 | P2: 0 | Q2: 0 | R2: 0 | S2: 0 | T2: 0 | U2: 0 | V2: 0 | W2: 0 | X2: 0 | Y2: 0 | Z2: 0 | AA2: 0 | AB2: 0 | AC2: 0 | AD2: 0 | AE2: 0 | AF2: 0 | AG2: 0 | AH2: 0 | AI2: 0 | AJ2: 0 | AK2: 0 | AL2: 1 | AM2: 1 | AN2: 0 | AO2: 0 | AP2: 0 | AQ2: 0 | AR2: 1 | AS2: 1 | AT2: 0 | AU2: 0 | AV2: 0 | AW2: 0 | AX2: 0 | AY2: 0 | AZ2: 0 | BA2: 0 | BB2: 0 | BC2: 0 | BD2: 0 | BE2: 0 | BF2: 0 | BG2: 0 | BH2: 0 | BI2: 1 | BJ2: 2 | BK2: 3 | BL2: 3 | BM2: 3 | BN2: 27 | BO2: 0 | BP2: 1 | BQ2: 23 | BR2: 0 | BS2: 1 | BT2: 16 | BU2: 0 | BV2: 2 | BW2: 26 | BX2: 0 | BY2: 0 | BZ2: 0 | CA2: 0 | CB2: 0 | CC2: 0 | CD2: 0 | CE2: 0 | CF2: 0 | CG2: 2 | CH2: 10 | CI2: 64 | CJ2: 3 | CK2: 25 | CL2: 0 | CM2: 1 | CN2: 0 | CO2: 1 | CP2: 0 | CQ2: 0 | CR2: 0 | CS2: 0 | CT2: 0 | CU2: 0 | CV2: 0 | CW2: 0 | CX2: 0 | CY2: 0 | CZ2: 0 | DA2: 0 | DB2: 0 | DC2: 0 | DD2: 0 | DE2: 0 | DF2: 0 | DG2: 0 | DH2: 0 | DI2: 0 | DJ2: 0 | DK2: 0 | DL2: 0 | DM2: 0 | DN2: 0 | DO2: 0 | DP2: 0 | DQ2: 0 | DR2: 0 | DS2: 0 | DT2: 0 | DU2: 0 | DV2: 0 | DW2: 0 | DX2: 0 | DY2: 0 | DZ2: 0 | EA2: 0 | EB2: 0 | EC2: 0 | ED2: 0 | EE2: 0 | EF2: 0 | EG2: 3 | EH2: 5 | EI2: 0 | EJ2: 0 | EK2: 0 | EL2: 0 | EM2: 0 | EN2: 0 | EO2: 0 | EP2: 0 | EQ2: 0 | ER2: 0 | ES2: 0 | ET2: 0 | EU2: 0 | EV2: 0 | EW2: 0 | EX2: 0 | EY2: 0 | EZ2: 0 | FA2: 0 | FB2: 0 | FC2: 0 | FD2: 0 | FE2: 0 | FF2: 0 | FG2: 0 | FH2: 0 | FI2: 0 | FJ2: 1 | FK2: 0 | FL2: 0 | FM2: 0 | FN2: 0 | FO2: 0 | FP2: 2 | FQ2: 1 | FR2: 1
A3: LUCIANO CASTILLO COLONNA | B3: SULLANA | C3: 200601 | D3: HOSPITAL DE APOYO II - 2, SULLANA | E3: II-2 | F3: SULLANA | G3: CLAS HOSPITALES SULLANA | H3: NO PERTENECE A NINGUNA MICRORED | I3: NO PERTENECE A NINGUNA RED | J3: HOSPITAL DE APOYO III SULLANA | K3: 1910 | L3: 5 | M3: 28 | N3: 9 | O3: 1 | P3: 0 | Q3: 0 | R3: 0 | S3: 1 | T3: 0 | U3: 0 | V3: 0 | W3: 0 | X3: 0 | Y3: 0 | Z3: 0 | AA3: 0 | AB3: 0 | AC3: 0 | AD3: 0 | AE3: 0 | AF3: 0 | AG3: 1 | AH3: 0 | AI3: 0 | AJ3: 0 | AK3: 0 | AL3: 3 | AM3: 16 | AN3: 0 | AO3: 3 | AP3: 5 | AQ3: 0 | AR3: 0 | AS3: 8 | AT3: 0 | AU3: 1 | AV3: 6 | AW3: 0 | AX3: 1 | AY3: 6 | AZ3: 0 | BA3: 0 | BB3: 0 | BC3: 0 | BD3: 0 | BE3: 1 | BF3: 0 | BG3: 0 | BH3: 0 | BI3: 7 | BJ3: 21 | BK3: 12 | BL3: 10 | BM3: 29 | BN3: 93 | BO3: 3 | BP3: 28 | BQ3: 79 | BR3: 0 | BS3: 5 | BT3: 23 | BU3: 4 | BV3: 16 | BW3: 57 | BX3: 0 | BY3: 0 | BZ3: 0 | CA3: 0 | CB3: 0 | CC3: 0 | CD3: 0 | CE3: 10 | CF3: 0 | CG3: 19 | CH3: 85 | CI3: 182 | CJ3: 17 | CK3: 71 | CL3: 0 | CM3: 1 | CN3: 1 | CO3: 0 | CP3: 0 | CQ3: 0 | CR3: 0 | CS3: 0 | CT3: 0 | CU3: 0 | CV3: 0 | CW3: 0 | CX3: 0 | CY3: 0 | CZ3: 0 | DA3: 0 | DB3: 0 | DC3: 0 | DD3: 0 | DE3: 0 | DF3: 0 | DG3: 0 | DH3: 0 | DI3: 0 | DJ3: 0 | DK3: 0 | DL3: 0 | DM3: 0 | DN3: 0 | DO3: 11 | DP3: 6 | DQ3: 0 | DR3: 10 | DS3: 8 | DT3: 0 | DU3: 0 | DV3: 0 | DW3: 0 | DX3: 0 | DY3: 0 | DZ3: 0 | EA3: 0 | EB3: 0 | EC3: 0 | ED3: 0 | EE3: 0 | EF3: 0 | EG3: 23 | EH3: 16 | EI3: 0 | EJ3: 0 | EK3: 0 | EL3: 0 | EM3: 0 | EN3: 0 | EO3: 0 | EP3: 0 | EQ3: 0 | ER3: 0 | ES3: 0 | ET3: 0 | EU3: 0 | EV3: 0 | EW3: 0 | EX3: 0 | EY3: 0 | EZ3: 0 | FA3: 0 | FB3: 0 | FC3: 0 | FD3: 0 | FE3: 0 | FF3: 0 | FG3: 0 | FH3: 0 | FI3: 0 | FJ3: 1 | FK3: 0 | FL3: 0 | FM3: 1 | FN3: 0 | FO3: 0 | FP3: 5 | FQ3: 6 | FR3: 0
A4: LUCIANO CASTILLO COLONNA | B4: SULLANA | C4: 200601 | D4: HOSPITAL DE APOYO II - 2, SULLANA | E4: II-2 | F4: SULLANA | G4: CLAS HOSPITALES SULLANA | H4: NO PERTENECE A NINGUNA MICRORED | I4: NO PERTENECE A NINGUNA RED | J4: HOSPITAL DE APOYO III SULLANA | K4: 1910 | L4: 11 | M4: 50 | N4: 11 | O4: 3 | P4: 0 | Q4: 0 | R4: 0 | S4: 3 | T4: 0 | U4: 1 | V4: 1 | W4: 0 | X4: 0 | Y4: 0 | Z4: 0 | AA4: 0 | AB4: 0 | AC4: 0 | AD4: 0 | AE4: 0 | AF4: 1 | AG4: 0 | AH4: 1 | AI4: 0 | AJ4: 0 | AK4: 0 | AL4: 2 | AM4: 23 | AN4: 0 | AO4: 0 | AP4: 5 | AQ4: 0 | AR4: 0 | AS4: 6 | AT4: 0 | AU4: 2 | AV4: 15 | AW4: 0 | AX4: 2 | AY4: 16 | AZ4: 0 | BA4: 0 | BB4: 1 | BC4: 0 | BD4: 0 | BE4: 0 | BF4: 0 | BG4: 0 | BH4: 0 | BI4: 12 | BJ4: 6 | BK4: 9 | BL4: 20 | BM4: 48 | BN4: 105 | BO4: 2 | BP4: 10 | BQ4: 48 | BR4: 1 | BS4: 6 | BT4: 18 | BU4: 4 | BV4: 16 | BW4: 59 | BX4: 0 | BY4: 0 | BZ4: 0 | CA4: 0 | CB4: 0 | CC4: 0 | CD4: 0 | CE4: 2 | CF4: 0 | CG4: 25 | CH4: 59 | CI4: 154 | CJ4: 16 | CK4: 65 | CL4: 1 | CM4: 1 | CN4: 0 | CO4: 4 | CP4: 0 | CQ4: 0 | CR4: 0 | CS4: 0 | CT4: 3 | CU4: 8 | CV4: 0 | CW4: 0 | CX4: 0 | CY4: 0 | CZ4: 2 | DA4: 8 | DB4: 0 | DC4: 4 | DD4: 5 | DE4: 0 | DF4: 0 | DG4: 0 | DH4: 0 | DI4: 0 | DJ4: 0 | DK4: 0 | DL4: 0 | DM4: 0 | DN4: 0 | DO4: 1 | DP4: 0 | DQ4: 0 | DR4: 3 | DS4: 3 | DT4: 0 | DU4: 0 | DV4: 0 | DW4: 0 | DX4: 0 | DY4: 0 | DZ4: 0 | EA4: 0 | EB4: 0 | EC4: 0 | ED4: 0 | EE4: 0 | EF4: 1 | EG4: 5 | EH4: 4 | EI4: 0 | EJ4: 0 | EK4: 0 | EL4: 0 | EM4: 0 | EN4: 0 | EO4: 0 | EP4: 0 | EQ4: 0 | ER4: 0 | ES4: 1 | ET4: 0 | EU4: 0 | EV4: 0 | EW4: 0 | EX4: 0 | EY4: 0 | EZ4: 0 | FA4: 0 | FB4: 0 | FC4: 0 | FD4: 0 | FE4: 0 | FF4: 0 | FG4: 0 | FH4: 0 | FI4: 0 | FJ4: 0 | FK4: 1 | FL4: 0 | FM4: 0 | FN4: 0 | FO4: 0 | FP4: 11 | FQ4: 2 | FR4: 4
A5: LUCIANO CASTILLO COLONNA | B5: SULLANA | C5: 200601 | D5: HOSPITAL DE APOYO II - 2, SULLANA | E5: II-2 | F5: SULLANA | G5: CLAS HOSPITALES SULLANA | H5: NO PERTENECE A NINGUNA MICRORED | I5: NO PERTENECE A NINGUNA RED | J5: HOSPITAL DE APOYO III SULLANA | K5: 1910 | L5: 8 | M5: 78 | N5: 15 | O5: 2 | P5: 0 | Q5: 0 | R5: 0 | S5: 0 | T5: 0 | U5: 0 | V5: 0 | W5: 0 | X5: 0 | Y5: 0 | Z5: 0 | AA5: 0 | AB5: 0 | AC5: 0 | AD5: 0 | AE5: 1 | AF5: 1 | AG5: 0 | AH5: 1 | AI5: 1 | AJ5: 1 | AK5: 0 | AL5: 1 | AM5: 20 | AN5: 0 | AO5: 1 | AP5: 6 | AQ5: 0 | AR5: 0 | AS5: 7 | AT5: 0 | AU5: 0 | AV5: 10 | AW5: 0 | AX5: 1 | AY5: 6 | AZ5: 0 | BA5: 0 | BB5: 1 | BC5: 0 | BD5: 0 | BE5: 1 | BF5: 0 | BG5: 0 | BH5: 0 | BI5: 14 | BJ5: 8 | BK5: 16 | BL5: 13 | BM5: 33 | BN5: 90 | BO5: 8 | BP5: 13 | BQ5: 63 | BR5: 0 | BS5: 4 | BT5: 19 | BU5: 8 | BV5: 15 | BW5: 54 | BX5: 0 | BY5: 0 | BZ5: 0 | CA5: 0 | CB5: 0 | CC5: 0 | CD5: 1 | CE5: 3 | CF5: 0 | CG5: 21 | CH5: 59 | CI5: 152 | CJ5: 10 | CK5: 49 | CL5: 0 | CM5: 0 | CN5: 0 | CO5: 0 | CP5: 0 | CQ5: 0 | CR5: 0 | CS5: 0 | CT5: 0 | CU5: 0 | CV5: 0 | CW5: 0 | CX5: 0 | CY5: 0 | CZ5: 0 | DA5: 0 | DB5: 0 | DC5: 0 | DD5: 0 | DE5: 0 | DF5: 0 | DG5: 0 | DH5: 0 | DI5: 0 | DJ5: 0 | DK5: 0 | DL5: 0 | DM5: 0 | DN5: 0 | DO5: 0 | DP5: 0 | DQ5: 0 | DR5: 4 | DS5: 2 | DT5: 0 | DU5: 0 | DV5: 0 | DW5: 0 | DX5: 0 | DY5: 0 | DZ5: 0 | EA5: 0 | EB5: 0 | EC5: 0 | ED5: 0 | EE5: 0 | EF5: 1 | EG5: 16 | EH5: 13 | EI5: 0 | EJ5: 0 | EK5: 0 | EL5: 0 | EM5: 0 | EN5: 0 | EO5: 0 | EP5: 0 | EQ5: 0 | ER5: 0 | ES5: 1 | ET5: 0 | EU5: 0 | EV5: 0 | EW5: 0 | EX5: 0 | EY5: 0 | EZ5: 0 | FA5: 0 | FB5: 0 | FC5: 0 | FD5: 0 | FE5: 0 | FF5: 0 | FG5: 0 | FH5: 0 | FI5: 0 | FJ5: 1 | FK5: 0 | FL5: 1 | FM5: 0 | FN5: 0 | FO5: 1 | FP5: 1 | FQ5: 0 | FR5: 2
A6: LUCIANO CASTILLO COLONNA | B6: SULLANA | C6: 200601 | D6: HOSPITAL DE APOYO II - 2, SULLANA | E6: II-2 | F6: SULLANA | G6: CLAS HOSPITALES SULLANA | H6: NO PERTENECE A NINGUNA MICRORED | I6: NO PERTENECE A NINGUNA RED | J6: HOSPITAL DE APOYO III SULLANA | K6: 1910 | L6: 4 | M6: 5 | N6: 0 | O6: 0 | P6: 0 | Q6: 0 | R6: 0 | S6: 1 | T6: 0 | U6: 0 | V6: 0 | W6: 0 | X6: 0 | Y6: 0 | Z6: 0 | AA6: 0 | AB6: 0 | AC6: 0 | AD6: 0 | AE6: 0 | AF6: 0 | AG6: 0 | AH6: 0 | AI6: 0 | AJ6: 0 | AK6: 2 | AL6: 1 | AM6: 11 | AN6: 2 | AO6: 0 | AP6: 0 | AQ6: 0 | AR6: 0 | AS6: 2 | AT6: 0 | AU6: 0 | AV6: 5 | AW6: 0 | AX6: 1 | AY6: 6 | AZ6: 0 | BA6: 0 | BB6: 0 | BC6: 0 | BD6: 0 | BE6: 0 | BF6: 0 | BG6: 0 | BH6: 0 | BI6: 6 | BJ6: 10 | BK6: 8 | BL6: 11 | BM6: 17 | BN6: 49 | BO6: 7 | BP6: 9 | BQ6: 50 | BR6: 4 | BS6: 7 | BT6: 21 | BU6: 6 | BV6: 16 | BW6: 61 | BX6: 0 | BY6: 0 | BZ6: 0 | CA6: 0 | CB6: 0 | CC6: 0 | CD6: 3 | CE6: 2 | CF6: 0 | CG6: 14 | CH6: 56 | CI6: 152 | CJ6: 13 | CK6: 60 | CL6: 0 | CM6: 0 | CN6: 0 | CO6: 0 | CP6: 0 | CQ6: 0 | CR6: 0 | CS6: 0 | CT6: 0 | CU6: 0 | CV6: 0 | CW6: 0 | CX6: 0 | CY6: 0 | CZ6: 0 | DA6: 0 | DB6: 0 | DC6: 0 | DD6: 0 | DE6: 0 | DF6: 0 | DG6: 0 | DH6: 0 | DI6: 0 | DJ6: 0 | DK6: 0 | DL6: 0 | DM6: 0 | DN6: 0 | DO6: 4 | DP6: 1 | DQ6: 0 | DR6: 0 | DS6: 2 | DT6: 0 | DU6: 0 | DV6: 0 | DW6: 0 | DX6: 0 | DY6: 0 | DZ6: 0 | EA6: 0 | EB6: 0 | EC6: 0 | ED6: 0 | EE6: 0 | EF6: 0 | EG6: 3 | EH6: 4 | EI6: 0 | EJ6: 0 | EK6: 0 | EL6: 0 | EM6: 0 | EN6: 0 | EO6: 0 | EP6: 0 | EQ6: 0 | ER6: 0 | ES6: 0 | ET6: 0 | EU6: 0 | EV6: 0 | EW6: 0 | EX6: 0 | EY6: 0 | EZ6: 0 | FA6: 0 | FB6: 0 | FC6: 0 | FD6: 0 | FE6: 0 | FF6: 0 | FG6: 0 | FH6: 0 | FI6: 0 | FJ6: 1 | FK6: 0 | FL6: 0 | FM6: 0 | FN6: 0 | FO6: 0 | FP6: 2 | FQ6: 0 | FR6: 1
A7: LUCIANO CASTILLO COLONNA | B7: SULLANA | C7: 200601 | D7: HOSPITAL DE APOYO II - 2, SULLANA | E7: II-2 | F7: SULLANA | G7: CLAS HOSPITALES SULLANA | H7: NO PERTENECE A NINGUNA MICRORED | I7: NO PERTENECE A NINGUNA RED | J7: HOSPITAL DE APOYO III SULLANA | K7: 1910 | L7: 9 | M7: 61 | N7: 11 | O7: 2 | P7: 0 | Q7: 0 | R7: 0 | S7: 0 | T7: 0 | U7: 0 | V7: 0 | W7: 0 | X7: 0 | Y7: 0 | Z7: 0 | AA7: 0 | AB7: 0 | AC7: 0 | AD7: 0 | AE7: 2 | AF7: 2 | AG7: 1 | AH7: 0 | AI7: 1 | AJ7: 1 | AK7: 8 | AL7: 10 | AM7: 66 | AN7: 5 | AO7: 2 | AP7: 26 | AQ7: 3 | AR7: 8 | AS7: 37 | AT7: 3 | AU7: 1 | AV7: 16 | AW7: 2 | AX7: 1 | AY7: 6 | AZ7: 2 | BA7: 1 | BB7: 7 | BC7: 0 | BD7: 0 | BE7: 0 | BF7: 0 | BG7: 0 | BH7: 0 | BI7: 5 | BJ7: 7 | BK7: 5 | BL7: 12 | BM7: 30 | BN7: 76 | BO7: 5 | BP7: 13 | BQ7: 35 | BR7: 3 | BS7: 2 | BT7: 15 | BU7: 3 | BV7: 9 | BW7: 27 | BX7: 0 | BY7: 0 | BZ7: 0 | CA7: 0 | CB7: 0 | CC7: 0 | CD7: 2 | CE7: 5 | CF7: 0 | CG7: 84 | CH7: 47 | CI7: 97 | CJ7: 8 | CK7: 32 | CL7: 0 | CM7: 0 | CN7: 0 | CO7: 2 | CP7: 0 | CQ7: 0 | CR7: 0 | CS7: 0 | CT7: 0 | CU7: 0 | CV7: 0 | CW7: 0 | CX7: 0 | CY7: 0 | CZ7: 0 | DA7: 0 | DB7: 0 | DC7: 0 | DD7: 0 | DE7: 0 | DF7: 0 | DG7: 0 | DH7: 0 | DI7: 0 | DJ7: 0 | DK7: 0 | DL7: 0 | DM7: 0 | DN7: 0 | DO7: 3 | DP7: 2 | DQ7: 0 | DR7: 2 | DS7: 1 | DT7: 0 | DU7: 0 | DV7: 0 | DW7: 0 | DX7: 0 | DY7: 0 | DZ7: 0 | EA7: 0 | EB7: 0 | EC7: 0 | ED7: 0 | EE7: 0 | EF7: 0 | EG7: 4 | EH7: 4 | EI7: 0 | EJ7: 0 | EK7: 0 | EL7: 0 | EM7: 0 | EN7: 0 | EO7: 0 | EP7: 0 | EQ7: 0 | ER7: 0 | ES7: 0 | ET7: 0 | EU7: 0 | EV7: 0 | EW7: 0 | EX7: 0 | EY7: 0 | EZ7: 0 | FA7: 0 | FB7: 0 | FC7: 0 | FD7: 0 | FE7: 0 | FF7: 0 | FG7: 0 | FH7: 0 | FI7: 0 | FJ7: 2 | FK7: 0 | FL7: 1 | FM7: 2 | FN7: 0 | FO7: 1 | FP7: 5 | FQ7: 3 | FR7: 1
A8: LUCIANO CASTILLO COLONNA | B8: SULLANA | C8: 200601 | D8: HOSPITAL DE APOYO II - 2, SULLANA | E8: II-2 | F8: SULLANA | G8: CLAS HOSPITALES SULLANA | H8: NO PERTENECE A NINGUNA MICRORED | I8: NO PERTENECE A NINGUNA RED | J8: HOSPITAL DE APOYO III SULLANA | K8: 1910 | L8: 12 | M8: 44 | N8: 7 | O8: 2 | P8: 0 | Q8: 0 | R8: 0 | S8: 0 | T8: 0 | U8: 0 | V8: 0 | W8: 0 | X8: 0 | Y8: 0 | Z8: 0 | AA8: 0 | AB8: 0 | AC8: 0 | AD8: 0 | AE8: 3 | AF8: 1 | AG8: 0 | AH8: 2 | AI8: 0 | AJ8: 1 | AK8: 0 | AL8: 1 | AM8: 22 | AN8: 0 | AO8: 0 | AP8: 8 | AQ8: 0 | AR8: 0 | AS8: 6 | AT8: 0 | AU8: 0 | AV8: 5 | AW8: 0 | AX8: 0 | AY8: 1 | AZ8: 0 | BA8: 0 | BB8: 2 | BC8: 0 | BD8: 0 | BE8: 0 | BF8: 0 | BG8: 0 | BH8: 0 | BI8: 9 | BJ8: 26 | BK8: 72 | BL8: 6 | BM8: 14 | BN8: 32 | BO8: 14 | BP8: 21 | BQ8: 80 | BR8: 1 | BS8: 4 | BT8: 24 | BU8: 3 | BV8: 11 | BW8: 67 | BX8: 0 | BY8: 0 | BZ8: 0 | CA8: 0 | CB8: 0 | CC8: 0 | CD8: 0 | CE8: 0 | CF8: 0 | CG8: 23 | CH8: 48 | CI8: 146 | CJ8: 9 | CK8: 61 | CL8: 0 | CM8: 0 | CN8: 0 | CO8: 3 | CP8: 0 | CQ8: 0 | CR8: 0 | CS8: 0 | CT8: 2 | CU8: 12 | CV8: 0 | CW8: 0 | CX8: 0 | CY8: 0 | CZ8: 2 | DA8: 12 | DB8: 0 | DC8: 0 | DD8: 11 | DE8: 0 | DF8: 0 | DG8: 0 | DH8: 0 | DI8: 0 | DJ8: 1 | DK8: 0 | DL8: 0 | DM8: 0 | DN8: 0 | DO8: 0 | DP8: 1 | DQ8: 0 | DR8: 1 | DS8: 0 | DT8: 0 | DU8: 0 | DV8: 0 | DW8: 0 | DX8: 0 | DY8: 0 | DZ8: 0 | EA8: 0 | EB8: 0 | EC8: 0 | ED8: 0 | EE8: 0 | EF8: 1 | EG8: 3 | EH8: 7 | EI8: 0 | EJ8: 0 | EK8: 0 | EL8: 0 | EM8: 0 | EN8: 0 | EO8: 0 | EP8: 0 | EQ8: 0 | ER8: 0 | ES8: 0 | ET8: 0 | EU8: 0 | EV8: 0 | EW8: 0 | EX8: 0 | EY8: 0 | EZ8: 0 | FA8: 0 | FB8: 0 | FC8: 0 | FD8: 0 | FE8: 0 | FF8: 0 | FG8: 0 | FH8: 0 | FI8: 0 | FJ8: 1 | FK8: 0 | FL8: 0 | FM8: 2 | FN8: 0 | FO8: 0 | FP8: 9 | FQ8: 0 | FR8: 0
A9: LUCIANO CASTILLO COLONNA | B9: SULLANA | C9: 200601 | D9: HOSPITAL DE APOYO II - 2, SULLANA | E9: II-2 | F9: SULLANA | G9: CLAS HOSPITALES SULLANA | H9: NO PERTENECE A NINGUNA MICRORED | I9: NO PERTENECE A NINGUNA RED | J9: HOSPITAL DE APOYO III SULLANA | K9: 1910 | L9: 6 | M9: 62 | N9: 4 | O9: 2 | P9: 0 | Q9: 0 | R9: 0 | S9: 3 | T9: 2 | U9: 0 | V9: 0 | W9: 0 | X9: 0 | Y9: 0 | Z9: 0 | AA9: 0 | AB9: 0 | AC9: 0 | AD9: 0 | AE9: 0 | AF9: 0 | AG9: 0 | AH9: 0 | AI9: 0 | AJ9: 0 | AK9: 0 | AL9: 3 | AM9: 14 | AN9: 0 | AO9: 2 | AP9: 4 | AQ9: 0 | AR9: 0 | AS9: 2 | AT9: 0 | AU9: 5 | AV9: 5 | AW9: 0 | AX9: 1 | AY9: 3 | AZ9: 0 | BA9: 0 | BB9: 1 | BC9: 0 | BD9: 0 | BE9: 0 | BF9: 0 | BG9: 0 | BH9: 0 | BI9: 4 | BJ9: 5 | BK9: 6 | BL9: 7 | BM9: 27 | BN9: 72 | BO9: 4 | BP9: 10 | BQ9: 53 | BR9: 0 | BS9: 0 | BT9: 16 | BU9: 4 | BV9: 12 | BW9: 66 | BX9: 0 | BY9: 0 | BZ9: 0 | CA9: 0 | CB9: 0 | CC9: 0 | CD9: 0 | CE9: 3 | CF9: 0 | CG9: 17 | CH9: 57 | CI9: 169 | CJ9: 8 | CK9: 51 | CL9: 0 | CM9: 0 | CN9: 2 | CO9: 0 | CP9: 0 | CQ9: 0 | CR9: 0 | CS9: 0 | CT9: 0 | CU9: 0 | CV9: 0 | CW9: 0 | CX9: 0 | CY9: 0 | CZ9: 0 | DA9: 0 | DB9: 0 | DC9: 0 | DD9: 0 | DE9: 0 | DF9: 0 | DG9: 0 | DH9: 0 | DI9: 0 | DJ9: 0 | DK9: 0 | DL9: 0 | DM9: 0 | DN9: 0 | DO9: 4 | DP9: 2 | DQ9: 0 | DR9: 7 | DS9: 5 | DT9: 0 | DU9: 0 | DV9: 0 | DW9: 0 | DX9: 0 | DY9: 0 | DZ9: 0 | EA9: 0 | EB9: 0 | EC9: 0 | ED9: 0 | EE9: 0 | EF9: 1 | EG9: 17 | EH9: 20 | EI9: 0 | EJ9: 0 | EK9: 0 | EL9: 0 | EM9: 0 | EN9: 0 | EO9: 0 | EP9: 0 | EQ9: 0 | ER9: 0 | ES9: 0 | ET9: 0 | EU9: 0 | EV9: 0 | EW9: 0 | EX9: 0 | EY9: 0 | EZ9: 0 | FA9: 0 | FB9: 0 | FC9: 0 | FD9: 0 | FE9: 0 | FF9: 0 | FG9: 1 | FH9: 0 | FI9: 0 | FJ9: 1 | FK9: 0 | FL9: 0 | FM9: 1 | FN9: 0 | FO9: 0 | FP9: 5 | FQ9: 0 | FR9: 2
A10: LUCIANO CASTILLO COLONNA | B10: SULLANA | C10: 200601 | D10: HOSPITAL DE APOYO II - 2, SULLANA | E10: II-2 | F10: SULLANA | G10: CLAS HOSPITALES SULLANA | H10: NO PERTENECE A NINGUNA MICRORED | I10: NO PERTENECE A NINGUNA RED | J10: HOSPITAL DE APOYO III SULLANA | K10: 1910 | L10: 3 | M10: 80 | N10: 2 | O10: 2 | P10: 0 | Q10: 0 | R10: 0 | S10: 0 | T10: 0 | U10: 0 | V10: 0 | W10: 0 | X10: 0 | Y10: 0 | Z10: 0 | AA10: 0 | AB10: 0 | AC10: 0 | AD10: 0 | AE10: 0 | AF10: 1 | AG10: 2 | AH10: 0 | AI10: 0 | AJ10: 0 | AK10: 0 | AL10: 3 | AM10: 18 | AN10: 0 | AO10: 0 | AP10: 1 | AQ10: 1 | AR10: 1 | AS10: 8 | AT10: 0 | AU10: 0 | AV10: 1 | AW10: 0 | AX10: 0 | AY10: 2 | AZ10: 0 | BA10: 0 | BB10: 5 | BC10: 0 | BD10: 0 | BE10: 0 | BF10: 0 | BG10: 0 | BH10: 0 | BI10: 13 | BJ10: 12 | BK10: 13 | BL10: 16 | BM10: 21 | BN10: 66 | BO10: 11 | BP10: 16 | BQ10: 70 | BR10: 2 | BS10: 5 | BT10: 24 | BU10: 10 | BV10: 18 | BW10: 73 | BX10: 0 | BY10: 0 | BZ10: 0 | CA10: 0 | CB10: 0 | CC10: 0 | CD10: 0 | CE10: 1 | CF10: 0 | CG10: 21 | CH10: 63 | CI10: 168 | CJ10: 16 | CK10: 81 | CL10: 0 | CM10: 2 | CN10: 0 | CO10: 0 | CP10: 0 | CQ10: 0 | CR10: 0 | CS10: 0 | CT10: 0 | CU10: 0 | CV10: 0 | CW10: 0 | CX10: 0 | CY10: 0 | CZ10: 0 | DA10: 0 | DB10: 0 | DC10: 0 | DD10: 0 | DE10: 0 | DF10: 0 | DG10: 0 | DH10: 0 | DI10: 0 | DJ10: 0 | DK10: 0 | DL10: 0 | DM10: 0 | DN10: 0 | DO10: 14 | DP10: 3 | DQ10: 0 | DR10: 1 | DS10: 3 | DT10: 0 | DU10: 0 | DV10: 0 | DW10: 0 | DX10: 0 | DY10: 0 | DZ10: 0 | EA10: 0 | EB10: 0 | EC10: 0 | ED10: 0 | EE10: 0 | EF10: 0 | EG10: 17 | EH10: 9 | EI10: 0 | EJ10: 0 | EK10: 0 | EL10: 0 | EM10: 0 | EN10: 0 | EO10: 0 | EP10: 0 | EQ10: 0 | ER10: 0 | ES10: 0 | ET10: 1 | EU10: 0 | EV10: 0 | EW10: 0 | EX10: 0 | EY10: 0 | EZ10: 0 | FA10: 0 | FB10: 0 | FC10: 0 | FD10: 0 | FE10: 0 | FF10: 0 | FG10: 0 | FH10: 0 | FI10: 0 | FJ10: 0 | FK10: 0 | FL10: 0 | FM10: 0 | FN10: 0 | FO10: 0 | FP10: 5 | FQ10: 1 | FR10: 3
A11: LUCIANO CASTILLO COLONNA | B11: SULLANA | C11: 200601 | D11: HOSPITAL DE APOYO II - 2, SULLANA | E11: II-2 | F11: SULLANA | G11: CLAS HOSPITALES SULLANA | H11: NO PERTENECE A NINGUNA MICRORED | I11: NO PERTENECE A NINGUNA RED | J11: HOSPITAL DE APOYO III SULLANA | K11: 1910 | L11: 7 | M11: 56 | N11: 2 | O11: 2 | P11: 0 | Q11: 0 | R11: 0 | S11: 0 | T11: 0 | U11: 0 | V11: 0 | W11: 0 | X11: 0 | Y11: 0 | Z11: 0 | AA11: 0 | AB11: 0 | AC11: 0 | AD11: 0 | AE11: 0 | AF11: 0 | AG11: 2 | AH11: 0 | AI11: 0 | AJ11: 0 | AK11: 0 | AL11: 0 | AM11: 9 | AN11: 0 | AO11: 0 | AP11: 2 | AQ11: 0 | AR11: 0 | AS11: 4 | AT11: 0 | AU11: 0 | AV11: 2 | AW11: 0 | AX11: 0 | AY11: 4 | AZ11: 0 | BA11: 0 | BB11: 0 | BC11: 0 | BD11: 0 | BE11: 0 | BF11: 0 | BG11: 0 | BH11: 0 | BI11: 11 | BJ11: 11 | BK11: 5 | BL11: 17 | BM11: 36 | BN11: 127 | BO11: 7 | BP11: 20 | BQ11: 80 | BR11: 3 | BS11: 1 | BT11: 20 | BU11: 4 | BV11: 12 | BW11: 60 | BX11: 0 | BY11: 0 | BZ11: 0 | CA11: 0 | CB11: 0 | CC11: 0 | CD11: 0 | CE11: 4 | CF11: 0 | CG11: 9 | CH11: 69 | CI11: 186 | CJ11: 11 | CK11: 68 | CL11: 1 | CM11: 1 | CN11: 0 | CO11: 0 | CP11: 0 | CQ11: 0 | CR11: 0 | CS11: 0 | CT11: 0 | CU11: 0 | CV11: 0 | CW11: 0 | CX11: 0 | CY11: 0 | CZ11: 0 | DA11: 0 | DB11: 0 | DC11: 0 | DD11: 0 | DE11: 0 | DF11: 0 | DG11: 0 | DH11: 0 | DI11: 0 | DJ11: 0 | DK11: 0 | DL11: 0 | DM11: 0 | DN11: 0 | DO11: 3 | DP11: 1 | DQ11: 0 | DR11: 12 | DS11: 15 | DT11: 0 | DU11: 0 | DV11: 0 | DW11: 0 | DX11: 0 | DY11: 0 | DZ11: 0 | EA11: 0 | EB11: 0 | EC11: 0 | ED11: 0 | EE11: 0 | EF11: 0 | EG11: 17 | EH11: 13 | EI11: 0 | EJ11: 0 | EK11: 0 | EL11: 0 | EM11: 0 | EN11: 0 | EO11: 0 | EP11: 0 | EQ11: 0 | ER11: 0 | ES11: 2 | ET11: 0 | EU11: 0 | EV11: 0 | EW11: 0 | EX11: 0 | EY11: 0 | EZ11: 0 | FA11: 0 | FB11: 0 | FC11: 0 | FD11: 0 | FE11: 0 | FF11: 0 | FG11: 1 | FH11: 0 | FI11: 0 | FJ11: 0 | FK11: 0 | FL11: 1 | FM11: 1 | FN11: 0 | FO11: 0 | FP11: 0 | FQ11: 0 | FR11: 1
A12: LUCIANO CASTILLO COLONNA | B12: SULLANA | C12: 200601 | D12: HOSPITAL DE APOYO II - 2, SULLANA | E12: II-2 | F12: SULLANA | G12: CLAS HOSPITALES SULLANA | H12: NO PERTENECE A NINGUNA MICRORED | I12: NO PERTENECE A NINGUNA RED | J12: HOSPITAL DE APOYO III SULLANA | K12: 1910 | L12: 10 | M12: 57 | N12: 10 | O12: 1 | P12: 0 | Q12: 0 | R12: 0 | S12: 9 | T12: 1 | U12: 0 | V12: 0 | W12: 1 | X12: 0 | Y12: 0 | Z12: 0 | AA12: 0 | AB12: 0 | AC12: 0 | AD12: 0 | AE12: 4 | AF12: 3 | AG12: 1 | AH12: 1 | AI12: 0 | AJ12: 1 | AK12: 0 | AL12: 1 | AM12: 25 | AN12: 0 | AO12: 1 | AP12: 16 | AQ12: 0 | AR12: 0 | AS12: 4 | AT12: 0 | AU12: 0 | AV12: 2 | AW12: 0 | AX12: 0 | AY12: 0 | AZ12: 0 | BA12: 0 | BB12: 1 | BC12: 0 | BD12: 0 | BE12: 0 | BF12: 0 | BG12: 0 | BH12: 0 | BI12: 10 | BJ12: 27 | BK12: 57 | BL12: 7 | BM12: 14 | BN12: 42 | BO12: 11 | BP12: 27 | BQ12: 88 | BR12: 1 | BS12: 8 | BT12: 43 | BU12: 4 | BV12: 17 | BW12: 87 | BX12: 0 | BY12: 0 | BZ12: 0 | CA12: 0 | CB12: 0 | CC12: 0 | CD12: 0 | CE12: 0 | CF12: 0 | CG12: 26 | CH12: 60 | CI12: 162 | CJ12: 8 | CK12: 58 | CL12: 0 | CM12: 0 | CN12: 2 | CO12: 0 | CP12: 0 | CQ12: 0 | CR12: 0 | CS12: 0 | CT12: 0 | CU12: 0 | CV12: 0 | CW12: 0 | CX12: 0 | CY12: 0 | CZ12: 0 | DA12: 0 | DB12: 0 | DC12: 0 | DD12: 0 | DE12: 0 | DF12: 0 | DG12: 0 | DH12: 0 | DI12: 0 | DJ12: 0 | DK12: 0 | DL12: 0 | DM12: 0 | DN12: 0 | DO12: 0 | DP12: 0 | DQ12: 0 | DR12: 1 | DS12: 0 | DT12: 0 | DU12: 0 | DV12: 0 | DW12: 0 | DX12: 0 | DY12: 0 | DZ12: 0 | EA12: 0 | EB12: 0 | EC12: 0 | ED12: 0 | EE12: 0 | EF12: 0 | EG12: 5 | EH12: 3 | EI12: 0 | EJ12: 0 | EK12: 0 | EL12: 0 | EM12: 0 | EN12: 0 | EO12: 0 | EP12: 0 | EQ12: 0 | ER12: 0 | ES12: 1 | ET12: 0 | EU12: 0 | EV12: 0 | EW12: 0 | EX12: 0 | EY12: 0 | EZ12: 0 | FA12: 0 | FB12: 0 | FC12: 0 | FD12: 0 | FE12: 0 | FF12: 0 | FG12: 0 | FH12: 0 | FI12: 0 | FJ12: 0 | FK12: 1 | FL12: 0 | FM12: 2 | FN12: 0 | FO12: 0 | FP12: 13 | FQ12: 5 | FR12: 2
A13: LUCIANO CASTILLO COLONNA | B13: SULLANA | C13: 200601 | D13: HOSPITAL DE APOYO II - 2, SULLANA | E13: II-2 | F13: SULLANA | G13: CLAS HOSPITALES SULLANA | H13: NO PERTENECE A NINGUNA MICRORED | I13: NO PERTENECE A NINGUNA RED | J13: HOSPITAL DE APOYO III SULLANA | K13: 1910 | L13: 1 | M13: 75 | N13: 15 | O13: 1 | P13: 0 | Q13: 0 | R13: 0 | S13: 0 | T13: 0 | U13: 0 | V13: 0 | W13: 0 | X13: 0 | Y13: 0 | Z13: 0 | AA13: 0 | AB13: 0 | AC13: 0 | AD13: 0 | AE13: 0 | AF13: 0 | AG13: 0 | AH13: 0 | AI13: 0 | AJ13: 0 | AK13: 0 | AL13: 1 | AM13: 5 | AN13: 0 | AO13: 0 | AP13: 0 | AQ13: 0 | AR13: 0 | AS13: 0 | AT13: 0 | AU13: 1 | AV13: 1 | AW13: 0 | AX13: 1 | AY13: 1 | AZ13: 0 | BA13: 0 | BB13: 0 | BC13: 0 | BD13: 0 | BE13: 0 | BF13: 0 | BG13: 0 | BH13: 0 | BI13: 3 | BJ13: 4 | BK13: 2 | BL13: 4 | BM13: 7 | BN13: 15 | BO13: 6 | BP13: 9 | BQ13: 46 | BR13: 0 | BS13: 5 | BT13: 11 | BU13: 4 | BV13: 12 | BW13: 46 | BX13: 0 | BY13: 0 | BZ13: 0 | CA13: 0 | CB13: 0 | CC13: 0 | CD13: 0 | CE13: 1 | CF13: 0 | CG13: 6 | CH13: 38 | CI13: 98 | CJ13: 6 | CK13: 45 | CL13: 0 | CM13: 0 | CN13: 0 | CO13: 0 | CP13: 0 | CQ13: 0 | CR13: 0 | CS13: 0 | CT13: 0 | CU13: 0 | CV13: 0 | CW13: 0 | CX13: 0 | CY13: 0 | CZ13: 0 | DA13: 0 | DB13: 0 | DC13: 0 | DD13: 0 | DE13: 0 | DF13: 0 | DG13: 0 | DH13: 0 | DI13: 0 | DJ13: 0 | DK13: 0 | DL13: 0 | DM13: 0 | DN13: 0 | DO13: 0 | DP13: 0 | DQ13: 0 | DR13: 0 | DS13: 0 | DT13: 0 | DU13: 0 | DV13: 0 | DW13: 0 | DX13: 0 | DY13: 0 | DZ13: 0 | EA13: 0 | EB13: 0 | EC13: 0 | ED13: 0 | EE13: 0 | EF13: 1 | EG13: 14 | EH13: 14 | EI13: 0 | EJ13: 0 | EK13: 0 | EL13: 0 | EM13: 0 | EN13: 0 | EO13: 0 | EP13: 0 | EQ13: 0 | ER13: 0 | ES13: 1 | ET13: 0 | EU13: 0 | EV13: 0 | EW13: 0 | EX13: 0 | EY13: 0 | EZ13: 0 | FA13: 0 | FB13: 0 | FC13: 0 | FD13: 0 | FE13: 0 | FF13: 0 | FG13: 1 | FH13: 0 | FI13: 0 | FJ13: 0 | FK13: 0 | FL13: 0 | FM13: 1 | FN13: 0 | FO13: 0 | FP13: 2 | FQ13: 0 | FR13: 1
A14: LUCIANO CASTILLO COLONNA | B14: AYABACA | C14: 200201 | D14: AYABACA | E14: I-4 | F14: AYABACA | G14: NINGUN CLAS | H14: AYABACA | I14: AYABACA | J14: SALUD LUCIANO CASTILLO COLONNA | K14: 1911 | L14: 10 | M14: 0 | N14: 0 | O14: 0 | P14: 0 | Q14: 0 | R14: 0 | S14: 0 | T14: 0 | U14: 0 | V14: 0 | W14: 0 | X14: 0 | Y14: 0 | Z14: 0 | AA14: 0 | AB14: 0 | AC14: 0 | AD14: 0 | AE14: 1 | AF14: 0 | AG14: 1 | AH14: 0 | AI14: 0 | AJ14: 0 | AK14: 0 | AL14: 1 | AM14: 13 | AN14: 2 | AO14: 3 | AP14: 13 | AQ14: 0 | AR14: 0 | AS14: 0 | AT14: 0 | AU14: 0 | AV14: 0 | AW14: 0 | AX14: 0 | AY14: 0 | AZ14: 0 | BA14: 0 | BB14: 0 | BC14: 0 | BD14: 0 | BE14: 0 | BF14: 0 | BG14: 0 | BH14: 0 | BI14: 0 | BJ14: 0 | BK14: 0 | BL14: 0 | BM14: 0 | BN14: 1 | BO14: 0 | BP14: 0 | BQ14: 0 | BR14: 0 | BS14: 0 | BT14: 0 | BU14: 0 | BV14: 0 | BW14: 0 | BX14: 0 | BY14: 0 | BZ14: 0 | CA14: 0 | CB14: 0 | CC14: 0 | CD14: 0 | CE14: 0 | CF14: 0 | CG14: 14 | CH14: 0 | CI14: 1 | CJ14: 0 | CK14: 0 | CL14: 0 | CM14: 0 | CN14: 0 | CO14: 0 | CP14: 0 | CQ14: 0 | CR14: 0 | CS14: 0 | CT14: 0 | CU14: 0 | CV14: 0 | CW14: 0 | CX14: 0 | CY14: 0 | CZ14: 0 | DA14: 0 | DB14: 0 | DC14: 0 | DD14: 0 | DE14: 0 | DF14: 0 | DG14: 0 | DH14: 0 | DI14: 0 | DJ14: 0 | DK14: 0 | DL14: 0 | DM14: 0 | DN14: 0 | DO14: 0 | DP14: 0 | DQ14: 0 | DR14: 0 | DS14: 0 | DT14: 0 | DU14: 0 | DV14: 0 | DW14: 0 | DX14: 0 | DY14: 0 | DZ14: 0 | EA14: 0 | EB14: 0 | EC14: 0 | ED14: 0 | EE14: 0 | EF14: 0 | EG14: 0 | EH14: 0 | EI14: 0 | EJ14: 0 | EK14: 0 | EL14: 0 | EM14: 0 | EN14: 0 | EO14: 0 | EP14: 0 | EQ14: 0 | ER14: 0 | ES14: 0 | ET14: 0 | EU14: 0 | EV14: 0 | EW14: 0 | EX14: 0 | EY14: 0 | EZ14: 0 | FA14: 0 | FB14: 0 | FC14: 0 | FD14: 0 | FE14: 0 | FF14: 0 | FG14: 0 | FH14: 0 | FI14: 0 | FJ14: 0 | FK14: 0 | FL14: 0 | FM14: 0 | FN14: 0 | FO14: 0 | FP14: 3 | FQ14: 0 | FR14: 0
A15: LUCIANO CASTILLO COLONNA | B15: AYABACA | C15: 200201 | D15: AYABACA | E15: I-4 | F15: AYABACA | G15: NINGUN CLAS | H15: AYABACA | I15: AYABACA | J15: SALUD LUCIANO CASTILLO COLONNA | K15: 1911 | L15: 8 | M15: 0 | N15: 0 | O15: 0 | P15: 0 | Q15: 0 | R15: 0 | S15: 0 | T15: 0 | U15: 0 | V15: 0 | W15: 0 | X15: 0 | Y15: 0 | Z15: 0 | AA15: 0 | AB15: 0 | AC15: 0 | AD15: 0 | AE15: 0 | AF15: 0 | AG15: 1 | AH15: 0 | AI15: 0 | AJ15: 0 | AK15: 4 | AL15: 9 | AM15: 16 | AN15: 4 | AO15: 9 | AP15: 17 | AQ15: 0 | AR15: 0 | AS15: 0 | AT15: 0 | AU15: 0 | AV15: 0 | AW15: 0 | AX15: 0 | AY15: 0 | AZ15: 0 | BA15: 0 | BB15: 0 | BC15: 0 | BD15: 0 | BE15: 0 | BF15: 0 | BG15: 0 | BH15: 0 | BI15: 0 | BJ15: 0 | BK15: 0 | BL15: 0 | BM15: 0 | BN15: 0 | BO15: 0 | BP15: 0 | BQ15: 0 | BR15: 0 | BS15: 0 | BT15: 0 | BU15: 0 | BV15: 0 | BW15: 1 | BX15: 0 | BY15: 0 | BZ15: 0 | CA15: 0 | CB15: 0 | CC15: 0 | CD15: 0 | CE15: 0 | CF15: 0 | CG15: 29 | CH15: 0 | CI15: 0 | CJ15: 0 | CK15: 0 | CL15: 0 | CM15: 0 | CN15: 0 | CO15: 0 | CP15: 0 | CQ15: 0 | CR15: 0 | CS15: 0 | CT15: 0 | CU15: 0 | CV15: 0 | CW15: 0 | CX15: 0 | CY15: 0 | CZ15: 0 | DA15: 0 | DB15: 0 | DC15: 0 | DD15: 0 | DE15: 0 | DF15: 0 | DG15: 0 | DH15: 0 | DI15: 0 | DJ15: 0 | DK15: 0 | DL15: 0 | DM15: 0 | DN15: 0 | DO15: 0 | DP15: 0 | DQ15: 0 | DR15: 0 | DS15: 0 | DT15: 0 | DU15: 0 | DV15: 0 | DW15: 0 | DX15: 0 | DY15: 0 | DZ15: 0 | EA15: 0 | EB15: 0 | EC15: 0 | ED15: 0 | EE15: 0 | EF15: 0 | EG15: 0 | EH15: 0 | EI15: 0 | EJ15: 0 | EK15: 0 | EL15: 0 | EM15: 0 | EN15: 0 | EO15: 0 | EP15: 0 | EQ15: 0 | ER15: 0 | ES15: 0 | ET15: 0 | EU15: 0 | EV15: 0 | EW15: 0 | EX15: 0 | EY15: 0 | EZ15: 0 | FA15: 0 | FB15: 0 | FC15: 0 | FD15: 0 | FE15: 0 | FF15: 0 | FG15: 0 | FH15: 0 | FI15: 0 | FJ15: 0 | FK15: 0 | FL15: 0 | FM15: 0 | FN15: 0 | FO15: 0 | FP15: 1 | FQ15: 0 | FR15: 0
A16: LUCIANO CASTILLO COLONNA | B16: AYABACA | C16: 200201 | D16: AYABACA | E16: I-4 | F16: AYABACA | G16: NINGUN CLAS | H16: AYABACA | I16: AYABACA | J16: SALUD LUCIANO CASTILLO COLONNA | K16: 1911 | L16: 5 | M16: 0 | N16: 0 | O16: 0 | P16: 0 | Q16: 0 | R16: 0 | S16: 0 | T16: 0 | U16: 0 | V16: 0 | W16: 0 | X16: 0 | Y16: 0 | Z16: 0 | AA16: 0 | AB16: 0 | AC16: 0 | AD16: 0 | AE16: 0 | AF16: 0 | AG16: 1 | AH16: 0 | AI16: 0 | AJ16: 0 | AK16: 2 | AL16: 4 | AM16: 17 | AN16: 2 | AO16: 4 | AP16: 17 | AQ16: 0 | AR16: 0 | AS16: 0 | AT16: 0 | AU16: 0 | AV16: 0 | AW16: 0 | AX16: 0 | AY16: 0 | AZ16: 0 | BA16: 0 | BB16: 0 | BC16: 0 | BD16: 0 | BE16: 0 | BF16: 0 | BG16: 0 | BH16: 0 | BI16: 8 | BJ16: 2 | BK16: 0 | BL16: 2 | BM16: 5 | BN16: 16 | BO16: 0 | BP16: 0 | BQ16: 0 | BR16: 0 | BS16: 0 | BT16: 0 | BU16: 0 | BV16: 0 | BW16: 0 | BX16: 0 | BY16: 0 | BZ16: 0 | CA16: 0 | CB16: 0 | CC16: 0 | CD16: 0 | CE16: 0 | CF16: 0 | CG16: 23 | CH16: 7 | CI16: 16 | CJ16: 0 | CK16: 0 | CL16: 0 | CM16: 0 | CN16: 0 | CO16: 0 | CP16: 0 | CQ16: 0 | CR16: 0 | CS16: 0 | CT16: 0 | CU16: 0 | CV16: 0 | CW16: 0 | CX16: 0 | CY16: 0 | CZ16: 0 | DA16: 0 | DB16: 0 | DC16: 0 | DD16: 0 | DE16: 0 | DF16: 0 | DG16: 0 | DH16: 0 | DI16: 0 | DJ16: 0 | DK16: 0 | DL16: 0 | DM16: 0 | DN16: 0 | DO16: 0 | DP16: 0 | DQ16: 0 | DR16: 0 | DS16: 0 | DT16: 0 | DU16: 0 | DV16: 0 | DW16: 0 | DX16: 0 | DY16: 0 | DZ16: 0 | EA16: 0 | EB16: 0 | EC16: 0 | ED16: 0 | EE16: 0 | EF16: 0 | EG16: 1 | EH16: 0 | EI16: 0 | EJ16: 0 | EK16: 0 | EL16: 0 | EM16: 0 | EN16: 0 | EO16: 0 | EP16: 0 | EQ16: 0 | ER16: 0 | ES16: 0 | ET16: 0 | EU16: 0 | EV16: 0 | EW16: 0 | EX16: 0 | EY16: 0 | EZ16: 0 | FA16: 0 | FB16: 0 | FC16: 0 | FD16: 0 | FE16: 0 | FF16: 0 | FG16: 0 | FH16: 0 | FI16: 0 | FJ16: 1 | FK16: 0 | FL16: 0 | FM16: 0 | FN16: 0 | FO16: 0 | FP16: 0 | FQ16: 0 | FR16: 0
A17: LUCIANO CASTILLO COLONNA | B17: AYABACA | C17: 200201 | D17: AYABACA | E17: I-4 | F17: AYABACA | G17: NINGUN CLAS | H17: AYABACA | I17: AYABACA | J17: SALUD LUCIANO CASTILLO COLONNA | K17: 1911 | L17: 4 | M17: 0 | N17: 0 | O17: 0 | P17: 0 | Q17: 0 | R17: 0 | S17: 0 | T17: 0 | U17: 0 | V17: 0 | W17: 0 | X17: 0 | Y17: 0 | Z17: 0 | AA17: 0 | AB17: 0 | AC17: 0 | AD17: 0 | AE17: 1 | AF17: 1 | AG17: 1 | AH17: 0 | AI17: 0 | AJ17: 0 | AK17: 7 | AL17: 11 | AM17: 30 | AN17: 7 | AO17: 12 | AP17: 31 | AQ17: 0 | AR17: 0 | AS17: 0 | AT17: 0 | AU17: 0 | AV17: 0 | AW17: 0 | AX17: 0 | AY17: 0 | AZ17: 0 | BA17: 0 | BB17: 0 | BC17: 0 | BD17: 0 | BE17: 0 | BF17: 0 | BG17: 0 | BH17: 0 | BI17: 0 | BJ17: 0 | BK17: 0 | BL17: 0 | BM17: 0 | BN17: 0 | BO17: 0 | BP17: 0 | BQ17: 0 | BR17: 0 | BS17: 0 | BT17: 0 | BU17: 0 | BV17: 0 | BW17: 0 | BX17: 0 | BY17: 0 | BZ17: 0 | CA17: 0 | CB17: 0 | CC17: 0 | CD17: 0 | CE17: 0 | CF17: 0 | CG17: 48 | CH17: 0 | CI17: 0 | CJ17: 0 | CK17: 0 | CL17: 0 | CM17: 0 | CN17: 0 | CO17: 0 | CP17: 0 | CQ17: 0 | CR17: 0 | CS17: 0 | CT17: 0 | CU17: 0 | CV17: 0 | CW17: 0 | CX17: 0 | CY17: 0 | CZ17: 0 | DA17: 0 | DB17: 0 | DC17: 0 | DD17: 0 | DE17: 0 | DF17: 0 | DG17: 0 | DH17: 0 | DI17: 0 | DJ17: 0 | DK17: 0 | DL17: 0 | DM17: 0 | DN17: 0 | DO17: 0 | DP17: 0 | DQ17: 0 | DR17: 0 | DS17: 0 | DT17: 0 | DU17: 0 | DV17: 0 | DW17: 0 | DX17: 0 | DY17: 0 | DZ17: 0 | EA17: 0 | EB17: 0 | EC17: 0 | ED17: 0 | EE17: 0 | EF17: 0 | EG17: 0 | EH17: 0 | EI17: 0 | EJ17: 0 | EK17: 0 | EL17: 0 | EM17: 0 | EN17: 0 | EO17: 0 | EP17: 0 | EQ17: 0 | ER17: 0 | ES17: 0 | ET17: 0 | EU17: 0 | EV17: 0 | EW17: 0 | EX17: 0 | EY17: 0 | EZ17: 0 | FA17: 0 | FB17: 0 | FC17: 0 | FD17: 0 | FE17: 0 | FF17: 0 | FG17: 0 | FH17: 0 | FI17: 0 | FJ17: 0 | FK17: 0 | FL17: 0 | FM17: 0 | FN17: 0 | FO17: 0 | FP17: 0 | FQ17: 0 | FR17: 0
A18: LUCIANO CASTILLO COLONNA | B18: AYABACA | C18: 200201 | D18: AYABACA | E18: I-4 | F18: AYABACA | G18: NINGUN CLAS | H18: AYABACA | I18: AYABACA | J18: SALUD LUCIANO CASTILLO COLONNA | K18: 1911 | L18: 2 | M18: 0 | N18: 0 | O18: 0 | P18: 0 | Q18: 0 | R18: 0 | S18: 0 | T18: 0 | U18: 0 | V18: 0 | W18: 0 | X18: 0 | Y18: 0 | Z18: 0 | AA18: 0 | AB18: 0 | AC18: 0 | AD18: 0 | AE18: 0 | AF18: 0 | AG18: 0 | AH18: 0 | AI18: 0 | AJ18: 0 | AK18: 9 | AL18: 8 | AM18: 6 | AN18: 9 | AO18: 8 | AP18: 6 | AQ18: 0 | AR18: 0 | AS18: 0 | AT18: 0 | AU18: 0 | AV18: 0 | AW18: 0 | AX18: 0 | AY18: 0 | AZ18: 0 | BA18: 0 | BB18: 0 | BC18: 0 | BD18: 0 | BE18: 0 | BF18: 0 | BG18: 0 | BH18: 0 | BI18: 0 | BJ18: 0 | BK18: 0 | BL18: 0 | BM18: 0 | BN18: 0 | BO18: 0 | BP18: 0 | BQ18: 0 | BR18: 0 | BS18: 0 | BT18: 0 | BU18: 0 | BV18: 0 | BW18: 0 | BX18: 0 | BY18: 0 | BZ18: 0 | CA18: 0 | CB18: 0 | CC18: 0 | CD18: 0 | CE18: 0 | CF18: 0 | CG18: 23 | CH18: 0 | CI18: 0 | CJ18: 0 | CK18: 0 | CL18: 0 | CM18: 0 | CN18: 0 | CO18: 0 | CP18: 0 | CQ18: 0 | CR18: 0 | CS18: 0 | CT18: 0 | CU18: 0 | CV18: 0 | CW18: 0 | CX18: 0 | CY18: 0 | CZ18: 0 | DA18: 0 | DB18: 0 | DC18: 0 | DD18: 0 | DE18: 0 | DF18: 0 | DG18: 0 | DH18: 0 | DI18: 0 | DJ18: 0 | DK18: 0 | DL18: 0 | DM18: 0 | DN18: 0 | DO18: 0 | DP18: 0 | DQ18: 0 | DR18: 0 | DS18: 0 | DT18: 0 | DU18: 0 | DV18: 0 | DW18: 0 | DX18: 0 | DY18: 0 | DZ18: 0 | EA18: 0 | EB18: 0 | EC18: 0 | ED18: 0 | EE18: 0 | EF18: 0 | EG18: 0 | EH18: 0 | EI18: 0 | EJ18: 0 | EK18: 0 | EL18: 0 | EM18: 0 | EN18: 0 | EO18: 0 | EP18: 0 | EQ18: 0 | ER18: 0 | ES18: 0 | ET18: 0 | EU18: 0 | EV18: 0 | EW18: 0 | EX18: 0 | EY18: 0 | EZ18: 0 | FA18: 0 | FB18: 0 | FC18: 0 | FD18: 0 | FE18: 0 | FF18: 0 | FG18: 0 | FH18: 0 | FI18: 0 | FJ18: 0 | FK18: 0 | FL18: 0 | FM18: 0 | FN18: 0 | FO18: 0 | FP18: 0 | FQ18: 0 | FR18: 0
A19: LUCIANO CASTILLO COLONNA | B19: AYABACA | C19: 200201 | D19: AYABACA | E19: I-4 | F19: AYABACA | G19: NINGUN CLAS | H19: AYABACA | I19: AYABACA | J19: SALUD LUCIANO CASTILLO COLONNA | K19: 1911 | L19: 1 | M19: 0 | N19: 0 | O19: 0 | P19: 0 | Q19: 0 | R19: 0 | S19: 0 | T19: 0 | U19: 0 | V19: 0 | W19: 0 | X19: 0 | Y19: 0 | Z19: 0 | AA19: 0 | AB19: 0 | AC19: 0 | AD19: 0 | AE19: 0 | AF19: 0 | AG19: 0 | AH19: 0 | AI19: 0 | AJ19: 0 | AK19: 22 | AL19: 24 | AM19: 25 | AN19: 22 | AO19: 24 | AP19: 25 | AQ19: 0 | AR19: 0 | AS19: 0 | AT19: 0 | AU19: 0 | AV19: 0 | AW19: 0 | AX19: 0 | AY19: 0 | AZ19: 0 | BA19: 0 | BB19: 0 | BC19: 0 | BD19: 0 | BE19: 0 | BF19: 0 | BG19: 0 | BH19: 0 | BI19: 0 | BJ19: 0 | BK19: 0 | BL19: 0 | BM19: 0 | BN19: 0 | BO19: 0 | BP19: 0 | BQ19: 0 | BR19: 0 | BS19: 0 | BT19: 0 | BU19: 0 | BV19: 0 | BW19: 0 | BX19: 0 | BY19: 0 | BZ19: 0 | CA19: 0 | CB19: 0 | CC19: 0 | CD19: 0 | CE19: 0 | CF19: 0 | CG19: 71 | CH19: 0 | CI19: 0 | CJ19: 0 | CK19: 0 | CL19: 0 | CM19: 0 | CN19: 0 | CO19: 0 | CP19: 0 | CQ19: 0 | CR19: 0 | CS19: 0 | CT19: 0 | CU19: 0 | CV19: 0 | CW19: 0 | CX19: 0 | CY19: 0 | CZ19: 0 | DA19: 0 | DB19: 0 | DC19: 0 | DD19: 0 | DE19: 0 | DF19: 0 | DG19: 0 | DH19: 0 | DI19: 0 | DJ19: 0 | DK19: 0 | DL19: 0 | DM19: 0 | DN19: 0 | DO19: 0 | DP19: 0 | DQ19: 0 | DR19: 0 | DS19: 0 | DT19: 0 | DU19: 0 | DV19: 0 | DW19: 0 | DX19: 0 | DY19: 0 | DZ19: 0 | EA19: 0 | EB19: 0 | EC19: 0 | ED19: 0 | EE19: 0 | EF19: 0 | EG19: 0 | EH19: 0 | EI19: 0 | EJ19: 0 | EK19: 0 | EL19: 0 | EM19: 0 | EN19: 0 | EO19: 0 | EP19: 0 | EQ19: 0 | ER19: 0 | ES19: 0 | ET19: 0 | EU19: 0 | EV19: 0 | EW19: 0 | EX19: 0 | EY19: 0 | EZ19: 0 | FA19: 0 | FB19: 0 | FC19: 0 | FD19: 0 | FE19: 0 | FF19: 0 | FG19: 0 | FH19: 0 | FI19: 0 | FJ19: 0 | FK19: 0 | FL19: 0 | FM19: 0 | FN19: 0 | FO19: 0 | FP19: 0 | FQ19: 0 | FR19: 0
A20: LUCIANO CASTILLO COLONNA | B20: AYABACA | C20: 200201 | D20: AYABACA | E20: I-4 | F20: AYABACA | G20: NINGUN CLAS | H20: AYABACA | I20: AYABACA | J20: SALUD LUCIANO CASTILLO COLONNA | K20: 1911 | L20: 7 | M20: 0 | N20: 0 | O20: 0 | P20: 0 | Q20: 0 | R20: 0 | S20: 0 | T20: 0 | U20: 0 | V20: 0 | W20: 0 | X20: 0 | Y20: 0 | Z20: 0 | AA20: 0 | AB20: 0 | AC20: 0 | AD20: 0 | AE20: 3 | AF20: 0 | AG20: 0 | AH20: 0 | AI20: 0 | AJ20: 0 | AK20: 20 | AL20: 12 | AM20: 18 | AN20: 20 | AO20: 13 | AP20: 19 | AQ20: 0 | AR20: 0 | AS20: 0 | AT20: 0 | AU20: 0 | AV20: 0 | AW20: 0 | AX20: 0 | AY20: 0 | AZ20: 0 | BA20: 0 | BB20: 0 | BC20: 0 | BD20: 0 | BE20: 0 | BF20: 0 | BG20: 0 | BH20: 0 | BI20: 0 | BJ20: 0 | BK20: 0 | BL20: 0 | BM20: 0 | BN20: 0 | BO20: 0 | BP20: 0 | BQ20: 0 | BR20: 0 | BS20: 0 | BT20: 0 | BU20: 0 | BV20: 0 | BW20: 0 | BX20: 0 | BY20: 0 | BZ20: 0 | CA20: 0 | CB20: 0 | CC20: 0 | CD20: 0 | CE20: 0 | CF20: 0 | CG20: 50 | CH20: 0 | CI20: 0 | CJ20: 0 | CK20: 0 | CL20: 0 | CM20: 0 | CN20: 0 | CO20: 0 | CP20: 0 | CQ20: 0 | CR20: 0 | CS20: 0 | CT20: 0 | CU20: 0 | CV20: 0 | CW20: 0 | CX20: 0 | CY20: 0 | CZ20: 0 | DA20: 0 | DB20: 0 | DC20: 0 | DD20: 0 | DE20: 0 | DF20: 0 | DG20: 0 | DH20: 0 | DI20: 0 | DJ20: 0 | DK20: 0 | DL20: 0 | DM20: 0 | DN20: 0 | DO20: 0 | DP20: 0 | DQ20: 0 | DR20: 0 | DS20: 0 | DT20: 0 | DU20: 0 | DV20: 0 | DW20: 0 | DX20: 0 | DY20: 0 | DZ20: 0 | EA20: 0 | EB20: 0 | EC20: 0 | ED20: 0 | EE20: 0 | EF20: 0 | EG20: 0 | EH20: 0 | EI20: 0 | EJ20: 0 | EK20: 0 | EL20: 0 | EM20: 0 | EN20: 0 | EO20: 0 | EP20: 0 | EQ20: 0 | ER20: 0 | ES20: 0 | ET20: 0 | EU20: 0 | EV20: 0 | EW20: 0 | EX20: 0 | EY20: 0 | EZ20: 0 | FA20: 0 | FB20: 0 | FC20: 0 | FD20: 0 | FE20: 0 | FF20: 0 | FG20: 0 | FH20: 0 | FI20: 0 | FJ20: 0 | FK20: 0 | FL20: 0 | FM20: 0 | FN20: 0 | FO20: 0 | FP20: 0 | FQ20: 0 | FR20: 0
A21: LUCIANO CASTILLO COLONNA | B21: AYABACA | C21: 200201 | D21: AYABACA | E21: I-4 | F21: AYABACA | G21: NINGUN CLAS | H21: AYABACA | I21: AYABACA | J21: SALUD LUCIANO CASTILLO COLONNA | K21: 1911 | L21: 9 | M21: 0 | N21: 0 | O21: 0 | P21: 0 | Q21: 0 | R21: 0 | S21: 0 | T21: 0 | U21: 0 | V21: 0 | W21: 0 | X21: 0 | Y21: 0 | Z21: 0 | AA21: 0 | AB21: 0 | AC21: 0 | AD21: 0 | AE21: 0 | AF21: 3 | AG21: 1 | AH21: 0 | AI21: 0 | AJ21: 0 | AK21: 8 | AL21: 6 | AM21: 24 | AN21: 10 | AO21: 7 | AP21: 24 | AQ21: 0 | AR21: 0 | AS21: 0 | AT21: 0 | AU21: 0 | AV21: 0 | AW21: 0 | AX21: 0 | AY21: 0 | AZ21: 0 | BA21: 0 | BB21: 0 | BC21: 0 | BD21: 0 | BE21: 0 | BF21: 0 | BG21: 0 | BH21: 0 | BI21: 0 | BJ21: 0 | BK21: 0 | BL21: 0 | BM21: 0 | BN21: 0 | BO21: 0 | BP21: 0 | BQ21: 0 | BR21: 0 | BS21: 0 | BT21: 0 | BU21: 0 | BV21: 0 | BW21: 0 | BX21: 0 | BY21: 0 | BZ21: 0 | CA21: 0 | CB21: 0 | CC21: 0 | CD21: 0 | CE21: 0 | CF21: 0 | CG21: 38 | CH21: 0 | CI21: 0 | CJ21: 0 | CK21: 0 | CL21: 0 | CM21: 0 | CN21: 0 | CO21: 0 | CP21: 0 | CQ21: 0 | CR21: 0 | CS21: 0 | CT21: 0 | CU21: 0 | CV21: 0 | CW21: 0 | CX21: 0 | CY21: 0 | CZ21: 0 | DA21: 0 | DB21: 0 | DC21: 0 | DD21: 0 | DE21: 0 | DF21: 0 | DG21: 0 | DH21: 0 | DI21: 0 | DJ21: 0 | DK21: 0 | DL21: 0 | DM21: 0 | DN21: 0 | DO21: 0 | DP21: 0 | DQ21: 0 | DR21: 0 | DS21: 0 | DT21: 0 | DU21: 0 | DV21: 0 | DW21: 0 | DX21: 0 | DY21: 0 | DZ21: 0 | EA21: 0 | EB21: 0 | EC21: 0 | ED21: 0 | EE21: 0 | EF21: 0 | EG21: 0 | EH21: 0 | EI21: 0 | EJ21: 0 | EK21: 0 | EL21: 0 | EM21: 0 | EN21: 0 | EO21: 0 | EP21: 0 | EQ21: 0 | ER21: 0 | ES21: 0 | ET21: 0 | EU21: 0 | EV21: 0 | EW21: 0 | EX21: 0 | EY21: 0 | EZ21: 0 | FA21: 0 | FB21: 0 | FC21: 0 | FD21: 0 | FE21: 0 | FF21: 0 | FG21: 0 | FH21: 0 | FI21: 0 | FJ21: 0 | FK21: 0 | FL21: 0 | FM21: 1 | FN21: 0 | FO21: 0 | FP21: 2 | FQ21: 1 | FR21: 0
A22: LUCIANO CASTILLO COLONNA | B22: AYABACA | C22: 200201 | D22: AYABACA | E22: I-4 | F22: AYABACA | G22: NINGUN CLAS | H22: AYABACA | I22: AYABACA | J22: SALUD LUCIANO CASTILLO COLONNA | K22: 1911 | L22: 12 | M22: 0 | N22: 0 | O22: 0 | P22: 0 | Q22: 0 | R22: 0 | S22: 0 | T22: 0 | U22: 0 | V22: 0 | W22: 0 | X22: 0 | Y22: 0 | Z22: 0 | AA22: 0 | AB22: 0 | AC22: 0 | AD22: 0 | AE22: 0 | AF22: 2 | AG22: 6 | AH22: 0 | AI22: 0 | AJ22: 0 | AK22: 2 | AL22: 1 | AM22: 13 | AN22: 4 | AO22: 6 | AP22: 14 | AQ22: 0 | AR22: 0 | AS22: 0 | AT22: 0 | AU22: 0 | AV22: 0 | AW22: 0 | AX22: 0 | AY22: 0 | AZ22: 0 | BA22: 0 | BB22: 0 | BC22: 0 | BD22: 0 | BE22: 0 | BF22: 0 | BG22: 0 | BH22: 0 | BI22: 0 | BJ22: 0 | BK22: 0 | BL22: 0 | BM22: 0 | BN22: 0 | BO22: 0 | BP22: 0 | BQ22: 0 | BR22: 0 | BS22: 0 | BT22: 0 | BU22: 0 | BV22: 0 | BW22: 0 | BX22: 0 | BY22: 0 | BZ22: 0 | CA22: 0 | CB22: 0 | CC22: 0 | CD22: 0 | CE22: 0 | CF22: 0 | CG22: 16 | CH22: 0 | CI22: 0 | CJ22: 0 | CK22: 0 | CL22: 0 | CM22: 0 | CN22: 0 | CO22: 0 | CP22: 0 | CQ22: 0 | CR22: 0 | CS22: 0 | CT22: 0 | CU22: 0 | CV22: 0 | CW22: 0 | CX22: 0 | CY22: 0 | CZ22: 0 | DA22: 0 | DB22: 0 | DC22: 0 | DD22: 0 | DE22: 0 | DF22: 0 | DG22: 0 | DH22: 0 | DI22: 0 | DJ22: 0 | DK22: 0 | DL22: 0 | DM22: 0 | DN22: 0 | DO22: 0 | DP22: 0 | DQ22: 0 | DR22: 0 | DS22: 0 | DT22: 0 | DU22: 0 | DV22: 0 | DW22: 0 | DX22: 0 | DY22: 0 | DZ22: 0 | EA22: 0 | EB22: 0 | EC22: 0 | ED22: 0 | EE22: 0 | EF22: 0 | EG22: 0 | EH22: 0 | EI22: 0 | EJ22: 0 | EK22: 0 | EL22: 0 | EM22: 0 | EN22: 0 | EO22: 0 | EP22: 0 | EQ22: 0 | ER22: 0 | ES22: 0 | ET22: 0 | EU22: 0 | EV22: 0 | EW22: 0 | EX22: 0 | EY22: 0 | EZ22: 0 | FA22: 0 | FB22: 0 | FC22: 0 | FD22: 0 | FE22: 0 | FF22: 0 | FG22: 0 | FH22: 0 | FI22: 0 | FJ22: 0 | FK22: 0 | FL22: 0 | FM22: 0 | FN22: 0 | FO22: 0 | FP22: 1 | FQ22: 0 | FR22: 1
A23: LUCIANO CASTILLO COLONNA | B23: AYABACA | C23: 200201 | D23: AYABACA | E23: I-4 | F23: AYABACA | G23: NINGUN CLAS | H23: AYABACA | I23: AYABACA | J23: SALUD LUCIANO CASTILLO COLONNA | K23: 1911 | L23: 6 | M23: 0 | N23: 0 | O23: 0 | P23: 0 | Q23: 0 | R23: 0 | S23: 0 | T23: 0 | U23: 0 | V23: 0 | W23: 0 | X23: 0 | Y23: 0 | Z23: 0 | AA23: 0 | AB23: 0 | AC23: 0 | AD23: 0 | AE23: 0 | AF23: 0 | AG23: 1 | AH23: 0 | AI23: 0 | AJ23: 0 | AK23: 5 | AL23: 0 | AM23: 21 | AN23: 7 | AO23: 1 | AP23: 21 | AQ23: 0 | AR23: 0 | AS23: 0 | AT23: 0 | AU23: 0 | AV23: 0 | AW23: 0 | AX23: 0 | AY23: 0 | AZ23: 0 | BA23: 0 | BB23: 0 | BC23: 0 | BD23: 0 | BE23: 0 | BF23: 0 | BG23: 0 | BH23: 0 | BI23: 1 | BJ23: 1 | BK23: 0 | BL23: 0 | BM23: 0 | BN23: 0 | BO23: 0 | BP23: 0 | BQ23: 0 | BR23: 0 | BS23: 0 | BT23: 0 | BU23: 0 | BV23: 0 | BW23: 0 | BX23: 0 | BY23: 0 | BZ23: 0 | CA23: 0 | CB23: 0 | CC23: 0 | CD23: 0 | CE23: 0 | CF23: 0 | CG23: 26 | CH23: 1 | CI23: 0 | CJ23: 0 | CK23: 0 | CL23: 0 | CM23: 0 | CN23: 0 | CO23: 0 | CP23: 0 | CQ23: 0 | CR23: 0 | CS23: 0 | CT23: 0 | CU23: 0 | CV23: 0 | CW23: 0 | CX23: 0 | CY23: 0 | CZ23: 0 | DA23: 0 | DB23: 0 | DC23: 0 | DD23: 0 | DE23: 0 | DF23: 0 | DG23: 0 | DH23: 0 | DI23: 0 | DJ23: 0 | DK23: 0 | DL23: 0 | DM23: 0 | DN23: 0 | DO23: 0 | DP23: 0 | DQ23: 0 | DR23: 0 | DS23: 0 | DT23: 0 | DU23: 0 | DV23: 0 | DW23: 0 | DX23: 0 | DY23: 0 | DZ23: 0 | EA23: 0 | EB23: 0 | EC23: 0 | ED23: 0 | EE23: 0 | EF23: 0 | EG23: 0 | EH23: 0 | EI23: 0 | EJ23: 0 | EK23: 0 | EL23: 0 | EM23: 0 | EN23: 0 | EO23: 0 | EP23: 0 | EQ23: 0 | ER23: 0 | ES23: 0 | ET23: 0 | EU23: 0 | EV23: 0 | EW23: 0 | EX23: 0 | EY23: 0 | EZ23: 0 | FA23: 0 | FB23: 0 | FC23: 0 | FD23: 0 | FE23: 0 | FF23: 0 | FG23: 0 | FH23: 0 | FI23: 0 | FJ23: 0 | FK23: 0 | FL23: 0 | FM23: 0 | FN23: 0 | FO23: 0 | FP23: 0 | FQ23: 0 | FR23: 0
A24: LUCIANO CASTILLO COLONNA | B24: AYABACA | C24: 200201 | D24: AYABACA | E24: I-4 | F24: AYABACA | G24: NINGUN CLAS | H24: AYABACA | I24: AYABACA | J24: SALUD LUCIANO CASTILLO COLONNA | K24: 1911 | L24: 11 | M24: 0 | N24: 0 | O24: 0 | P24: 0 | Q24: 0 | R24: 0 | S24: 0 | T24: 0 | U24: 0 | V24: 0 | W24: 0 | X24: 0 | Y24: 0 | Z24: 0 | AA24: 0 | AB24: 0 | AC24: 0 | AD24: 0 | AE24: 0 | AF24: 4 | AG24: 5 | AH24: 0 | AI24: 0 | AJ24: 0 | AK24: 12 | AL24: 5 | AM24: 50 | AN24: 16 | AO24: 8 | AP24: 50 | AQ24: 0 | AR24: 0 | AS24: 0 | AT24: 0 | AU24: 0 | AV24: 0 | AW24: 0 | AX24: 0 | AY24: 0 | AZ24: 0 | BA24: 0 | BB24: 0 | BC24: 0 | BD24: 0 | BE24: 0 | BF24: 0 | BG24: 0 | BH24: 0 | BI24: 0 | BJ24: 0 | BK24: 0 | BL24: 0 | BM24: 0 | BN24: 0 | BO24: 0 | BP24: 0 | BQ24: 0 | BR24: 0 | BS24: 0 | BT24: 0 | BU24: 0 | BV24: 0 | BW24: 0 | BX24: 0 | BY24: 0 | BZ24: 0 | CA24: 0 | CB24: 0 | CC24: 0 | CD24: 0 | CE24: 0 | CF24: 0 | CG24: 67 | CH24: 0 | CI24: 0 | CJ24: 0 | CK24: 1 | CL24: 0 | CM24: 0 | CN24: 0 | CO24: 0 | CP24: 0 | CQ24: 0 | CR24: 0 | CS24: 0 | CT24: 0 | CU24: 0 | CV24: 0 | CW24: 0 | CX24: 0 | CY24: 0 | CZ24: 0 | DA24: 0 | DB24: 0 | DC24: 0 | DD24: 0 | DE24: 0 | DF24: 0 | DG24: 0 | DH24: 0 | DI24: 0 | DJ24: 0 | DK24: 0 | DL24: 0 | DM24: 0 | DN24: 0 | DO24: 0 | DP24: 0 | DQ24: 0 | DR24: 0 | DS24: 0 | DT24: 0 | DU24: 0 | DV24: 0 | DW24: 0 | DX24: 0 | DY24: 0 | DZ24: 0 | EA24: 0 | EB24: 0 | EC24: 0 | ED24: 0 | EE24: 0 | EF24: 0 | EG24: 0 | EH24: 0 | EI24: 0 | EJ24: 0 | EK24: 0 | EL24: 0 | EM24: 0 | EN24: 0 | EO24: 0 | EP24: 0 | EQ24: 0 | ER24: 0 | ES24: 0 | ET24: 0 | EU24: 0 | EV24: 0 | EW24: 0 | EX24: 0 | EY24: 0 | EZ24: 0 | FA24: 0 | FB24: 0 | FC24: 0 | FD24: 0 | FE24: 0 | FF24: 0 | FG24: 0 | FH24: 0 | FI24: 0 | FJ24: 0 | FK24: 0 | FL24: 0 | FM24: 0 | FN24: 0 | FO24: 0 | FP24: 0 | FQ24: 0 | FR24: 0
A25: LUCIANO CASTILLO COLONNA | B25: AYABACA | C25: 200201 | D25: AYABACA | E25: I-4 | F25: AYABACA | G25: NINGUN CLAS | H25: AYABACA | I25: AYABACA | J25: SALUD LUCIANO CASTILLO COLONNA | K25: 1911 | L25: 3 | M25: 0 | N25: 0 | O25: 0 | P25: 0 | Q25: 0 | R25: 0 | S25: 0 | T25: 0 | U25: 0 | V25: 0 | W25: 0 | X25: 0 | Y25: 0 | Z25: 0 | AA25: 0 | AB25: 0 | AC25: 0 | AD25: 0 | AE25: 0 | AF25: 0 | AG25: 0 | AH25: 1 | AI25: 0 | AJ25: 0 | AK25: 12 | AL25: 12 | AM25: 13 | AN25: 12 | AO25: 12 | AP25: 16 | AQ25: 0 | AR25: 0 | AS25: 0 | AT25: 0 | AU25: 0 | AV25: 0 | AW25: 0 | AX25: 0 | AY25: 0 | AZ25: 0 | BA25: 0 | BB25: 0 | BC25: 0 | BD25: 0 | BE25: 0 | BF25: 0 | BG25: 0 | BH25: 0 | BI25: 0 | BJ25: 0 | BK25: 0 | BL25: 0 | BM25: 0 | BN25: 0 | BO25: 0 | BP25: 0 | BQ25: 0 | BR25: 0 | BS25: 0 | BT25: 0 | BU25: 0 | BV25: 0 | BW25: 0 | BX25: 0 | BY25: 0 | BZ25: 0 | CA25: 0 | CB25: 0 | CC25: 0 | CD25: 0 | CE25: 0 | CF25: 0 | CG25: 37 | CH25: 1 | CI25: 0 | CJ25: 0 | CK25: 0 | CL25: 0 | CM25: 0 | CN25: 0 | CO25: 0 | CP25: 0 | CQ25: 0 | CR25: 0 | CS25: 0 | CT25: 0 | CU25: 0 | CV25: 0 | CW25: 0 | CX25: 0 | CY25: 0 | CZ25: 0 | DA25: 0 | DB25: 0 | DC25: 0 | DD25: 0 | DE25: 0 | DF25: 0 | DG25: 0 | DH25: 0 | DI25: 0 | DJ25: 0 | DK25: 0 | DL25: 0 | DM25: 0 | DN25: 0 | DO25: 0 | DP25: 0 | DQ25: 0 | DR25: 0 | DS25: 0 | DT25: 0 | DU25: 0 | DV25: 0 | DW25: 0 | DX25: 0 | DY25: 0 | DZ25: 0 | EA25: 0 | EB25: 0 | EC25: 0 | ED25: 0 | EE25: 0 | EF25: 0 | EG25: 0 | EH25: 0 | EI25: 0 | EJ25: 0 | EK25: 0 | EL25: 0 | EM25: 0 | EN25: 0 | EO25: 0 | EP25: 0 | EQ25: 0 | ER25: 0 | ES25: 0 | ET25: 0 | EU25: 0 | EV25: 0 | EW25: 0 | EX25: 0 | EY25: 0 | EZ25: 0 | FA25: 0 | FB25: 0 | FC25: 0 | FD25: 0 | FE25: 0 | FF25: 0 | FG25: 0 | FH25: 0 | FI25: 0 | FJ25: 0 | FK25: 0 | FL25: 0 | FM25: 0 | FN25: 0 | FO25: 0 | FP25: 0 | FQ25: 1 | FR25: 0
A26: LUCIANO CASTILLO COLONNA | B26: AYABACA | C26: 200201 | D26: TAPAL | E26: I-2 | F26: AYABACA | G26: NINGUN CLAS | H26: AYABACA | I26: AYABACA | J26: SALUD LUCIANO CASTILLO COLONNA | K26: 1912 | L26: 11 | M26: 0 | N26: 0 | O26: 0 | P26: 0 | Q26: 0 | R26: 0 | S26: 0 | T26: 0 | U26: 0 | V26: 0 | W26: 0 | X26: 0 | Y26: 0 | Z26: 0 | AA26: 0 | AB26: 0 | AC26: 0 | AD26: 0 | AE26: 0 | AF26: 0 | AG26: 1 | AH26: 0 | AI26: 0 | AJ26: 0 | AK26: 0 | AL26: 1 | AM26: 12 | AN26: 2 | AO26: 2 | AP26: 11 | AQ26: 0 | AR26: 0 | AS26: 0 | AT26: 0 | AU26: 0 | AV26: 0 | AW26: 0 | AX26: 0 | AY26: 0 | AZ26: 0 | BA26: 0 | BB26: 0 | BC26: 0 | BD26: 0 | BE26: 0 | BF26: 0 | BG26: 0 | BH26: 0 | BI26: 0 | BJ26: 0 | BK26: 0 | BL26: 0 | BM26: 0 | BN26: 0 | BO26: 0 | BP26: 0 | BQ26: 0 | BR26: 0 | BS26: 0 | BT26: 0 | BU26: 0 | BV26: 0 | BW26: 0 | BX26: 0 | BY26: 0 | BZ26: 0 | CA26: 0 | CB26: 0 | CC26: 0 | CD26: 0 | CE26: 0 | CF26: 0 | CG26: 13 | CH26: 0 | CI26: 0 | CJ26: 0 | CK26: 0 | CL26: 0 | CM26: 0 | CN26: 0 | CO26: 0 | CP26: 0 | CQ26: 0 | CR26: 0 | CS26: 0 | CT26: 0 | CU26: 0 | CV26: 0 | CW26: 0 | CX26: 0 | CY26: 0 | CZ26: 0 | DA26: 0 | DB26: 0 | DC26: 0 | DD26: 0 | DE26: 0 | DF26: 0 | DG26: 0 | DH26: 0 | DI26: 0 | DJ26: 0 | DK26: 0 | DL26: 0 | DM26: 0 | DN26: 0 | DO26: 0 | DP26: 0 | DQ26: 0 | DR26: 0 | DS26: 0 | DT26: 0 | DU26: 0 | DV26: 0 | DW26: 0 | DX26: 0 | DY26: 0 | DZ26: 0 | EA26: 0 | EB26: 0 | EC26: 0 | ED26: 0 | EE26: 0 | EF26: 0 | EG26: 0 | EH26: 0 | EI26: 0 | EJ26: 0 | EK26: 0 | EL26: 0 | EM26: 0 | EN26: 0 | EO26: 0 | EP26: 0 | EQ26: 0 | ER26: 0 | ES26: 0 | ET26: 0 | EU26: 0 | EV26: 0 | EW26: 0 | EX26: 0 | EY26: 0 | EZ26: 0 | FA26: 0 | FB26: 0 | FC26: 0 | FD26: 0 | FE26: 0 | FF26: 0 | FG26: 0 | FH26: 0 | FI26: 0 | FJ26: 0 | FK26: 0 | FL26: 0 | FM26: 0 | FN26: 0 | FO26: 0 | FP26: 1 | FQ26: 0 | FR26: 0
A27: LUCIANO CASTILLO COLONNA | B27: AYABACA | C27: 200201 | D27: TAPAL | E27: I-2 | F27: AYABACA | G27: NINGUN CLAS | H27: AYABACA | I27: AYABACA | J27: SALUD LUCIANO CASTILLO COLONNA | K27: 1912 | L27: 3 | M27: 0 | N27: 0 | O27: 0 | P27: 0 | Q27: 0 | R27: 0 | S27: 0 | T27: 0 | U27: 0 | V27: 0 | W27: 0 | X27: 0 | Y27: 0 | Z27: 0 | AA27: 0 | AB27: 0 | AC27: 0 | AD27: 0 | AE27: 2 | AF27: 4 | AG27: 2 | AH27: 0 | AI27: 0 | AJ27: 0 | AK27: 0 | AL27: 0 | AM27: 17 | AN27: 5 | AO27: 1 | AP27: 17 | AQ27: 0 | AR27: 0 | AS27: 0 | AT27: 0 | AU27: 0 | AV27: 0 | AW27: 0 | AX27: 0 | AY27: 0 | AZ27: 0 | BA27: 0 | BB27: 0 | BC27: 0 | BD27: 0 | BE27: 0 | BF27: 0 | BG27: 0 | BH27: 0 | BI27: 0 | BJ27: 0 | BK27: 0 | BL27: 0 | BM27: 0 | BN27: 0 | BO27: 0 | BP27: 0 | BQ27: 0 | BR27: 0 | BS27: 0 | BT27: 0 | BU27: 0 | BV27: 0 | BW27: 0 | BX27: 0 | BY27: 0 | BZ27: 0 | CA27: 0 | CB27: 0 | CC27: 0 | CD27: 0 | CE27: 0 | CF27: 0 | CG27: 17 | CH27: 0 | CI27: 0 | CJ27: 0 | CK27: 0 | CL27: 0 | CM27: 0 | CN27: 0 | CO27: 0 | CP27: 0 | CQ27: 0 | CR27: 0 | CS27: 0 | CT27: 0 | CU27: 0 | CV27: 0 | CW27: 0 | CX27: 0 | CY27: 0 | CZ27: 0 | DA27: 0 | DB27: 0 | DC27: 0 | DD27: 0 | DE27: 0 | DF27: 0 | DG27: 0 | DH27: 0 | DI27: 0 | DJ27: 0 | DK27: 0 | DL27: 0 | DM27: 0 | DN27: 0 | DO27: 0 | DP27: 0 | DQ27: 0 | DR27: 0 | DS27: 0 | DT27: 0 | DU27: 0 | DV27: 0 | DW27: 0 | DX27: 0 | DY27: 0 | DZ27: 0 | EA27: 0 | EB27: 0 | EC27: 0 | ED27: 0 | EE27: 0 | EF27: 0 | EG27: 0 | EH27: 0 | EI27: 0 | EJ27: 0 | EK27: 0 | EL27: 0 | EM27: 0 | EN27: 0 | EO27: 0 | EP27: 0 | EQ27: 0 | ER27: 0 | ES27: 0 | ET27: 0 | EU27: 0 | EV27: 0 | EW27: 0 | EX27: 0 | EY27: 0 | EZ27: 0 | FA27: 0 | FB27: 0 | FC27: 0 | FD27: 0 | FE27: 0 | FF27: 0 | FG27: 0 | FH27: 0 | FI27: 0 | FJ27: 0 | FK27: 0 | FL27: 0 | FM27: 0 | FN27: 0 | FO27: 0 | FP27: 0 | FQ27: 0 | FR27: 0
A28: LUCIANO CASTILLO COLONNA | B28: AYABACA | C28: 200201 | D28: TAPAL | E28: I-2 | F28: AYABACA | G28: NINGUN CLAS | H28: AYABACA | I28: AYABACA | J28: SALUD LUCIANO CASTILLO COLONNA | K28: 1912 | L28: 6 | M28: 0 | N28: 0 | O28: 0 | P28: 0 | Q28: 0 | R28: 0 | S28: 0 | T28: 0 | U28: 0 | V28: 0 | W28: 0 | X28: 0 | Y28: 0 | Z28: 0 | AA28: 0 | AB28: 0 | AC28: 0 | AD28: 0 | AE28: 2 | AF28: 1 | AG28: 5 | AH28: 0 | AI28: 0 | AJ28: 0 | AK28: 0 | AL28: 1 | AM28: 7 | AN28: 0 | AO28: 1 | AP28: 5 | AQ28: 0 | AR28: 0 | AS28: 0 | AT28: 0 | AU28: 0 | AV28: 0 | AW28: 0 | AX28: 0 | AY28: 0 | AZ28: 0 | BA28: 0 | BB28: 0 | BC28: 0 | BD28: 0 | BE28: 0 | BF28: 0 | BG28: 0 | BH28: 0 | BI28: 0 | BJ28: 0 | BK28: 0 | BL28: 2 | BM28: 1 | BN28: 0 | BO28: 0 | BP28: 0 | BQ28: 0 | BR28: 0 | BS28: 0 | BT28: 0 | BU28: 0 | BV28: 0 | BW28: 0 | BX28: 0 | BY28: 0 | BZ28: 0 | CA28: 0 | CB28: 0 | CC28: 0 | CD28: 0 | CE28: 0 | CF28: 0 | CG28: 8 | CH28: 1 | CI28: 0 | CJ28: 0 | CK28: 0 | CL28: 0 | CM28: 0 | CN28: 0 | CO28: 0 | CP28: 0 | CQ28: 0 | CR28: 0 | CS28: 0 | CT28: 0 | CU28: 0 | CV28: 0 | CW28: 0 | CX28: 0 | CY28: 0 | CZ28: 0 | DA28: 0 | DB28: 0 | DC28: 0 | DD28: 0 | DE28: 0 | DF28: 0 | DG28: 0 | DH28: 0 | DI28: 0 | DJ28: 0 | DK28: 0 | DL28: 0 | DM28: 0 | DN28: 0 | DO28: 0 | DP28: 0 | DQ28: 0 | DR28: 0 | DS28: 0 | DT28: 0 | DU28: 0 | DV28: 0 | DW28: 0 | DX28: 0 | DY28: 0 | DZ28: 0 | EA28: 0 | EB28: 0 | EC28: 0 | ED28: 0 | EE28: 0 | EF28: 0 | EG28: 0 | EH28: 0 | EI28: 0 | EJ28: 0 | EK28: 0 | EL28: 0 | EM28: 0 | EN28: 0 | EO28: 0 | EP28: 0 | EQ28: 0 | ER28: 0 | ES28: 0 | ET28: 0 | EU28: 0 | EV28: 0 | EW28: 0 | EX28: 0 | EY28: 0 | EZ28: 0 | FA28: 0 | FB28: 0 | FC28: 0 | FD28: 0 | FE28: 0 | FF28: 0 | FG28: 0 | FH28: 0 | FI28: 0 | FJ28: 0 | FK28: 0 | FL28: 0 | FM28: 0 | FN28: 0 | FO28: 0 | FP28: 0 | FQ28: 0 | FR28: 0
A29: LUCIANO CASTILLO COLONNA | B29: AYABACA | C29: 200201 | D29: TAPAL | E29: I-2 | F29: AYABACA | G29: NINGUN CLAS | H29: AYABACA | I29: AYABACA | J29: SALUD LUCIANO CASTILLO COLONNA | K29: 1912 | L29: 12 | M29: 0 | N29: 0 | O29: 0 | P29: 0 | Q29: 0 | R29: 0 | S29: 0 | T29: 0 | U29: 0 | V29: 0 | W29: 0 | X29: 0 | Y29: 0 | Z29: 0 | AA29: 0 | AB29: 0 | AC29: 0 | AD29: 0 | AE29: 0 | AF29: 0 | AG29: 0 | AH29: 0 | AI29: 0 | AJ29: 0 | AK29: 0 | AL29: 0 | AM29: 4 | AN29: 1 | AO29: 0 | AP29: 3 | AQ29: 0 | AR29: 0 | AS29: 0 | AT29: 0 | AU29: 0 | AV29: 0 | AW29: 0 | AX29: 0 | AY29: 0 | AZ29: 0 | BA29: 0 | BB29: 0 | BC29: 0 | BD29: 0 | BE29: 0 | BF29: 0 | BG29: 0 | BH29: 0 | BI29: 0 | BJ29: 0 | BK29: 0 | BL29: 0 | BM29: 0 | BN29: 0 | BO29: 0 | BP29: 0 | BQ29: 0 | BR29: 0 | BS29: 0 | BT29: 0 | BU29: 0 | BV29: 0 | BW29: 0 | BX29: 0 | BY29: 0 | BZ29: 0 | CA29: 0 | CB29: 0 | CC29: 0 | CD29: 0 | CE29: 0 | CF29: 0 | CG29: 4 | CH29: 0 | CI29: 0 | CJ29: 0 | CK29: 0 | CL29: 0 | CM29: 0 | CN29: 0 | CO29: 0 | CP29: 0 | CQ29: 0 | CR29: 0 | CS29: 0 | CT29: 0 | CU29: 0 | CV29: 0 | CW29: 0 | CX29: 0 | CY29: 0 | CZ29: 0 | DA29: 0 | DB29: 0 | DC29: 0 | DD29: 0 | DE29: 0 | DF29: 0 | DG29: 0 | DH29: 0 | DI29: 0 | DJ29: 0 | DK29: 0 | DL29: 0 | DM29: 0 | DN29: 0 | DO29: 0 | DP29: 0 | DQ29: 0 | DR29: 0 | DS29: 0 | DT29: 0 | DU29: 0 | DV29: 0 | DW29: 0 | DX29: 0 | DY29: 0 | DZ29: 0 | EA29: 0 | EB29: 0 | EC29: 0 | ED29: 0 | EE29: 0 | EF29: 0 | EG29: 0 | EH29: 0 | EI29: 0 | EJ29: 0 | EK29: 0 | EL29: 0 | EM29: 0 | EN29: 0 | EO29: 0 | EP29: 0 | EQ29: 0 | ER29: 0 | ES29: 0 | ET29: 0 | EU29: 0 | EV29: 0 | EW29: 0 | EX29: 0 | EY29: 0 | EZ29: 0 | FA29: 0 | FB29: 0 | FC29: 0 | FD29: 0 | FE29: 0 | FF29: 0 | FG29: 0 | FH29: 0 | FI29: 0 | FJ29: 0 | FK29: 0 | FL29: 0 | FM29: 0 | FN29: 0 | FO29: 0 | FP29: 0 | FQ29: 0 | FR29: 0
A30: LUCIANO CASTILLO COLONNA | B30: AYABACA | C30: 200201 | D30: TAPAL | E30: I-2 | F30: AYABACA | G30: NINGUN CLAS | H30: AYABACA | I30: AYABACA | J30: SALUD LUCIANO CASTILLO COLONNA | K30: 1912 | L30: 1 | M30: 0 | N30: 0 | O30: 0 | P30: 0 | Q30: 0 | R30: 0 | S30: 0 | T30: 0 | U30: 0 | V30: 0 | W30: 0 | X30: 0 | Y30: 0 | Z30: 0 | AA30: 0 | AB30: 0 | AC30: 0 | AD30: 0 | AE30: 1 | AF30: 2 | AG30: 2 | AH30: 0 | AI30: 0 | AJ30: 0 | AK30: 0 | AL30: 0 | AM30: 5 | AN30: 3 | AO30: 1 | AP30: 5 | AQ30: 0 | AR30: 0 | AS30: 0 | AT30: 0 | AU30: 0 | AV30: 0 | AW30: 0 | AX30: 0 | AY30: 0 | AZ30: 0 | BA30: 0 | BB30: 0 | BC30: 0 | BD30: 0 | BE30: 0 | BF30: 0 | BG30: 0 | BH30: 0 | BI30: 0 | BJ30: 0 | BK30: 0 | BL30: 0 | BM30: 0 | BN30: 0 | BO30: 0 | BP30: 0 | BQ30: 0 | BR30: 0 | BS30: 0 | BT30: 0 | BU30: 0 | BV30: 0 | BW30: 0 | BX30: 0 | BY30: 0 | BZ30: 0 | CA30: 0 | CB30: 0 | CC30: 0 | CD30: 0 | CE30: 0 | CF30: 0 | CG30: 5 | CH30: 0 | CI30: 0 | CJ30: 0 | CK30: 0 | CL30: 0 | CM30: 0 | CN30: 0 | CO30: 0 | CP30: 0 | CQ30: 0 | CR30: 0 | CS30: 0 | CT30: 0 | CU30: 0 | CV30: 0 | CW30: 0 | CX30: 0 | CY30: 0 | CZ30: 0 | DA30: 0 | DB30: 0 | DC30: 0 | DD30: 0 | DE30: 0 | DF30: 0 | DG30: 0 | DH30: 0 | DI30: 0 | DJ30: 0 | DK30: 0 | DL30: 0 | DM30: 0 | DN30: 0 | DO30: 0 | DP30: 0 | DQ30: 0 | DR30: 0 | DS30: 0 | DT30: 0 | DU30: 0 | DV30: 0 | DW30: 0 | DX30: 0 | DY30: 0 | DZ30: 0 | EA30: 0 | EB30: 0 | EC30: 0 | ED30: 0 | EE30: 0 | EF30: 0 | EG30: 0 | EH30: 0 | EI30: 0 | EJ30: 0 | EK30: 0 | EL30: 0 | EM30: 0 | EN30: 0 | EO30: 0 | EP30: 0 | EQ30: 0 | ER30: 0 | ES30: 0 | ET30: 0 | EU30: 0 | EV30: 0 | EW30: 0 | EX30: 0 | EY30: 0 | EZ30: 0 | FA30: 0 | FB30: 0 | FC30: 0 | FD30: 0 | FE30: 0 | FF30: 0 | FG30: 0 | FH30: 0 | FI30: 0 | FJ30: 0 | FK30: 0 | FL30: 0 | FM30: 0 | FN30: 0 | FO30: 0 | FP30: 0 | FQ30: 0 | FR30: 0
A31: LUCIANO CASTILLO COLONNA | B31: AYABACA | C31: 200201 | D31: TAPAL | E31: I-2 | F31: AYABACA | G31: NINGUN CLAS | H31: AYABACA | I31: AYABACA | J31: SALUD LUCIANO CASTILLO COLONNA | K31: 1912 | L31: 4 | M31: 0 | N31: 0 | O31: 0 | P31: 0 | Q31: 0 | R31: 0 | S31: 0 | T31: 0 | U31: 0 | V31: 0 | W31: 0 | X31: 0 | Y31: 0 | Z31: 0 | AA31: 0 | AB31: 0 | AC31: 0 | AD31: 0 | AE31: 2 | AF31: 1 | AG31: 6 | AH31: 0 | AI31: 0 | AJ31: 0 | AK31: 0 | AL31: 0 | AM31: 15 | AN31: 6 | AO31: 1 | AP31: 15 | AQ31: 0 | AR31: 0 | AS31: 0 | AT31: 0 | AU31: 0 | AV31: 0 | AW31: 0 | AX31: 0 | AY31: 0 | AZ31: 0 | BA31: 0 | BB31: 0 | BC31: 0 | BD31: 0 | BE31: 0 | BF31: 0 | BG31: 0 | BH31: 0 | BI31: 3 | BJ31: 1 | BK31: 0 | BL31: 1 | BM31: 1 | BN31: 2 | BO31: 0 | BP31: 0 | BQ31: 0 | BR31: 0 | BS31: 0 | BT31: 0 | BU31: 0 | BV31: 0 | BW31: 0 | BX31: 0 | BY31: 0 | BZ31: 0 | CA31: 0 | CB31: 0 | CC31: 0 | CD31: 0 | CE31: 0 | CF31: 0 | CG31: 15 | CH31: 2 | CI31: 2 | CJ31: 0 | CK31: 0 | CL31: 0 | CM31: 0 | CN31: 0 | CO31: 0 | CP31: 0 | CQ31: 0 | CR31: 0 | CS31: 0 | CT31: 0 | CU31: 0 | CV31: 0 | CW31: 0 | CX31: 0 | CY31: 0 | CZ31: 0 | DA31: 0 | DB31: 0 | DC31: 0 | DD31: 0 | DE31: 0 | DF31: 0 | DG31: 0 | DH31: 0 | DI31: 0 | DJ31: 0 | DK31: 0 | DL31: 0 | DM31: 0 | DN31: 0 | DO31: 0 | DP31: 0 | DQ31: 0 | DR31: 0 | DS31: 0 | DT31: 0 | DU31: 0 | DV31: 0 | DW31: 0 | DX31: 0 | DY31: 0 | DZ31: 0 | EA31: 0 | EB31: 0 | EC31: 0 | ED31: 0 | EE31: 0 | EF31: 0 | EG31: 0 | EH31: 0 | EI31: 0 | EJ31: 0 | EK31: 0 | EL31: 0 | EM31: 0 | EN31: 0 | EO31: 0 | EP31: 0 | EQ31: 0 | ER31: 0 | ES31: 0 | ET31: 0 | EU31: 0 | EV31: 0 | EW31: 0 | EX31: 0 | EY31: 0 | EZ31: 0 | FA31: 0 | FB31: 0 | FC31: 0 | FD31: 0 | FE31: 0 | FF31: 0 | FG31: 0 | FH31: 0 | FI31: 0 | FJ31: 0 | FK31: 0 | FL31: 0 | FM31: 0 | FN31: 0 | FO31: 0 | FP31: 0 | FQ31: 0 | FR31: 0
A32: LUCIANO CASTILLO COLONNA | B32: AYABACA | C32: 200201 | D32: TAPAL | E32: I-2 | F32: AYABACA | G32: NINGUN CLAS | H32: AYABACA | I32: AYABACA | J32: SALUD LUCIANO CASTILLO COLONNA | K32: 1912 | L32: 10 | M32: 0 | N32: 0 | O32: 0 | P32: 0 | Q32: 0 | R32: 0 | S32: 0 | T32: 0 | U32: 0 | V32: 0 | W32: 0 | X32: 0 | Y32: 0 | Z32: 0 | AA32: 0 | AB32: 0 | AC32: 0 | AD32: 0 | AE32: 0 | AF32: 0 | AG32: 2 | AH32: 0 | AI32: 0 | AJ32: 0 | AK32: 0 | AL32: 0 | AM32: 8 | AN32: 2 | AO32: 0 | AP32: 8 | AQ32: 0 | AR32: 0 | AS32: 0 | AT32: 0 | AU32: 0 | AV32: 0 | AW32: 0 | AX32: 0 | AY32: 0 | AZ32: 0 | BA32: 0 | BB32: 0 | BC32: 0 | BD32: 0 | BE32: 0 | BF32: 0 | BG32: 0 | BH32: 0 | BI32: 0 | BJ32: 0 | BK32: 0 | BL32: 0 | BM32: 0 | BN32: 0 | BO32: 0 | BP32: 0 | BQ32: 0 | BR32: 0 | BS32: 0 | BT32: 0 | BU32: 0 | BV32: 0 | BW32: 0 | BX32: 0 | BY32: 0 | BZ32: 0 | CA32: 0 | CB32: 0 | CC32: 0 | CD32: 0 | CE32: 0 | CF32: 0 | CG32: 8 | CH32: 0 | CI32: 0 | CJ32: 0 | CK32: 0 | CL32: 0 | CM32: 0 | CN32: 0 | CO32: 0 | CP32: 0 | CQ32: 0 | CR32: 0 | CS32: 0 | CT32: 0 | CU32: 0 | CV32: 0 | CW32: 0 | CX32: 0 | CY32: 0 | CZ32: 0 | DA32: 0 | DB32: 0 | DC32: 0 | DD32: 0 | DE32: 0 | DF32: 0 | DG32: 0 | DH32: 0 | DI32: 0 | DJ32: 0 | DK32: 0 | DL32: 0 | DM32: 0 | DN32: 0 | DO32: 0 | DP32: 0 | DQ32: 0 | DR32: 0 | DS32: 0 | DT32: 0 | DU32: 0 | DV32: 0 | DW32: 0 | DX32: 0 | DY32: 0 | DZ32: 0 | EA32: 0 | EB32: 0 | EC32: 0 | ED32: 0 | EE32: 0 | EF32: 0 | EG32: 0 | EH32: 0 | EI32: 0 | EJ32: 0 | EK32: 0 | EL32: 0 | EM32: 0 | EN32: 0 | EO32: 0 | EP32: 0 | EQ32: 0 | ER32: 0 | ES32: 0 | ET32: 0 | EU32: 0 | EV32: 0 | EW32: 0 | EX32: 0 | EY32: 0 | EZ32: 0 | FA32: 0 | FB32: 0 | FC32: 0 | FD32: 0 | FE32: 0 | FF32: 0 | FG32: 0 | FH32: 0 | FI32: 0 | FJ32: 0 | FK32: 0 | FL32: 0 | FM32: 0 | FN32: 0 | FO32: 0 | FP32: 1 | FQ32: 0 | FR32: 0
A33: LUCIANO CASTILLO COLONNA | B33: AYABACA | C33: 200201 | D33: TAPAL | E33: I-2 | F33: AYABACA | G33: NINGUN CLAS | H33: AYABACA | I33: AYABACA | J33: SALUD LUCIANO CASTILLO COLONNA | K33: 1912 | L33: 9 | M33: 0 | N33: 0 | O33: 0 | P33: 0 | Q33: 0 | R33: 0 | S33: 0 | T33: 0 | U33: 0 | V33: 0 | W33: 0 | X33: 0 | Y33: 0 | Z33: 0 | AA33: 0 | AB33: 0 | AC33: 0 | AD33: 0 | AE33: 0 | AF33: 0 | AG33: 0 | AH33: 0 | AI33: 0 | AJ33: 0 | AK33: 0 | AL33: 0 | AM33: 22 | AN33: 1 | AO33: 0 | AP33: 21 | AQ33: 0 | AR33: 0 | AS33: 0 | AT33: 0 | AU33: 0 | AV33: 0 | AW33: 0 | AX33: 0 | AY33: 0 | AZ33: 0 | BA33: 0 | BB33: 0 | BC33: 0 | BD33: 0 | BE33: 0 | BF33: 0 | BG33: 0 | BH33: 0 | BI33: 0 | BJ33: 0 | BK33: 0 | BL33: 0 | BM33: 0 | BN33: 0 | BO33: 0 | BP33: 0 | BQ33: 0 | BR33: 0 | BS33: 0 | BT33: 0 | BU33: 0 | BV33: 0 | BW33: 0 | BX33: 0 | BY33: 0 | BZ33: 0 | CA33: 0 | CB33: 0 | CC33: 0 | CD33: 0 | CE33: 0 | CF33: 0 | CG33: 22 | CH33: 0 | CI33: 0 | CJ33: 0 | CK33: 0 | CL33: 0 | CM33: 0 | CN33: 0 | CO33: 0 | CP33: 0 | CQ33: 0 | CR33: 0 | CS33: 0 | CT33: 0 | CU33: 0 | CV33: 0 | CW33: 0 | CX33: 0 | CY33: 0 | CZ33: 0 | DA33: 0 | DB33: 0 | DC33: 0 | DD33: 0 | DE33: 0 | DF33: 0 | DG33: 0 | DH33: 0 | DI33: 0 | DJ33: 0 | DK33: 0 | DL33: 0 | DM33: 0 | DN33: 0 | DO33: 0 | DP33: 0 | DQ33: 0 | DR33: 0 | DS33: 0 | DT33: 0 | DU33: 0 | DV33: 0 | DW33: 0 | DX33: 0 | DY33: 0 | DZ33: 0 | EA33: 0 | EB33: 0 | EC33: 0 | ED33: 0 | EE33: 0 | EF33: 0 | EG33: 0 | EH33: 0 | EI33: 0 | EJ33: 0 | EK33: 0 | EL33: 0 | EM33: 0 | EN33: 0 | EO33: 0 | EP33: 0 | EQ33: 0 | ER33: 0 | ES33: 0 | ET33: 0 | EU33: 0 | EV33: 0 | EW33: 0 | EX33: 0 | EY33: 0 | EZ33: 0 | FA33: 0 | FB33: 0 | FC33: 0 | FD33: 0 | FE33: 0 | FF33: 0 | FG33: 1 | FH33: 0 | FI33: 0 | FJ33: 0 | FK33: 0 | FL33: 0 | FM33: 0 | FN33: 0 | FO33: 0 | FP33: 3 | FQ33: 0 | FR33: 1
A34: LUCIANO CASTILLO COLONNA | B34: AYABACA | C34: 200201 | D34: TAPAL | E34: I-2 | F34: AYABACA | G34: NINGUN CLAS | H34: AYABACA | I34: AYABACA | J34: SALUD LUCIANO CASTILLO COLONNA | K34: 1912 | L34: 7 | M34: 0 | N34: 0 | O34: 0 | P34: 0 | Q34: 0 | R34: 0 | S34: 0 | T34: 0 | U34: 0 | V34: 0 | W34: 0 | X34: 0 | Y34: 0 | Z34: 0 | AA34: 0 | AB34: 0 | AC34: 0 | AD34: 0 | AE34: 0 | AF34: 2 | AG34: 1 | AH34: 0 | AI34: 0 | AJ34: 0 | AK34: 0 | AL34: 3 | AM34: 17 | AN34: 0 | AO34: 3 | AP34: 17 | AQ34: 0 | AR34: 0 | AS34: 0 | AT34: 0 | AU34: 0 | AV34: 0 | AW34: 0 | AX34: 0 | AY34: 0 | AZ34: 0 | BA34: 0 | BB34: 0 | BC34: 0 | BD34: 0 | BE34: 0 | BF34: 0 | BG34: 0 | BH34: 0 | BI34: 0 | BJ34: 0 | BK34: 0 | BL34: 0 | BM34: 0 | BN34: 0 | BO34: 0 | BP34: 0 | BQ34: 0 | BR34: 0 | BS34: 0 | BT34: 0 | BU34: 0 | BV34: 0 | BW34: 0 | BX34: 0 | BY34: 0 | BZ34: 0 | CA34: 0 | CB34: 0 | CC34: 0 | CD34: 0 | CE34: 0 | CF34: 0 | CG34: 20 | CH34: 0 | CI34: 0 | CJ34: 0 | CK34: 0 | CL34: 0 | CM34: 0 | CN34: 0 | CO34: 0 | CP34: 0 | CQ34: 0 | CR34: 0 | CS34: 0 | CT34: 0 | CU34: 0 | CV34: 0 | CW34: 0 | CX34: 0 | CY34: 0 | CZ34: 0 | DA34: 0 | DB34: 0 | DC34: 0 | DD34: 0 | DE34: 0 | DF34: 0 | DG34: 0 | DH34: 0 | DI34: 0 | DJ34: 0 | DK34: 0 | DL34: 0 | DM34: 0 | DN34: 0 | DO34: 0 | DP34: 0 | DQ34: 0 | DR34: 0 | DS34: 0 | DT34: 0 | DU34: 0 | DV34: 0 | DW34: 0 | DX34: 0 | DY34: 0 | DZ34: 0 | EA34: 0 | EB34: 0 | EC34: 0 | ED34: 0 | EE34: 0 | EF34: 0 | EG34: 0 | EH34: 0 | EI34: 0 | EJ34: 0 | EK34: 0 | EL34: 0 | EM34: 0 | EN34: 0 | EO34: 0 | EP34: 0 | EQ34: 0 | ER34: 0 | ES34: 0 | ET34: 0 | EU34: 0 | EV34: 0 | EW34: 0 | EX34: 0 | EY34: 0 | EZ34: 0 | FA34: 0 | FB34: 0 | FC34: 0 | FD34: 0 | FE34: 0 | FF34: 0 | FG34: 0 | FH34: 0 | FI34: 0 | FJ34: 0 | FK34: 0 | FL34: 0 | FM34: 0 | FN34: 0 | FO34: 0 | FP34: 0 | FQ34: 0 | FR34: 0
A35: LUCIANO CASTILLO COLONNA | B35: AYABACA | C35: 200201 | D35: TAPAL | E35: I-2 | F35: AYABACA | G35: NINGUN CLAS | H35: AYABACA | I35: AYABACA | J35: SALUD LUCIANO CASTILLO COLONNA | K35: 1912 | L35: 2 | M35: 0 | N35: 0 | O35: 0 | P35: 0 | Q35: 0 | R35: 0 | S35: 0 | T35: 0 | U35: 0 | V35: 0 | W35: 0 | X35: 0 | Y35: 0 | Z35: 0 | AA35: 0 | AB35: 0 | AC35: 0 | AD35: 0 | AE35: 3 | AF35: 2 | AG35: 6 | AH35: 0 | AI35: 0 | AJ35: 0 | AK35: 0 | AL35: 1 | AM35: 16 | AN35: 4 | AO35: 3 | AP35: 16 | AQ35: 0 | AR35: 0 | AS35: 0 | AT35: 0 | AU35: 0 | AV35: 0 | AW35: 0 | AX35: 0 | AY35: 0 | AZ35: 0 | BA35: 0 | BB35: 0 | BC35: 0 | BD35: 0 | BE35: 0 | BF35: 0 | BG35: 0 | BH35: 0 | BI35: 0 | BJ35: 0 | BK35: 0 | BL35: 0 | BM35: 0 | BN35: 0 | BO35: 0 | BP35: 0 | BQ35: 0 | BR35: 0 | BS35: 0 | BT35: 0 | BU35: 0 | BV35: 0 | BW35: 0 | BX35: 0 | BY35: 0 | BZ35: 0 | CA35: 0 | CB35: 0 | CC35: 0 | CD35: 0 | CE35: 0 | CF35: 0 | CG35: 17 | CH35: 1 | CI35: 0 | CJ35: 0 | CK35: 0 | CL35: 0 | CM35: 0 | CN35: 0 | CO35: 0 | CP35: 0 | CQ35: 0 | CR35: 0 | CS35: 0 | CT35: 0 | CU35: 0 | CV35: 0 | CW35: 0 | CX35: 0 | CY35: 0 | CZ35: 0 | DA35: 0 | DB35: 0 | DC35: 0 | DD35: 0 | DE35: 0 | DF35: 0 | DG35: 0 | DH35: 0 | DI35: 0 | DJ35: 0 | DK35: 0 | DL35: 0 | DM35: 0 | DN35: 0 | DO35: 0 | DP35: 0 | DQ35: 0 | DR35: 0 | DS35: 0 | DT35: 0 | DU35: 0 | DV35: 0 | DW35: 0 | DX35: 0 | DY35: 0 | DZ35: 0 | EA35: 0 | EB35: 0 | EC35: 0 | ED35: 0 | EE35: 0 | EF35: 0 | EG35: 0 | EH35: 0 | EI35: 0 | EJ35: 0 | EK35: 0 | EL35: 0 | EM35: 0 | EN35: 0 | EO35: 0 | EP35: 0 | EQ35: 0 | ER35: 0 | ES35: 0 | ET35: 0 | EU35: 0 | EV35: 0 | EW35: 0 | EX35: 0 | EY35: 0 | EZ35: 0 | FA35: 0 | FB35: 0 | FC35: 0 | FD35: 0 | FE35: 0 | FF35: 0 | FG35: 2 | FH35: 0 | FI35: 0 | FJ35: 1 | FK35: 0 | FL35: 0 | FM35: 0 | FN35: 0 | FO35: 0 | FP35: 0 | FQ35: 0 | FR35: 0
A36: LUCIANO CASTILLO COLONNA | B36: AYABACA | C36: 200201 | D36: TAPAL | E36: I-2 | F36: AYABACA | G36: NINGUN CLAS | H36: AYABACA | I36: AYABACA | J36: SALUD LUCIANO CASTILLO COLONNA | K36: 1912 | L36: 8 | M36: 0 | N36: 0 | O36: 0 | P36: 0 | Q36: 0 | R36: 0 | S36: 0 | T36: 0 | U36: 0 | V36: 0 | W36: 0 | X36: 0 | Y36: 0 | Z36: 0 | AA36: 0 | AB36: 0 | AC36: 0 | AD36: 0 | AE36: 0 | AF36: 2 | AG36: 2 | AH36: 0 | AI36: 0 | AJ36: 0 | AK36: 0 | AL36: 0 | AM36: 12 | AN36: 2 | AO36: 2 | AP36: 12 | AQ36: 0 | AR36: 0 | AS36: 0 | AT36: 0 | AU36: 0 | AV36: 0 | AW36: 0 | AX36: 0 | AY36: 0 | AZ36: 0 | BA36: 0 | BB36: 0 | BC36: 0 | BD36: 0 | BE36: 0 | BF36: 0 | BG36: 0 | BH36: 0 | BI36: 0 | BJ36: 0 | BK36: 0 | BL36: 0 | BM36: 0 | BN36: 0 | BO36: 0 | BP36: 0 | BQ36: 0 | BR36: 0 | BS36: 0 | BT36: 0 | BU36: 0 | BV36: 0 | BW36: 0 | BX36: 0 | BY36: 0 | BZ36: 0 | CA36: 0 | CB36: 0 | CC36: 0 | CD36: 0 | CE36: 0 | CF36: 0 | CG36: 12 | CH36: 0 | CI36: 0 | CJ36: 0 | CK36: 0 | CL36: 0 | CM36: 0 | CN36: 0 | CO36: 0 | CP36: 0 | CQ36: 0 | CR36: 0 | CS36: 0 | CT36: 0 | CU36: 0 | CV36: 0 | CW36: 0 | CX36: 0 | CY36: 0 | CZ36: 0 | DA36: 0 | DB36: 0 | DC36: 0 | DD36: 0 | DE36: 0 | DF36: 0 | DG36: 0 | DH36: 0 | DI36: 0 | DJ36: 0 | DK36: 0 | DL36: 0 | DM36: 0 | DN36: 0 | DO36: 0 | DP36: 0 | DQ36: 0 | DR36: 0 | DS36: 0 | DT36: 0 | DU36: 0 | DV36: 0 | DW36: 0 | DX36: 0 | DY36: 0 | DZ36: 0 | EA36: 0 | EB36: 0 | EC36: 0 | ED36: 0 | EE36: 0 | EF36: 0 | EG36: 0 | EH36: 0 | EI36: 0 | EJ36: 0 | EK36: 0 | EL36: 0 | EM36: 0 | EN36: 0 | EO36: 0 | EP36: 0 | EQ36: 0 | ER36: 0 | ES36: 0 | ET36: 0 | EU36: 0 | EV36: 0 | EW36: 0 | EX36: 0 | EY36: 0 | EZ36: 0 | FA36: 0 | FB36: 0 | FC36: 0 | FD36: 0 | FE36: 0 | FF36: 0 | FG36: 0 | FH36: 0 | FI36: 0 | FJ36: 0 | FK36: 0 | FL36: 0 | FM36: 0 | FN36: 0 | FO36: 0 | FP36: 1 | FQ36: 0 | FR36: 0
A37: LUCIANO CASTILLO COLONNA | B37: AYABACA | C37: 200201 | D37: TAPAL | E37: I-2 | F37: AYABACA | G37: NINGUN CLAS | H37: AYABACA | I37: AYABACA | J37: SALUD LUCIANO CASTILLO COLONNA | K37: 1912 | L37: 5 | M37: 0 | N37: 0 | O37: 0 | P37: 0 | Q37: 0 | R37: 0 | S37: 0 | T37: 0 | U37: 0 | V37: 0 | W37: 0 | X37: 0 | Y37: 0 | Z37: 0 | AA37: 0 | AB37: 0 | AC37: 0 | AD37: 0 | AE37: 3 | AF37: 3 | AG37: 5 | AH37: 0 | AI37: 0 | AJ37: 0 | AK37: 0 | AL37: 0 | AM37: 13 | AN37: 1 | AO37: 4 | AP37: 13 | AQ37: 0 | AR37: 0 | AS37: 0 | AT37: 0 | AU37: 0 | AV37: 0 | AW37: 0 | AX37: 0 | AY37: 0 | AZ37: 0 | BA37: 0 | BB37: 0 | BC37: 0 | BD37: 0 | BE37: 0 | BF37: 0 | BG37: 0 | BH37: 0 | BI37: 1 | BJ37: 0 | BK37: 0 | BL37: 5 | BM37: 4 | BN37: 4 | BO37: 0 | BP37: 0 | BQ37: 0 | BR37: 0 | BS37: 0 | BT37: 0 | BU37: 0 | BV37: 0 | BW37: 0 | BX37: 0 | BY37: 0 | BZ37: 0 | CA37: 0 | CB37: 0 | CC37: 0 | CD37: 0 | CE37: 0 | CF37: 0 | CG37: 13 | CH37: 4 | CI37: 4 | CJ37: 0 | CK37: 0 | CL37: 0 | CM37: 0 | CN37: 0 | CO37: 0 | CP37: 0 | CQ37: 0 | CR37: 0 | CS37: 0 | CT37: 0 | CU37: 0 | CV37: 0 | CW37: 0 | CX37: 0 | CY37: 0 | CZ37: 0 | DA37: 0 | DB37: 0 | DC37: 0 | DD37: 0 | DE37: 0 | DF37: 0 | DG37: 0 | DH37: 0 | DI37: 0 | DJ37: 0 | DK37: 0 | DL37: 0 | DM37: 0 | DN37: 0 | DO37: 0 | DP37: 0 | DQ37: 0 | DR37: 0 | DS37: 0 | DT37: 0 | DU37: 0 | DV37: 0 | DW37: 0 | DX37: 0 | DY37: 0 | DZ37: 0 | EA37: 0 | EB37: 0 | EC37: 0 | ED37: 0 | EE37: 0 | EF37: 0 | EG37: 0 | EH37: 0 | EI37: 0 | EJ37: 0 | EK37: 0 | EL37: 0 | EM37: 0 | EN37: 0 | EO37: 0 | EP37: 0 | EQ37: 0 | ER37: 0 | ES37: 0 | ET37: 0 | EU37: 0 | EV37: 0 | EW37: 0 | EX37: 0 | EY37: 0 | EZ37: 0 | FA37: 0 | FB37: 0 | FC37: 0 | FD37: 0 | FE37: 0 | FF37: 0 | FG37: 0 | FH37: 0 | FI37: 0 | FJ37: 0 | FK37: 0 | FL37: 0 | FM37: 0 | FN37: 0 | FO37: 0 | FP37: 0 | FQ37: 0 | FR37: 0
A38: LUCIANO CASTILLO COLONNA | B38: AYABACA | C38: 200201 | D38: CHINCHIN | E38: I-1 | F38: AYABACA | G38: NINGUN CLAS | H38: AYABACA | I38: AYABACA | J38: SALUD LUCIANO CASTILLO COLONNA | K38: 1913 | L38: 3 | M38: 0 | N38: 0 | O38: 0 | P38: 0 | Q38: 0 | R38: 0 | S38: 0 | T38: 0 | U38: 0 | V38: 0 | W38: 0 | X38: 0 | Y38: 0 | Z38: 0 | AA38: 0 | AB38: 0 | AC38: 0 | AD38: 0 | AE38: 0 | AF38: 1 | AG38: 1 | AH38: 0 | AI38: 0 | AJ38: 0 | AK38: 0 | AL38: 0 | AM38: 5 | AN38: 1 | AO38: 0 | AP38: 5 | AQ38: 0 | AR38: 0 | AS38: 0 | AT38: 0 | AU38: 0 | AV38: 0 | AW38: 0 | AX38: 0 | AY38: 0 | AZ38: 0 | BA38: 0 | BB38: 0 | BC38: 0 | BD38: 0 | BE38: 0 | BF38: 0 | BG38: 0 | BH38: 0 | BI38: 0 | BJ38: 0 | BK38: 0 | BL38: 0 | BM38: 0 | BN38: 0 | BO38: 0 | BP38: 0 | BQ38: 0 | BR38: 0 | BS38: 0 | BT38: 0 | BU38: 0 | BV38: 0 | BW38: 0 | BX38: 0 | BY38: 0 | BZ38: 0 | CA38: 0 | CB38: 0 | CC38: 0 | CD38: 0 | CE38: 0 | CF38: 0 | CG38: 5 | CH38: 0 | CI38: 0 | CJ38: 0 | CK38: 0 | CL38: 0 | CM38: 0 | CN38: 0 | CO38: 0 | CP38: 0 | CQ38: 0 | CR38: 0 | CS38: 0 | CT38: 0 | CU38: 0 | CV38: 0 | CW38: 0 | CX38: 0 | CY38: 0 | CZ38: 0 | DA38: 0 | DB38: 0 | DC38: 0 | DD38: 0 | DE38: 0 | DF38: 0 | DG38: 0 | DH38: 0 | DI38: 0 | DJ38: 0 | DK38: 0 | DL38: 0 | DM38: 0 | DN38: 0 | DO38: 0 | DP38: 0 | DQ38: 0 | DR38: 0 | DS38: 0 | DT38: 0 | DU38: 0 | DV38: 0 | DW38: 0 | DX38: 0 | DY38: 0 | DZ38: 0 | EA38: 0 | EB38: 0 | EC38: 0 | ED38: 0 | EE38: 0 | EF38: 0 | EG38: 0 | EH38: 0 | EI38: 0 | EJ38: 0 | EK38: 0 | EL38: 0 | EM38: 0 | EN38: 0 | EO38: 0 | EP38: 0 | EQ38: 0 | ER38: 0 | ES38: 0 | ET38: 0 | EU38: 0 | EV38: 0 | EW38: 0 | EX38: 0 | EY38: 0 | EZ38: 0 | FA38: 0 | FB38: 0 | FC38: 0 | FD38: 0 | FE38: 0 | FF38: 0 | FG38: 0 | FH38: 0 | FI38: 0 | FJ38: 0 | FK38: 0 | FL38: 0 | FM38: 0 | FN38: 0 | FO38: 0 | FP38: 0 | FQ38: 0 | FR38: 0
A39: LUCIANO CASTILLO COLONNA | B39: AYABACA | C39: 200201 | D39: CHINCHIN | E39: I-1 | F39: AYABACA | G39: NINGUN CLAS | H39: AYABACA | I39: AYABACA | J39: SALUD LUCIANO CASTILLO COLONNA | K39: 1913 | L39: 6 | M39: 0 | N39: 0 | O39: 0 | P39: 0 | Q39: 0 | R39: 0 | S39: 0 | T39: 0 | U39: 0 | V39: 0 | W39: 0 | X39: 0 | Y39: 0 | Z39: 0 | AA39: 0 | AB39: 0 | AC39: 0 | AD39: 0 | AE39: 0 | AF39: 1 | AG39: 0 | AH39: 0 | AI39: 0 | AJ39: 0 | AK39: 0 | AL39: 0 | AM39: 2 | AN39: 0 | AO39: 0 | AP39: 2 | AQ39: 0 | AR39: 0 | AS39: 0 | AT39: 0 | AU39: 0 | AV39: 0 | AW39: 0 | AX39: 0 | AY39: 0 | AZ39: 0 | BA39: 0 | BB39: 0 | BC39: 0 | BD39: 0 | BE39: 0 | BF39: 0 | BG39: 0 | BH39: 0 | BI39: 0 | BJ39: 0 | BK39: 0 | BL39: 0 | BM39: 0 | BN39: 0 | BO39: 0 | BP39: 0 | BQ39: 0 | BR39: 0 | BS39: 0 | BT39: 0 | BU39: 0 | BV39: 0 | BW39: 0 | BX39: 0 | BY39: 0 | BZ39: 0 | CA39: 0 | CB39: 0 | CC39: 0 | CD39: 0 | CE39: 0 | CF39: 0 | CG39: 2 | CH39: 0 | CI39: 0 | CJ39: 0 | CK39: 0 | CL39: 0 | CM39: 0 | CN39: 0 | CO39: 0 | CP39: 0 | CQ39: 0 | CR39: 0 | CS39: 0 | CT39: 0 | CU39: 0 | CV39: 0 | CW39: 0 | CX39: 0 | CY39: 0 | CZ39: 0 | DA39: 0 | DB39: 0 | DC39: 0 | DD39: 0 | DE39: 0 | DF39: 0 | DG39: 0 | DH39: 0 | DI39: 0 | DJ39: 0 | DK39: 0 | DL39: 0 | DM39: 0 | DN39: 0 | DO39: 0 | DP39: 0 | DQ39: 0 | DR39: 0 | DS39: 0 | DT39: 0 | DU39: 0 | DV39: 0 | DW39: 0 | DX39: 0 | DY39: 0 | DZ39: 0 | EA39: 0 | EB39: 0 | EC39: 0 | ED39: 0 | EE39: 0 | EF39: 0 | EG39: 0 | EH39: 0 | EI39: 0 | EJ39: 0 | EK39: 0 | EL39: 0 | EM39: 0 | EN39: 0 | EO39: 0 | EP39: 0 | EQ39: 0 | ER39: 0 | ES39: 0 | ET39: 0 | EU39: 0 | EV39: 0 | EW39: 0 | EX39: 0 | EY39: 0 | EZ39: 0 | FA39: 0 | FB39: 0 | FC39: 0 | FD39: 0 | FE39: 0 | FF39: 0 | FG39: 0 | FH39: 0 | FI39: 0 | FJ39: 0 | FK39: 0 | FL39: 0 | FM39: 0 | FN39: 0 | FO39: 0 | FP39: 0 | FQ39: 0 | FR39: 0
A40: LUCIANO CASTILLO COLONNA | B40: AYABACA | C40: 200201 | D40: CHINCHIN | E40: I-1 | F40: AYABACA | G40: NINGUN CLAS | H40: AYABACA | I40: AYABACA | J40: SALUD LUCIANO CASTILLO COLONNA | K40: 1913 | L40: 12 | M40: 0 | N40: 0 | O40: 0 | P40: 0 | Q40: 0 | R40: 0 | S40: 0 | T40: 0 | U40: 0 | V40: 0 | W40: 0 | X40: 0 | Y40: 0 | Z40: 0 | AA40: 0 | AB40: 0 | AC40: 0 | AD40: 0 | AE40: 0 | AF40: 0 | AG40: 0 | AH40: 0 | AI40: 0 | AJ40: 0 | AK40: 0 | AL40: 0 | AM40: 0 | AN40: 0 | AO40: 0 | AP40: 0 | AQ40: 0 | AR40: 0 | AS40: 0 | AT40: 0 | AU40: 0 | AV40: 0 | AW40: 0 | AX40: 0 | AY40: 0 | AZ40: 0 | BA40: 0 | BB40: 0 | BC40: 0 | BD40: 0 | BE40: 0 | BF40: 0 | BG40: 0 | BH40: 0 | BI40: 0 | BJ40: 0 | BK40: 0 | BL40: 0 | BM40: 0 | BN40: 0 | BO40: 0 | BP40: 0 | BQ40: 0 | BR40: 0 | BS40: 0 | BT40: 0 | BU40: 0 | BV40: 0 | BW40: 0 | BX40: 0 | BY40: 0 | BZ40: 0 | CA40: 0 | CB40: 0 | CC40: 0 | CD40: 0 | CE40: 0 | CF40: 0 | CG40: 0 | CH40: 0 | CI40: 0 | CJ40: 0 | CK40: 0 | CL40: 0 | CM40: 0 | CN40: 0 | CO40: 0 | CP40: 0 | CQ40: 0 | CR40: 0 | CS40: 0 | CT40: 0 | CU40: 0 | CV40: 0 | CW40: 0 | CX40: 0 | CY40: 0 | CZ40: 0 | DA40: 0 | DB40: 0 | DC40: 0 | DD40: 0 | DE40: 0 | DF40: 0 | DG40: 0 | DH40: 0 | DI40: 0 | DJ40: 0 | DK40: 0 | DL40: 0 | DM40: 0 | DN40: 0 | DO40: 0 | DP40: 0 | DQ40: 0 | DR40: 0 | DS40: 0 | DT40: 0 | DU40: 0 | DV40: 0 | DW40: 0 | DX40: 0 | DY40: 0 | DZ40: 0 | EA40: 0 | EB40: 0 | EC40: 0 | ED40: 0 | EE40: 0 | EF40: 0 | EG40: 0 | EH40: 0 | EI40: 0 | EJ40: 0 | EK40: 0 | EL40: 0 | EM40: 0 | EN40: 0 | EO40: 0 | EP40: 0 | EQ40: 0 | ER40: 0 | ES40: 0 | ET40: 0 | EU40: 0 | EV40: 0 | EW40: 0 | EX40: 0 | EY40: 0 | EZ40: 0 | FA40: 0 | FB40: 0 | FC40: 0 | FD40: 0 | FE40: 0 | FF40: 0 | FG40: 0 | FH40: 0 | FI40: 0 | FJ40: 0 | FK40: 0 | FL40: 0 | FM40: 0 | FN40: 0 | FO40: 0 | FP40: 0 | FQ40: 0 | FR40: 0
A41: LUCIANO CASTILLO COLONNA | B41: AYABACA | C41: 200201 | D41: CHINCHIN | E41: I-1 | F41: AYABACA | G41: NINGUN CLAS | H41: AYABACA | I41: AYABACA | J41: SALUD LUCIANO CASTILLO COLONNA | K41: 1913 | L41: 9 | M41: 0 | N41: 0 | O41: 0 | P41: 0 | Q41: 0 | R41: 0 | S41: 0 | T41: 0 | U41: 0 | V41: 0 | W41: 0 | X41: 0 | Y41: 0 | Z41: 0 | AA41: 0 | AB41: 0 | AC41: 0 | AD41: 0 | AE41: 0 | AF41: 0 | AG41: 0 | AH41: 0 | AI41: 0 | AJ41: 0 | AK41: 1 | AL41: 0 | AM41: 5 | AN41: 1 | AO41: 0 | AP41: 5 | AQ41: 0 | AR41: 0 | AS41: 0 | AT41: 0 | AU41: 0 | AV41: 0 | AW41: 0 | AX41: 0 | AY41: 0 | AZ41: 0 | BA41: 0 | BB41: 0 | BC41: 0 | BD41: 0 | BE41: 0 | BF41: 0 | BG41: 0 | BH41: 0 | BI41: 0 | BJ41: 0 | BK41: 0 | BL41: 0 | BM41: 0 | BN41: 0 | BO41: 0 | BP41: 0 | BQ41: 0 | BR41: 0 | BS41: 0 | BT41: 0 | BU41: 0 | BV41: 0 | BW41: 0 | BX41: 0 | BY41: 0 | BZ41: 0 | CA41: 0 | CB41: 0 | CC41: 0 | CD41: 0 | CE41: 0 | CF41: 0 | CG41: 6 | CH41: 0 | CI41: 0 | CJ41: 0 | CK41: 0 | CL41: 0 | CM41: 0 | CN41: 0 | CO41: 0 | CP41: 0 | CQ41: 0 | CR41: 0 | CS41: 0 | CT41: 0 | CU41: 0 | CV41: 0 | CW41: 0 | CX41: 0 | CY41: 0 | CZ41: 0 | DA41: 0 | DB41: 0 | DC41: 0 | DD41: 0 | DE41: 0 | DF41: 0 | DG41: 0 | DH41: 0 | DI41: 0 | DJ41: 0 | DK41: 0 | DL41: 0 | DM41: 0 | DN41: 0 | DO41: 0 | DP41: 0 | DQ41: 0 | DR41: 0 | DS41: 0 | DT41: 0 | DU41: 0 | DV41: 0 | DW41: 0 | DX41: 0 | DY41: 0 | DZ41: 0 | EA41: 0 | EB41: 0 | EC41: 0 | ED41: 0 | EE41: 0 | EF41: 0 | EG41: 0 | EH41: 0 | EI41: 0 | EJ41: 0 | EK41: 0 | EL41: 0 | EM41: 0 | EN41: 0 | EO41: 0 | EP41: 0 | EQ41: 0 | ER41: 0 | ES41: 0 | ET41: 0 | EU41: 0 | EV41: 0 | EW41: 0 | EX41: 0 | EY41: 0 | EZ41: 0 | FA41: 0 | FB41: 0 | FC41: 0 | FD41: 0 | FE41: 0 | FF41: 0 | FG41: 0 | FH41: 0 | FI41: 0 | FJ41: 0 | FK41: 0 | FL41: 0 | FM41: 0 | FN41: 0 | FO41: 0 | FP41: 0 | FQ41: 0 | FR41: 0
A42: LUCIANO CASTILLO COLONNA | B42: AYABACA | C42: 200201 | D42: CHINCHIN | E42: I-1 | F42: AYABACA | G42: NINGUN CLAS | H42: AYABACA | I42: AYABACA | J42: SALUD LUCIANO CASTILLO COLONNA | K42: 1913 | L42: 5 | M42: 0 | N42: 0 | O42: 0 | P42: 0 | Q42: 0 | R42: 0 | S42: 0 | T42: 0 | U42: 0 | V42: 0 | W42: 0 | X42: 0 | Y42: 0 | Z42: 0 | AA42: 0 | AB42: 0 | AC42: 0 | AD42: 0 | AE42: 0 | AF42: 0 | AG42: 2 | AH42: 0 | AI42: 0 | AJ42: 0 | AK42: 0 | AL42: 0 | AM42: 4 | AN42: 0 | AO42: 0 | AP42: 4 | AQ42: 0 | AR42: 0 | AS42: 0 | AT42: 0 | AU42: 0 | AV42: 0 | AW42: 0 | AX42: 0 | AY42: 0 | AZ42: 0 | BA42: 0 | BB42: 0 | BC42: 0 | BD42: 0 | BE42: 0 | BF42: 0 | BG42: 0 | BH42: 0 | BI42: 0 | BJ42: 0 | BK42: 0 | BL42: 0 | BM42: 0 | BN42: 0 | BO42: 0 | BP42: 0 | BQ42: 0 | BR42: 0 | BS42: 0 | BT42: 0 | BU42: 0 | BV42: 0 | BW42: 0 | BX42: 0 | BY42: 0 | BZ42: 0 | CA42: 0 | CB42: 0 | CC42: 0 | CD42: 0 | CE42: 0 | CF42: 0 | CG42: 4 | CH42: 0 | CI42: 0 | CJ42: 0 | CK42: 0 | CL42: 0 | CM42: 0 | CN42: 0 | CO42: 0 | CP42: 0 | CQ42: 0 | CR42: 0 | CS42: 0 | CT42: 0 | CU42: 0 | CV42: 0 | CW42: 0 | CX42: 0 | CY42: 0 | CZ42: 0 | DA42: 0 | DB42: 0 | DC42: 0 | DD42: 0 | DE42: 0 | DF42: 0 | DG42: 0 | DH42: 0 | DI42: 0 | DJ42: 0 | DK42: 0 | DL42: 0 | DM42: 0 | DN42: 0 | DO42: 0 | DP42: 0 | DQ42: 0 | DR42: 0 | DS42: 0 | DT42: 0 | DU42: 0 | DV42: 0 | DW42: 0 | DX42: 0 | DY42: 0 | DZ42: 0 | EA42: 0 | EB42: 0 | EC42: 0 | ED42: 0 | EE42: 0 | EF42: 0 | EG42: 0 | EH42: 0 | EI42: 0 | EJ42: 0 | EK42: 0 | EL42: 0 | EM42: 0 | EN42: 0 | EO42: 0 | EP42: 0 | EQ42: 0 | ER42: 0 | ES42: 0 | ET42: 0 | EU42: 0 | EV42: 0 | EW42: 0 | EX42: 0 | EY42: 0 | EZ42: 0 | FA42: 0 | FB42: 0 | FC42: 0 | FD42: 0 | FE42: 0 | FF42: 0 | FG42: 0 | FH42: 0 | FI42: 0 | FJ42: 0 | FK42: 0 | FL42: 0 | FM42: 0 | FN42: 0 | FO42: 0 | FP42: 0 | FQ42: 0 | FR42: 0
A43: LUCIANO CASTILLO COLONNA | B43: AYABACA | C43: 200201 | D43: CHINCHIN | E43: I-1 | F43: AYABACA | G43: NINGUN CLAS | H43: AYABACA | I43: AYABACA | J43: SALUD LUCIANO CASTILLO COLONNA | K43: 1913 | L43: 2 | M43: 0 | N43: 0 | O43: 0 | P43: 0 | Q43: 0 | R43: 0 | S43: 0 | T43: 0 | U43: 0 | V43: 0 | W43: 0 | X43: 0 | Y43: 0 | Z43: 0 | AA43: 0 | AB43: 0 | AC43: 0 | AD43: 0 | AE43: 1 | AF43: 0 | AG43: 0 | AH43: 0 | AI43: 0 | AJ43: 0 | AK43: 0 | AL43: 0 | AM43: 1 | AN43: 0 | AO43: 1 | AP43: 1 | AQ43: 0 | AR43: 0 | AS43: 0 | AT43: 0 | AU43: 0 | AV43: 0 | AW43: 0 | AX43: 0 | AY43: 0 | AZ43: 0 | BA43: 0 | BB43: 0 | BC43: 0 | BD43: 0 | BE43: 0 | BF43: 0 | BG43: 0 | BH43: 0 | BI43: 0 | BJ43: 0 | BK43: 0 | BL43: 0 | BM43: 0 | BN43: 0 | BO43: 0 | BP43: 0 | BQ43: 0 | BR43: 0 | BS43: 0 | BT43: 0 | BU43: 0 | BV43: 0 | BW43: 0 | BX43: 0 | BY43: 0 | BZ43: 0 | CA43: 0 | CB43: 0 | CC43: 0 | CD43: 0 | CE43: 0 | CF43: 0 | CG43: 1 | CH43: 0 | CI43: 0 | CJ43: 0 | CK43: 0 | CL43: 0 | CM43: 0 | CN43: 0 | CO43: 0 | CP43: 0 | CQ43: 0 | CR43: 0 | CS43: 0 | CT43: 0 | CU43: 0 | CV43: 0 | CW43: 0 | CX43: 0 | CY43: 0 | CZ43: 0 | DA43: 0 | DB43: 0 | DC43: 0 | DD43: 0 | DE43: 0 | DF43: 0 | DG43: 0 | DH43: 0 | DI43: 0 | DJ43: 0 | DK43: 0 | DL43: 0 | DM43: 0 | DN43: 0 | DO43: 0 | DP43: 0 | DQ43: 0 | DR43: 0 | DS43: 0 | DT43: 0 | DU43: 0 | DV43: 0 | DW43: 0 | DX43: 0 | DY43: 0 | DZ43: 0 | EA43: 0 | EB43: 0 | EC43: 0 | ED43: 0 | EE43: 0 | EF43: 0 | EG43: 0 | EH43: 0 | EI43: 0 | EJ43: 0 | EK43: 0 | EL43: 0 | EM43: 0 | EN43: 0 | EO43: 0 | EP43: 0 | EQ43: 0 | ER43: 0 | ES43: 0 | ET43: 0 | EU43: 0 | EV43: 0 | EW43: 0 | EX43: 0 | EY43: 0 | EZ43: 0 | FA43: 0 | FB43: 0 | FC43: 0 | FD43: 0 | FE43: 0 | FF43: 0 | FG43: 0 | FH43: 0 | FI43: 0 | FJ43: 0 | FK43: 0 | FL43: 0 | FM43: 0 | FN43: 0 | FO43: 0 | FP43: 0 | FQ43: 0 | FR43: 0
A44: LUCIANO CASTILLO COLONNA | B44: AYABACA | C44: 200201 | D44: CHINCHIN | E44: I-1 | F44: AYABACA | G44: NINGUN CLAS | H44: AYABACA | I44: AYABACA | J44: SALUD LUCIANO CASTILLO COLONNA | K44: 1913 | L44: 8 | M44: 0 | N44: 0 | O44: 0 | P44: 0 | Q44: 0 | R44: 0 | S44: 0 | T44: 0 | U44: 0 | V44: 0 | W44: 0 | X44: 0 | Y44: 0 | Z44: 0 | AA44: 0 | AB44: 0 | AC44: 0 | AD44: 0 | AE44: 0 | AF44: 0 | AG44: 0 | AH44: 0 | AI44: 0 | AJ44: 0 | AK44: 0 | AL44: 0 | AM44: 2 | AN44: 0 | AO44: 0 | AP44: 2 | AQ44: 0 | AR44: 0 | AS44: 0 | AT44: 0 | AU44: 0 | AV44: 0 | AW44: 0 | AX44: 0 | AY44: 0 | AZ44: 0 | BA44: 0 | BB44: 0 | BC44: 0 | BD44: 0 | BE44: 0 | BF44: 0 | BG44: 0 | BH44: 0 | BI44: 0 | BJ44: 0 | BK44: 0 | BL44: 0 | BM44: 0 | BN44: 0 | BO44: 0 | BP44: 0 | BQ44: 0 | BR44: 0 | BS44: 0 | BT44: 0 | BU44: 0 | BV44: 0 | BW44: 0 | BX44: 0 | BY44: 0 | BZ44: 0 | CA44: 0 | CB44: 0 | CC44: 0 | CD44: 0 | CE44: 0 | CF44: 0 | CG44: 2 | CH44: 0 | CI44: 0 | CJ44: 0 | CK44: 0 | CL44: 0 | CM44: 0 | CN44: 0 | CO44: 0 | CP44: 0 | CQ44: 0 | CR44: 0 | CS44: 0 | CT44: 0 | CU44: 0 | CV44: 0 | CW44: 0 | CX44: 0 | CY44: 0 | CZ44: 0 | DA44: 0 | DB44: 0 | DC44: 0 | DD44: 0 | DE44: 0 | DF44: 0 | DG44: 0 | DH44: 0 | DI44: 0 | DJ44: 0 | DK44: 0 | DL44: 0 | DM44: 0 | DN44: 0 | DO44: 0 | DP44: 0 | DQ44: 0 | DR44: 0 | DS44: 0 | DT44: 0 | DU44: 0 | DV44: 0 | DW44: 0 | DX44: 0 | DY44: 0 | DZ44: 0 | EA44: 0 | EB44: 0 | EC44: 0 | ED44: 0 | EE44: 0 | EF44: 0 | EG44: 0 | EH44: 0 | EI44: 0 | EJ44: 0 | EK44: 0 | EL44: 0 | EM44: 0 | EN44: 0 | EO44: 0 | EP44: 0 | EQ44: 0 | ER44: 0 | ES44: 0 | ET44: 0 | EU44: 0 | EV44: 0 | EW44: 0 | EX44: 0 | EY44: 0 | EZ44: 0 | FA44: 0 | FB44: 0 | FC44: 0 | FD44: 0 | FE44: 0 | FF44: 0 | FG44: 0 | FH44: 0 | FI44: 0 | FJ44: 0 | FK44: 0 | FL44: 0 | FM44: 0 | FN44: 0 | FO44: 0 | FP44: 0 | FQ44: 0 | FR44: 0
A45: LUCIANO CASTILLO COLONNA | B45: AYABACA | C45: 200201 | D45: CHINCHIN | E45: I-1 | F45: AYABACA | G45: NINGUN CLAS | H45: AYABACA | I45: AYABACA | J45: SALUD LUCIANO CASTILLO COLONNA | K45: 1913 | L45: 7 | M45: 0 | N45: 0 | O45: 0 | P45: 0 | Q45: 0 | R45: 0 | S45: 0 | T45: 0 | U45: 0 | V45: 0 | W45: 0 | X45: 0 | Y45: 0 | Z45: 0 | AA45: 0 | AB45: 0 | AC45: 0 | AD45: 0 | AE45: 1 | AF45: 0 | AG45: 1 | AH45: 0 | AI45: 0 | AJ45: 0 | AK45: 0 | AL45: 0 | AM45: 0 | AN45: 2 | AO45: 0 | AP45: 1 | AQ45: 0 | AR45: 0 | AS45: 0 | AT45: 0 | AU45: 0 | AV45: 0 | AW45: 0 | AX45: 0 | AY45: 0 | AZ45: 0 | BA45: 0 | BB45: 0 | BC45: 0 | BD45: 0 | BE45: 0 | BF45: 0 | BG45: 0 | BH45: 0 | BI45: 0 | BJ45: 0 | BK45: 0 | BL45: 0 | BM45: 0 | BN45: 0 | BO45: 0 | BP45: 0 | BQ45: 0 | BR45: 0 | BS45: 0 | BT45: 0 | BU45: 0 | BV45: 0 | BW45: 0 | BX45: 0 | BY45: 0 | BZ45: 0 | CA45: 0 | CB45: 0 | CC45: 0 | CD45: 0 | CE45: 0 | CF45: 0 | CG45: 0 | CH45: 0 | CI45: 0 | CJ45: 0 | CK45: 0 | CL45: 0 | CM45: 0 | CN45: 0 | CO45: 0 | CP45: 0 | CQ45: 0 | CR45: 0 | CS45: 0 | CT45: 0 | CU45: 0 | CV45: 0 | CW45: 0 | CX45: 0 | CY45: 0 | CZ45: 0 | DA45: 0 | DB45: 0 | DC45: 0 | DD45: 0 | DE45: 0 | DF45: 0 | DG45: 0 | DH45: 0 | DI45: 0 | DJ45: 0 | DK45: 0 | DL45: 0 | DM45: 0 | DN45: 0 | DO45: 0 | DP45: 0 | DQ45: 0 | DR45: 0 | DS45: 0 | DT45: 0 | DU45: 0 | DV45: 0 | DW45: 0 | DX45: 0 | DY45: 0 | DZ45: 0 | EA45: 0 | EB45: 0 | EC45: 0 | ED45: 0 | EE45: 0 | EF45: 0 | EG45: 0 | EH45: 0 | EI45: 0 | EJ45: 0 | EK45: 0 | EL45: 0 | EM45: 0 | EN45: 0 | EO45: 0 | EP45: 0 | EQ45: 0 | ER45: 0 | ES45: 0 | ET45: 0 | EU45: 0 | EV45: 0 | EW45: 0 | EX45: 0 | EY45: 0 | EZ45: 0 | FA45: 0 | FB45: 0 | FC45: 0 | FD45: 0 | FE45: 0 | FF45: 0 | FG45: 0 | FH45: 0 | FI45: 0 | FJ45: 0 | FK45: 0 | FL45: 0 | FM45: 0 | FN45: 0 | FO45: 0 | FP45: 0 | FQ45: 0 | FR45: 0
A46: LUCIANO CASTILLO COLONNA | B46: AYABACA | C46: 200201 | D46: CHINCHIN | E46: I-1 | F46: AYABACA | G46: NINGUN CLAS | H46: AYABACA | I46: AYABACA | J46: SALUD LUCIANO CASTILLO COLONNA | K46: 1913 | L46: 1 | M46: 0 | N46: 0 | O46: 0 | P46: 0 | Q46: 0 | R46: 0 | S46: 0 | T46: 0 | U46: 0 | V46: 0 | W46: 0 | X46: 0 | Y46: 0 | Z46: 0 | AA46: 0 | AB46: 0 | AC46: 0 | AD46: 0 | AE46: 0 | AF46: 0 | AG46: 0 | AH46: 0 | AI46: 0 | AJ46: 0 | AK46: 0 | AL46: 0 | AM46: 5 | AN46: 2 | AO46: 0 | AP46: 5 | AQ46: 0 | AR46: 0 | AS46: 0 | AT46: 0 | AU46: 0 | AV46: 0 | AW46: 0 | AX46: 0 | AY46: 0 | AZ46: 0 | BA46: 0 | BB46: 0 | BC46: 0 | BD46: 0 | BE46: 0 | BF46: 0 | BG46: 0 | BH46: 0 | BI46: 0 | BJ46: 0 | BK46: 0 | BL46: 0 | BM46: 0 | BN46: 0 | BO46: 0 | BP46: 0 | BQ46: 0 | BR46: 0 | BS46: 0 | BT46: 0 | BU46: 0 | BV46: 0 | BW46: 0 | BX46: 0 | BY46: 0 | BZ46: 0 | CA46: 0 | CB46: 0 | CC46: 0 | CD46: 0 | CE46: 0 | CF46: 0 | CG46: 5 | CH46: 0 | CI46: 0 | CJ46: 0 | CK46: 0 | CL46: 0 | CM46: 0 | CN46: 0 | CO46: 0 | CP46: 0 | CQ46: 0 | CR46: 0 | CS46: 0 | CT46: 0 | CU46: 0 | CV46: 0 | CW46: 0 | CX46: 0 | CY46: 0 | CZ46: 0 | DA46: 0 | DB46: 0 | DC46: 0 | DD46: 0 | DE46: 0 | DF46: 0 | DG46: 0 | DH46: 0 | DI46: 0 | DJ46: 0 | DK46: 0 | DL46: 0 | DM46: 0 | DN46: 0 | DO46: 0 | DP46: 0 | DQ46: 0 | DR46: 0 | DS46: 0 | DT46: 0 | DU46: 0 | DV46: 0 | DW46: 0 | DX46: 0 | DY46: 0 | DZ46: 0 | EA46: 0 | EB46: 0 | EC46: 0 | ED46: 0 | EE46: 0 | EF46: 0 | EG46: 0 | EH46: 0 | EI46: 0 | EJ46: 0 | EK46: 0 | EL46: 0 | EM46: 0 | EN46: 0 | EO46: 0 | EP46: 0 | EQ46: 0 | ER46: 0 | ES46: 0 | ET46: 0 | EU46: 0 | EV46: 0 | EW46: 0 | EX46: 0 | EY46: 0 | EZ46: 0 | FA46: 0 | FB46: 0 | FC46: 0 | FD46: 0 | FE46: 0 | FF46: 0 | FG46: 0 | FH46: 0 | FI46: 0 | FJ46: 0 | FK46: 0 | FL46: 0 | FM46: 0 | FN46: 0 | FO46: 0 | FP46: 0 | FQ46: 0 | FR46: 0
A47: LUCIANO CASTILLO COLONNA | B47: AYABACA | C47: 200201 | D47: CHINCHIN | E47: I-1 | F47: AYABACA | G47: NINGUN CLAS | H47: AYABACA | I47: AYABACA | J47: SALUD LUCIANO CASTILLO COLONNA | K47: 1913 | L47: 10 | M47: 0 | N47: 0 | O47: 0 | P47: 0 | Q47: 0 | R47: 0 | S47: 0 | T47: 0 | U47: 0 | V47: 0 | W47: 0 | X47: 0 | Y47: 0 | Z47: 0 | AA47: 0 | AB47: 0 | AC47: 0 | AD47: 0 | AE47: 0 | AF47: 0 | AG47: 0 | AH47: 0 | AI47: 0 | AJ47: 0 | AK47: 0 | AL47: 0 | AM47: 4 | AN47: 0 | AO47: 1 | AP47: 4 | AQ47: 0 | AR47: 0 | AS47: 0 | AT47: 0 | AU47: 0 | AV47: 0 | AW47: 0 | AX47: 0 | AY47: 0 | AZ47: 0 | BA47: 0 | BB47: 0 | BC47: 0 | BD47: 0 | BE47: 0 | BF47: 0 | BG47: 0 | BH47: 0 | BI47: 0 | BJ47: 0 | BK47: 0 | BL47: 0 | BM47: 0 | BN47: 0 | BO47: 0 | BP47: 0 | BQ47: 0 | BR47: 0 | BS47: 0 | BT47: 0 | BU47: 0 | BV47: 0 | BW47: 0 | BX47: 0 | BY47: 0 | BZ47: 0 | CA47: 0 | CB47: 0 | CC47: 0 | CD47: 0 | CE47: 0 | CF47: 0 | CG47: 4 | CH47: 0 | CI47: 0 | CJ47: 0 | CK47: 0 | CL47: 0 | CM47: 0 | CN47: 0 | CO47: 0 | CP47: 0 | CQ47: 0 | CR47: 0 | CS47: 0 | CT47: 0 | CU47: 0 | CV47: 0 | CW47: 0 | CX47: 0 | CY47: 0 | CZ47: 0 | DA47: 0 | DB47: 0 | DC47: 0 | DD47: 0 | DE47: 0 | DF47: 0 | DG47: 0 | DH47: 0 | DI47: 0 | DJ47: 0 | DK47: 0 | DL47: 0 | DM47: 0 | DN47: 0 | DO47: 0 | DP47: 0 | DQ47: 0 | DR47: 0 | DS47: 0 | DT47: 0 | DU47: 0 | DV47: 0 | DW47: 0 | DX47: 0 | DY47: 0 | DZ47: 0 | EA47: 0 | EB47: 0 | EC47: 0 | ED47: 0 | EE47: 0 | EF47: 0 | EG47: 0 | EH47: 0 | EI47: 0 | EJ47: 0 | EK47: 0 | EL47: 0 | EM47: 0 | EN47: 0 | EO47: 0 | EP47: 0 | EQ47: 0 | ER47: 0 | ES47: 0 | ET47: 0 | EU47: 0 | EV47: 0 | EW47: 0 | EX47: 0 | EY47: 0 | EZ47: 0 | FA47: 0 | FB47: 0 | FC47: 0 | FD47: 0 | FE47: 0 | FF47: 0 | FG47: 0 | FH47: 0 | FI47: 0 | FJ47: 0 | FK47: 0 | FL47: 0 | FM47: 0 | FN47: 0 | FO47: 0 | FP47: 0 | FQ47: 0 | FR47: 0
A48: LUCIANO CASTILLO COLONNA | B48: AYABACA | C48: 200201 | D48: CHINCHIN | E48: I-1 | F48: AYABACA | G48: NINGUN CLAS | H48: AYABACA | I48: AYABACA | J48: SALUD LUCIANO CASTILLO COLONNA | K48: 1913 | L48: 4 | M48: 0 | N48: 0 | O48: 0 | P48: 0 | Q48: 0 | R48: 0 | S48: 0 | T48: 0 | U48: 0 | V48: 0 | W48: 0 | X48: 0 | Y48: 0 | Z48: 0 | AA48: 0 | AB48: 0 | AC48: 0 | AD48: 0 | AE48: 0 | AF48: 0 | AG48: 0 | AH48: 0 | AI48: 0 | AJ48: 0 | AK48: 0 | AL48: 0 | AM48: 5 | AN48: 0 | AO48: 0 | AP48: 5 | AQ48: 0 | AR48: 0 | AS48: 0 | AT48: 0 | AU48: 0 | AV48: 0 | AW48: 0 | AX48: 0 | AY48: 0 | AZ48: 0 | BA48: 0 | BB48: 0 | BC48: 0 | BD48: 0 | BE48: 0 | BF48: 0 | BG48: 0 | BH48: 0 | BI48: 0 | BJ48: 0 | BK48: 0 | BL48: 0 | BM48: 0 | BN48: 0 | BO48: 0 | BP48: 0 | BQ48: 0 | BR48: 0 | BS48: 0 | BT48: 0 | BU48: 0 | BV48: 0 | BW48: 0 | BX48: 0 | BY48: 0 | BZ48: 0 | CA48: 0 | CB48: 0 | CC48: 0 | CD48: 0 | CE48: 0 | CF48: 0 | CG48: 5 | CH48: 0 | CI48: 0 | CJ48: 0 | CK48: 0 | CL48: 0 | CM48: 0 | CN48: 0 | CO48: 0 | CP48: 0 | CQ48: 0 | CR48: 0 | CS48: 0 | CT48: 0 | CU48: 0 | CV48: 0 | CW48: 0 | CX48: 0 | CY48: 0 | CZ48: 0 | DA48: 0 | DB48: 0 | DC48: 0 | DD48: 0 | DE48: 0 | DF48: 0 | DG48: 0 | DH48: 0 | DI48: 0 | DJ48: 0 | DK48: 0 | DL48: 0 | DM48: 0 | DN48: 0 | DO48: 0 | DP48: 0 | DQ48: 0 | DR48: 0 | DS48: 0 | DT48: 0 | DU48: 0 | DV48: 0 | DW48: 0 | DX48: 0 | DY48: 0 | DZ48: 0 | EA48: 0 | EB48: 0 | EC48: 0 | ED48: 0 | EE48: 0 | EF48: 0 | EG48: 0 | EH48: 0 | EI48: 0 | EJ48: 0 | EK48: 0 | EL48: 0 | EM48: 0 | EN48: 0 | EO48: 0 | EP48: 0 | EQ48: 0 | ER48: 0 | ES48: 0 | ET48: 0 | EU48: 0 | EV48: 0 | EW48: 0 | EX48: 0 | EY48: 0 | EZ48: 0 | FA48: 0 | FB48: 0 | FC48: 0 | FD48: 0 | FE48: 0 | FF48: 0 | FG48: 0 | FH48: 0 | FI48: 0 | FJ48: 0 | FK48: 0 | FL48: 0 | FM48: 0 | FN48: 0 | FO48: 0 | FP48: 0 | FQ48: 0 | FR48: 0
A49: LUCIANO CASTILLO COLONNA | B49: AYABACA | C49: 200201 | D49: CHINCHIN | E49: I-1 | F49: AYABACA | G49: NINGUN CLAS | H49: AYABACA | I49: AYABACA | J49: SALUD LUCIANO CASTILLO COLONNA | K49: 1913 | L49: 11 | M49: 0 | N49: 0 | O49: 0 | P49: 0 | Q49: 0 | R49: 0 | S49: 0 | T49: 0 | U49: 0 | V49: 0 | W49: 0 | X49: 0 | Y49: 0 | Z49: 0 | AA49: 0 | AB49: 0 | AC49: 0 | AD49: 0 | AE49: 0 | AF49: 1 | AG49: 1 | AH49: 0 | AI49: 0 | AJ49: 0 | AK49: 0 | AL49: 0 | AM49: 2 | AN49: 0 | AO49: 0 | AP49: 3 | AQ49: 0 | AR49: 0 | AS49: 0 | AT49: 0 | AU49: 0 | AV49: 0 | AW49: 0 | AX49: 0 | AY49: 0 | AZ49: 0 | BA49: 0 | BB49: 0 | BC49: 0 | BD49: 0 | BE49: 0 | BF49: 0 | BG49: 0 | BH49: 0 | BI49: 0 | BJ49: 0 | BK49: 0 | BL49: 0 | BM49: 0 | BN49: 0 | BO49: 0 | BP49: 0 | BQ49: 0 | BR49: 0 | BS49: 0 | BT49: 0 | BU49: 0 | BV49: 0 | BW49: 0 | BX49: 0 | BY49: 0 | BZ49: 0 | CA49: 0 | CB49: 0 | CC49: 0 | CD49: 0 | CE49: 0 | CF49: 0 | CG49: 2 | CH49: 0 | CI49: 0 | CJ49: 0 | CK49: 0 | CL49: 0 | CM49: 0 | CN49: 0 | CO49: 0 | CP49: 0 | CQ49: 0 | CR49: 0 | CS49: 0 | CT49: 0 | CU49: 0 | CV49: 0 | CW49: 0 | CX49: 0 | CY49: 0 | CZ49: 0 | DA49: 0 | DB49: 0 | DC49: 0 | DD49: 0 | DE49: 0 | DF49: 0 | DG49: 0 | DH49: 0 | DI49: 0 | DJ49: 0 | DK49: 0 | DL49: 0 | DM49: 0 | DN49: 0 | DO49: 0 | DP49: 0 | DQ49: 0 | DR49: 0 | DS49: 0 | DT49: 0 | DU49: 0 | DV49: 0 | DW49: 0 | DX49: 0 | DY49: 0 | DZ49: 0 | EA49: 0 | EB49: 0 | EC49: 0 | ED49: 0 | EE49: 0 | EF49: 0 | EG49: 0 | EH49: 0 | EI49: 0 | EJ49: 0 | EK49: 0 | EL49: 0 | EM49: 0 | EN49: 0 | EO49: 0 | EP49: 0 | EQ49: 0 | ER49: 0 | ES49: 0 | ET49: 0 | EU49: 0 | EV49: 0 | EW49: 0 | EX49: 0 | EY49: 0 | EZ49: 0 | FA49: 0 | FB49: 0 | FC49: 0 | FD49: 0 | FE49: 0 | FF49: 0 | FG49: 0 | FH49: 0 | FI49: 0 | FJ49: 0 | FK49: 0 | FL49: 0 | FM49: 0 | FN49: 0 | FO49: 0 | FP49: 0 | FQ49: 0 | FR49: 0
A50: LUCIANO CASTILLO COLONNA | B50: AYABACA | C50: 200201 | D50: OLLEROS | E50: I-2 | F50: AYABACA | G50: NINGUN CLAS | H50: AYABACA | I50: AYABACA | J50: SALUD LUCIANO CASTILLO COLONNA | K50: 1914 | L50: 12 | M50: 0 | N50: 0 | O50: 0 | P50: 0 | Q50: 0 | R50: 0 | S50: 0 | T50: 0 | U50: 0 | V50: 0 | W50: 0 | X50: 0 | Y50: 0 | Z50: 0 | AA50: 0 | AB50: 0 | AC50: 0 | AD50: 0 | AE50: 0 | AF50: 0 | AG50: 0 | AH50: 0 | AI50: 0 | AJ50: 0 | AK50: 0 | AL50: 1 | AM50: 7 | AN50: 0 | AO50: 1 | AP50: 7 | AQ50: 0 | AR50: 0 | AS50: 0 | AT50: 0 | AU50: 0 | AV50: 0 | AW50: 0 | AX50: 0 | AY50: 0 | AZ50: 0 | BA50: 0 | BB50: 0 | BC50: 0 | BD50: 0 | BE50: 0 | BF50: 0 | BG50: 0 | BH50: 0 | BI50: 0 | BJ50: 1 | BK50: 1 | BL50: 0 | BM50: 2 | BN50: 0 | BO50: 0 | BP50: 0 | BQ50: 0 | BR50: 0 | BS50: 0 | BT50: 0 | BU50: 0 | BV50: 0 | BW50: 0 | BX50: 0 | BY50: 0 | BZ50: 0 | CA50: 0 | CB50: 0 | CC50: 0 | CD50: 0 | CE50: 0 | CF50: 0 | CG50: 8 | CH50: 3 | CI50: 1 | CJ50: 0 | CK50: 0 | CL50: 0 | CM50: 0 | CN50: 0 | CO50: 0 | CP50: 0 | CQ50: 0 | CR50: 0 | CS50: 0 | CT50: 0 | CU50: 0 | CV50: 0 | CW50: 0 | CX50: 0 | CY50: 0 | CZ50: 0 | DA50: 0 | DB50: 0 | DC50: 0 | DD50: 0 | DE50: 0 | DF50: 0 | DG50: 0 | DH50: 0 | DI50: 0 | DJ50: 0 | DK50: 0 | DL50: 0 | DM50: 0 | DN50: 0 | DO50: 0 | DP50: 0 | DQ50: 0 | DR50: 0 | DS50: 0 | DT50: 0 | DU50: 0 | DV50: 0 | DW50: 0 | DX50: 0 | DY50: 0 | DZ50: 0 | EA50: 0 | EB50: 0 | EC50: 0 | ED50: 0 | EE50: 0 | EF50: 0 | EG50: 0 | EH50: 0 | EI50: 0 | EJ50: 0 | EK50: 0 | EL50: 0 | EM50: 0 | EN50: 0 | EO50: 0 | EP50: 0 | EQ50: 0 | ER50: 0 | ES50: 0 | ET50: 0 | EU50: 0 | EV50: 0 | EW50: 0 | EX50: 0 | EY50: 0 | EZ50: 0 | FA50: 0 | FB50: 0 | FC50: 0 | FD50: 0 | FE50: 0 | FF50: 0 | FG50: 0 | FH50: 0 | FI50: 0 | FJ50: 0 | FK50: 0 | FL50: 0 | FM50: 0 | FN50: 0 | FO50: 0 | FP50: 0 | FQ50: 0 | FR50: 0
A51: LUCIANO CASTILLO COLONNA | B51: AYABACA | C51: 200201 | D51: OLLEROS | E51: I-2 | F51: AYABACA | G51: NINGUN CLAS | H51: AYABACA | I51: AYABACA | J51: SALUD LUCIANO CASTILLO COLONNA | K51: 1914 | L51: 1 | M51: 0 | N51: 0 | O51: 0 | P51: 0 | Q51: 0 | R51: 0 | S51: 0 | T51: 0 | U51: 0 | V51: 0 | W51: 0 | X51: 0 | Y51: 0 | Z51: 0 | AA51: 0 | AB51: 0 | AC51: 0 | AD51: 0 | AE51: 0 | AF51: 0 | AG51: 0 | AH51: 0 | AI51: 0 | AJ51: 0 | AK51: 4 | AL51: 1 | AM51: 21 | AN51: 6 | AO51: 1 | AP51: 21 | AQ51: 0 | AR51: 0 | AS51: 0 | AT51: 0 | AU51: 0 | AV51: 0 | AW51: 0 | AX51: 0 | AY51: 0 | AZ51: 0 | BA51: 0 | BB51: 0 | BC51: 0 | BD51: 0 | BE51: 0 | BF51: 0 | BG51: 0 | BH51: 0 | BI51: 0 | BJ51: 0 | BK51: 0 | BL51: 0 | BM51: 0 | BN51: 0 | BO51: 0 | BP51: 0 | BQ51: 0 | BR51: 0 | BS51: 0 | BT51: 0 | BU51: 0 | BV51: 0 | BW51: 0 | BX51: 0 | BY51: 0 | BZ51: 0 | CA51: 0 | CB51: 0 | CC51: 0 | CD51: 0 | CE51: 0 | CF51: 0 | CG51: 26 | CH51: 0 | CI51: 0 | CJ51: 0 | CK51: 0 | CL51: 0 | CM51: 0 | CN51: 0 | CO51: 0 | CP51: 0 | CQ51: 0 | CR51: 0 | CS51: 0 | CT51: 0 | CU51: 0 | CV51: 0 | CW51: 0 | CX51: 0 | CY51: 0 | CZ51: 0 | DA51: 0 | DB51: 0 | DC51: 0 | DD51: 0 | DE51: 0 | DF51: 0 | DG51: 0 | DH51: 0 | DI51: 0 | DJ51: 0 | DK51: 0 | DL51: 0 | DM51: 0 | DN51: 0 | DO51: 0 | DP51: 0 | DQ51: 0 | DR51: 0 | DS51: 0 | DT51: 0 | DU51: 0 | DV51: 0 | DW51: 0 | DX51: 0 | DY51: 0 | DZ51: 0 | EA51: 0 | EB51: 0 | EC51: 0 | ED51: 0 | EE51: 0 | EF51: 0 | EG51: 0 | EH51: 0 | EI51: 0 | EJ51: 0 | EK51: 0 | EL51: 0 | EM51: 0 | EN51: 0 | EO51: 0 | EP51: 0 | EQ51: 0 | ER51: 0 | ES51: 0 | ET51: 0 | EU51: 0 | EV51: 0 | EW51: 0 | EX51: 0 | EY51: 0 | EZ51: 0 | FA51: 0 | FB51: 0 | FC51: 0 | FD51: 0 | FE51: 0 | FF51: 0 | FG51: 0 | FH51: 0 | FI51: 0 | FJ51: 0 | FK51: 0 | FL51: 0 | FM51: 0 | FN51: 0 | FO51: 0 | FP51: 0 | FQ51: 0 | FR51: 0
A52: LUCIANO CASTILLO COLONNA | B52: AYABACA | C52: 200201 | D52: OLLEROS | E52: I-2 | F52: AYABACA | G52: NINGUN CLAS | H52: AYABACA | I52: AYABACA | J52: SALUD LUCIANO CASTILLO COLONNA | K52: 1914 | L52: 5 | M52: 0 | N52: 0 | O52: 0 | P52: 0 | Q52: 0 | R52: 0 | S52: 0 | T52: 0 | U52: 0 | V52: 0 | W52: 0 | X52: 0 | Y52: 0 | Z52: 0 | AA52: 0 | AB52: 0 | AC52: 0 | AD52: 0 | AE52: 0 | AF52: 0 | AG52: 0 | AH52: 0 | AI52: 0 | AJ52: 0 | AK52: 1 | AL52: 3 | AM52: 18 | AN52: 1 | AO52: 3 | AP52: 18 | AQ52: 0 | AR52: 0 | AS52: 0 | AT52: 0 | AU52: 0 | AV52: 0 | AW52: 0 | AX52: 0 | AY52: 0 | AZ52: 0 | BA52: 0 | BB52: 0 | BC52: 0 | BD52: 0 | BE52: 0 | BF52: 0 | BG52: 0 | BH52: 0 | BI52: 0 | BJ52: 0 | BK52: 0 | BL52: 0 | BM52: 0 | BN52: 0 | BO52: 0 | BP52: 0 | BQ52: 0 | BR52: 0 | BS52: 0 | BT52: 0 | BU52: 0 | BV52: 0 | BW52: 0 | BX52: 0 | BY52: 0 | BZ52: 0 | CA52: 0 | CB52: 0 | CC52: 0 | CD52: 0 | CE52: 0 | CF52: 0 | CG52: 22 | CH52: 0 | CI52: 0 | CJ52: 0 | CK52: 0 | CL52: 0 | CM52: 0 | CN52: 0 | CO52: 0 | CP52: 0 | CQ52: 0 | CR52: 0 | CS52: 0 | CT52: 0 | CU52: 0 | CV52: 0 | CW52: 0 | CX52: 0 | CY52: 0 | CZ52: 0 | DA52: 0 | DB52: 0 | DC52: 0 | DD52: 0 | DE52: 0 | DF52: 0 | DG52: 0 | DH52: 0 | DI52: 0 | DJ52: 0 | DK52: 0 | DL52: 0 | DM52: 0 | DN52: 0 | DO52: 0 | DP52: 0 | DQ52: 0 | DR52: 0 | DS52: 0 | DT52: 0 | DU52: 0 | DV52: 0 | DW52: 0 | DX52: 0 | DY52: 0 | DZ52: 0 | EA52: 0 | EB52: 0 | EC52: 0 | ED52: 0 | EE52: 0 | EF52: 0 | EG52: 0 | EH52: 0 | EI52: 0 | EJ52: 0 | EK52: 0 | EL52: 0 | EM52: 0 | EN52: 0 | EO52: 0 | EP52: 0 | EQ52: 0 | ER52: 0 | ES52: 0 | ET52: 0 | EU52: 0 | EV52: 0 | EW52: 0 | EX52: 0 | EY52: 0 | EZ52: 0 | FA52: 0 | FB52: 0 | FC52: 0 | FD52: 0 | FE52: 0 | FF52: 0 | FG52: 0 | FH52: 0 | FI52: 0 | FJ52: 0 | FK52: 0 | FL52: 0 | FM52: 0 | FN52: 0 | FO52: 0 | FP52: 0 | FQ52: 0 | FR52: 0
A53: LUCIANO CASTILLO COLONNA | B53: AYABACA | C53: 200201 | D53: OLLEROS | E53: I-2 | F53: AYABACA | G53: NINGUN CLAS | H53: AYABACA | I53: AYABACA | J53: SALUD LUCIANO CASTILLO COLONNA | K53: 1914 | L53: 8 | M53: 0 | N53: 0 | O53: 0 | P53: 0 | Q53: 0 | R53: 0 | S53: 0 | T53: 0 | U53: 0 | V53: 0 | W53: 0 | X53: 0 | Y53: 0 | Z53: 0 | AA53: 0 | AB53: 0 | AC53: 0 | AD53: 0 | AE53: 0 | AF53: 0 | AG53: 0 | AH53: 0 | AI53: 0 | AJ53: 0 | AK53: 3 | AL53: 1 | AM53: 24 | AN53: 3 | AO53: 1 | AP53: 24 | AQ53: 0 | AR53: 0 | AS53: 0 | AT53: 0 | AU53: 0 | AV53: 0 | AW53: 0 | AX53: 0 | AY53: 0 | AZ53: 0 | BA53: 0 | BB53: 0 | BC53: 0 | BD53: 0 | BE53: 0 | BF53: 0 | BG53: 0 | BH53: 0 | BI53: 0 | BJ53: 0 | BK53: 0 | BL53: 0 | BM53: 0 | BN53: 0 | BO53: 0 | BP53: 0 | BQ53: 0 | BR53: 0 | BS53: 0 | BT53: 0 | BU53: 0 | BV53: 0 | BW53: 0 | BX53: 0 | BY53: 0 | BZ53: 0 | CA53: 0 | CB53: 0 | CC53: 0 | CD53: 0 | CE53: 0 | CF53: 0 | CG53: 28 | CH53: 0 | CI53: 0 | CJ53: 0 | CK53: 0 | CL53: 0 | CM53: 0 | CN53: 0 | CO53: 0 | CP53: 0 | CQ53: 0 | CR53: 0 | CS53: 0 | CT53: 0 | CU53: 0 | CV53: 0 | CW53: 0 | CX53: 0 | CY53: 0 | CZ53: 0 | DA53: 0 | DB53: 0 | DC53: 0 | DD53: 0 | DE53: 0 | DF53: 0 | DG53: 0 | DH53: 0 | DI53: 0 | DJ53: 0 | DK53: 0 | DL53: 0 | DM53: 0 | DN53: 0 | DO53: 0 | DP53: 0 | DQ53: 0 | DR53: 0 | DS53: 0 | DT53: 0 | DU53: 0 | DV53: 0 | DW53: 0 | DX53: 0 | DY53: 0 | DZ53: 0 | EA53: 0 | EB53: 0 | EC53: 0 | ED53: 0 | EE53: 0 | EF53: 0 | EG53: 0 | EH53: 0 | EI53: 0 | EJ53: 0 | EK53: 0 | EL53: 0 | EM53: 0 | EN53: 0 | EO53: 0 | EP53: 0 | EQ53: 0 | ER53: 0 | ES53: 0 | ET53: 0 | EU53: 0 | EV53: 0 | EW53: 0 | EX53: 0 | EY53: 0 | EZ53: 0 | FA53: 0 | FB53: 0 | FC53: 0 | FD53: 0 | FE53: 0 | FF53: 0 | FG53: 1 | FH53: 0 | FI53: 0 | FJ53: 0 | FK53: 0 | FL53: 0 | FM53: 0 | FN53: 0 | FO53: 0 | FP53: 3 | FQ53: 0 | FR53: 1
A54: LUCIANO CASTILLO COLONNA | B54: AYABACA | C54: 200201 | D54: OLLEROS | E54: I-2 | F54: AYABACA | G54: NINGUN CLAS | H54: AYABACA | I54: AYABACA | J54: SALUD LUCIANO CASTILLO COLONNA | K54: 1914 | L54: 10 | M54: 0 | N54: 0 | O54: 0 | P54: 0 | Q54: 0 | R54: 0 | S54: 0 | T54: 0 | U54: 0 | V54: 0 | W54: 0 | X54: 0 | Y54: 0 | Z54: 0 | AA54: 0 | AB54: 0 | AC54: 0 | AD54: 0 | AE54: 0 | AF54: 0 | AG54: 0 | AH54: 0 | AI54: 0 | AJ54: 0 | AK54: 3 | AL54: 2 | AM54: 17 | AN54: 3 | AO54: 2 | AP54: 18 | AQ54: 0 | AR54: 0 | AS54: 0 | AT54: 0 | AU54: 0 | AV54: 0 | AW54: 0 | AX54: 0 | AY54: 0 | AZ54: 0 | BA54: 0 | BB54: 0 | BC54: 0 | BD54: 0 | BE54: 0 | BF54: 0 | BG54: 0 | BH54: 0 | BI54: 1 | BJ54: 0 | BK54: 1 | BL54: 0 | BM54: 0 | BN54: 1 | BO54: 0 | BP54: 0 | BQ54: 0 | BR54: 0 | BS54: 0 | BT54: 0 | BU54: 0 | BV54: 0 | BW54: 0 | BX54: 0 | BY54: 0 | BZ54: 0 | CA54: 0 | CB54: 0 | CC54: 0 | CD54: 0 | CE54: 0 | CF54: 0 | CG54: 22 | CH54: 0 | CI54: 2 | CJ54: 0 | CK54: 1 | CL54: 0 | CM54: 0 | CN54: 0 | CO54: 0 | CP54: 0 | CQ54: 0 | CR54: 0 | CS54: 0 | CT54: 0 | CU54: 0 | CV54: 0 | CW54: 0 | CX54: 0 | CY54: 0 | CZ54: 0 | DA54: 0 | DB54: 0 | DC54: 0 | DD54: 0 | DE54: 0 | DF54: 0 | DG54: 0 | DH54: 0 | DI54: 0 | DJ54: 0 | DK54: 0 | DL54: 0 | DM54: 0 | DN54: 0 | DO54: 0 | DP54: 0 | DQ54: 0 | DR54: 0 | DS54: 0 | DT54: 0 | DU54: 0 | DV54: 0 | DW54: 0 | DX54: 0 | DY54: 0 | DZ54: 0 | EA54: 0 | EB54: 0 | EC54: 0 | ED54: 0 | EE54: 0 | EF54: 0 | EG54: 0 | EH54: 0 | EI54: 0 | EJ54: 0 | EK54: 0 | EL54: 0 | EM54: 0 | EN54: 0 | EO54: 0 | EP54: 0 | EQ54: 0 | ER54: 0 | ES54: 0 | ET54: 0 | EU54: 0 | EV54: 0 | EW54: 0 | EX54: 0 | EY54: 0 | EZ54: 0 | FA54: 0 | FB54: 0 | FC54: 0 | FD54: 0 | FE54: 0 | FF54: 0 | FG54: 0 | FH54: 0 | FI54: 0 | FJ54: 0 | FK54: 0 | FL54: 0 | FM54: 0 | FN54: 0 | FO54: 0 | FP54: 0 | FQ54: 0 | FR54: 0
A55: LUCIANO CASTILLO COLONNA | B55: AYABACA | C55: 200201 | D55: OLLEROS | E55: I-2 | F55: AYABACA | G55: NINGUN CLAS | H55: AYABACA | I55: AYABACA | J55: SALUD LUCIANO CASTILLO COLONNA | K55: 1914 | L55: 11 | M55: 0 | N55: 0 | O55: 0 | P55: 0 | Q55: 0 | R55: 0 | S55: 0 | T55: 0 | U55: 0 | V55: 0 | W55: 0 | X55: 0 | Y55: 0 | Z55: 0 | AA55: 0 | AB55: 0 | AC55: 0 | AD55: 0 | AE55: 0 | AF55: 0 | AG55: 0 | AH55: 0 | AI55: 0 | AJ55: 0 | AK55: 5 | AL55: 1 | AM55: 14 | AN55: 5 | AO55: 1 | AP55: 13 | AQ55: 0 | AR55: 0 | AS55: 0 | AT55: 0 | AU55: 0 | AV55: 0 | AW55: 0 | AX55: 0 | AY55: 0 | AZ55: 0 | BA55: 0 | BB55: 0 | BC55: 0 | BD55: 0 | BE55: 0 | BF55: 0 | BG55: 0 | BH55: 0 | BI55: 0 | BJ55: 0 | BK55: 0 | BL55: 0 | BM55: 1 | BN55: 5 | BO55: 0 | BP55: 0 | BQ55: 0 | BR55: 0 | BS55: 0 | BT55: 0 | BU55: 0 | BV55: 0 | BW55: 0 | BX55: 0 | BY55: 0 | BZ55: 0 | CA55: 0 | CB55: 0 | CC55: 0 | CD55: 0 | CE55: 0 | CF55: 0 | CG55: 20 | CH55: 1 | CI55: 6 | CJ55: 0 | CK55: 0 | CL55: 0 | CM55: 0 | CN55: 0 | CO55: 2 | CP55: 0 | CQ55: 0 | CR55: 0 | CS55: 0 | CT55: 0 | CU55: 0 | CV55: 0 | CW55: 0 | CX55: 0 | CY55: 0 | CZ55: 0 | DA55: 0 | DB55: 0 | DC55: 0 | DD55: 0 | DE55: 0 | DF55: 0 | DG55: 0 | DH55: 0 | DI55: 0 | DJ55: 0 | DK55: 0 | DL55: 0 | DM55: 0 | DN55: 0 | DO55: 0 | DP55: 0 | DQ55: 0 | DR55: 0 | DS55: 0 | DT55: 0 | DU55: 0 | DV55: 0 | DW55: 0 | DX55: 0 | DY55: 0 | DZ55: 0 | EA55: 0 | EB55: 0 | EC55: 0 | ED55: 0 | EE55: 0 | EF55: 0 | EG55: 0 | EH55: 0 | EI55: 0 | EJ55: 0 | EK55: 0 | EL55: 0 | EM55: 0 | EN55: 0 | EO55: 0 | EP55: 0 | EQ55: 0 | ER55: 0 | ES55: 0 | ET55: 0 | EU55: 0 | EV55: 0 | EW55: 0 | EX55: 0 | EY55: 0 | EZ55: 0 | FA55: 0 | FB55: 0 | FC55: 0 | FD55: 0 | FE55: 0 | FF55: 0 | FG55: 0 | FH55: 0 | FI55: 0 | FJ55: 0 | FK55: 0 | FL55: 0 | FM55: 0 | FN55: 0 | FO55: 0 | FP55: 0 | FQ55: 0 | FR55: 0
A56: LUCIANO CASTILLO COLONNA | B56: AYABACA | C56: 200201 | D56: OLLEROS | E56: I-2 | F56: AYABACA | G56: NINGUN CLAS | H56: AYABACA | I56: AYABACA | J56: SALUD LUCIANO CASTILLO COLONNA | K56: 1914 | L56: 4 | M56: 0 | N56: 0 | O56: 0 | P56: 0 | Q56: 0 | R56: 0 | S56: 0 | T56: 0 | U56: 0 | V56: 0 | W56: 0 | X56: 0 | Y56: 0 | Z56: 0 | AA56: 0 | AB56: 0 | AC56: 0 | AD56: 0 | AE56: 0 | AF56: 0 | AG56: 0 | AH56: 0 | AI56: 0 | AJ56: 0 | AK56: 2 | AL56: 1 | AM56: 19 | AN56: 2 | AO56: 1 | AP56: 19 | AQ56: 0 | AR56: 0 | AS56: 0 | AT56: 0 | AU56: 0 | AV56: 0 | AW56: 0 | AX56: 0 | AY56: 0 | AZ56: 0 | BA56: 0 | BB56: 0 | BC56: 0 | BD56: 0 | BE56: 0 | BF56: 0 | BG56: 0 | BH56: 0 | BI56: 0 | BJ56: 0 | BK56: 0 | BL56: 0 | BM56: 0 | BN56: 0 | BO56: 0 | BP56: 0 | BQ56: 0 | BR56: 0 | BS56: 0 | BT56: 0 | BU56: 0 | BV56: 0 | BW56: 0 | BX56: 0 | BY56: 0 | BZ56: 0 | CA56: 0 | CB56: 0 | CC56: 0 | CD56: 0 | CE56: 0 | CF56: 0 | CG56: 22 | CH56: 0 | CI56: 0 | CJ56: 0 | CK56: 0 | CL56: 0 | CM56: 0 | CN56: 0 | CO56: 0 | CP56: 0 | CQ56: 0 | CR56: 0 | CS56: 0 | CT56: 0 | CU56: 0 | CV56: 0 | CW56: 0 | CX56: 0 | CY56: 0 | CZ56: 0 | DA56: 0 | DB56: 0 | DC56: 0 | DD56: 0 | DE56: 0 | DF56: 0 | DG56: 0 | DH56: 0 | DI56: 0 | DJ56: 0 | DK56: 0 | DL56: 0 | DM56: 0 | DN56: 0 | DO56: 0 | DP56: 0 | DQ56: 0 | DR56: 0 | DS56: 0 | DT56: 0 | DU56: 0 | DV56: 0 | DW56: 0 | DX56: 0 | DY56: 0 | DZ56: 0 | EA56: 0 | EB56: 0 | EC56: 0 | ED56: 0 | EE56: 0 | EF56: 0 | EG56: 0 | EH56: 0 | EI56: 0 | EJ56: 0 | EK56: 0 | EL56: 0 | EM56: 0 | EN56: 0 | EO56: 0 | EP56: 0 | EQ56: 0 | ER56: 0 | ES56: 0 | ET56: 0 | EU56: 0 | EV56: 0 | EW56: 0 | EX56: 0 | EY56: 0 | EZ56: 0 | FA56: 0 | FB56: 0 | FC56: 0 | FD56: 0 | FE56: 0 | FF56: 0 | FG56: 1 | FH56: 0 | FI56: 0 | FJ56: 0 | FK56: 0 | FL56: 0 | FM56: 0 | FN56: 0 | FO56: 0 | FP56: 0 | FQ56: 1 | FR56: 0
A57: LUCIANO CASTILLO COLONNA | B57: AYABACA | C57: 200201 | D57: OLLEROS | E57: I-2 | F57: AYABACA | G57: NINGUN CLAS | H57: AYABACA | I57: AYABACA | J57: SALUD LUCIANO CASTILLO COLONNA | K57: 1914 | L57: 9 | M57: 0 | N57: 0 | O57: 0 | P57: 0 | Q57: 0 | R57: 0 | S57: 0 | T57: 0 | U57: 0 | V57: 0 | W57: 0 | X57: 0 | Y57: 0 | Z57: 0 | AA57: 0 | AB57: 0 | AC57: 0 | AD57: 0 | AE57: 0 | AF57: 0 | AG57: 0 | AH57: 0 | AI57: 0 | AJ57: 0 | AK57: 4 | AL57: 2 | AM57: 13 | AN57: 2 | AO57: 2 | AP57: 13 | AQ57: 0 | AR57: 0 | AS57: 0 | AT57: 0 | AU57: 0 | AV57: 0 | AW57: 0 | AX57: 0 | AY57: 0 | AZ57: 0 | BA57: 0 | BB57: 0 | BC57: 0 | BD57: 0 | BE57: 0 | BF57: 0 | BG57: 0 | BH57: 0 | BI57: 0 | BJ57: 0 | BK57: 0 | BL57: 0 | BM57: 0 | BN57: 0 | BO57: 0 | BP57: 0 | BQ57: 0 | BR57: 0 | BS57: 0 | BT57: 0 | BU57: 0 | BV57: 0 | BW57: 1 | BX57: 0 | BY57: 0 | BZ57: 0 | CA57: 0 | CB57: 0 | CC57: 0 | CD57: 0 | CE57: 0 | CF57: 0 | CG57: 19 | CH57: 0 | CI57: 0 | CJ57: 0 | CK57: 0 | CL57: 0 | CM57: 0 | CN57: 0 | CO57: 0 | CP57: 0 | CQ57: 0 | CR57: 0 | CS57: 0 | CT57: 0 | CU57: 0 | CV57: 0 | CW57: 0 | CX57: 0 | CY57: 0 | CZ57: 0 | DA57: 0 | DB57: 0 | DC57: 0 | DD57: 0 | DE57: 0 | DF57: 0 | DG57: 0 | DH57: 0 | DI57: 0 | DJ57: 0 | DK57: 0 | DL57: 0 | DM57: 0 | DN57: 0 | DO57: 0 | DP57: 0 | DQ57: 0 | DR57: 0 | DS57: 0 | DT57: 0 | DU57: 0 | DV57: 0 | DW57: 0 | DX57: 0 | DY57: 0 | DZ57: 0 | EA57: 0 | EB57: 0 | EC57: 0 | ED57: 0 | EE57: 0 | EF57: 0 | EG57: 0 | EH57: 0 | EI57: 0 | EJ57: 0 | EK57: 0 | EL57: 0 | EM57: 0 | EN57: 0 | EO57: 0 | EP57: 0 | EQ57: 0 | ER57: 0 | ES57: 0 | ET57: 0 | EU57: 0 | EV57: 0 | EW57: 0 | EX57: 0 | EY57: 0 | EZ57: 0 | FA57: 0 | FB57: 0 | FC57: 0 | FD57: 0 | FE57: 0 | FF57: 0 | FG57: 0 | FH57: 0 | FI57: 0 | FJ57: 0 | FK57: 0 | FL57: 0 | FM57: 0 | FN57: 0 | FO57: 0 | FP57: 0 | FQ57: 0 | FR57: 0
A58: LUCIANO CASTILLO COLONNA | B58: AYABACA | C58: 200201 | D58: OLLEROS | E58: I-2 | F58: AYABACA | G58: NINGUN CLAS | H58: AYABACA | I58: AYABACA | J58: SALUD LUCIANO CASTILLO COLONNA | K58: 1914 | L58: 6 | M58: 0 | N58: 0 | O58: 0 | P58: 0 | Q58: 0 | R58: 0 | S58: 0 | T58: 0 | U58: 0 | V58: 0 | W58: 0 | X58: 0 | Y58: 0 | Z58: 0 | AA58: 0 | AB58: 0 | AC58: 0 | AD58: 0 | AE58: 0 | AF58: 0 | AG58: 0 | AH58: 0 | AI58: 0 | AJ58: 0 | AK58: 1 | AL58: 3 | AM58: 16 | AN58: 1 | AO58: 3 | AP58: 15 | AQ58: 0 | AR58: 0 | AS58: 0 | AT58: 0 | AU58: 0 | AV58: 0 | AW58: 0 | AX58: 0 | AY58: 0 | AZ58: 0 | BA58: 0 | BB58: 0 | BC58: 0 | BD58: 0 | BE58: 0 | BF58: 0 | BG58: 0 | BH58: 0 | BI58: 0 | BJ58: 0 | BK58: 0 | BL58: 0 | BM58: 0 | BN58: 0 | BO58: 0 | BP58: 0 | BQ58: 0 | BR58: 0 | BS58: 0 | BT58: 0 | BU58: 0 | BV58: 0 | BW58: 0 | BX58: 0 | BY58: 0 | BZ58: 0 | CA58: 0 | CB58: 0 | CC58: 0 | CD58: 0 | CE58: 0 | CF58: 0 | CG58: 20 | CH58: 0 | CI58: 0 | CJ58: 0 | CK58: 0 | CL58: 0 | CM58: 0 | CN58: 0 | CO58: 0 | CP58: 0 | CQ58: 0 | CR58: 0 | CS58: 0 | CT58: 0 | CU58: 0 | CV58: 0 | CW58: 0 | CX58: 0 | CY58: 0 | CZ58: 0 | DA58: 0 | DB58: 0 | DC58: 0 | DD58: 0 | DE58: 0 | DF58: 0 | DG58: 0 | DH58: 0 | DI58: 0 | DJ58: 0 | DK58: 0 | DL58: 0 | DM58: 0 | DN58: 0 | DO58: 0 | DP58: 0 | DQ58: 0 | DR58: 0 | DS58: 0 | DT58: 0 | DU58: 0 | DV58: 0 | DW58: 0 | DX58: 0 | DY58: 0 | DZ58: 0 | EA58: 0 | EB58: 0 | EC58: 0 | ED58: 0 | EE58: 0 | EF58: 0 | EG58: 0 | EH58: 0 | EI58: 0 | EJ58: 0 | EK58: 0 | EL58: 0 | EM58: 0 | EN58: 0 | EO58: 0 | EP58: 0 | EQ58: 0 | ER58: 0 | ES58: 0 | ET58: 0 | EU58: 0 | EV58: 0 | EW58: 0 | EX58: 0 | EY58: 0 | EZ58: 0 | FA58: 0 | FB58: 0 | FC58: 0 | FD58: 0 | FE58: 0 | FF58: 0 | FG58: 0 | FH58: 0 | FI58: 0 | FJ58: 0 | FK58: 0 | FL58: 0 | FM58: 0 | FN58: 0 | FO58: 0 | FP58: 0 | FQ58: 0 | FR58: 0
A59: LUCIANO CASTILLO COLONNA | B59: AYABACA | C59: 200201 | D59: OLLEROS | E59: I-2 | F59: AYABACA | G59: NINGUN CLAS | H59: AYABACA | I59: AYABACA | J59: SALUD LUCIANO CASTILLO COLONNA | K59: 1914 | L59: 2 | M59: 0 | N59: 0 | O59: 0 | P59: 0 | Q59: 0 | R59: 0 | S59: 0 | T59: 0 | U59: 0 | V59: 0 | W59: 0 | X59: 0 | Y59: 0 | Z59: 0 | AA59: 0 | AB59: 0 | AC59: 0 | AD59: 0 | AE59: 0 | AF59: 0 | AG59: 0 | AH59: 0 | AI59: 0 | AJ59: 0 | AK59: 1 | AL59: 2 | AM59: 9 | AN59: 0 | AO59: 2 | AP59: 9 | AQ59: 0 | AR59: 0 | AS59: 0 | AT59: 0 | AU59: 0 | AV59: 0 | AW59: 0 | AX59: 0 | AY59: 0 | AZ59: 0 | BA59: 0 | BB59: 0 | BC59: 0 | BD59: 0 | BE59: 0 | BF59: 0 | BG59: 0 | BH59: 0 | BI59: 0 | BJ59: 0 | BK59: 0 | BL59: 0 | BM59: 0 | BN59: 0 | BO59: 0 | BP59: 0 | BQ59: 0 | BR59: 0 | BS59: 0 | BT59: 0 | BU59: 0 | BV59: 0 | BW59: 0 | BX59: 0 | BY59: 0 | BZ59: 0 | CA59: 0 | CB59: 0 | CC59: 0 | CD59: 0 | CE59: 0 | CF59: 0 | CG59: 12 | CH59: 0 | CI59: 0 | CJ59: 0 | CK59: 0 | CL59: 0 | CM59: 0 | CN59: 0 | CO59: 0 | CP59: 0 | CQ59: 0 | CR59: 0 | CS59: 0 | CT59: 0 | CU59: 0 | CV59: 0 | CW59: 0 | CX59: 0 | CY59: 0 | CZ59: 0 | DA59: 0 | DB59: 0 | DC59: 0 | DD59: 0 | DE59: 0 | DF59: 0 | DG59: 0 | DH59: 0 | DI59: 0 | DJ59: 0 | DK59: 0 | DL59: 0 | DM59: 0 | DN59: 0 | DO59: 0 | DP59: 0 | DQ59: 0 | DR59: 0 | DS59: 0 | DT59: 0 | DU59: 0 | DV59: 0 | DW59: 0 | DX59: 0 | DY59: 0 | DZ59: 0 | EA59: 0 | EB59: 0 | EC59: 0 | ED59: 0 | EE59: 0 | EF59: 0 | EG59: 0 | EH59: 0 | EI59: 0 | EJ59: 0 | EK59: 0 | EL59: 0 | EM59: 0 | EN59: 0 | EO59: 0 | EP59: 0 | EQ59: 0 | ER59: 0 | ES59: 0 | ET59: 0 | EU59: 0 | EV59: 0 | EW59: 0 | EX59: 0 | EY59: 0 | EZ59: 0 | FA59: 0 | FB59: 0 | FC59: 0 | FD59: 0 | FE59: 0 | FF59: 0 | FG59: 0 | FH59: 0 | FI59: 0 | FJ59: 0 | FK59: 0 | FL59: 0 | FM59: 0 | FN59: 0 | FO59: 0 | FP59: 0 | FQ59: 0 | FR59: 0
A60: LUCIANO CASTILLO COLONNA | B60: AYABACA | C60: 200201 | D60: OLLEROS | E60: I-2 | F60: AYABACA | G60: NINGUN CLAS | H60: AYABACA | I60: AYABACA | J60: SALUD LUCIANO CASTILLO COLONNA | K60: 1914 | L60: 7 | M60: 0 | N60: 0 | O60: 0 | P60: 0 | Q60: 0 | R60: 0 | S60: 0 | T60: 0 | U60: 0 | V60: 0 | W60: 0 | X60: 0 | Y60: 0 | Z60: 0 | AA60: 0 | AB60: 0 | AC60: 0 | AD60: 0 | AE60: 0 | AF60: 0 | AG60: 1 | AH60: 0 | AI60: 0 | AJ60: 0 | AK60: 2 | AL60: 5 | AM60: 17 | AN60: 2 | AO60: 5 | AP60: 17 | AQ60: 0 | AR60: 0 | AS60: 0 | AT60: 0 | AU60: 0 | AV60: 0 | AW60: 0 | AX60: 0 | AY60: 0 | AZ60: 0 | BA60: 0 | BB60: 0 | BC60: 0 | BD60: 0 | BE60: 0 | BF60: 0 | BG60: 0 | BH60: 0 | BI60: 0 | BJ60: 0 | BK60: 0 | BL60: 0 | BM60: 0 | BN60: 0 | BO60: 0 | BP60: 0 | BQ60: 0 | BR60: 0 | BS60: 0 | BT60: 0 | BU60: 0 | BV60: 0 | BW60: 0 | BX60: 0 | BY60: 0 | BZ60: 0 | CA60: 0 | CB60: 0 | CC60: 0 | CD60: 0 | CE60: 0 | CF60: 0 | CG60: 24 | CH60: 0 | CI60: 0 | CJ60: 0 | CK60: 0 | CL60: 0 | CM60: 0 | CN60: 0 | CO60: 0 | CP60: 0 | CQ60: 0 | CR60: 0 | CS60: 0 | CT60: 0 | CU60: 0 | CV60: 0 | CW60: 0 | CX60: 0 | CY60: 0 | CZ60: 0 | DA60: 0 | DB60: 0 | DC60: 0 | DD60: 0 | DE60: 0 | DF60: 0 | DG60: 0 | DH60: 0 | DI60: 0 | DJ60: 0 | DK60: 0 | DL60: 0 | DM60: 0 | DN60: 0 | DO60: 0 | DP60: 0 | DQ60: 0 | DR60: 0 | DS60: 0 | DT60: 0 | DU60: 0 | DV60: 0 | DW60: 0 | DX60: 0 | DY60: 0 | DZ60: 0 | EA60: 0 | EB60: 0 | EC60: 0 | ED60: 0 | EE60: 0 | EF60: 0 | EG60: 0 | EH60: 0 | EI60: 0 | EJ60: 0 | EK60: 0 | EL60: 0 | EM60: 0 | EN60: 0 | EO60: 0 | EP60: 0 | EQ60: 0 | ER60: 0 | ES60: 0 | ET60: 0 | EU60: 0 | EV60: 0 | EW60: 0 | EX60: 0 | EY60: 0 | EZ60: 0 | FA60: 0 | FB60: 0 | FC60: 0 | FD60: 0 | FE60: 0 | FF60: 0 | FG60: 0 | FH60: 0 | FI60: 0 | FJ60: 0 | FK60: 0 | FL60: 0 | FM60: 0 | FN60: 0 | FO60: 0 | FP60: 0 | FQ60: 0 | FR60: 1
A61: LUCIANO CASTILLO COLONNA | B61: AYABACA | C61: 200201 | D61: OLLEROS | E61: I-2 | F61: AYABACA | G61: NINGUN CLAS | H61: AYABACA | I61: AYABACA | J61: SALUD LUCIANO CASTILLO COLONNA | K61: 1914 | L61: 3 | M61: 0 | N61: 0 | O61: 0 | P61: 0 | Q61: 0 | R61: 0 | S61: 0 | T61: 0 | U61: 0 | V61: 0 | W61: 0 | X61: 0 | Y61: 0 | Z61: 0 | AA61: 0 | AB61: 0 | AC61: 0 | AD61: 0 | AE61: 0 | AF61: 0 | AG61: 0 | AH61: 0 | AI61: 0 | AJ61: 0 | AK61: 4 | AL61: 1 | AM61: 18 | AN61: 4 | AO61: 1 | AP61: 18 | AQ61: 0 | AR61: 0 | AS61: 0 | AT61: 0 | AU61: 0 | AV61: 0 | AW61: 0 | AX61: 0 | AY61: 0 | AZ61: 0 | BA61: 0 | BB61: 0 | BC61: 0 | BD61: 0 | BE61: 0 | BF61: 0 | BG61: 0 | BH61: 0 | BI61: 0 | BJ61: 0 | BK61: 0 | BL61: 0 | BM61: 0 | BN61: 0 | BO61: 0 | BP61: 0 | BQ61: 0 | BR61: 0 | BS61: 0 | BT61: 0 | BU61: 0 | BV61: 0 | BW61: 0 | BX61: 0 | BY61: 0 | BZ61: 0 | CA61: 0 | CB61: 0 | CC61: 0 | CD61: 0 | CE61: 0 | CF61: 0 | CG61: 23 | CH61: 0 | CI61: 0 | CJ61: 0 | CK61: 0 | CL61: 0 | CM61: 0 | CN61: 0 | CO61: 0 | CP61: 0 | CQ61: 0 | CR61: 0 | CS61: 0 | CT61: 0 | CU61: 0 | CV61: 0 | CW61: 0 | CX61: 0 | CY61: 0 | CZ61: 0 | DA61: 0 | DB61: 0 | DC61: 0 | DD61: 0 | DE61: 0 | DF61: 0 | DG61: 0 | DH61: 0 | DI61: 0 | DJ61: 0 | DK61: 0 | DL61: 0 | DM61: 0 | DN61: 0 | DO61: 0 | DP61: 0 | DQ61: 0 | DR61: 0 | DS61: 0 | DT61: 0 | DU61: 0 | DV61: 0 | DW61: 0 | DX61: 0 | DY61: 0 | DZ61: 0 | EA61: 0 | EB61: 0 | EC61: 0 | ED61: 0 | EE61: 0 | EF61: 0 | EG61: 0 | EH61: 0 | EI61: 0 | EJ61: 0 | EK61: 0 | EL61: 0 | EM61: 0 | EN61: 0 | EO61: 0 | EP61: 0 | EQ61: 0 | ER61: 0 | ES61: 0 | ET61: 0 | EU61: 0 | EV61: 0 | EW61: 0 | EX61: 0 | EY61: 0 | EZ61: 0 | FA61: 0 | FB61: 0 | FC61: 0 | FD61: 0 | FE61: 0 | FF61: 0 | FG61: 0 | FH61: 0 | FI61: 0 | FJ61: 0 | FK61: 0 | FL61: 0 | FM61: 0 | FN61: 0 | FO61: 0 | FP61: 1 | FQ61: 0 | FR61: 0
A62: LUCIANO CASTILLO COLONNA | B62: AYABACA | C62: 200201 | D62: ARAGOTO | E62: I-2 | F62: AYABACA | G62: NINGUN CLAS | H62: AYABACA | I62: AYABACA | J62: SALUD LUCIANO CASTILLO COLONNA | K62: 1915 | L62: 11 | M62: 0 | N62: 0 | O62: 0 | P62: 0 | Q62: 0 | R62: 0 | S62: 0 | T62: 0 | U62: 0 | V62: 0 | W62: 0 | X62: 0 | Y62: 0 | Z62: 0 | AA62: 0 | AB62: 0 | AC62: 0 | AD62: 0 | AE62: 0 | AF62: 0 | AG62: 0 | AH62: 0 | AI62: 0 | AJ62: 0 | AK62: 0 | AL62: 0 | AM62: 9 | AN62: 0 | AO62: 0 | AP62: 9 | AQ62: 0 | AR62: 0 | AS62: 0 | AT62: 0 | AU62: 0 | AV62: 0 | AW62: 0 | AX62: 0 | AY62: 0 | AZ62: 0 | BA62: 0 | BB62: 0 | BC62: 0 | BD62: 0 | BE62: 0 | BF62: 0 | BG62: 0 | BH62: 0 | BI62: 0 | BJ62: 0 | BK62: 0 | BL62: 0 | BM62: 0 | BN62: 0 | BO62: 0 | BP62: 0 | BQ62: 0 | BR62: 0 | BS62: 0 | BT62: 0 | BU62: 0 | BV62: 0 | BW62: 0 | BX62: 0 | BY62: 0 | BZ62: 0 | CA62: 0 | CB62: 0 | CC62: 0 | CD62: 0 | CE62: 0 | CF62: 0 | CG62: 9 | CH62: 0 | CI62: 0 | CJ62: 0 | CK62: 0 | CL62: 0 | CM62: 0 | CN62: 0 | CO62: 0 | CP62: 0 | CQ62: 0 | CR62: 0 | CS62: 0 | CT62: 0 | CU62: 0 | CV62: 0 | CW62: 0 | CX62: 0 | CY62: 0 | CZ62: 0 | DA62: 0 | DB62: 0 | DC62: 0 | DD62: 0 | DE62: 0 | DF62: 0 | DG62: 0 | DH62: 0 | DI62: 0 | DJ62: 0 | DK62: 0 | DL62: 0 | DM62: 0 | DN62: 0 | DO62: 0 | DP62: 0 | DQ62: 0 | DR62: 0 | DS62: 0 | DT62: 0 | DU62: 0 | DV62: 0 | DW62: 0 | DX62: 0 | DY62: 0 | DZ62: 0 | EA62: 0 | EB62: 0 | EC62: 0 | ED62: 0 | EE62: 0 | EF62: 0 | EG62: 0 | EH62: 0 | EI62: 0 | EJ62: 0 | EK62: 0 | EL62: 0 | EM62: 0 | EN62: 0 | EO62: 0 | EP62: 0 | EQ62: 0 | ER62: 0 | ES62: 0 | ET62: 0 | EU62: 0 | EV62: 0 | EW62: 0 | EX62: 0 | EY62: 0 | EZ62: 0 | FA62: 0 | FB62: 0 | FC62: 0 | FD62: 0 | FE62: 0 | FF62: 0 | FG62: 0 | FH62: 0 | FI62: 0 | FJ62: 0 | FK62: 0 | FL62: 0 | FM62: 0 | FN62: 0 | FO62: 0 | FP62: 1 | FQ62: 0 | FR62: 0
A63: LUCIANO CASTILLO COLONNA | B63: AYABACA | C63: 200201 | D63: ARAGOTO | E63: I-2 | F63: AYABACA | G63: NINGUN CLAS | H63: AYABACA | I63: AYABACA | J63: SALUD LUCIANO CASTILLO COLONNA | K63: 1915 | L63: 2 | M63: 0 | N63: 0 | O63: 0 | P63: 0 | Q63: 0 | R63: 0 | S63: 0 | T63: 0 | U63: 0 | V63: 0 | W63: 0 | X63: 0 | Y63: 0 | Z63: 0 | AA63: 0 | AB63: 0 | AC63: 0 | AD63: 0 | AE63: 0 | AF63: 0 | AG63: 0 | AH63: 0 | AI63: 0 | AJ63: 0 | AK63: 0 | AL63: 0 | AM63: 8 | AN63: 0 | AO63: 0 | AP63: 9 | AQ63: 0 | AR63: 0 | AS63: 0 | AT63: 0 | AU63: 0 | AV63: 0 | AW63: 0 | AX63: 0 | AY63: 0 | AZ63: 0 | BA63: 0 | BB63: 0 | BC63: 0 | BD63: 0 | BE63: 0 | BF63: 0 | BG63: 0 | BH63: 0 | BI63: 1 | BJ63: 5 | BK63: 6 | BL63: 0 | BM63: 0 | BN63: 0 | BO63: 0 | BP63: 0 | BQ63: 0 | BR63: 0 | BS63: 0 | BT63: 0 | BU63: 0 | BV63: 0 | BW63: 0 | BX63: 0 | BY63: 0 | BZ63: 0 | CA63: 0 | CB63: 0 | CC63: 0 | CD63: 0 | CE63: 0 | CF63: 0 | CG63: 8 | CH63: 5 | CI63: 6 | CJ63: 0 | CK63: 0 | CL63: 0 | CM63: 0 | CN63: 0 | CO63: 0 | CP63: 0 | CQ63: 0 | CR63: 0 | CS63: 0 | CT63: 0 | CU63: 0 | CV63: 0 | CW63: 0 | CX63: 0 | CY63: 0 | CZ63: 0 | DA63: 0 | DB63: 0 | DC63: 0 | DD63: 0 | DE63: 0 | DF63: 0 | DG63: 0 | DH63: 0 | DI63: 0 | DJ63: 0 | DK63: 0 | DL63: 0 | DM63: 0 | DN63: 0 | DO63: 0 | DP63: 0 | DQ63: 0 | DR63: 0 | DS63: 0 | DT63: 0 | DU63: 0 | DV63: 0 | DW63: 0 | DX63: 0 | DY63: 0 | DZ63: 0 | EA63: 0 | EB63: 0 | EC63: 0 | ED63: 0 | EE63: 0 | EF63: 0 | EG63: 0 | EH63: 0 | EI63: 0 | EJ63: 0 | EK63: 0 | EL63: 0 | EM63: 0 | EN63: 0 | EO63: 0 | EP63: 0 | EQ63: 0 | ER63: 0 | ES63: 0 | ET63: 0 | EU63: 0 | EV63: 0 | EW63: 0 | EX63: 0 | EY63: 0 | EZ63: 0 | FA63: 0 | FB63: 0 | FC63: 0 | FD63: 0 | FE63: 0 | FF63: 0 | FG63: 0 | FH63: 0 | FI63: 0 | FJ63: 0 | FK63: 0 | FL63: 0 | FM63: 0 | FN63: 0 | FO63: 0 | FP63: 0 | FQ63: 0 | FR63: 0
A64: LUCIANO CASTILLO COLONNA | B64: AYABACA | C64: 200201 | D64: ARAGOTO | E64: I-2 | F64: AYABACA | G64: NINGUN CLAS | H64: AYABACA | I64: AYABACA | J64: SALUD LUCIANO CASTILLO COLONNA | K64: 1915 | L64: 3 | M64: 0 | N64: 0 | O64: 0 | P64: 0 | Q64: 0 | R64: 0 | S64: 0 | T64: 0 | U64: 0 | V64: 0 | W64: 0 | X64: 0 | Y64: 0 | Z64: 0 | AA64: 0 | AB64: 0 | AC64: 0 | AD64: 0 | AE64: 0 | AF64: 0 | AG64: 0 | AH64: 0 | AI64: 0 | AJ64: 0 | AK64: 0 | AL64: 0 | AM64: 9 | AN64: 0 | AO64: 0 | AP64: 9 | AQ64: 0 | AR64: 0 | AS64: 0 | AT64: 0 | AU64: 0 | AV64: 0 | AW64: 0 | AX64: 0 | AY64: 0 | AZ64: 0 | BA64: 0 | BB64: 0 | BC64: 0 | BD64: 0 | BE64: 0 | BF64: 0 | BG64: 0 | BH64: 0 | BI64: 0 | BJ64: 0 | BK64: 4 | BL64: 0 | BM64: 0 | BN64: 2 | BO64: 0 | BP64: 0 | BQ64: 0 | BR64: 0 | BS64: 0 | BT64: 0 | BU64: 0 | BV64: 0 | BW64: 0 | BX64: 0 | BY64: 0 | BZ64: 0 | CA64: 0 | CB64: 0 | CC64: 0 | CD64: 0 | CE64: 0 | CF64: 0 | CG64: 9 | CH64: 0 | CI64: 6 | CJ64: 0 | CK64: 0 | CL64: 0 | CM64: 0 | CN64: 0 | CO64: 0 | CP64: 0 | CQ64: 0 | CR64: 0 | CS64: 0 | CT64: 0 | CU64: 0 | CV64: 0 | CW64: 0 | CX64: 0 | CY64: 0 | CZ64: 0 | DA64: 0 | DB64: 0 | DC64: 0 | DD64: 0 | DE64: 0 | DF64: 0 | DG64: 0 | DH64: 0 | DI64: 0 | DJ64: 0 | DK64: 0 | DL64: 0 | DM64: 0 | DN64: 0 | DO64: 0 | DP64: 0 | DQ64: 0 | DR64: 0 | DS64: 0 | DT64: 0 | DU64: 0 | DV64: 0 | DW64: 0 | DX64: 0 | DY64: 0 | DZ64: 0 | EA64: 0 | EB64: 0 | EC64: 0 | ED64: 0 | EE64: 0 | EF64: 0 | EG64: 0 | EH64: 0 | EI64: 0 | EJ64: 0 | EK64: 0 | EL64: 0 | EM64: 0 | EN64: 0 | EO64: 0 | EP64: 0 | EQ64: 0 | ER64: 0 | ES64: 0 | ET64: 0 | EU64: 0 | EV64: 0 | EW64: 0 | EX64: 0 | EY64: 0 | EZ64: 0 | FA64: 0 | FB64: 0 | FC64: 0 | FD64: 0 | FE64: 0 | FF64: 0 | FG64: 0 | FH64: 0 | FI64: 0 | FJ64: 0 | FK64: 0 | FL64: 0 | FM64: 0 | FN64: 0 | FO64: 0 | FP64: 0 | FQ64: 0 | FR64: 0
A65: LUCIANO CASTILLO COLONNA | B65: AYABACA | C65: 200201 | D65: ARAGOTO | E65: I-2 | F65: AYABACA | G65: NINGUN CLAS | H65: AYABACA | I65: AYABACA | J65: SALUD LUCIANO CASTILLO COLONNA | K65: 1915 | L65: 4 | M65: 0 | N65: 0 | O65: 0 | P65: 0 | Q65: 0 | R65: 0 | S65: 0 | T65: 0 | U65: 0 | V65: 0 | W65: 0 | X65: 0 | Y65: 0 | Z65: 0 | AA65: 0 | AB65: 0 | AC65: 0 | AD65: 0 | AE65: 0 | AF65: 0 | AG65: 0 | AH65: 0 | AI65: 0 | AJ65: 0 | AK65: 0 | AL65: 1 | AM65: 5 | AN65: 0 | AO65: 1 | AP65: 5 | AQ65: 0 | AR65: 0 | AS65: 0 | AT65: 0 | AU65: 0 | AV65: 0 | AW65: 0 | AX65: 0 | AY65: 0 | AZ65: 0 | BA65: 0 | BB65: 0 | BC65: 0 | BD65: 0 | BE65: 0 | BF65: 0 | BG65: 0 | BH65: 0 | BI65: 0 | BJ65: 0 | BK65: 2 | BL65: 0 | BM65: 0 | BN65: 1 | BO65: 0 | BP65: 0 | BQ65: 0 | BR65: 0 | BS65: 0 | BT65: 0 | BU65: 0 | BV65: 0 | BW65: 0 | BX65: 0 | BY65: 0 | BZ65: 0 | CA65: 0 | CB65: 0 | CC65: 0 | CD65: 0 | CE65: 0 | CF65: 0 | CG65: 6 | CH65: 0 | CI65: 3 | CJ65: 0 | CK65: 0 | CL65: 0 | CM65: 0 | CN65: 0 | CO65: 0 | CP65: 0 | CQ65: 0 | CR65: 0 | CS65: 0 | CT65: 0 | CU65: 0 | CV65: 0 | CW65: 0 | CX65: 0 | CY65: 0 | CZ65: 0 | DA65: 0 | DB65: 0 | DC65: 0 | DD65: 0 | DE65: 0 | DF65: 0 | DG65: 0 | DH65: 0 | DI65: 0 | DJ65: 0 | DK65: 0 | DL65: 0 | DM65: 0 | DN65: 0 | DO65: 0 | DP65: 0 | DQ65: 0 | DR65: 0 | DS65: 0 | DT65: 0 | DU65: 0 | DV65: 0 | DW65: 0 | DX65: 0 | DY65: 0 | DZ65: 0 | EA65: 0 | EB65: 0 | EC65: 0 | ED65: 0 | EE65: 0 | EF65: 0 | EG65: 0 | EH65: 0 | EI65: 0 | EJ65: 0 | EK65: 0 | EL65: 0 | EM65: 0 | EN65: 0 | EO65: 0 | EP65: 0 | EQ65: 0 | ER65: 0 | ES65: 0 | ET65: 0 | EU65: 0 | EV65: 0 | EW65: 0 | EX65: 0 | EY65: 0 | EZ65: 0 | FA65: 0 | FB65: 0 | FC65: 0 | FD65: 0 | FE65: 0 | FF65: 0 | FG65: 0 | FH65: 0 | FI65: 0 | FJ65: 0 | FK65: 0 | FL65: 0 | FM65: 0 | FN65: 0 | FO65: 0 | FP65: 0 | FQ65: 0 | FR65: 0
A66: LUCIANO CASTILLO COLONNA | B66: AYABACA | C66: 200201 | D66: ARAGOTO | E66: I-2 | F66: AYABACA | G66: NINGUN CLAS | H66: AYABACA | I66: AYABACA | J66: SALUD LUCIANO CASTILLO COLONNA | K66: 1915 | L66: 8 | M66: 0 | N66: 0 | O66: 0 | P66: 0 | Q66: 0 | R66: 0 | S66: 0 | T66: 0 | U66: 0 | V66: 0 | W66: 0 | X66: 0 | Y66: 0 | Z66: 0 | AA66: 0 | AB66: 0 | AC66: 0 | AD66: 0 | AE66: 0 | AF66: 0 | AG66: 0 | AH66: 0 | AI66: 0 | AJ66: 0 | AK66: 0 | AL66: 0 | AM66: 5 | AN66: 0 | AO66: 1 | AP66: 6 | AQ66: 0 | AR66: 0 | AS66: 0 | AT66: 0 | AU66: 0 | AV66: 0 | AW66: 0 | AX66: 0 | AY66: 0 | AZ66: 0 | BA66: 0 | BB66: 0 | BC66: 0 | BD66: 0 | BE66: 0 | BF66: 0 | BG66: 0 | BH66: 0 | BI66: 0 | BJ66: 0 | BK66: 0 | BL66: 0 | BM66: 0 | BN66: 0 | BO66: 0 | BP66: 0 | BQ66: 0 | BR66: 0 | BS66: 0 | BT66: 0 | BU66: 0 | BV66: 0 | BW66: 0 | BX66: 0 | BY66: 0 | BZ66: 0 | CA66: 0 | CB66: 0 | CC66: 0 | CD66: 0 | CE66: 0 | CF66: 0 | CG66: 5 | CH66: 0 | CI66: 0 | CJ66: 0 | CK66: 0 | CL66: 0 | CM66: 0 | CN66: 0 | CO66: 0 | CP66: 0 | CQ66: 0 | CR66: 0 | CS66: 0 | CT66: 0 | CU66: 0 | CV66: 0 | CW66: 0 | CX66: 0 | CY66: 0 | CZ66: 0 | DA66: 0 | DB66: 0 | DC66: 0 | DD66: 0 | DE66: 0 | DF66: 0 | DG66: 0 | DH66: 0 | DI66: 0 | DJ66: 0 | DK66: 0 | DL66: 0 | DM66: 0 | DN66: 0 | DO66: 0 | DP66: 0 | DQ66: 0 | DR66: 0 | DS66: 0 | DT66: 0 | DU66: 0 | DV66: 0 | DW66: 0 | DX66: 0 | DY66: 0 | DZ66: 0 | EA66: 0 | EB66: 0 | EC66: 0 | ED66: 0 | EE66: 0 | EF66: 0 | EG66: 0 | EH66: 0 | EI66: 0 | EJ66: 0 | EK66: 0 | EL66: 0 | EM66: 0 | EN66: 0 | EO66: 0 | EP66: 0 | EQ66: 0 | ER66: 0 | ES66: 0 | ET66: 0 | EU66: 0 | EV66: 0 | EW66: 0 | EX66: 0 | EY66: 0 | EZ66: 0 | FA66: 0 | FB66: 0 | FC66: 0 | FD66: 0 | FE66: 0 | FF66: 0 | FG66: 0 | FH66: 0 | FI66: 0 | FJ66: 0 | FK66: 0 | FL66: 0 | FM66: 0 | FN66: 0 | FO66: 0 | FP66: 1 | FQ66: 0 | FR66: 0
A67: LUCIANO CASTILLO COLONNA | B67: AYABACA | C67: 200201 | D67: ARAGOTO | E67: I-2 | F67: AYABACA | G67: NINGUN CLAS | H67: AYABACA | I67: AYABACA | J67: SALUD LUCIANO CASTILLO COLONNA | K67: 1915 | L67: 7 | M67: 0 | N67: 0 | O67: 0 | P67: 0 | Q67: 0 | R67: 0 | S67: 0 | T67: 0 | U67: 0 | V67: 0 | W67: 0 | X67: 0 | Y67: 0 | Z67: 0 | AA67: 0 | AB67: 0 | AC67: 0 | AD67: 0 | AE67: 0 | AF67: 0 | AG67: 0 | AH67: 0 | AI67: 0 | AJ67: 0 | AK67: 0 | AL67: 0 | AM67: 15 | AN67: 0 | AO67: 0 | AP67: 14 | AQ67: 0 | AR67: 0 | AS67: 1 | AT67: 0 | AU67: 0 | AV67: 0 | AW67: 0 | AX67: 0 | AY67: 0 | AZ67: 0 | BA67: 0 | BB67: 0 | BC67: 0 | BD67: 0 | BE67: 0 | BF67: 0 | BG67: 0 | BH67: 0 | BI67: 0 | BJ67: 0 | BK67: 0 | BL67: 0 | BM67: 0 | BN67: 0 | BO67: 0 | BP67: 0 | BQ67: 0 | BR67: 0 | BS67: 0 | BT67: 0 | BU67: 0 | BV67: 0 | BW67: 0 | BX67: 0 | BY67: 0 | BZ67: 0 | CA67: 0 | CB67: 0 | CC67: 0 | CD67: 0 | CE67: 0 | CF67: 0 | CG67: 15 | CH67: 0 | CI67: 0 | CJ67: 0 | CK67: 0 | CL67: 0 | CM67: 0 | CN67: 0 | CO67: 0 | CP67: 0 | CQ67: 0 | CR67: 0 | CS67: 0 | CT67: 0 | CU67: 0 | CV67: 0 | CW67: 0 | CX67: 0 | CY67: 0 | CZ67: 0 | DA67: 0 | DB67: 0 | DC67: 0 | DD67: 0 | DE67: 0 | DF67: 0 | DG67: 0 | DH67: 0 | DI67: 0 | DJ67: 0 | DK67: 0 | DL67: 0 | DM67: 0 | DN67: 0 | DO67: 0 | DP67: 0 | DQ67: 0 | DR67: 0 | DS67: 0 | DT67: 0 | DU67: 0 | DV67: 0 | DW67: 0 | DX67: 0 | DY67: 0 | DZ67: 0 | EA67: 0 | EB67: 0 | EC67: 0 | ED67: 0 | EE67: 0 | EF67: 0 | EG67: 0 | EH67: 0 | EI67: 0 | EJ67: 0 | EK67: 0 | EL67: 0 | EM67: 0 | EN67: 0 | EO67: 0 | EP67: 0 | EQ67: 0 | ER67: 0 | ES67: 0 | ET67: 0 | EU67: 0 | EV67: 0 | EW67: 0 | EX67: 0 | EY67: 0 | EZ67: 0 | FA67: 0 | FB67: 0 | FC67: 0 | FD67: 0 | FE67: 0 | FF67: 0 | FG67: 0 | FH67: 0 | FI67: 0 | FJ67: 0 | FK67: 0 | FL67: 0 | FM67: 0 | FN67: 0 | FO67: 0 | FP67: 0 | FQ67: 0 | FR67: 0
A68: LUCIANO CASTILLO COLONNA | B68: AYABACA | C68: 200201 | D68: ARAGOTO | E68: I-2 | F68: AYABACA | G68: NINGUN CLAS | H68: AYABACA | I68: AYABACA | J68: SALUD LUCIANO CASTILLO COLONNA | K68: 1915 | L68: 5 | M68: 0 | N68: 0 | O68: 0 | P68: 0 | Q68: 0 | R68: 0 | S68: 0 | T68: 0 | U68: 0 | V68: 0 | W68: 0 | X68: 0 | Y68: 0 | Z68: 0 | AA68: 0 | AB68: 0 | AC68: 0 | AD68: 0 | AE68: 0 | AF68: 0 | AG68: 0 | AH68: 0 | AI68: 0 | AJ68: 0 | AK68: 0 | AL68: 0 | AM68: 14 | AN68: 0 | AO68: 0 | AP68: 13 | AQ68: 0 | AR68: 0 | AS68: 1 | AT68: 0 | AU68: 0 | AV68: 0 | AW68: 0 | AX68: 0 | AY68: 0 | AZ68: 0 | BA68: 0 | BB68: 0 | BC68: 0 | BD68: 0 | BE68: 0 | BF68: 0 | BG68: 0 | BH68: 0 | BI68: 0 | BJ68: 0 | BK68: 2 | BL68: 0 | BM68: 0 | BN68: 8 | BO68: 0 | BP68: 0 | BQ68: 0 | BR68: 0 | BS68: 0 | BT68: 0 | BU68: 0 | BV68: 0 | BW68: 0 | BX68: 0 | BY68: 0 | BZ68: 0 | CA68: 0 | CB68: 0 | CC68: 0 | CD68: 0 | CE68: 0 | CF68: 0 | CG68: 14 | CH68: 0 | CI68: 10 | CJ68: 0 | CK68: 0 | CL68: 0 | CM68: 0 | CN68: 0 | CO68: 0 | CP68: 0 | CQ68: 0 | CR68: 0 | CS68: 0 | CT68: 0 | CU68: 0 | CV68: 0 | CW68: 0 | CX68: 0 | CY68: 0 | CZ68: 0 | DA68: 0 | DB68: 0 | DC68: 0 | DD68: 0 | DE68: 0 | DF68: 0 | DG68: 0 | DH68: 0 | DI68: 0 | DJ68: 0 | DK68: 0 | DL68: 0 | DM68: 0 | DN68: 0 | DO68: 0 | DP68: 0 | DQ68: 0 | DR68: 0 | DS68: 0 | DT68: 0 | DU68: 0 | DV68: 0 | DW68: 0 | DX68: 0 | DY68: 0 | DZ68: 0 | EA68: 0 | EB68: 0 | EC68: 0 | ED68: 0 | EE68: 0 | EF68: 0 | EG68: 0 | EH68: 0 | EI68: 0 | EJ68: 0 | EK68: 0 | EL68: 0 | EM68: 0 | EN68: 0 | EO68: 0 | EP68: 0 | EQ68: 0 | ER68: 0 | ES68: 0 | ET68: 0 | EU68: 0 | EV68: 0 | EW68: 0 | EX68: 0 | EY68: 0 | EZ68: 0 | FA68: 0 | FB68: 0 | FC68: 0 | FD68: 0 | FE68: 0 | FF68: 0 | FG68: 0 | FH68: 0 | FI68: 0 | FJ68: 0 | FK68: 0 | FL68: 0 | FM68: 0 | FN68: 0 | FO68: 0 | FP68: 0 | FQ68: 0 | FR68: 0
A69: LUCIANO CASTILLO COLONNA | B69: AYABACA | C69: 200201 | D69: ARAGOTO | E69: I-2 | F69: AYABACA | G69: NINGUN CLAS | H69: AYABACA | I69: AYABACA | J69: SALUD LUCIANO CASTILLO COLONNA | K69: 1915 | L69: 10 | M69: 0 | N69: 0 | O69: 0 | P69: 0 | Q69: 0 | R69: 0 | S69: 0 | T69: 0 | U69: 0 | V69: 0 | W69: 0 | X69: 0 | Y69: 0 | Z69: 0 | AA69: 0 | AB69: 0 | AC69: 0 | AD69: 0 | AE69: 0 | AF69: 0 | AG69: 0 | AH69: 0 | AI69: 0 | AJ69: 0 | AK69: 0 | AL69: 0 | AM69: 10 | AN69: 0 | AO69: 0 | AP69: 10 | AQ69: 0 | AR69: 0 | AS69: 0 | AT69: 0 | AU69: 0 | AV69: 0 | AW69: 0 | AX69: 0 | AY69: 0 | AZ69: 0 | BA69: 0 | BB69: 0 | BC69: 0 | BD69: 0 | BE69: 0 | BF69: 0 | BG69: 0 | BH69: 0 | BI69: 0 | BJ69: 0 | BK69: 0 | BL69: 0 | BM69: 0 | BN69: 0 | BO69: 0 | BP69: 0 | BQ69: 0 | BR69: 0 | BS69: 0 | BT69: 0 | BU69: 0 | BV69: 0 | BW69: 0 | BX69: 0 | BY69: 0 | BZ69: 0 | CA69: 0 | CB69: 0 | CC69: 0 | CD69: 0 | CE69: 0 | CF69: 0 | CG69: 10 | CH69: 0 | CI69: 0 | CJ69: 0 | CK69: 0 | CL69: 0 | CM69: 0 | CN69: 0 | CO69: 0 | CP69: 0 | CQ69: 0 | CR69: 0 | CS69: 0 | CT69: 0 | CU69: 0 | CV69: 0 | CW69: 0 | CX69: 0 | CY69: 0 | CZ69: 0 | DA69: 0 | DB69: 0 | DC69: 0 | DD69: 0 | DE69: 0 | DF69: 0 | DG69: 0 | DH69: 0 | DI69: 0 | DJ69: 0 | DK69: 0 | DL69: 0 | DM69: 0 | DN69: 0 | DO69: 0 | DP69: 0 | DQ69: 0 | DR69: 0 | DS69: 0 | DT69: 0 | DU69: 0 | DV69: 0 | DW69: 0 | DX69: 0 | DY69: 0 | DZ69: 0 | EA69: 0 | EB69: 0 | EC69: 0 | ED69: 0 | EE69: 0 | EF69: 0 | EG69: 0 | EH69: 0 | EI69: 0 | EJ69: 0 | EK69: 0 | EL69: 0 | EM69: 0 | EN69: 0 | EO69: 0 | EP69: 0 | EQ69: 0 | ER69: 0 | ES69: 0 | ET69: 0 | EU69: 0 | EV69: 0 | EW69: 0 | EX69: 0 | EY69: 0 | EZ69: 0 | FA69: 0 | FB69: 0 | FC69: 0 | FD69: 0 | FE69: 0 | FF69: 0 | FG69: 0 | FH69: 0 | FI69: 0 | FJ69: 0 | FK69: 0 | FL69: 0 | FM69: 0 | FN69: 0 | FO69: 0 | FP69: 0 | FQ69: 0 | FR69: 0
A70: LUCIANO CASTILLO COLONNA | B70: AYABACA | C70: 200201 | D70: ARAGOTO | E70: I-2 | F70: AYABACA | G70: NINGUN CLAS | H70: AYABACA | I70: AYABACA | J70: SALUD LUCIANO CASTILLO COLONNA | K70: 1915 | L70: 12 | M70: 0 | N70: 0 | O70: 0 | P70: 0 | Q70: 0 | R70: 0 | S70: 0 | T70: 0 | U70: 0 | V70: 0 | W70: 0 | X70: 0 | Y70: 0 | Z70: 0 | AA70: 0 | AB70: 0 | AC70: 0 | AD70: 0 | AE70: 0 | AF70: 0 | AG70: 0 | AH70: 0 | AI70: 0 | AJ70: 0 | AK70: 0 | AL70: 0 | AM70: 0 | AN70: 0 | AO70: 0 | AP70: 0 | AQ70: 0 | AR70: 0 | AS70: 0 | AT70: 0 | AU70: 0 | AV70: 0 | AW70: 0 | AX70: 0 | AY70: 0 | AZ70: 0 | BA70: 0 | BB70: 0 | BC70: 0 | BD70: 0 | BE70: 0 | BF70: 0 | BG70: 0 | BH70: 0 | BI70: 0 | BJ70: 0 | BK70: 0 | BL70: 0 | BM70: 0 | BN70: 0 | BO70: 0 | BP70: 0 | BQ70: 0 | BR70: 0 | BS70: 0 | BT70: 0 | BU70: 0 | BV70: 0 | BW70: 0 | BX70: 0 | BY70: 0 | BZ70: 0 | CA70: 0 | CB70: 0 | CC70: 0 | CD70: 0 | CE70: 0 | CF70: 0 | CG70: 0 | CH70: 0 | CI70: 0 | CJ70: 0 | CK70: 0 | CL70: 0 | CM70: 0 | CN70: 0 | CO70: 0 | CP70: 0 | CQ70: 0 | CR70: 0 | CS70: 0 | CT70: 0 | CU70: 0 | CV70: 0 | CW70: 0 | CX70: 0 | CY70: 0 | CZ70: 0 | DA70: 0 | DB70: 0 | DC70: 0 | DD70: 0 | DE70: 0 | DF70: 0 | DG70: 0 | DH70: 0 | DI70: 0 | DJ70: 0 | DK70: 0 | DL70: 0 | DM70: 0 | DN70: 0 | DO70: 0 | DP70: 0 | DQ70: 0 | DR70: 0 | DS70: 0 | DT70: 0 | DU70: 0 | DV70: 0 | DW70: 0 | DX70: 0 | DY70: 0 | DZ70: 0 | EA70: 0 | EB70: 0 | EC70: 0 | ED70: 0 | EE70: 0 | EF70: 0 | EG70: 0 | EH70: 0 | EI70: 0 | EJ70: 0 | EK70: 0 | EL70: 0 | EM70: 0 | EN70: 0 | EO70: 0 | EP70: 0 | EQ70: 0 | ER70: 0 | ES70: 0 | ET70: 0 | EU70: 0 | EV70: 0 | EW70: 0 | EX70: 0 | EY70: 0 | EZ70: 0 | FA70: 0 | FB70: 0 | FC70: 0 | FD70: 0 | FE70: 0 | FF70: 0 | FG70: 0 | FH70: 0 | FI70: 0 | FJ70: 0 | FK70: 0 | FL70: 0 | FM70: 0 | FN70: 0 | FO70: 0 | FP70: 0 | FQ70: 0 | FR70: 0
A71: LUCIANO CASTILLO COLONNA | B71: AYABACA | C71: 200201 | D71: ARAGOTO | E71: I-2 | F71: AYABACA | G71: NINGUN CLAS | H71: AYABACA | I71: AYABACA | J71: SALUD LUCIANO CASTILLO COLONNA | K71: 1915 | L71: 6 | M71: 0 | N71: 0 | O71: 0 | P71: 0 | Q71: 0 | R71: 0 | S71: 0 | T71: 0 | U71: 0 | V71: 0 | W71: 0 | X71: 0 | Y71: 0 | Z71: 0 | AA71: 0 | AB71: 0 | AC71: 0 | AD71: 0 | AE71: 0 | AF71: 0 | AG71: 0 | AH71: 0 | AI71: 0 | AJ71: 0 | AK71: 0 | AL71: 0 | AM71: 12 | AN71: 0 | AO71: 0 | AP71: 12 | AQ71: 0 | AR71: 0 | AS71: 0 | AT71: 0 | AU71: 0 | AV71: 0 | AW71: 0 | AX71: 0 | AY71: 0 | AZ71: 0 | BA71: 0 | BB71: 0 | BC71: 0 | BD71: 0 | BE71: 0 | BF71: 0 | BG71: 0 | BH71: 0 | BI71: 0 | BJ71: 0 | BK71: 0 | BL71: 0 | BM71: 0 | BN71: 2 | BO71: 0 | BP71: 0 | BQ71: 0 | BR71: 0 | BS71: 0 | BT71: 0 | BU71: 0 | BV71: 0 | BW71: 0 | BX71: 0 | BY71: 0 | BZ71: 0 | CA71: 0 | CB71: 0 | CC71: 0 | CD71: 0 | CE71: 0 | CF71: 0 | CG71: 12 | CH71: 0 | CI71: 3 | CJ71: 0 | CK71: 0 | CL71: 0 | CM71: 0 | CN71: 0 | CO71: 0 | CP71: 0 | CQ71: 0 | CR71: 0 | CS71: 0 | CT71: 0 | CU71: 0 | CV71: 0 | CW71: 0 | CX71: 0 | CY71: 0 | CZ71: 0 | DA71: 0 | DB71: 0 | DC71: 0 | DD71: 0 | DE71: 0 | DF71: 0 | DG71: 0 | DH71: 0 | DI71: 0 | DJ71: 0 | DK71: 0 | DL71: 0 | DM71: 0 | DN71: 0 | DO71: 0 | DP71: 0 | DQ71: 0 | DR71: 0 | DS71: 0 | DT71: 0 | DU71: 0 | DV71: 0 | DW71: 0 | DX71: 0 | DY71: 0 | DZ71: 0 | EA71: 0 | EB71: 0 | EC71: 0 | ED71: 0 | EE71: 0 | EF71: 0 | EG71: 0 | EH71: 0 | EI71: 0 | EJ71: 0 | EK71: 0 | EL71: 0 | EM71: 0 | EN71: 0 | EO71: 0 | EP71: 0 | EQ71: 0 | ER71: 0 | ES71: 0 | ET71: 0 | EU71: 0 | EV71: 0 | EW71: 0 | EX71: 0 | EY71: 0 | EZ71: 0 | FA71: 0 | FB71: 0 | FC71: 0 | FD71: 0 | FE71: 0 | FF71: 0 | FG71: 0 | FH71: 0 | FI71: 0 | FJ71: 0 | FK71: 0 | FL71: 0 | FM71: 0 | FN71: 0 | FO71: 0 | FP71: 0 | FQ71: 0 | FR71: 0
A72: LUCIANO CASTILLO COLONNA | B72: AYABACA | C72: 200201 | D72: ARAGOTO | E72: I-2 | F72: AYABACA | G72: NINGUN CLAS | H72: AYABACA | I72: AYABACA | J72: SALUD LUCIANO CASTILLO COLONNA | K72: 1915 | L72: 1 | M72: 0 | N72: 0 | O72: 0 | P72: 0 | Q72: 0 | R72: 0 | S72: 0 | T72: 0 | U72: 0 | V72: 0 | W72: 0 | X72: 0 | Y72: 0 | Z72: 0 | AA72: 0 | AB72: 0 | AC72: 0 | AD72: 0 | AE72: 0 | AF72: 0 | AG72: 0 | AH72: 0 | AI72: 0 | AJ72: 0 | AK72: 0 | AL72: 0 | AM72: 6 | AN72: 0 | AO72: 0 | AP72: 5 | AQ72: 0 | AR72: 0 | AS72: 1 | AT72: 0 | AU72: 0 | AV72: 0 | AW72: 0 | AX72: 0 | AY72: 0 | AZ72: 0 | BA72: 0 | BB72: 0 | BC72: 0 | BD72: 0 | BE72: 0 | BF72: 0 | BG72: 0 | BH72: 0 | BI72: 1 | BJ72: 4 | BK72: 12 | BL72: 0 | BM72: 0 | BN72: 0 | BO72: 0 | BP72: 0 | BQ72: 0 | BR72: 0 | BS72: 0 | BT72: 0 | BU72: 0 | BV72: 0 | BW72: 0 | BX72: 0 | BY72: 0 | BZ72: 0 | CA72: 0 | CB72: 0 | CC72: 0 | CD72: 0 | CE72: 0 | CF72: 0 | CG72: 6 | CH72: 4 | CI72: 12 | CJ72: 0 | CK72: 0 | CL72: 0 | CM72: 0 | CN72: 0 | CO72: 0 | CP72: 0 | CQ72: 0 | CR72: 0 | CS72: 0 | CT72: 0 | CU72: 0 | CV72: 0 | CW72: 0 | CX72: 0 | CY72: 0 | CZ72: 0 | DA72: 0 | DB72: 0 | DC72: 0 | DD72: 0 | DE72: 0 | DF72: 0 | DG72: 0 | DH72: 0 | DI72: 0 | DJ72: 0 | DK72: 0 | DL72: 0 | DM72: 0 | DN72: 0 | DO72: 0 | DP72: 0 | DQ72: 0 | DR72: 0 | DS72: 0 | DT72: 0 | DU72: 0 | DV72: 0 | DW72: 0 | DX72: 0 | DY72: 0 | DZ72: 0 | EA72: 0 | EB72: 0 | EC72: 0 | ED72: 0 | EE72: 0 | EF72: 0 | EG72: 0 | EH72: 0 | EI72: 0 | EJ72: 0 | EK72: 0 | EL72: 0 | EM72: 0 | EN72: 0 | EO72: 0 | EP72: 0 | EQ72: 0 | ER72: 0 | ES72: 0 | ET72: 0 | EU72: 0 | EV72: 0 | EW72: 0 | EX72: 0 | EY72: 0 | EZ72: 0 | FA72: 0 | FB72: 0 | FC72: 0 | FD72: 0 | FE72: 0 | FF72: 0 | FG72: 0 | FH72: 0 | FI72: 0 | FJ72: 0 | FK72: 0 | FL72: 0 | FM72: 0 | FN72: 0 | FO72: 0 | FP72: 0 | FQ72: 0 | FR72: 0
A73: LUCIANO CASTILLO COLONNA | B73: AYABACA | C73: 200201 | D73: ARAGOTO | E73: I-2 | F73: AYABACA | G73: NINGUN CLAS | H73: AYABACA | I73: AYABACA | J73: SALUD LUCIANO CASTILLO COLONNA | K73: 1915 | L73: 9 | M73: 0 | N73: 0 | O73: 0 | P73: 0 | Q73: 0 | R73: 0 | S73: 0 | T73: 0 | U73: 0 | V73: 0 | W73: 0 | X73: 0 | Y73: 0 | Z73: 0 | AA73: 0 | AB73: 0 | AC73: 0 | AD73: 0 | AE73: 0 | AF73: 0 | AG73: 0 | AH73: 0 | AI73: 0 | AJ73: 0 | AK73: 0 | AL73: 0 | AM73: 13 | AN73: 0 | AO73: 0 | AP73: 10 | AQ73: 0 | AR73: 0 | AS73: 1 | AT73: 0 | AU73: 0 | AV73: 0 | AW73: 0 | AX73: 0 | AY73: 0 | AZ73: 0 | BA73: 0 | BB73: 0 | BC73: 0 | BD73: 0 | BE73: 0 | BF73: 0 | BG73: 0 | BH73: 0 | BI73: 0 | BJ73: 0 | BK73: 0 | BL73: 0 | BM73: 0 | BN73: 0 | BO73: 0 | BP73: 0 | BQ73: 0 | BR73: 0 | BS73: 0 | BT73: 0 | BU73: 0 | BV73: 0 | BW73: 0 | BX73: 0 | BY73: 0 | BZ73: 0 | CA73: 0 | CB73: 0 | CC73: 0 | CD73: 0 | CE73: 0 | CF73: 0 | CG73: 13 | CH73: 0 | CI73: 0 | CJ73: 0 | CK73: 0 | CL73: 0 | CM73: 0 | CN73: 0 | CO73: 0 | CP73: 0 | CQ73: 0 | CR73: 0 | CS73: 0 | CT73: 0 | CU73: 0 | CV73: 0 | CW73: 0 | CX73: 0 | CY73: 0 | CZ73: 0 | DA73: 0 | DB73: 0 | DC73: 0 | DD73: 0 | DE73: 0 | DF73: 0 | DG73: 0 | DH73: 0 | DI73: 0 | DJ73: 0 | DK73: 0 | DL73: 0 | DM73: 0 | DN73: 0 | DO73: 0 | DP73: 0 | DQ73: 0 | DR73: 0 | DS73: 0 | DT73: 0 | DU73: 0 | DV73: 0 | DW73: 0 | DX73: 0 | DY73: 0 | DZ73: 0 | EA73: 0 | EB73: 0 | EC73: 0 | ED73: 0 | EE73: 0 | EF73: 0 | EG73: 0 | EH73: 0 | EI73: 0 | EJ73: 0 | EK73: 0 | EL73: 0 | EM73: 0 | EN73: 0 | EO73: 0 | EP73: 0 | EQ73: 0 | ER73: 0 | ES73: 0 | ET73: 0 | EU73: 0 | EV73: 0 | EW73: 0 | EX73: 0 | EY73: 0 | EZ73: 0 | FA73: 0 | FB73: 0 | FC73: 0 | FD73: 0 | FE73: 0 | FF73: 0 | FG73: 0 | FH73: 0 | FI73: 0 | FJ73: 0 | FK73: 0 | FL73: 0 | FM73: 0 | FN73: 0 | FO73: 0 | FP73: 0 | FQ73: 0 | FR73: 0
A74: LUCIANO CASTILLO COLONNA | B74: AYABACA | C74: 200201 | D74: CHOCAN | E74: I-2 | F74: AYABACA | G74: NINGUN CLAS | H74: AYABACA | I74: AYABACA | J74: SALUD LUCIANO CASTILLO COLONNA | K74: 1916 | L74: 1 | M74: 0 | N74: 0 | O74: 0 | P74: 0 | Q74: 0 | R74: 0 | S74: 0 | T74: 0 | U74: 0 | V74: 0 | W74: 0 | X74: 0 | Y74: 0 | Z74: 0 | AA74: 0 | AB74: 0 | AC74: 0 | AD74: 0 | AE74: 0 | AF74: 0 | AG74: 0 | AH74: 0 | AI74: 0 | AJ74: 0 | AK74: 0 | AL74: 1 | AM74: 5 | AN74: 0 | AO74: 1 | AP74: 5 | AQ74: 0 | AR74: 0 | AS74: 0 | AT74: 0 | AU74: 0 | AV74: 0 | AW74: 0 | AX74: 0 | AY74: 0 | AZ74: 0 | BA74: 0 | BB74: 0 | BC74: 0 | BD74: 0 | BE74: 0 | BF74: 0 | BG74: 0 | BH74: 0 | BI74: 0 | BJ74: 0 | BK74: 0 | BL74: 0 | BM74: 0 | BN74: 0 | BO74: 0 | BP74: 0 | BQ74: 0 | BR74: 0 | BS74: 0 | BT74: 0 | BU74: 0 | BV74: 0 | BW74: 0 | BX74: 0 | BY74: 0 | BZ74: 0 | CA74: 0 | CB74: 0 | CC74: 0 | CD74: 0 | CE74: 0 | CF74: 0 | CG74: 6 | CH74: 0 | CI74: 0 | CJ74: 0 | CK74: 0 | CL74: 0 | CM74: 0 | CN74: 0 | CO74: 0 | CP74: 0 | CQ74: 0 | CR74: 0 | CS74: 0 | CT74: 0 | CU74: 0 | CV74: 0 | CW74: 0 | CX74: 0 | CY74: 0 | CZ74: 0 | DA74: 0 | DB74: 0 | DC74: 0 | DD74: 0 | DE74: 0 | DF74: 0 | DG74: 0 | DH74: 0 | DI74: 0 | DJ74: 0 | DK74: 0 | DL74: 0 | DM74: 0 | DN74: 0 | DO74: 0 | DP74: 0 | DQ74: 0 | DR74: 0 | DS74: 0 | DT74: 0 | DU74: 0 | DV74: 0 | DW74: 0 | DX74: 0 | DY74: 0 | DZ74: 0 | EA74: 0 | EB74: 0 | EC74: 0 | ED74: 0 | EE74: 0 | EF74: 0 | EG74: 0 | EH74: 0 | EI74: 0 | EJ74: 0 | EK74: 0 | EL74: 0 | EM74: 0 | EN74: 0 | EO74: 0 | EP74: 0 | EQ74: 0 | ER74: 0 | ES74: 0 | ET74: 0 | EU74: 0 | EV74: 0 | EW74: 0 | EX74: 0 | EY74: 0 | EZ74: 0 | FA74: 0 | FB74: 0 | FC74: 0 | FD74: 0 | FE74: 0 | FF74: 0 | FG74: 0 | FH74: 0 | FI74: 0 | FJ74: 0 | FK74: 0 | FL74: 0 | FM74: 0 | FN74: 0 | FO74: 0 | FP74: 0 | FQ74: 0 | FR74: 0
A75: LUCIANO CASTILLO COLONNA | B75: AYABACA | C75: 200201 | D75: CHOCAN | E75: I-2 | F75: AYABACA | G75: NINGUN CLAS | H75: AYABACA | I75: AYABACA | J75: SALUD LUCIANO CASTILLO COLONNA | K75: 1916 | L75: 4 | M75: 0 | N75: 0 | O75: 0 | P75: 0 | Q75: 0 | R75: 0 | S75: 0 | T75: 0 | U75: 0 | V75: 0 | W75: 0 | X75: 0 | Y75: 0 | Z75: 0 | AA75: 0 | AB75: 0 | AC75: 0 | AD75: 0 | AE75: 0 | AF75: 0 | AG75: 0 | AH75: 0 | AI75: 0 | AJ75: 0 | AK75: 0 | AL75: 0 | AM75: 2 | AN75: 0 | AO75: 0 | AP75: 2 | AQ75: 0 | AR75: 0 | AS75: 0 | AT75: 0 | AU75: 0 | AV75: 0 | AW75: 0 | AX75: 0 | AY75: 0 | AZ75: 0 | BA75: 0 | BB75: 0 | BC75: 0 | BD75: 0 | BE75: 0 | BF75: 0 | BG75: 0 | BH75: 0 | BI75: 0 | BJ75: 0 | BK75: 0 | BL75: 0 | BM75: 0 | BN75: 0 | BO75: 0 | BP75: 0 | BQ75: 0 | BR75: 0 | BS75: 0 | BT75: 0 | BU75: 0 | BV75: 0 | BW75: 0 | BX75: 0 | BY75: 0 | BZ75: 0 | CA75: 0 | CB75: 0 | CC75: 0 | CD75: 0 | CE75: 0 | CF75: 0 | CG75: 2 | CH75: 0 | CI75: 0 | CJ75: 0 | CK75: 0 | CL75: 0 | CM75: 0 | CN75: 0 | CO75: 0 | CP75: 0 | CQ75: 0 | CR75: 0 | CS75: 0 | CT75: 0 | CU75: 0 | CV75: 0 | CW75: 0 | CX75: 0 | CY75: 0 | CZ75: 0 | DA75: 0 | DB75: 0 | DC75: 0 | DD75: 0 | DE75: 0 | DF75: 0 | DG75: 0 | DH75: 0 | DI75: 0 | DJ75: 0 | DK75: 0 | DL75: 0 | DM75: 0 | DN75: 0 | DO75: 0 | DP75: 0 | DQ75: 0 | DR75: 0 | DS75: 0 | DT75: 0 | DU75: 0 | DV75: 0 | DW75: 0 | DX75: 0 | DY75: 0 | DZ75: 0 | EA75: 0 | EB75: 0 | EC75: 0 | ED75: 0 | EE75: 0 | EF75: 0 | EG75: 0 | EH75: 0 | EI75: 0 | EJ75: 0 | EK75: 0 | EL75: 0 | EM75: 0 | EN75: 0 | EO75: 0 | EP75: 0 | EQ75: 0 | ER75: 0 | ES75: 0 | ET75: 0 | EU75: 0 | EV75: 0 | EW75: 0 | EX75: 0 | EY75: 0 | EZ75: 0 | FA75: 0 | FB75: 0 | FC75: 0 | FD75: 0 | FE75: 0 | FF75: 0 | FG75: 0 | FH75: 0 | FI75: 0 | FJ75: 0 | FK75: 0 | FL75: 0 | FM75: 0 | FN75: 0 | FO75: 0 | FP75: 0 | FQ75: 0 | FR75: 0
A76: LUCIANO CASTILLO COLONNA | B76: AYABACA | C76: 200201 | D76: CHOCAN | E76: I-2 | F76: AYABACA | G76: NINGUN CLAS | H76: AYABACA | I76: AYABACA | J76: SALUD LUCIANO CASTILLO COLONNA | K76: 1916 | L76: 7 | M76: 0 | N76: 0 | O76: 0 | P76: 0 | Q76: 0 | R76: 0 | S76: 0 | T76: 0 | U76: 0 | V76: 0 | W76: 0 | X76: 0 | Y76: 0 | Z76: 0 | AA76: 0 | AB76: 0 | AC76: 0 | AD76: 0 | AE76: 0 | AF76: 0 | AG76: 1 | AH76: 0 | AI76: 0 | AJ76: 0 | AK76: 0 | AL76: 0 | AM76: 5 | AN76: 0 | AO76: 0 | AP76: 5 | AQ76: 0 | AR76: 0 | AS76: 0 | AT76: 0 | AU76: 0 | AV76: 0 | AW76: 0 | AX76: 0 | AY76: 0 | AZ76: 0 | BA76: 0 | BB76: 0 | BC76: 0 | BD76: 0 | BE76: 0 | BF76: 0 | BG76: 0 | BH76: 0 | BI76: 0 | BJ76: 0 | BK76: 0 | BL76: 0 | BM76: 0 | BN76: 0 | BO76: 0 | BP76: 0 | BQ76: 0 | BR76: 0 | BS76: 0 | BT76: 0 | BU76: 0 | BV76: 0 | BW76: 0 | BX76: 0 | BY76: 0 | BZ76: 0 | CA76: 0 | CB76: 0 | CC76: 0 | CD76: 0 | CE76: 0 | CF76: 0 | CG76: 5 | CH76: 0 | CI76: 0 | CJ76: 0 | CK76: 0 | CL76: 0 | CM76: 0 | CN76: 0 | CO76: 0 | CP76: 0 | CQ76: 0 | CR76: 0 | CS76: 0 | CT76: 0 | CU76: 0 | CV76: 0 | CW76: 0 | CX76: 0 | CY76: 0 | CZ76: 0 | DA76: 0 | DB76: 0 | DC76: 0 | DD76: 0 | DE76: 0 | DF76: 0 | DG76: 0 | DH76: 0 | DI76: 0 | DJ76: 0 | DK76: 0 | DL76: 0 | DM76: 0 | DN76: 0 | DO76: 0 | DP76: 0 | DQ76: 0 | DR76: 0 | DS76: 0 | DT76: 0 | DU76: 0 | DV76: 0 | DW76: 0 | DX76: 0 | DY76: 0 | DZ76: 0 | EA76: 0 | EB76: 0 | EC76: 0 | ED76: 0 | EE76: 0 | EF76: 0 | EG76: 0 | EH76: 0 | EI76: 0 | EJ76: 0 | EK76: 0 | EL76: 0 | EM76: 0 | EN76: 0 | EO76: 0 | EP76: 0 | EQ76: 0 | ER76: 0 | ES76: 0 | ET76: 0 | EU76: 0 | EV76: 0 | EW76: 0 | EX76: 0 | EY76: 0 | EZ76: 0 | FA76: 0 | FB76: 0 | FC76: 0 | FD76: 0 | FE76: 0 | FF76: 0 | FG76: 1 | FH76: 0 | FI76: 0 | FJ76: 0 | FK76: 0 | FL76: 0 | FM76: 0 | FN76: 0 | FO76: 0 | FP76: 1 | FQ76: 0 | FR76: 0
A77: LUCIANO CASTILLO COLONNA | B77: AYABACA | C77: 200201 | D77: CHOCAN | E77: I-2 | F77: AYABACA | G77: NINGUN CLAS | H77: AYABACA | I77: AYABACA | J77: SALUD LUCIANO CASTILLO COLONNA | K77: 1916 | L77: 12 | M77: 0 | N77: 0 | O77: 0 | P77: 0 | Q77: 0 | R77: 0 | S77: 0 | T77: 0 | U77: 0 | V77: 0 | W77: 0 | X77: 0 | Y77: 0 | Z77: 0 | AA77: 0 | AB77: 0 | AC77: 0 | AD77: 0 | AE77: 0 | AF77: 0 | AG77: 0 | AH77: 0 | AI77: 0 | AJ77: 0 | AK77: 0 | AL77: 0 | AM77: 0 | AN77: 0 | AO77: 0 | AP77: 0 | AQ77: 0 | AR77: 0 | AS77: 0 | AT77: 0 | AU77: 0 | AV77: 0 | AW77: 0 | AX77: 0 | AY77: 0 | AZ77: 0 | BA77: 0 | BB77: 0 | BC77: 0 | BD77: 0 | BE77: 0 | BF77: 0 | BG77: 0 | BH77: 0 | BI77: 0 | BJ77: 0 | BK77: 0 | BL77: 0 | BM77: 0 | BN77: 0 | BO77: 0 | BP77: 0 | BQ77: 0 | BR77: 0 | BS77: 0 | BT77: 0 | BU77: 0 | BV77: 0 | BW77: 0 | BX77: 0 | BY77: 0 | BZ77: 0 | CA77: 0 | CB77: 0 | CC77: 0 | CD77: 0 | CE77: 0 | CF77: 0 | CG77: 0 | CH77: 0 | CI77: 0 | CJ77: 0 | CK77: 0 | CL77: 0 | CM77: 0 | CN77: 0 | CO77: 0 | CP77: 0 | CQ77: 0 | CR77: 0 | CS77: 0 | CT77: 0 | CU77: 0 | CV77: 0 | CW77: 0 | CX77: 0 | CY77: 0 | CZ77: 0 | DA77: 0 | DB77: 0 | DC77: 0 | DD77: 0 | DE77: 0 | DF77: 0 | DG77: 0 | DH77: 0 | DI77: 0 | DJ77: 0 | DK77: 0 | DL77: 0 | DM77: 0 | DN77: 0 | DO77: 0 | DP77: 0 | DQ77: 0 | DR77: 0 | DS77: 0 | DT77: 0 | DU77: 0 | DV77: 0 | DW77: 0 | DX77: 0 | DY77: 0 | DZ77: 0 | EA77: 0 | EB77: 0 | EC77: 0 | ED77: 0 | EE77: 0 | EF77: 0 | EG77: 0 | EH77: 0 | EI77: 0 | EJ77: 0 | EK77: 0 | EL77: 0 | EM77: 0 | EN77: 0 | EO77: 0 | EP77: 0 | EQ77: 0 | ER77: 0 | ES77: 0 | ET77: 0 | EU77: 0 | EV77: 0 | EW77: 0 | EX77: 0 | EY77: 0 | EZ77: 0 | FA77: 0 | FB77: 0 | FC77: 0 | FD77: 0 | FE77: 0 | FF77: 0 | FG77: 0 | FH77: 0 | FI77: 0 | FJ77: 0 | FK77: 0 | FL77: 0 | FM77: 0 | FN77: 0 | FO77: 0 | FP77: 0 | FQ77: 0 | FR77: 0
A78: LUCIANO CASTILLO COLONNA | B78: AYABACA | C78: 200201 | D78: CHOCAN | E78: I-2 | F78: AYABACA | G78: NINGUN CLAS | H78: AYABACA | I78: AYABACA | J78: SALUD LUCIANO CASTILLO COLONNA | K78: 1916 | L78: 9 | M78: 0 | N78: 0 | O78: 0 | P78: 0 | Q78: 0 | R78: 0 | S78: 0 | T78: 0 | U78: 0 | V78: 0 | W78: 0 | X78: 0 | Y78: 0 | Z78: 0 | AA78: 0 | AB78: 0 | AC78: 0 | AD78: 0 | AE78: 0 | AF78: 0 | AG78: 0 | AH78: 0 | AI78: 0 | AJ78: 0 | AK78: 0 | AL78: 0 | AM78: 4 | AN78: 0 | AO78: 0 | AP78: 3 | AQ78: 0 | AR78: 0 | AS78: 0 | AT78: 0 | AU78: 0 | AV78: 0 | AW78: 0 | AX78: 0 | AY78: 0 | AZ78: 0 | BA78: 0 | BB78: 0 | BC78: 0 | BD78: 0 | BE78: 0 | BF78: 0 | BG78: 0 | BH78: 0 | BI78: 0 | BJ78: 0 | BK78: 0 | BL78: 0 | BM78: 0 | BN78: 0 | BO78: 0 | BP78: 0 | BQ78: 0 | BR78: 0 | BS78: 0 | BT78: 0 | BU78: 0 | BV78: 0 | BW78: 0 | BX78: 0 | BY78: 0 | BZ78: 0 | CA78: 0 | CB78: 0 | CC78: 0 | CD78: 0 | CE78: 0 | CF78: 0 | CG78: 4 | CH78: 0 | CI78: 0 | CJ78: 0 | CK78: 0 | CL78: 0 | CM78: 0 | CN78: 0 | CO78: 0 | CP78: 0 | CQ78: 0 | CR78: 0 | CS78: 0 | CT78: 0 | CU78: 0 | CV78: 0 | CW78: 0 | CX78: 0 | CY78: 0 | CZ78: 0 | DA78: 0 | DB78: 0 | DC78: 0 | DD78: 0 | DE78: 0 | DF78: 0 | DG78: 0 | DH78: 0 | DI78: 0 | DJ78: 0 | DK78: 0 | DL78: 0 | DM78: 0 | DN78: 0 | DO78: 0 | DP78: 0 | DQ78: 0 | DR78: 0 | DS78: 0 | DT78: 0 | DU78: 0 | DV78: 0 | DW78: 0 | DX78: 0 | DY78: 0 | DZ78: 0 | EA78: 0 | EB78: 0 | EC78: 0 | ED78: 0 | EE78: 0 | EF78: 0 | EG78: 0 | EH78: 0 | EI78: 0 | EJ78: 0 | EK78: 0 | EL78: 0 | EM78: 0 | EN78: 0 | EO78: 0 | EP78: 0 | EQ78: 0 | ER78: 0 | ES78: 0 | ET78: 0 | EU78: 0 | EV78: 0 | EW78: 0 | EX78: 0 | EY78: 0 | EZ78: 0 | FA78: 0 | FB78: 0 | FC78: 0 | FD78: 0 | FE78: 0 | FF78: 0 | FG78: 0 | FH78: 0 | FI78: 0 | FJ78: 0 | FK78: 0 | FL78: 0 | FM78: 0 | FN78: 0 | FO78: 0 | FP78: 1 | FQ78: 0 | FR78: 0
A79: LUCIANO CASTILLO COLONNA | B79: AYABACA | C79: 200201 | D79: CHOCAN | E79: I-2 | F79: AYABACA | G79: NINGUN CLAS | H79: AYABACA | I79: AYABACA | J79: SALUD LUCIANO CASTILLO COLONNA | K79: 1916 | L79: 10 | M79: 0 | N79: 0 | O79: 0 | P79: 0 | Q79: 0 | R79: 0 | S79: 0 | T79: 0 | U79: 0 | V79: 0 | W79: 0 | X79: 0 | Y79: 0 | Z79: 0 | AA79: 0 | AB79: 0 | AC79: 0 | AD79: 0 | AE79: 0 | AF79: 0 | AG79: 1 | AH79: 0 | AI79: 0 | AJ79: 0 | AK79: 0 | AL79: 0 | AM79: 4 | AN79: 1 | AO79: 0 | AP79: 4 | AQ79: 0 | AR79: 0 | AS79: 0 | AT79: 0 | AU79: 0 | AV79: 0 | AW79: 0 | AX79: 0 | AY79: 0 | AZ79: 0 | BA79: 0 | BB79: 0 | BC79: 0 | BD79: 0 | BE79: 0 | BF79: 0 | BG79: 0 | BH79: 0 | BI79: 0 | BJ79: 0 | BK79: 0 | BL79: 0 | BM79: 0 | BN79: 0 | BO79: 0 | BP79: 0 | BQ79: 0 | BR79: 0 | BS79: 0 | BT79: 0 | BU79: 0 | BV79: 0 | BW79: 0 | BX79: 0 | BY79: 0 | BZ79: 0 | CA79: 0 | CB79: 0 | CC79: 0 | CD79: 0 | CE79: 0 | CF79: 0 | CG79: 4 | CH79: 2 | CI79: 2 | CJ79: 0 | CK79: 0 | CL79: 0 | CM79: 0 | CN79: 0 | CO79: 1 | CP79: 0 | CQ79: 0 | CR79: 0 | CS79: 0 | CT79: 0 | CU79: 0 | CV79: 0 | CW79: 0 | CX79: 0 | CY79: 0 | CZ79: 0 | DA79: 0 | DB79: 0 | DC79: 0 | DD79: 0 | DE79: 0 | DF79: 0 | DG79: 0 | DH79: 0 | DI79: 0 | DJ79: 0 | DK79: 0 | DL79: 0 | DM79: 0 | DN79: 0 | DO79: 0 | DP79: 0 | DQ79: 0 | DR79: 0 | DS79: 0 | DT79: 0 | DU79: 0 | DV79: 0 | DW79: 0 | DX79: 0 | DY79: 0 | DZ79: 0 | EA79: 0 | EB79: 0 | EC79: 0 | ED79: 0 | EE79: 0 | EF79: 0 | EG79: 0 | EH79: 0 | EI79: 0 | EJ79: 0 | EK79: 0 | EL79: 0 | EM79: 0 | EN79: 0 | EO79: 0 | EP79: 0 | EQ79: 0 | ER79: 0 | ES79: 0 | ET79: 0 | EU79: 0 | EV79: 0 | EW79: 0 | EX79: 0 | EY79: 0 | EZ79: 0 | FA79: 0 | FB79: 0 | FC79: 0 | FD79: 0 | FE79: 0 | FF79: 0 | FG79: 0 | FH79: 0 | FI79: 0 | FJ79: 0 | FK79: 0 | FL79: 0 | FM79: 0 | FN79: 0 | FO79: 0 | FP79: 0 | FQ79: 0 | FR79: 0
A80: LUCIANO CASTILLO COLONNA | B80: AYABACA | C80: 200201 | D80: CHOCAN | E80: I-2 | F80: AYABACA | G80: NINGUN CLAS | H80: AYABACA | I80: AYABACA | J80: SALUD LUCIANO CASTILLO COLONNA | K80: 1916 | L80: 11 | M80: 0 | N80: 0 | O80: 0 | P80: 0 | Q80: 0 | R80: 0 | S80: 0 | T80: 0 | U80: 0 | V80: 0 | W80: 0 | X80: 0 | Y80: 0 | Z80: 0 | AA80: 0 | AB80: 0 | AC80: 0 | AD80: 0 | AE80: 0 | AF80: 0 | AG80: 1 | AH80: 0 | AI80: 0 | AJ80: 0 | AK80: 0 | AL80: 0 | AM80: 1 | AN80: 1 | AO80: 1 | AP80: 1 | AQ80: 0 | AR80: 0 | AS80: 0 | AT80: 0 | AU80: 0 | AV80: 0 | AW80: 0 | AX80: 0 | AY80: 0 | AZ80: 0 | BA80: 0 | BB80: 0 | BC80: 0 | BD80: 0 | BE80: 0 | BF80: 0 | BG80: 0 | BH80: 0 | BI80: 0 | BJ80: 0 | BK80: 0 | BL80: 0 | BM80: 0 | BN80: 0 | BO80: 0 | BP80: 0 | BQ80: 0 | BR80: 0 | BS80: 0 | BT80: 0 | BU80: 0 | BV80: 0 | BW80: 0 | BX80: 0 | BY80: 0 | BZ80: 0 | CA80: 0 | CB80: 0 | CC80: 0 | CD80: 0 | CE80: 0 | CF80: 0 | CG80: 1 | CH80: 0 | CI80: 0 | CJ80: 0 | CK80: 0 | CL80: 0 | CM80: 0 | CN80: 0 | CO80: 0 | CP80: 0 | CQ80: 0 | CR80: 0 | CS80: 0 | CT80: 0 | CU80: 0 | CV80: 0 | CW80: 0 | CX80: 0 | CY80: 0 | CZ80: 0 | DA80: 0 | DB80: 0 | DC80: 0 | DD80: 0 | DE80: 0 | DF80: 0 | DG80: 0 | DH80: 0 | DI80: 0 | DJ80: 0 | DK80: 0 | DL80: 0 | DM80: 0 | DN80: 0 | DO80: 0 | DP80: 0 | DQ80: 0 | DR80: 0 | DS80: 0 | DT80: 0 | DU80: 0 | DV80: 0 | DW80: 0 | DX80: 0 | DY80: 0 | DZ80: 0 | EA80: 0 | EB80: 0 | EC80: 0 | ED80: 0 | EE80: 0 | EF80: 0 | EG80: 0 | EH80: 0 | EI80: 0 | EJ80: 0 | EK80: 0 | EL80: 0 | EM80: 0 | EN80: 0 | EO80: 0 | EP80: 0 | EQ80: 0 | ER80: 0 | ES80: 0 | ET80: 0 | EU80: 0 | EV80: 0 | EW80: 0 | EX80: 0 | EY80: 0 | EZ80: 0 | FA80: 0 | FB80: 0 | FC80: 0 | FD80: 0 | FE80: 0 | FF80: 0 | FG80: 0 | FH80: 0 | FI80: 0 | FJ80: 0 | FK80: 0 | FL80: 0 | FM80: 0 | FN80: 0 | FO80: 0 | FP80: 1 | FQ80: 0 | FR80: 1
A81: LUCIANO CASTILLO COLONNA | B81: AYABACA | C81: 200201 | D81: CHOCAN | E81: I-2 | F81: AYABACA | G81: NINGUN CLAS | H81: AYABACA | I81: AYABACA | J81: SALUD LUCIANO CASTILLO COLONNA | K81: 1916 | L81: 6 | M81: 0 | N81: 0 | O81: 0 | P81: 0 | Q81: 0 | R81: 0 | S81: 0 | T81: 0 | U81: 0 | V81: 0 | W81: 0 | X81: 0 | Y81: 0 | Z81: 0 | AA81: 0 | AB81: 0 | AC81: 0 | AD81: 0 | AE81: 0 | AF81: 0 | AG81: 0 | AH81: 0 | AI81: 0 | AJ81: 0 | AK81: 0 | AL81: 0 | AM81: 2 | AN81: 0 | AO81: 0 | AP81: 2 | AQ81: 0 | AR81: 0 | AS81: 0 | AT81: 0 | AU81: 0 | AV81: 0 | AW81: 0 | AX81: 0 | AY81: 0 | AZ81: 0 | BA81: 0 | BB81: 0 | BC81: 0 | BD81: 0 | BE81: 0 | BF81: 0 | BG81: 0 | BH81: 0 | BI81: 0 | BJ81: 0 | BK81: 0 | BL81: 0 | BM81: 0 | BN81: 0 | BO81: 0 | BP81: 0 | BQ81: 0 | BR81: 0 | BS81: 0 | BT81: 0 | BU81: 0 | BV81: 0 | BW81: 0 | BX81: 0 | BY81: 0 | BZ81: 0 | CA81: 0 | CB81: 0 | CC81: 0 | CD81: 0 | CE81: 0 | CF81: 0 | CG81: 2 | CH81: 0 | CI81: 0 | CJ81: 0 | CK81: 0 | CL81: 0 | CM81: 0 | CN81: 0 | CO81: 0 | CP81: 0 | CQ81: 0 | CR81: 0 | CS81: 0 | CT81: 0 | CU81: 0 | CV81: 0 | CW81: 0 | CX81: 0 | CY81: 0 | CZ81: 0 | DA81: 0 | DB81: 0 | DC81: 0 | DD81: 0 | DE81: 0 | DF81: 0 | DG81: 0 | DH81: 0 | DI81: 0 | DJ81: 0 | DK81: 0 | DL81: 0 | DM81: 0 | DN81: 0 | DO81: 0 | DP81: 0 | DQ81: 0 | DR81: 0 | DS81: 0 | DT81: 0 | DU81: 0 | DV81: 0 | DW81: 0 | DX81: 0 | DY81: 0 | DZ81: 0 | EA81: 0 | EB81: 0 | EC81: 0 | ED81: 0 | EE81: 0 | EF81: 0 | EG81: 0 | EH81: 0 | EI81: 0 | EJ81: 0 | EK81: 0 | EL81: 0 | EM81: 0 | EN81: 0 | EO81: 0 | EP81: 0 | EQ81: 0 | ER81: 0 | ES81: 0 | ET81: 0 | EU81: 0 | EV81: 0 | EW81: 0 | EX81: 0 | EY81: 0 | EZ81: 0 | FA81: 0 | FB81: 0 | FC81: 0 | FD81: 0 | FE81: 0 | FF81: 0 | FG81: 0 | FH81: 0 | FI81: 0 | FJ81: 0 | FK81: 0 | FL81: 0 | FM81: 0 | FN81: 0 | FO81: 0 | FP81: 0 | FQ81: 0 | FR81: 0
A82: LUCIANO CASTILLO COLONNA | B82: AYABACA | C82: 200201 | D82: CHOCAN | E82: I-2 | F82: AYABACA | G82: NINGUN CLAS | H82: AYABACA | I82: AYABACA | J82: SALUD LUCIANO CASTILLO COLONNA | K82: 1916 | L82: 5 | M82: 0 | N82: 0 | O82: 0 | P82: 0 | Q82: 0 | R82: 0 | S82: 0 | T82: 0 | U82: 0 | V82: 0 | W82: 0 | X82: 0 | Y82: 0 | Z82: 0 | AA82: 0 | AB82: 0 | AC82: 0 | AD82: 0 | AE82: 0 | AF82: 0 | AG82: 0 | AH82: 0 | AI82: 0 | AJ82: 0 | AK82: 0 | AL82: 0 | AM82: 7 | AN82: 0 | AO82: 0 | AP82: 7 | AQ82: 0 | AR82: 0 | AS82: 0 | AT82: 0 | AU82: 0 | AV82: 0 | AW82: 0 | AX82: 0 | AY82: 0 | AZ82: 0 | BA82: 0 | BB82: 0 | BC82: 0 | BD82: 0 | BE82: 0 | BF82: 0 | BG82: 0 | BH82: 0 | BI82: 0 | BJ82: 0 | BK82: 0 | BL82: 0 | BM82: 0 | BN82: 0 | BO82: 0 | BP82: 0 | BQ82: 0 | BR82: 0 | BS82: 0 | BT82: 0 | BU82: 0 | BV82: 0 | BW82: 0 | BX82: 0 | BY82: 0 | BZ82: 0 | CA82: 0 | CB82: 0 | CC82: 0 | CD82: 0 | CE82: 0 | CF82: 0 | CG82: 7 | CH82: 0 | CI82: 0 | CJ82: 0 | CK82: 0 | CL82: 0 | CM82: 0 | CN82: 0 | CO82: 0 | CP82: 0 | CQ82: 0 | CR82: 0 | CS82: 0 | CT82: 0 | CU82: 0 | CV82: 0 | CW82: 0 | CX82: 0 | CY82: 0 | CZ82: 0 | DA82: 0 | DB82: 0 | DC82: 0 | DD82: 0 | DE82: 0 | DF82: 0 | DG82: 0 | DH82: 0 | DI82: 0 | DJ82: 0 | DK82: 0 | DL82: 0 | DM82: 0 | DN82: 0 | DO82: 0 | DP82: 0 | DQ82: 0 | DR82: 0 | DS82: 0 | DT82: 0 | DU82: 0 | DV82: 0 | DW82: 0 | DX82: 0 | DY82: 0 | DZ82: 0 | EA82: 0 | EB82: 0 | EC82: 0 | ED82: 0 | EE82: 0 | EF82: 0 | EG82: 0 | EH82: 0 | EI82: 0 | EJ82: 0 | EK82: 0 | EL82: 0 | EM82: 0 | EN82: 0 | EO82: 0 | EP82: 0 | EQ82: 0 | ER82: 0 | ES82: 0 | ET82: 0 | EU82: 0 | EV82: 0 | EW82: 0 | EX82: 0 | EY82: 0 | EZ82: 0 | FA82: 0 | FB82: 0 | FC82: 0 | FD82: 0 | FE82: 0 | FF82: 0 | FG82: 0 | FH82: 0 | FI82: 0 | FJ82: 0 | FK82: 0 | FL82: 0 | FM82: 0 | FN82: 0 | FO82: 0 | FP82: 2 | FQ82: 1 | FR82: 0
A83: LUCIANO CASTILLO COLONNA | B83: AYABACA | C83: 200201 | D83: CHOCAN | E83: I-2 | F83: AYABACA | G83: NINGUN CLAS | H83: AYABACA | I83: AYABACA | J83: SALUD LUCIANO CASTILLO COLONNA | K83: 1916 | L83: 3 | M83: 0 | N83: 0 | O83: 0 | P83: 0 | Q83: 0 | R83: 0 | S83: 0 | T83: 0 | U83: 0 | V83: 0 | W83: 0 | X83: 0 | Y83: 0 | Z83: 0 | AA83: 0 | AB83: 0 | AC83: 0 | AD83: 0 | AE83: 0 | AF83: 0 | AG83: 0 | AH83: 0 | AI83: 0 | AJ83: 0 | AK83: 0 | AL83: 0 | AM83: 7 | AN83: 0 | AO83: 0 | AP83: 7 | AQ83: 0 | AR83: 0 | AS83: 0 | AT83: 0 | AU83: 0 | AV83: 0 | AW83: 0 | AX83: 0 | AY83: 0 | AZ83: 0 | BA83: 0 | BB83: 0 | BC83: 0 | BD83: 0 | BE83: 0 | BF83: 0 | BG83: 0 | BH83: 0 | BI83: 0 | BJ83: 0 | BK83: 0 | BL83: 0 | BM83: 0 | BN83: 0 | BO83: 0 | BP83: 0 | BQ83: 0 | BR83: 0 | BS83: 0 | BT83: 0 | BU83: 0 | BV83: 0 | BW83: 0 | BX83: 0 | BY83: 0 | BZ83: 0 | CA83: 0 | CB83: 0 | CC83: 0 | CD83: 0 | CE83: 0 | CF83: 0 | CG83: 7 | CH83: 0 | CI83: 0 | CJ83: 0 | CK83: 0 | CL83: 0 | CM83: 0 | CN83: 0 | CO83: 0 | CP83: 0 | CQ83: 0 | CR83: 0 | CS83: 0 | CT83: 0 | CU83: 0 | CV83: 0 | CW83: 0 | CX83: 0 | CY83: 0 | CZ83: 0 | DA83: 0 | DB83: 0 | DC83: 0 | DD83: 0 | DE83: 0 | DF83: 0 | DG83: 0 | DH83: 0 | DI83: 0 | DJ83: 0 | DK83: 0 | DL83: 0 | DM83: 0 | DN83: 0 | DO83: 0 | DP83: 0 | DQ83: 0 | DR83: 0 | DS83: 0 | DT83: 0 | DU83: 0 | DV83: 0 | DW83: 0 | DX83: 0 | DY83: 0 | DZ83: 0 | EA83: 0 | EB83: 0 | EC83: 0 | ED83: 0 | EE83: 0 | EF83: 0 | EG83: 0 | EH83: 0 | EI83: 0 | EJ83: 0 | EK83: 0 | EL83: 0 | EM83: 0 | EN83: 0 | EO83: 0 | EP83: 0 | EQ83: 0 | ER83: 0 | ES83: 0 | ET83: 0 | EU83: 0 | EV83: 0 | EW83: 0 | EX83: 0 | EY83: 0 | EZ83: 0 | FA83: 0 | FB83: 0 | FC83: 0 | FD83: 0 | FE83: 0 | FF83: 0 | FG83: 0 | FH83: 0 | FI83: 0 | FJ83: 0 | FK83: 0 | FL83: 0 | FM83: 0 | FN83: 0 | FO83: 0 | FP83: 0 | FQ83: 0 | FR83: 0
A84: LUCIANO CASTILLO COLONNA | B84: AYABACA | C84: 200201 | D84: CHOCAN | E84: I-2 | F84: AYABACA | G84: NINGUN CLAS | H84: AYABACA | I84: AYABACA | J84: SALUD LUCIANO CASTILLO COLONNA | K84: 1916 | L84: 2 | M84: 0 | N84: 0 | O84: 0 | P84: 0 | Q84: 0 | R84: 0 | S84: 0 | T84: 0 | U84: 0 | V84: 0 | W84: 0 | X84: 0 | Y84: 0 | Z84: 0 | AA84: 0 | AB84: 0 | AC84: 0 | AD84: 0 | AE84: 0 | AF84: 0 | AG84: 0 | AH84: 0 | AI84: 0 | AJ84: 0 | AK84: 0 | AL84: 1 | AM84: 5 | AN84: 0 | AO84: 1 | AP84: 5 | AQ84: 0 | AR84: 0 | AS84: 0 | AT84: 0 | AU84: 0 | AV84: 0 | AW84: 0 | AX84: 0 | AY84: 0 | AZ84: 0 | BA84: 0 | BB84: 0 | BC84: 0 | BD84: 0 | BE84: 0 | BF84: 0 | BG84: 0 | BH84: 0 | BI84: 0 | BJ84: 0 | BK84: 0 | BL84: 0 | BM84: 0 | BN84: 0 | BO84: 0 | BP84: 0 | BQ84: 0 | BR84: 0 | BS84: 0 | BT84: 0 | BU84: 0 | BV84: 0 | BW84: 0 | BX84: 0 | BY84: 0 | BZ84: 0 | CA84: 0 | CB84: 0 | CC84: 0 | CD84: 0 | CE84: 0 | CF84: 0 | CG84: 6 | CH84: 0 | CI84: 0 | CJ84: 0 | CK84: 0 | CL84: 0 | CM84: 0 | CN84: 0 | CO84: 0 | CP84: 0 | CQ84: 0 | CR84: 0 | CS84: 0 | CT84: 0 | CU84: 0 | CV84: 0 | CW84: 0 | CX84: 0 | CY84: 0 | CZ84: 0 | DA84: 0 | DB84: 0 | DC84: 0 | DD84: 0 | DE84: 0 | DF84: 0 | DG84: 0 | DH84: 0 | DI84: 0 | DJ84: 0 | DK84: 0 | DL84: 0 | DM84: 0 | DN84: 0 | DO84: 0 | DP84: 0 | DQ84: 0 | DR84: 0 | DS84: 0 | DT84: 0 | DU84: 0 | DV84: 0 | DW84: 0 | DX84: 0 | DY84: 0 | DZ84: 0 | EA84: 0 | EB84: 0 | EC84: 0 | ED84: 0 | EE84: 0 | EF84: 0 | EG84: 0 | EH84: 0 | EI84: 0 | EJ84: 0 | EK84: 0 | EL84: 0 | EM84: 0 | EN84: 0 | EO84: 0 | EP84: 0 | EQ84: 0 | ER84: 0 | ES84: 0 | ET84: 0 | EU84: 0 | EV84: 0 | EW84: 0 | EX84: 0 | EY84: 0 | EZ84: 0 | FA84: 0 | FB84: 0 | FC84: 0 | FD84: 0 | FE84: 0 | FF84: 0 | FG84: 0 | FH84: 0 | FI84: 0 | FJ84: 0 | FK84: 0 | FL84: 0 | FM84: 0 | FN84: 0 | FO84: 0 | FP84: 0 | FQ84: 0 | FR84: 0
A85: LUCIANO CASTILLO COLONNA | B85: AYABACA | C85: 200201 | D85: CHOCAN | E85: I-2 | F85: AYABACA | G85: NINGUN CLAS | H85: AYABACA | I85: AYABACA | J85: SALUD LUCIANO CASTILLO COLONNA | K85: 1916 | L85: 8 | M85: 0 | N85: 0 | O85: 0 | P85: 0 | Q85: 0 | R85: 0 | S85: 0 | T85: 0 | U85: 0 | V85: 0 | W85: 0 | X85: 0 | Y85: 0 | Z85: 0 | AA85: 0 | AB85: 0 | AC85: 0 | AD85: 0 | AE85: 0 | AF85: 0 | AG85: 0 | AH85: 0 | AI85: 0 | AJ85: 0 | AK85: 0 | AL85: 1 | AM85: 4 | AN85: 1 | AO85: 1 | AP85: 4 | AQ85: 0 | AR85: 0 | AS85: 0 | AT85: 0 | AU85: 0 | AV85: 0 | AW85: 0 | AX85: 0 | AY85: 0 | AZ85: 0 | BA85: 0 | BB85: 0 | BC85: 0 | BD85: 0 | BE85: 0 | BF85: 0 | BG85: 0 | BH85: 0 | BI85: 0 | BJ85: 0 | BK85: 0 | BL85: 0 | BM85: 0 | BN85: 0 | BO85: 0 | BP85: 0 | BQ85: 0 | BR85: 0 | BS85: 0 | BT85: 0 | BU85: 0 | BV85: 0 | BW85: 0 | BX85: 0 | BY85: 0 | BZ85: 0 | CA85: 0 | CB85: 0 | CC85: 0 | CD85: 0 | CE85: 0 | CF85: 0 | CG85: 5 | CH85: 0 | CI85: 0 | CJ85: 0 | CK85: 0 | CL85: 0 | CM85: 0 | CN85: 0 | CO85: 0 | CP85: 0 | CQ85: 0 | CR85: 0 | CS85: 0 | CT85: 0 | CU85: 0 | CV85: 0 | CW85: 0 | CX85: 0 | CY85: 0 | CZ85: 0 | DA85: 0 | DB85: 0 | DC85: 0 | DD85: 0 | DE85: 0 | DF85: 0 | DG85: 0 | DH85: 0 | DI85: 0 | DJ85: 0 | DK85: 0 | DL85: 0 | DM85: 0 | DN85: 0 | DO85: 0 | DP85: 0 | DQ85: 0 | DR85: 0 | DS85: 0 | DT85: 0 | DU85: 0 | DV85: 0 | DW85: 0 | DX85: 0 | DY85: 0 | DZ85: 0 | EA85: 0 | EB85: 0 | EC85: 0 | ED85: 0 | EE85: 0 | EF85: 0 | EG85: 0 | EH85: 0 | EI85: 0 | EJ85: 0 | EK85: 0 | EL85: 0 | EM85: 0 | EN85: 0 | EO85: 0 | EP85: 0 | EQ85: 0 | ER85: 0 | ES85: 0 | ET85: 0 | EU85: 0 | EV85: 0 | EW85: 0 | EX85: 0 | EY85: 0 | EZ85: 0 | FA85: 0 | FB85: 0 | FC85: 0 | FD85: 0 | FE85: 0 | FF85: 0 | FG85: 0 | FH85: 0 | FI85: 0 | FJ85: 0 | FK85: 0 | FL85: 0 | FM85: 0 | FN85: 0 | FO85: 0 | FP85: 0 | FQ85: 0 | FR85: 0
A86: LUCIANO CASTILLO COLONNA | B86: AYABACA | C86: 200201 | D86: YANCHALA | E86: I-2 | F86: AYABACA | G86: NINGUN CLAS | H86: AYABACA | I86: AYABACA | J86: SALUD LUCIANO CASTILLO COLONNA | K86: 1917 | L86: 4 | M86: 0 | N86: 0 | O86: 0 | P86: 0 | Q86: 0 | R86: 0 | S86: 0 | T86: 0 | U86: 0 | V86: 0 | W86: 0 | X86: 0 | Y86: 0 | Z86: 0 | AA86: 0 | AB86: 0 | AC86: 0 | AD86: 0 | AE86: 0 | AF86: 1 | AG86: 1 | AH86: 0 | AI86: 0 | AJ86: 0 | AK86: 1 | AL86: 0 | AM86: 13 | AN86: 1 | AO86: 1 | AP86: 13 | AQ86: 0 | AR86: 0 | AS86: 0 | AT86: 0 | AU86: 0 | AV86: 0 | AW86: 0 | AX86: 0 | AY86: 0 | AZ86: 0 | BA86: 0 | BB86: 0 | BC86: 0 | BD86: 0 | BE86: 0 | BF86: 0 | BG86: 0 | BH86: 0 | BI86: 0 | BJ86: 0 | BK86: 0 | BL86: 0 | BM86: 0 | BN86: 0 | BO86: 0 | BP86: 0 | BQ86: 0 | BR86: 0 | BS86: 0 | BT86: 0 | BU86: 0 | BV86: 0 | BW86: 0 | BX86: 0 | BY86: 0 | BZ86: 0 | CA86: 0 | CB86: 0 | CC86: 0 | CD86: 0 | CE86: 0 | CF86: 0 | CG86: 14 | CH86: 0 | CI86: 0 | CJ86: 0 | CK86: 0 | CL86: 0 | CM86: 0 | CN86: 0 | CO86: 0 | CP86: 0 | CQ86: 0 | CR86: 0 | CS86: 0 | CT86: 0 | CU86: 0 | CV86: 0 | CW86: 0 | CX86: 0 | CY86: 0 | CZ86: 0 | DA86: 0 | DB86: 0 | DC86: 0 | DD86: 0 | DE86: 0 | DF86: 0 | DG86: 0 | DH86: 0 | DI86: 0 | DJ86: 0 | DK86: 0 | DL86: 0 | DM86: 0 | DN86: 0 | DO86: 0 | DP86: 0 | DQ86: 0 | DR86: 0 | DS86: 0 | DT86: 0 | DU86: 0 | DV86: 0 | DW86: 0 | DX86: 0 | DY86: 0 | DZ86: 0 | EA86: 0 | EB86: 0 | EC86: 0 | ED86: 0 | EE86: 0 | EF86: 0 | EG86: 0 | EH86: 0 | EI86: 0 | EJ86: 0 | EK86: 0 | EL86: 0 | EM86: 0 | EN86: 0 | EO86: 0 | EP86: 0 | EQ86: 0 | ER86: 0 | ES86: 0 | ET86: 0 | EU86: 0 | EV86: 0 | EW86: 0 | EX86: 0 | EY86: 0 | EZ86: 0 | FA86: 0 | FB86: 0 | FC86: 0 | FD86: 0 | FE86: 0 | FF86: 0 | FG86: 0 | FH86: 0 | FI86: 0 | FJ86: 0 | FK86: 0 | FL86: 0 | FM86: 0 | FN86: 0 | FO86: 0 | FP86: 0 | FQ86: 0 | FR86: 0
A87: LUCIANO CASTILLO COLONNA | B87: AYABACA | C87: 200201 | D87: YANCHALA | E87: I-2 | F87: AYABACA | G87: NINGUN CLAS | H87: AYABACA | I87: AYABACA | J87: SALUD LUCIANO CASTILLO COLONNA | K87: 1917 | L87: 1 | M87: 0 | N87: 0 | O87: 0 | P87: 0 | Q87: 0 | R87: 0 | S87: 0 | T87: 0 | U87: 0 | V87: 0 | W87: 0 | X87: 0 | Y87: 0 | Z87: 0 | AA87: 0 | AB87: 0 | AC87: 0 | AD87: 0 | AE87: 0 | AF87: 0 | AG87: 0 | AH87: 0 | AI87: 0 | AJ87: 0 | AK87: 0 | AL87: 0 | AM87: 9 | AN87: 1 | AO87: 0 | AP87: 9 | AQ87: 0 | AR87: 0 | AS87: 0 | AT87: 0 | AU87: 0 | AV87: 0 | AW87: 0 | AX87: 0 | AY87: 0 | AZ87: 0 | BA87: 0 | BB87: 0 | BC87: 0 | BD87: 0 | BE87: 0 | BF87: 0 | BG87: 0 | BH87: 0 | BI87: 0 | BJ87: 0 | BK87: 0 | BL87: 0 | BM87: 0 | BN87: 0 | BO87: 0 | BP87: 0 | BQ87: 0 | BR87: 0 | BS87: 0 | BT87: 0 | BU87: 0 | BV87: 0 | BW87: 0 | BX87: 0 | BY87: 0 | BZ87: 0 | CA87: 0 | CB87: 0 | CC87: 0 | CD87: 0 | CE87: 0 | CF87: 0 | CG87: 9 | CH87: 0 | CI87: 0 | CJ87: 0 | CK87: 0 | CL87: 0 | CM87: 0 | CN87: 0 | CO87: 0 | CP87: 0 | CQ87: 0 | CR87: 0 | CS87: 0 | CT87: 0 | CU87: 0 | CV87: 0 | CW87: 0 | CX87: 0 | CY87: 0 | CZ87: 0 | DA87: 0 | DB87: 0 | DC87: 0 | DD87: 0 | DE87: 0 | DF87: 0 | DG87: 0 | DH87: 0 | DI87: 0 | DJ87: 0 | DK87: 0 | DL87: 0 | DM87: 0 | DN87: 0 | DO87: 0 | DP87: 0 | DQ87: 0 | DR87: 0 | DS87: 0 | DT87: 0 | DU87: 0 | DV87: 0 | DW87: 0 | DX87: 0 | DY87: 0 | DZ87: 0 | EA87: 0 | EB87: 0 | EC87: 0 | ED87: 0 | EE87: 0 | EF87: 0 | EG87: 0 | EH87: 0 | EI87: 0 | EJ87: 0 | EK87: 0 | EL87: 0 | EM87: 0 | EN87: 0 | EO87: 0 | EP87: 0 | EQ87: 0 | ER87: 0 | ES87: 0 | ET87: 0 | EU87: 0 | EV87: 0 | EW87: 0 | EX87: 0 | EY87: 0 | EZ87: 0 | FA87: 0 | FB87: 0 | FC87: 0 | FD87: 0 | FE87: 0 | FF87: 0 | FG87: 0 | FH87: 0 | FI87: 0 | FJ87: 0 | FK87: 0 | FL87: 0 | FM87: 0 | FN87: 0 | FO87: 0 | FP87: 0 | FQ87: 0 | FR87: 0
A88: LUCIANO CASTILLO COLONNA | B88: AYABACA | C88: 200201 | D88: YANCHALA | E88: I-2 | F88: AYABACA | G88: NINGUN CLAS | H88: AYABACA | I88: AYABACA | J88: SALUD LUCIANO CASTILLO COLONNA | K88: 1917 | L88: 10 | M88: 0 | N88: 0 | O88: 0 | P88: 0 | Q88: 0 | R88: 0 | S88: 0 | T88: 0 | U88: 0 | V88: 0 | W88: 0 | X88: 0 | Y88: 0 | Z88: 0 | AA88: 0 | AB88: 0 | AC88: 0 | AD88: 0 | AE88: 0 | AF88: 0 | AG88: 0 | AH88: 0 | AI88: 0 | AJ88: 0 | AK88: 0 | AL88: 0 | AM88: 9 | AN88: 0 | AO88: 1 | AP88: 9 | AQ88: 0 | AR88: 0 | AS88: 0 | AT88: 0 | AU88: 0 | AV88: 0 | AW88: 0 | AX88: 0 | AY88: 0 | AZ88: 0 | BA88: 0 | BB88: 0 | BC88: 0 | BD88: 0 | BE88: 0 | BF88: 0 | BG88: 0 | BH88: 0 | BI88: 0 | BJ88: 0 | BK88: 0 | BL88: 0 | BM88: 0 | BN88: 0 | BO88: 0 | BP88: 0 | BQ88: 0 | BR88: 0 | BS88: 0 | BT88: 0 | BU88: 0 | BV88: 0 | BW88: 0 | BX88: 0 | BY88: 0 | BZ88: 0 | CA88: 0 | CB88: 0 | CC88: 0 | CD88: 0 | CE88: 0 | CF88: 0 | CG88: 9 | CH88: 0 | CI88: 1 | CJ88: 0 | CK88: 0 | CL88: 0 | CM88: 0 | CN88: 0 | CO88: 0 | CP88: 0 | CQ88: 0 | CR88: 0 | CS88: 0 | CT88: 0 | CU88: 0 | CV88: 0 | CW88: 0 | CX88: 0 | CY88: 0 | CZ88: 0 | DA88: 0 | DB88: 0 | DC88: 0 | DD88: 0 | DE88: 0 | DF88: 0 | DG88: 0 | DH88: 0 | DI88: 0 | DJ88: 0 | DK88: 0 | DL88: 0 | DM88: 0 | DN88: 0 | DO88: 0 | DP88: 0 | DQ88: 0 | DR88: 0 | DS88: 0 | DT88: 0 | DU88: 0 | DV88: 0 | DW88: 0 | DX88: 0 | DY88: 0 | DZ88: 0 | EA88: 0 | EB88: 0 | EC88: 0 | ED88: 0 | EE88: 0 | EF88: 0 | EG88: 0 | EH88: 0 | EI88: 0 | EJ88: 0 | EK88: 0 | EL88: 0 | EM88: 0 | EN88: 0 | EO88: 0 | EP88: 0 | EQ88: 0 | ER88: 0 | ES88: 0 | ET88: 0 | EU88: 0 | EV88: 0 | EW88: 0 | EX88: 0 | EY88: 0 | EZ88: 0 | FA88: 0 | FB88: 0 | FC88: 0 | FD88: 0 | FE88: 0 | FF88: 0 | FG88: 0 | FH88: 0 | FI88: 0 | FJ88: 0 | FK88: 0 | FL88: 0 | FM88: 0 | FN88: 0 | FO88: 0 | FP88: 1 | FQ88: 0 | FR88: 0
A89: LUCIANO CASTILLO COLONNA | B89: AYABACA | C89: 200201 | D89: YANCHALA | E89: I-2 | F89: AYABACA | G89: NINGUN CLAS | H89: AYABACA | I89: AYABACA | J89: SALUD LUCIANO CASTILLO COLONNA | K89: 1917 | L89: 12 | M89: 0 | N89: 0 | O89: 0 | P89: 0 | Q89: 0 | R89: 0 | S89: 0 | T89: 0 | U89: 0 | V89: 0 | W89: 0 | X89: 0 | Y89: 0 | Z89: 0 | AA89: 0 | AB89: 0 | AC89: 0 | AD89: 0 | AE89: 0 | AF89: 0 | AG89: 0 | AH89: 0 | AI89: 0 | AJ89: 0 | AK89: 0 | AL89: 0 | AM89: 0 | AN89: 0 | AO89: 0 | AP89: 0 | AQ89: 0 | AR89: 0 | AS89: 0 | AT89: 0 | AU89: 0 | AV89: 0 | AW89: 0 | AX89: 0 | AY89: 0 | AZ89: 0 | BA89: 0 | BB89: 0 | BC89: 0 | BD89: 0 | BE89: 0 | BF89: 0 | BG89: 0 | BH89: 0 | BI89: 0 | BJ89: 0 | BK89: 0 | BL89: 0 | BM89: 0 | BN89: 0 | BO89: 0 | BP89: 0 | BQ89: 0 | BR89: 0 | BS89: 0 | BT89: 0 | BU89: 0 | BV89: 0 | BW89: 0 | BX89: 0 | BY89: 0 | BZ89: 0 | CA89: 0 | CB89: 0 | CC89: 0 | CD89: 0 | CE89: 0 | CF89: 0 | CG89: 0 | CH89: 0 | CI89: 0 | CJ89: 0 | CK89: 0 | CL89: 0 | CM89: 0 | CN89: 0 | CO89: 0 | CP89: 0 | CQ89: 0 | CR89: 0 | CS89: 0 | CT89: 0 | CU89: 0 | CV89: 0 | CW89: 0 | CX89: 0 | CY89: 0 | CZ89: 0 | DA89: 0 | DB89: 0 | DC89: 0 | DD89: 0 | DE89: 0 | DF89: 0 | DG89: 0 | DH89: 0 | DI89: 0 | DJ89: 0 | DK89: 0 | DL89: 0 | DM89: 0 | DN89: 0 | DO89: 0 | DP89: 0 | DQ89: 0 | DR89: 0 | DS89: 0 | DT89: 0 | DU89: 0 | DV89: 0 | DW89: 0 | DX89: 0 | DY89: 0 | DZ89: 0 | EA89: 0 | EB89: 0 | EC89: 0 | ED89: 0 | EE89: 0 | EF89: 0 | EG89: 0 | EH89: 0 | EI89: 0 | EJ89: 0 | EK89: 0 | EL89: 0 | EM89: 0 | EN89: 0 | EO89: 0 | EP89: 0 | EQ89: 0 | ER89: 0 | ES89: 0 | ET89: 0 | EU89: 0 | EV89: 0 | EW89: 0 | EX89: 0 | EY89: 0 | EZ89: 0 | FA89: 0 | FB89: 0 | FC89: 0 | FD89: 0 | FE89: 0 | FF89: 0 | FG89: 0 | FH89: 0 | FI89: 0 | FJ89: 0 | FK89: 0 | FL89: 0 | FM89: 0 | FN89: 0 | FO89: 0 | FP89: 0 | FQ89: 0 | FR89: 0
A90: LUCIANO CASTILLO COLONNA | B90: AYABACA | C90: 200201 | D90: YANCHALA | E90: I-2 | F90: AYABACA | G90: NINGUN CLAS | H90: AYABACA | I90: AYABACA | J90: SALUD LUCIANO CASTILLO COLONNA | K90: 1917 | L90: 3 | M90: 0 | N90: 0 | O90: 0 | P90: 0 | Q90: 0 | R90: 0 | S90: 0 | T90: 0 | U90: 0 | V90: 0 | W90: 0 | X90: 0 | Y90: 0 | Z90: 0 | AA90: 0 | AB90: 0 | AC90: 0 | AD90: 0 | AE90: 0 | AF90: 1 | AG90: 2 | AH90: 0 | AI90: 0 | AJ90: 0 | AK90: 0 | AL90: 0 | AM90: 7 | AN90: 4 | AO90: 4 | AP90: 7 | AQ90: 0 | AR90: 0 | AS90: 0 | AT90: 0 | AU90: 0 | AV90: 0 | AW90: 0 | AX90: 0 | AY90: 0 | AZ90: 0 | BA90: 0 | BB90: 0 | BC90: 0 | BD90: 0 | BE90: 0 | BF90: 0 | BG90: 0 | BH90: 0 | BI90: 0 | BJ90: 0 | BK90: 0 | BL90: 0 | BM90: 0 | BN90: 0 | BO90: 0 | BP90: 0 | BQ90: 0 | BR90: 0 | BS90: 0 | BT90: 0 | BU90: 0 | BV90: 0 | BW90: 0 | BX90: 0 | BY90: 0 | BZ90: 0 | CA90: 0 | CB90: 0 | CC90: 0 | CD90: 0 | CE90: 0 | CF90: 0 | CG90: 7 | CH90: 0 | CI90: 0 | CJ90: 0 | CK90: 0 | CL90: 0 | CM90: 0 | CN90: 0 | CO90: 0 | CP90: 0 | CQ90: 0 | CR90: 0 | CS90: 0 | CT90: 0 | CU90: 0 | CV90: 0 | CW90: 0 | CX90: 0 | CY90: 0 | CZ90: 0 | DA90: 0 | DB90: 0 | DC90: 0 | DD90: 0 | DE90: 0 | DF90: 0 | DG90: 0 | DH90: 0 | DI90: 0 | DJ90: 0 | DK90: 0 | DL90: 0 | DM90: 0 | DN90: 0 | DO90: 0 | DP90: 0 | DQ90: 0 | DR90: 0 | DS90: 0 | DT90: 0 | DU90: 0 | DV90: 0 | DW90: 0 | DX90: 0 | DY90: 0 | DZ90: 0 | EA90: 0 | EB90: 0 | EC90: 0 | ED90: 0 | EE90: 0 | EF90: 0 | EG90: 0 | EH90: 0 | EI90: 0 | EJ90: 0 | EK90: 0 | EL90: 0 | EM90: 0 | EN90: 0 | EO90: 0 | EP90: 0 | EQ90: 0 | ER90: 0 | ES90: 0 | ET90: 0 | EU90: 0 | EV90: 0 | EW90: 0 | EX90: 0 | EY90: 0 | EZ90: 0 | FA90: 0 | FB90: 0 | FC90: 0 | FD90: 0 | FE90: 0 | FF90: 0 | FG90: 0 | FH90: 0 | FI90: 0 | FJ90: 0 | FK90: 0 | FL90: 0 | FM90: 0 | FN90: 0 | FO90: 0 | FP90: 0 | FQ90: 0 | FR90: 0
A91: LUCIANO CASTILLO COLONNA | B91: AYABACA | C91: 200201 | D91: YANCHALA | E91: I-2 | F91: AYABACA | G91: NINGUN CLAS | H91: AYABACA | I91: AYABACA | J91: SALUD LUCIANO CASTILLO COLONNA | K91: 1917 | L91: 7 | M91: 0 | N91: 0 | O91: 0 | P91: 0 | Q91: 0 | R91: 0 | S91: 0 | T91: 0 | U91: 0 | V91: 0 | W91: 0 | X91: 0 | Y91: 0 | Z91: 0 | AA91: 0 | AB91: 0 | AC91: 0 | AD91: 0 | AE91: 0 | AF91: 0 | AG91: 0 | AH91: 0 | AI91: 0 | AJ91: 0 | AK91: 0 | AL91: 0 | AM91: 13 | AN91: 1 | AO91: 0 | AP91: 13 | AQ91: 0 | AR91: 0 | AS91: 0 | AT91: 0 | AU91: 0 | AV91: 0 | AW91: 0 | AX91: 0 | AY91: 0 | AZ91: 0 | BA91: 0 | BB91: 0 | BC91: 0 | BD91: 0 | BE91: 0 | BF91: 0 | BG91: 0 | BH91: 0 | BI91: 0 | BJ91: 0 | BK91: 0 | BL91: 0 | BM91: 0 | BN91: 0 | BO91: 0 | BP91: 0 | BQ91: 0 | BR91: 0 | BS91: 0 | BT91: 0 | BU91: 0 | BV91: 0 | BW91: 0 | BX91: 0 | BY91: 0 | BZ91: 0 | CA91: 0 | CB91: 0 | CC91: 0 | CD91: 0 | CE91: 0 | CF91: 0 | CG91: 13 | CH91: 0 | CI91: 0 | CJ91: 0 | CK91: 0 | CL91: 0 | CM91: 0 | CN91: 0 | CO91: 0 | CP91: 0 | CQ91: 0 | CR91: 0 | CS91: 0 | CT91: 0 | CU91: 0 | CV91: 0 | CW91: 0 | CX91: 0 | CY91: 0 | CZ91: 0 | DA91: 0 | DB91: 0 | DC91: 0 | DD91: 0 | DE91: 0 | DF91: 0 | DG91: 0 | DH91: 0 | DI91: 0 | DJ91: 0 | DK91: 0 | DL91: 0 | DM91: 0 | DN91: 0 | DO91: 0 | DP91: 0 | DQ91: 0 | DR91: 0 | DS91: 0 | DT91: 0 | DU91: 0 | DV91: 0 | DW91: 0 | DX91: 0 | DY91: 0 | DZ91: 0 | EA91: 0 | EB91: 0 | EC91: 0 | ED91: 0 | EE91: 0 | EF91: 0 | EG91: 0 | EH91: 0 | EI91: 0 | EJ91: 0 | EK91: 0 | EL91: 0 | EM91: 0 | EN91: 0 | EO91: 0 | EP91: 0 | EQ91: 0 | ER91: 0 | ES91: 0 | ET91: 0 | EU91: 0 | EV91: 0 | EW91: 0 | EX91: 0 | EY91: 0 | EZ91: 0 | FA91: 0 | FB91: 0 | FC91: 0 | FD91: 0 | FE91: 0 | FF91: 0 | FG91: 0 | FH91: 1 | FI91: 0 | FJ91: 0 | FK91: 0 | FL91: 0 | FM91: 0 | FN91: 0 | FO91: 0 | FP91: 0 | FQ91: 0 | FR91: 0
A92: LUCIANO CASTILLO COLONNA | B92: AYABACA | C92: 200201 | D92: YANCHALA | E92: I-2 | F92: AYABACA | G92: NINGUN CLAS | H92: AYABACA | I92: AYABACA | J92: SALUD LUCIANO CASTILLO COLONNA | K92: 1917 | L92: 6 | M92: 0 | N92: 0 | O92: 0 | P92: 0 | Q92: 0 | R92: 0 | S92: 0 | T92: 0 | U92: 0 | V92: 0 | W92: 0 | X92: 0 | Y92: 0 | Z92: 0 | AA92: 0 | AB92: 0 | AC92: 0 | AD92: 0 | AE92: 0 | AF92: 0 | AG92: 1 | AH92: 0 | AI92: 0 | AJ92: 0 | AK92: 0 | AL92: 1 | AM92: 6 | AN92: 0 | AO92: 1 | AP92: 6 | AQ92: 0 | AR92: 0 | AS92: 0 | AT92: 0 | AU92: 0 | AV92: 0 | AW92: 0 | AX92: 0 | AY92: 0 | AZ92: 0 | BA92: 0 | BB92: 0 | BC92: 0 | BD92: 0 | BE92: 0 | BF92: 0 | BG92: 0 | BH92: 0 | BI92: 0 | BJ92: 0 | BK92: 0 | BL92: 0 | BM92: 0 | BN92: 0 | BO92: 0 | BP92: 0 | BQ92: 0 | BR92: 0 | BS92: 0 | BT92: 0 | BU92: 0 | BV92: 0 | BW92: 0 | BX92: 0 | BY92: 0 | BZ92: 0 | CA92: 0 | CB92: 0 | CC92: 0 | CD92: 0 | CE92: 0 | CF92: 0 | CG92: 7 | CH92: 0 | CI92: 0 | CJ92: 0 | CK92: 0 | CL92: 0 | CM92: 0 | CN92: 0 | CO92: 0 | CP92: 0 | CQ92: 0 | CR92: 0 | CS92: 0 | CT92: 0 | CU92: 0 | CV92: 0 | CW92: 0 | CX92: 0 | CY92: 0 | CZ92: 0 | DA92: 0 | DB92: 0 | DC92: 0 | DD92: 0 | DE92: 0 | DF92: 0 | DG92: 0 | DH92: 0 | DI92: 0 | DJ92: 0 | DK92: 0 | DL92: 0 | DM92: 0 | DN92: 0 | DO92: 0 | DP92: 0 | DQ92: 0 | DR92: 0 | DS92: 0 | DT92: 0 | DU92: 0 | DV92: 0 | DW92: 0 | DX92: 0 | DY92: 0 | DZ92: 0 | EA92: 0 | EB92: 0 | EC92: 0 | ED92: 0 | EE92: 0 | EF92: 0 | EG92: 0 | EH92: 0 | EI92: 0 | EJ92: 0 | EK92: 0 | EL92: 0 | EM92: 0 | EN92: 0 | EO92: 0 | EP92: 0 | EQ92: 0 | ER92: 0 | ES92: 0 | ET92: 0 | EU92: 0 | EV92: 0 | EW92: 0 | EX92: 0 | EY92: 0 | EZ92: 0 | FA92: 0 | FB92: 0 | FC92: 0 | FD92: 0 | FE92: 0 | FF92: 0 | FG92: 0 | FH92: 0 | FI92: 0 | FJ92: 0 | FK92: 0 | FL92: 0 | FM92: 0 | FN92: 0 | FO92: 0 | FP92: 0 | FQ92: 0 | FR92: 0
A93: LUCIANO CASTILLO COLONNA | B93: AYABACA | C93: 200201 | D93: YANCHALA | E93: I-2 | F93: AYABACA | G93: NINGUN CLAS | H93: AYABACA | I93: AYABACA | J93: SALUD LUCIANO CASTILLO COLONNA | K93: 1917 | L93: 5 | M93: 0 | N93: 0 | O93: 0 | P93: 0 | Q93: 0 | R93: 0 | S93: 0 | T93: 0 | U93: 0 | V93: 0 | W93: 0 | X93: 0 | Y93: 0 | Z93: 0 | AA93: 0 | AB93: 0 | AC93: 0 | AD93: 0 | AE93: 2 | AF93: 3 | AG93: 1 | AH93: 0 | AI93: 0 | AJ93: 0 | AK93: 0 | AL93: 0 | AM93: 12 | AN93: 2 | AO93: 2 | AP93: 12 | AQ93: 0 | AR93: 0 | AS93: 0 | AT93: 0 | AU93: 0 | AV93: 0 | AW93: 0 | AX93: 0 | AY93: 0 | AZ93: 0 | BA93: 0 | BB93: 0 | BC93: 0 | BD93: 0 | BE93: 0 | BF93: 0 | BG93: 0 | BH93: 0 | BI93: 0 | BJ93: 0 | BK93: 0 | BL93: 0 | BM93: 0 | BN93: 0 | BO93: 0 | BP93: 0 | BQ93: 0 | BR93: 0 | BS93: 0 | BT93: 0 | BU93: 0 | BV93: 0 | BW93: 0 | BX93: 0 | BY93: 0 | BZ93: 0 | CA93: 0 | CB93: 0 | CC93: 0 | CD93: 0 | CE93: 0 | CF93: 0 | CG93: 12 | CH93: 0 | CI93: 0 | CJ93: 0 | CK93: 0 | CL93: 0 | CM93: 0 | CN93: 0 | CO93: 0 | CP93: 0 | CQ93: 0 | CR93: 0 | CS93: 0 | CT93: 0 | CU93: 0 | CV93: 0 | CW93: 0 | CX93: 0 | CY93: 0 | CZ93: 0 | DA93: 0 | DB93: 0 | DC93: 0 | DD93: 0 | DE93: 0 | DF93: 0 | DG93: 0 | DH93: 0 | DI93: 0 | DJ93: 0 | DK93: 0 | DL93: 0 | DM93: 0 | DN93: 0 | DO93: 0 | DP93: 0 | DQ93: 0 | DR93: 0 | DS93: 0 | DT93: 0 | DU93: 0 | DV93: 0 | DW93: 0 | DX93: 0 | DY93: 0 | DZ93: 0 | EA93: 0 | EB93: 0 | EC93: 0 | ED93: 0 | EE93: 0 | EF93: 0 | EG93: 0 | EH93: 0 | EI93: 0 | EJ93: 0 | EK93: 0 | EL93: 0 | EM93: 0 | EN93: 0 | EO93: 0 | EP93: 0 | EQ93: 0 | ER93: 0 | ES93: 0 | ET93: 0 | EU93: 0 | EV93: 0 | EW93: 0 | EX93: 0 | EY93: 0 | EZ93: 0 | FA93: 0 | FB93: 0 | FC93: 0 | FD93: 0 | FE93: 0 | FF93: 0 | FG93: 0 | FH93: 0 | FI93: 0 | FJ93: 0 | FK93: 0 | FL93: 0 | FM93: 0 | FN93: 0 | FO93: 0 | FP93: 0 | FQ93: 0 | FR93: 0
A94: LUCIANO CASTILLO COLONNA | B94: AYABACA | C94: 200201 | D94: YANCHALA | E94: I-2 | F94: AYABACA | G94: NINGUN CLAS | H94: AYABACA | I94: AYABACA | J94: SALUD LUCIANO CASTILLO COLONNA | K94: 1917 | L94: 8 | M94: 0 | N94: 0 | O94: 0 | P94: 0 | Q94: 0 | R94: 0 | S94: 0 | T94: 0 | U94: 0 | V94: 0 | W94: 0 | X94: 0 | Y94: 0 | Z94: 0 | AA94: 0 | AB94: 0 | AC94: 0 | AD94: 0 | AE94: 0 | AF94: 0 | AG94: 1 | AH94: 0 | AI94: 0 | AJ94: 0 | AK94: 0 | AL94: 0 | AM94: 8 | AN94: 0 | AO94: 1 | AP94: 8 | AQ94: 0 | AR94: 0 | AS94: 0 | AT94: 0 | AU94: 0 | AV94: 0 | AW94: 0 | AX94: 0 | AY94: 0 | AZ94: 0 | BA94: 0 | BB94: 0 | BC94: 0 | BD94: 0 | BE94: 0 | BF94: 0 | BG94: 0 | BH94: 0 | BI94: 0 | BJ94: 0 | BK94: 0 | BL94: 0 | BM94: 0 | BN94: 0 | BO94: 0 | BP94: 0 | BQ94: 0 | BR94: 0 | BS94: 0 | BT94: 0 | BU94: 0 | BV94: 0 | BW94: 0 | BX94: 0 | BY94: 0 | BZ94: 0 | CA94: 0 | CB94: 0 | CC94: 0 | CD94: 0 | CE94: 0 | CF94: 0 | CG94: 8 | CH94: 0 | CI94: 0 | CJ94: 0 | CK94: 0 | CL94: 0 | CM94: 0 | CN94: 0 | CO94: 0 | CP94: 0 | CQ94: 0 | CR94: 0 | CS94: 0 | CT94: 0 | CU94: 0 | CV94: 0 | CW94: 0 | CX94: 0 | CY94: 0 | CZ94: 0 | DA94: 0 | DB94: 0 | DC94: 0 | DD94: 0 | DE94: 0 | DF94: 0 | DG94: 0 | DH94: 0 | DI94: 0 | DJ94: 0 | DK94: 0 | DL94: 0 | DM94: 0 | DN94: 0 | DO94: 0 | DP94: 0 | DQ94: 0 | DR94: 0 | DS94: 0 | DT94: 0 | DU94: 0 | DV94: 0 | DW94: 0 | DX94: 0 | DY94: 0 | DZ94: 0 | EA94: 0 | EB94: 0 | EC94: 0 | ED94: 0 | EE94: 0 | EF94: 0 | EG94: 0 | EH94: 0 | EI94: 0 | EJ94: 0 | EK94: 0 | EL94: 0 | EM94: 0 | EN94: 0 | EO94: 0 | EP94: 0 | EQ94: 0 | ER94: 0 | ES94: 0 | ET94: 0 | EU94: 0 | EV94: 0 | EW94: 0 | EX94: 0 | EY94: 0 | EZ94: 0 | FA94: 0 | FB94: 0 | FC94: 0 | FD94: 0 | FE94: 0 | FF94: 0 | FG94: 0 | FH94: 0 | FI94: 0 | FJ94: 0 | FK94: 0 | FL94: 0 | FM94: 0 | FN94: 0 | FO94: 0 | FP94: 0 | FQ94: 0 | FR94: 0
A95: LUCIANO CASTILLO COLONNA | B95: AYABACA | C95: 200201 | D95: YANCHALA | E95: I-2 | F95: AYABACA | G95: NINGUN CLAS | H95: AYABACA | I95: AYABACA | J95: SALUD LUCIANO CASTILLO COLONNA | K95: 1917 | L95: 11 | M95: 0 | N95: 0 | O95: 0 | P95: 0 | Q95: 0 | R95: 0 | S95: 0 | T95: 0 | U95: 0 | V95: 0 | W95: 0 | X95: 0 | Y95: 0 | Z95: 0 | AA95: 0 | AB95: 0 | AC95: 0 | AD95: 0 | AE95: 0 | AF95: 0 | AG95: 0 | AH95: 0 | AI95: 0 | AJ95: 0 | AK95: 0 | AL95: 0 | AM95: 10 | AN95: 2 | AO95: 1 | AP95: 10 | AQ95: 0 | AR95: 0 | AS95: 0 | AT95: 0 | AU95: 0 | AV95: 0 | AW95: 0 | AX95: 0 | AY95: 0 | AZ95: 0 | BA95: 0 | BB95: 0 | BC95: 0 | BD95: 0 | BE95: 0 | BF95: 0 | BG95: 0 | BH95: 0 | BI95: 0 | BJ95: 0 | BK95: 0 | BL95: 0 | BM95: 0 | BN95: 0 | BO95: 0 | BP95: 0 | BQ95: 0 | BR95: 0 | BS95: 0 | BT95: 0 | BU95: 0 | BV95: 0 | BW95: 0 | BX95: 0 | BY95: 0 | BZ95: 0 | CA95: 0 | CB95: 0 | CC95: 0 | CD95: 0 | CE95: 0 | CF95: 0 | CG95: 10 | CH95: 0 | CI95: 0 | CJ95: 0 | CK95: 0 | CL95: 0 | CM95: 0 | CN95: 0 | CO95: 0 | CP95: 0 | CQ95: 0 | CR95: 0 | CS95: 0 | CT95: 0 | CU95: 0 | CV95: 0 | CW95: 0 | CX95: 0 | CY95: 0 | CZ95: 0 | DA95: 0 | DB95: 0 | DC95: 0 | DD95: 0 | DE95: 0 | DF95: 0 | DG95: 0 | DH95: 0 | DI95: 0 | DJ95: 0 | DK95: 0 | DL95: 0 | DM95: 0 | DN95: 0 | DO95: 0 | DP95: 0 | DQ95: 0 | DR95: 0 | DS95: 0 | DT95: 0 | DU95: 0 | DV95: 0 | DW95: 0 | DX95: 0 | DY95: 0 | DZ95: 0 | EA95: 0 | EB95: 0 | EC95: 0 | ED95: 0 | EE95: 0 | EF95: 0 | EG95: 0 | EH95: 0 | EI95: 0 | EJ95: 0 | EK95: 0 | EL95: 0 | EM95: 0 | EN95: 0 | EO95: 0 | EP95: 0 | EQ95: 0 | ER95: 0 | ES95: 0 | ET95: 0 | EU95: 0 | EV95: 0 | EW95: 0 | EX95: 0 | EY95: 0 | EZ95: 0 | FA95: 0 | FB95: 0 | FC95: 0 | FD95: 0 | FE95: 0 | FF95: 0 | FG95: 0 | FH95: 0 | FI95: 0 | FJ95: 0 | FK95: 0 | FL95: 0 | FM95: 0 | FN95: 0 | FO95: 0 | FP95: 0 | FQ95: 0 | FR95: 0
A96: LUCIANO CASTILLO COLONNA | B96: AYABACA | C96: 200201 | D96: YANCHALA | E96: I-2 | F96: AYABACA | G96: NINGUN CLAS | H96: AYABACA | I96: AYABACA | J96: SALUD LUCIANO CASTILLO COLONNA | K96: 1917 | L96: 2 | M96: 0 | N96: 0 | O96: 0 | P96: 0 | Q96: 0 | R96: 0 | S96: 0 | T96: 0 | U96: 0 | V96: 0 | W96: 0 | X96: 0 | Y96: 0 | Z96: 0 | AA96: 0 | AB96: 0 | AC96: 0 | AD96: 0 | AE96: 1 | AF96: 2 | AG96: 2 | AH96: 0 | AI96: 0 | AJ96: 0 | AK96: 1 | AL96: 0 | AM96: 11 | AN96: 4 | AO96: 1 | AP96: 11 | AQ96: 0 | AR96: 0 | AS96: 0 | AT96: 0 | AU96: 0 | AV96: 0 | AW96: 0 | AX96: 0 | AY96: 0 | AZ96: 0 | BA96: 0 | BB96: 0 | BC96: 0 | BD96: 0 | BE96: 0 | BF96: 0 | BG96: 0 | BH96: 0 | BI96: 0 | BJ96: 0 | BK96: 0 | BL96: 0 | BM96: 0 | BN96: 0 | BO96: 0 | BP96: 0 | BQ96: 0 | BR96: 0 | BS96: 0 | BT96: 0 | BU96: 0 | BV96: 0 | BW96: 0 | BX96: 0 | BY96: 0 | BZ96: 0 | CA96: 0 | CB96: 0 | CC96: 0 | CD96: 0 | CE96: 0 | CF96: 0 | CG96: 12 | CH96: 0 | CI96: 0 | CJ96: 0 | CK96: 0 | CL96: 0 | CM96: 0 | CN96: 0 | CO96: 0 | CP96: 0 | CQ96: 0 | CR96: 0 | CS96: 0 | CT96: 0 | CU96: 0 | CV96: 0 | CW96: 0 | CX96: 0 | CY96: 0 | CZ96: 0 | DA96: 0 | DB96: 0 | DC96: 0 | DD96: 0 | DE96: 0 | DF96: 0 | DG96: 0 | DH96: 0 | DI96: 0 | DJ96: 0 | DK96: 0 | DL96: 0 | DM96: 0 | DN96: 0 | DO96: 0 | DP96: 0 | DQ96: 0 | DR96: 0 | DS96: 0 | DT96: 0 | DU96: 0 | DV96: 0 | DW96: 0 | DX96: 0 | DY96: 0 | DZ96: 0 | EA96: 0 | EB96: 0 | EC96: 0 | ED96: 0 | EE96: 0 | EF96: 0 | EG96: 0 | EH96: 0 | EI96: 0 | EJ96: 0 | EK96: 0 | EL96: 0 | EM96: 0 | EN96: 0 | EO96: 0 | EP96: 0 | EQ96: 0 | ER96: 0 | ES96: 0 | ET96: 0 | EU96: 0 | EV96: 0 | EW96: 0 | EX96: 0 | EY96: 0 | EZ96: 0 | FA96: 0 | FB96: 0 | FC96: 0 | FD96: 0 | FE96: 0 | FF96: 0 | FG96: 0 | FH96: 0 | FI96: 0 | FJ96: 0 | FK96: 0 | FL96: 0 | FM96: 0 | FN96: 0 | FO96: 0 | FP96: 0 | FQ96: 0 | FR96: 0
A97: LUCIANO CASTILLO COLONNA | B97: AYABACA | C97: 200201 | D97: YANCHALA | E97: I-2 | F97: AYABACA | G97: NINGUN CLAS | H97: AYABACA | I97: AYABACA | J97: SALUD LUCIANO CASTILLO COLONNA | K97: 1917 | L97: 9 | M97: 0 | N97: 0 | O97: 0 | P97: 0 | Q97: 0 | R97: 0 | S97: 0 | T97: 0 | U97: 0 | V97: 0 | W97: 0 | X97: 0 | Y97: 0 | Z97: 0 | AA97: 0 | AB97: 0 | AC97: 0 | AD97: 0 | AE97: 0 | AF97: 0 | AG97: 0 | AH97: 0 | AI97: 0 | AJ97: 0 | AK97: 0 | AL97: 0 | AM97: 18 | AN97: 6 | AO97: 1 | AP97: 18 | AQ97: 0 | AR97: 0 | AS97: 0 | AT97: 0 | AU97: 0 | AV97: 0 | AW97: 0 | AX97: 0 | AY97: 0 | AZ97: 0 | BA97: 0 | BB97: 0 | BC97: 0 | BD97: 0 | BE97: 0 | BF97: 0 | BG97: 0 | BH97: 0 | BI97: 0 | BJ97: 0 | BK97: 0 | BL97: 0 | BM97: 0 | BN97: 1 | BO97: 0 | BP97: 0 | BQ97: 0 | BR97: 0 | BS97: 0 | BT97: 0 | BU97: 0 | BV97: 0 | BW97: 0 | BX97: 0 | BY97: 0 | BZ97: 0 | CA97: 0 | CB97: 0 | CC97: 0 | CD97: 0 | CE97: 0 | CF97: 0 | CG97: 18 | CH97: 0 | CI97: 1 | CJ97: 0 | CK97: 0 | CL97: 0 | CM97: 0 | CN97: 0 | CO97: 0 | CP97: 0 | CQ97: 0 | CR97: 0 | CS97: 0 | CT97: 0 | CU97: 0 | CV97: 0 | CW97: 0 | CX97: 0 | CY97: 0 | CZ97: 0 | DA97: 0 | DB97: 0 | DC97: 0 | DD97: 0 | DE97: 0 | DF97: 0 | DG97: 0 | DH97: 0 | DI97: 0 | DJ97: 0 | DK97: 0 | DL97: 0 | DM97: 0 | DN97: 0 | DO97: 0 | DP97: 0 | DQ97: 0 | DR97: 0 | DS97: 0 | DT97: 0 | DU97: 0 | DV97: 0 | DW97: 0 | DX97: 0 | DY97: 0 | DZ97: 0 | EA97: 0 | EB97: 0 | EC97: 0 | ED97: 0 | EE97: 0 | EF97: 0 | EG97: 0 | EH97: 0 | EI97: 0 | EJ97: 0 | EK97: 0 | EL97: 0 | EM97: 0 | EN97: 0 | EO97: 0 | EP97: 0 | EQ97: 0 | ER97: 0 | ES97: 0 | ET97: 0 | EU97: 0 | EV97: 0 | EW97: 0 | EX97: 0 | EY97: 0 | EZ97: 0 | FA97: 0 | FB97: 0 | FC97: 0 | FD97: 0 | FE97: 0 | FF97: 0 | FG97: 0 | FH97: 0 | FI97: 0 | FJ97: 0 | FK97: 0 | FL97: 0 | FM97: 0 | FN97: 0 | FO97: 0 | FP97: 1 | FQ97: 0 | FR97: 0
A98: LUCIANO CASTILLO COLONNA | B98: AYABACA | C98: 200201 | D98: ARREYPITE - PINGOLA | E98: I-1 | F98: AYABACA | G98: NINGUN CLAS | H98: AYABACA | I98: AYABACA | J98: SALUD LUCIANO CASTILLO COLONNA | K98: 1918 | L98: 2 | M98: 0 | N98: 0 | O98: 0 | P98: 0 | Q98: 0 | R98: 0 | S98: 0 | T98: 0 | U98: 0 | V98: 0 | W98: 0 | X98: 0 | Y98: 0 | Z98: 0 | AA98: 0 | AB98: 0 | AC98: 0 | AD98: 0 | AE98: 2 | AF98: 0 | AG98: 2 | AH98: 0 | AI98: 0 | AJ98: 0 | AK98: 1 | AL98: 2 | AM98: 10 | AN98: 1 | AO98: 2 | AP98: 10 | AQ98: 0 | AR98: 0 | AS98: 0 | AT98: 0 | AU98: 0 | AV98: 0 | AW98: 0 | AX98: 0 | AY98: 0 | AZ98: 0 | BA98: 0 | BB98: 0 | BC98: 0 | BD98: 0 | BE98: 0 | BF98: 0 | BG98: 0 | BH98: 0 | BI98: 0 | BJ98: 0 | BK98: 0 | BL98: 0 | BM98: 0 | BN98: 0 | BO98: 0 | BP98: 0 | BQ98: 0 | BR98: 0 | BS98: 0 | BT98: 0 | BU98: 0 | BV98: 0 | BW98: 0 | BX98: 0 | BY98: 0 | BZ98: 0 | CA98: 0 | CB98: 0 | CC98: 0 | CD98: 0 | CE98: 0 | CF98: 0 | CG98: 13 | CH98: 0 | CI98: 0 | CJ98: 0 | CK98: 0 | CL98: 0 | CM98: 0 | CN98: 0 | CO98: 0 | CP98: 0 | CQ98: 0 | CR98: 0 | CS98: 0 | CT98: 0 | CU98: 0 | CV98: 0 | CW98: 0 | CX98: 0 | CY98: 0 | CZ98: 0 | DA98: 0 | DB98: 0 | DC98: 0 | DD98: 0 | DE98: 0 | DF98: 0 | DG98: 0 | DH98: 0 | DI98: 0 | DJ98: 0 | DK98: 0 | DL98: 0 | DM98: 0 | DN98: 0 | DO98: 0 | DP98: 0 | DQ98: 0 | DR98: 0 | DS98: 0 | DT98: 0 | DU98: 0 | DV98: 0 | DW98: 0 | DX98: 0 | DY98: 0 | DZ98: 0 | EA98: 0 | EB98: 0 | EC98: 0 | ED98: 0 | EE98: 0 | EF98: 0 | EG98: 0 | EH98: 0 | EI98: 0 | EJ98: 0 | EK98: 0 | EL98: 0 | EM98: 0 | EN98: 0 | EO98: 0 | EP98: 0 | EQ98: 0 | ER98: 0 | ES98: 0 | ET98: 0 | EU98: 0 | EV98: 0 | EW98: 0 | EX98: 0 | EY98: 0 | EZ98: 0 | FA98: 0 | FB98: 0 | FC98: 0 | FD98: 0 | FE98: 0 | FF98: 0 | FG98: 0 | FH98: 0 | FI98: 0 | FJ98: 0 | FK98: 0 | FL98: 0 | FM98: 0 | FN98: 0 | FO98: 0 | FP98: 0 | FQ98: 0 | FR98: 0
A99: LUCIANO CASTILLO COLONNA | B99: AYABACA | C99: 200201 | D99: ARREYPITE - PINGOLA | E99: I-1 | F99: AYABACA | G99: NINGUN CLAS | H99: AYABACA | I99: AYABACA | J99: SALUD LUCIANO CASTILLO COLONNA | K99: 1918 | L99: 3 | M99: 0 | N99: 0 | O99: 0 | P99: 0 | Q99: 0 | R99: 0 | S99: 0 | T99: 0 | U99: 0 | V99: 0 | W99: 0 | X99: 0 | Y99: 0 | Z99: 0 | AA99: 0 | AB99: 0 | AC99: 0 | AD99: 0 | AE99: 3 | AF99: 2 | AG99: 0 | AH99: 0 | AI99: 0 | AJ99: 0 | AK99: 1 | AL99: 0 | AM99: 4 | AN99: 1 | AO99: 0 | AP99: 4 | AQ99: 0 | AR99: 0 | AS99: 0 | AT99: 0 | AU99: 0 | AV99: 0 | AW99: 0 | AX99: 0 | AY99: 0 | AZ99: 0 | BA99: 0 | BB99: 0 | BC99: 0 | BD99: 0 | BE99: 0 | BF99: 0 | BG99: 0 | BH99: 0 | BI99: 0 | BJ99: 0 | BK99: 0 | BL99: 0 | BM99: 0 | BN99: 0 | BO99: 0 | BP99: 0 | BQ99: 0 | BR99: 0 | BS99: 0 | BT99: 0 | BU99: 0 | BV99: 0 | BW99: 0 | BX99: 0 | BY99: 0 | BZ99: 0 | CA99: 0 | CB99: 0 | CC99: 0 | CD99: 0 | CE99: 0 | CF99: 0 | CG99: 5 | CH99: 0 | CI99: 0 | CJ99: 0 | CK99: 0 | CL99: 0 | CM99: 0 | CN99: 0 | CO99: 0 | CP99: 0 | CQ99: 0 | CR99: 0 | CS99: 0 | CT99: 0 | CU99: 0 | CV99: 0 | CW99: 0 | CX99: 0 | CY99: 0 | CZ99: 0 | DA99: 0 | DB99: 0 | DC99: 0 | DD99: 0 | DE99: 0 | DF99: 0 | DG99: 0 | DH99: 0 | DI99: 0 | DJ99: 0 | DK99: 0 | DL99: 0 | DM99: 0 | DN99: 0 | DO99: 0 | DP99: 0 | DQ99: 0 | DR99: 0 | DS99: 0 | DT99: 0 | DU99: 0 | DV99: 0 | DW99: 0 | DX99: 0 | DY99: 0 | DZ99: 0 | EA99: 0 | EB99: 0 | EC99: 0 | ED99: 0 | EE99: 0 | EF99: 0 | EG99: 0 | EH99: 0 | EI99: 0 | EJ99: 0 | EK99: 0 | EL99: 0 | EM99: 0 | EN99: 0 | EO99: 0 | EP99: 0 | EQ99: 0 | ER99: 0 | ES99: 0 | ET99: 0 | EU99: 0 | EV99: 0 | EW99: 0 | EX99: 0 | EY99: 0 | EZ99: 0 | FA99: 0 | FB99: 0 | FC99: 0 | FD99: 0 | FE99: 0 | FF99: 0 | FG99: 0 | FH99: 0 | FI99: 0 | FJ99: 0 | FK99: 0 | FL99: 0 | FM99: 0 | FN99: 0 | FO99: 0 | FP99: 0 | FQ99: 0 | FR99: 0
A100: LUCIANO CASTILLO COLONNA | B100: AYABACA | C100: 200201 | D100: ARREYPITE - PINGOLA | E100: I-1 | F100: AYABACA | G100: NINGUN CLAS | H100: AYABACA | I100: AYABACA | J100: SALUD LUCIANO CASTILLO COLONNA | K100: 1918 | L100: 10 | M100: 0 | N100: 0 | O100: 0 | P100: 0 | Q100: 0 | R100: 0 | S100: 0 | T100: 0 | U100: 0 | V100: 0 | W100: 0 | X100: 0 | Y100: 0 | Z100: 0 | AA100: 0 | AB100: 0 | AC100: 0 | AD100: 0 | AE100: 0 | AF100: 0 | AG100: 0 | AH100: 0 | AI100: 0 | AJ100: 0 | AK100: 0 | AL100: 0 | AM100: 8 | AN100: 0 | AO100: 0 | AP100: 8 | AQ100: 0 | AR100: 0 | AS100: 0 | AT100: 0 | AU100: 0 | AV100: 0 | AW100: 0 | AX100: 0 | AY100: 0 | AZ100: 0 | BA100: 0 | BB100: 0 | BC100: 0 | BD100: 0 | BE100: 0 | BF100: 0 | BG100: 0 | BH100: 0 | BI100: 0 | BJ100: 0 | BK100: 0 | BL100: 0 | BM100: 0 | BN100: 0 | BO100: 0 | BP100: 0 | BQ100: 0 | BR100: 0 | BS100: 0 | BT100: 0 | BU100: 0 | BV100: 0 | BW100: 0 | BX100: 0 | BY100: 0 | BZ100: 0 | CA100: 0 | CB100: 0 | CC100: 0 | CD100: 0 | CE100: 0 | CF100: 0 | CG100: 8 | CH100: 0 | CI100: 0 | CJ100: 0 | CK100: 0 | CL100: 0 | CM100: 0 | CN100: 0 | CO100: 0 | CP100: 0 | CQ100: 0 | CR100: 0 | CS100: 0 | CT100: 0 | CU100: 0 | CV100: 0 | CW100: 0 | CX100: 0 | CY100: 0 | CZ100: 0 | DA100: 0 | DB100: 0 | DC100: 0 | DD100: 0 | DE100: 0 | DF100: 0 | DG100: 0 | DH100: 0 | DI100: 0 | DJ100: 0 | DK100: 0 | DL100: 0 | DM100: 0 | DN100: 0 | DO100: 0 | DP100: 0 | DQ100: 0 | DR100: 0 | DS100: 0 | DT100: 0 | DU100: 0 | DV100: 0 | DW100: 0 | DX100: 0 | DY100: 0 | DZ100: 0 | EA100: 0 | EB100: 0 | EC100: 0 | ED100: 0 | EE100: 0 | EF100: 0 | EG100: 0 | EH100: 0 | EI100: 0 | EJ100: 0 | EK100: 0 | EL100: 0 | EM100: 0 | EN100: 0 | EO100: 0 | EP100: 0 | EQ100: 0 | ER100: 0 | ES100: 0 | ET100: 0 | EU100: 0 | EV100: 0 | EW100: 0 | EX100: 0 | EY100: 0 | EZ100: 0 | FA100: 0 | FB100: 0 | FC100: 0 | FD100: 0 | FE100: 0 | FF100: 0 | FG100: 0 | FH100: 0 | FI100: 0 | FJ100: 0 | FK100: 0 | FL100: 0 | FM100: 0 | FN100: 0 | FO100: 0 | FP100: 0 | FQ100: 0 | FR100: 0
A101: LUCIANO CASTILLO COLONNA | B101: AYABACA | C101: 200201 | D101: ARREYPITE - PINGOLA | E101: I-1 | F101: AYABACA | G101: NINGUN CLAS | H101: AYABACA | I101: AYABACA | J101: SALUD LUCIANO CASTILLO COLONNA | K101: 1918 | L101: 5 | M101: 0 | N101: 0 | O101: 0 | P101: 0 | Q101: 0 | R101: 0 | S101: 0 | T101: 0 | U101: 0 | V101: 0 | W101: 0 | X101: 0 | Y101: 0 | Z101: 0 | AA101: 0 | AB101: 0 | AC101: 0 | AD101: 0 | AE101: 0 | AF101: 1 | AG101: 0 | AH101: 0 | AI101: 0 | AJ101: 0 | AK101: 1 | AL101: 3 | AM101: 11 | AN101: 1 | AO101: 3 | AP101: 11 | AQ101: 0 | AR101: 0 | AS101: 0 | AT101: 0 | AU101: 0 | AV101: 0 | AW101: 0 | AX101: 0 | AY101: 0 | AZ101: 0 | BA101: 0 | BB101: 0 | BC101: 0 | BD101: 0 | BE101: 0 | BF101: 0 | BG101: 0 | BH101: 0 | BI101: 0 | BJ101: 0 | BK101: 0 | BL101: 0 | BM101: 0 | BN101: 0 | BO101: 0 | BP101: 0 | BQ101: 0 | BR101: 0 | BS101: 0 | BT101: 0 | BU101: 0 | BV101: 0 | BW101: 0 | BX101: 0 | BY101: 0 | BZ101: 0 | CA101: 0 | CB101: 0 | CC101: 0 | CD101: 0 | CE101: 0 | CF101: 0 | CG101: 15 | CH101: 0 | CI101: 0 | CJ101: 0 | CK101: 0 | CL101: 0 | CM101: 0 | CN101: 0 | CO101: 0 | CP101: 0 | CQ101: 0 | CR101: 0 | CS101: 0 | CT101: 0 | CU101: 0 | CV101: 0 | CW101: 0 | CX101: 0 | CY101: 0 | CZ101: 0 | DA101: 0 | DB101: 0 | DC101: 0 | DD101: 0 | DE101: 0 | DF101: 0 | DG101: 0 | DH101: 0 | DI101: 0 | DJ101: 0 | DK101: 0 | DL101: 0 | DM101: 0 | DN101: 0 | DO101: 0 | DP101: 0 | DQ101: 0 | DR101: 0 | DS101: 0 | DT101: 0 | DU101: 0 | DV101: 0 | DW101: 0 | DX101: 0 | DY101: 0 | DZ101: 0 | EA101: 0 | EB101: 0 | EC101: 0 | ED101: 0 | EE101: 0 | EF101: 0 | EG101: 0 | EH101: 0 | EI101: 0 | EJ101: 0 | EK101: 0 | EL101: 0 | EM101: 0 | EN101: 0 | EO101: 0 | EP101: 0 | EQ101: 0 | ER101: 0 | ES101: 0 | ET101: 0 | EU101: 0 | EV101: 0 | EW101: 0 | EX101: 0 | EY101: 0 | EZ101: 0 | FA101: 0 | FB101: 0 | FC101: 0 | FD101: 0 | FE101: 0 | FF101: 0 | FG101: 0 | FH101: 0 | FI101: 0 | FJ101: 0 | FK101: 0 | FL101: 0 | FM101: 0 | FN101: 0 | FO101: 0 | FP101: 0 | FQ101: 0 | FR101: 0
A102: LUCIANO CASTILLO COLONNA | B102: AYABACA | C102: 200201 | D102: ARREYPITE - PINGOLA | E102: I-1 | F102: AYABACA | G102: NINGUN CLAS | H102: AYABACA | I102: AYABACA | J102: SALUD LUCIANO CASTILLO COLONNA | K102: 1918 | L102: 8 | M102: 0 | N102: 0 | O102: 0 | P102: 0 | Q102: 0 | R102: 0 | S102: 0 | T102: 0 | U102: 0 | V102: 0 | W102: 0 | X102: 0 | Y102: 0 | Z102: 0 | AA102: 0 | AB102: 0 | AC102: 0 | AD102: 0 | AE102: 0 | AF102: 0 | AG102: 1 | AH102: 0 | AI102: 0 | AJ102: 0 | AK102: 0 | AL102: 0 | AM102: 13 | AN102: 2 | AO102: 0 | AP102: 13 | AQ102: 0 | AR102: 0 | AS102: 0 | AT102: 0 | AU102: 0 | AV102: 0 | AW102: 0 | AX102: 0 | AY102: 0 | AZ102: 0 | BA102: 0 | BB102: 0 | BC102: 0 | BD102: 0 | BE102: 0 | BF102: 0 | BG102: 0 | BH102: 0 | BI102: 0 | BJ102: 0 | BK102: 0 | BL102: 0 | BM102: 0 | BN102: 0 | BO102: 0 | BP102: 0 | BQ102: 0 | BR102: 0 | BS102: 0 | BT102: 0 | BU102: 0 | BV102: 0 | BW102: 0 | BX102: 0 | BY102: 0 | BZ102: 0 | CA102: 0 | CB102: 0 | CC102: 0 | CD102: 0 | CE102: 0 | CF102: 0 | CG102: 13 | CH102: 0 | CI102: 0 | CJ102: 0 | CK102: 0 | CL102: 0 | CM102: 0 | CN102: 0 | CO102: 0 | CP102: 0 | CQ102: 0 | CR102: 0 | CS102: 0 | CT102: 0 | CU102: 0 | CV102: 0 | CW102: 0 | CX102: 0 | CY102: 0 | CZ102: 0 | DA102: 0 | DB102: 0 | DC102: 0 | DD102: 0 | DE102: 0 | DF102: 0 | DG102: 0 | DH102: 0 | DI102: 0 | DJ102: 0 | DK102: 0 | DL102: 0 | DM102: 0 | DN102: 0 | DO102: 0 | DP102: 0 | DQ102: 0 | DR102: 0 | DS102: 0 | DT102: 0 | DU102: 0 | DV102: 0 | DW102: 0 | DX102: 0 | DY102: 0 | DZ102: 0 | EA102: 0 | EB102: 0 | EC102: 0 | ED102: 0 | EE102: 0 | EF102: 0 | EG102: 0 | EH102: 0 | EI102: 0 | EJ102: 0 | EK102: 0 | EL102: 0 | EM102: 0 | EN102: 0 | EO102: 0 | EP102: 0 | EQ102: 0 | ER102: 0 | ES102: 0 | ET102: 0 | EU102: 0 | EV102: 0 | EW102: 0 | EX102: 0 | EY102: 0 | EZ102: 0 | FA102: 0 | FB102: 0 | FC102: 0 | FD102: 0 | FE102: 0 | FF102: 0 | FG102: 0 | FH102: 0 | FI102: 0 | FJ102: 0 | FK102: 0 | FL102: 0 | FM102: 0 | FN102: 0 | FO102: 0 | FP102: 0 | FQ102: 0 | FR102: 0
A103: LUCIANO CASTILLO COLONNA | B103: AYABACA | C103: 200201 | D103: ARREYPITE - PINGOLA | E103: I-1 | F103: AYABACA | G103: NINGUN CLAS | H103: AYABACA | I103: AYABACA | J103: SALUD LUCIANO CASTILLO COLONNA | K103: 1918 | L103: 12 | M103: 0 | N103: 0 | O103: 0 | P103: 0 | Q103: 0 | R103: 0 | S103: 0 | T103: 0 | U103: 0 | V103: 0 | W103: 0 | X103: 0 | Y103: 0 | Z103: 0 | AA103: 0 | AB103: 0 | AC103: 0 | AD103: 0 | AE103: 0 | AF103: 0 | AG103: 0 | AH103: 0 | AI103: 0 | AJ103: 0 | AK103: 0 | AL103: 0 | AM103: 0 | AN103: 0 | AO103: 0 | AP103: 0 | AQ103: 0 | AR103: 0 | AS103: 0 | AT103: 0 | AU103: 0 | AV103: 0 | AW103: 0 | AX103: 0 | AY103: 0 | AZ103: 0 | BA103: 0 | BB103: 0 | BC103: 0 | BD103: 0 | BE103: 0 | BF103: 0 | BG103: 0 | BH103: 0 | BI103: 0 | BJ103: 0 | BK103: 0 | BL103: 0 | BM103: 0 | BN103: 0 | BO103: 0 | BP103: 0 | BQ103: 0 | BR103: 0 | BS103: 0 | BT103: 0 | BU103: 0 | BV103: 0 | BW103: 0 | BX103: 0 | BY103: 0 | BZ103: 0 | CA103: 0 | CB103: 0 | CC103: 0 | CD103: 0 | CE103: 0 | CF103: 0 | CG103: 0 | CH103: 0 | CI103: 0 | CJ103: 0 | CK103: 0 | CL103: 0 | CM103: 0 | CN103: 0 | CO103: 0 | CP103: 0 | CQ103: 0 | CR103: 0 | CS103: 0 | CT103: 0 | CU103: 0 | CV103: 0 | CW103: 0 | CX103: 0 | CY103: 0 | CZ103: 0 | DA103: 0 | DB103: 0 | DC103: 0 | DD103: 0 | DE103: 0 | DF103: 0 | DG103: 0 | DH103: 0 | DI103: 0 | DJ103: 0 | DK103: 0 | DL103: 0 | DM103: 0 | DN103: 0 | DO103: 0 | DP103: 0 | DQ103: 0 | DR103: 0 | DS103: 0 | DT103: 0 | DU103: 0 | DV103: 0 | DW103: 0 | DX103: 0 | DY103: 0 | DZ103: 0 | EA103: 0 | EB103: 0 | EC103: 0 | ED103: 0 | EE103: 0 | EF103: 0 | EG103: 0 | EH103: 0 | EI103: 0 | EJ103: 0 | EK103: 0 | EL103: 0 | EM103: 0 | EN103: 0 | EO103: 0 | EP103: 0 | EQ103: 0 | ER103: 0 | ES103: 0 | ET103: 0 | EU103: 0 | EV103: 0 | EW103: 0 | EX103: 0 | EY103: 0 | EZ103: 0 | FA103: 0 | FB103: 0 | FC103: 0 | FD103: 0 | FE103: 0 | FF103: 0 | FG103: 0 | FH103: 0 | FI103: 0 | FJ103: 0 | FK103: 0 | FL103: 0 | FM103: 0 | FN103: 0 | FO103: 0 | FP103: 0 | FQ103: 0 | FR103: 0
A104: LUCIANO CASTILLO COLONNA | B104: AYABACA | C104: 200201 | D104: ARREYPITE - PINGOLA | E104: I-1 | F104: AYABACA | G104: NINGUN CLAS | H104: AYABACA | I104: AYABACA | J104: SALUD LUCIANO CASTILLO COLONNA | K104: 1918 | L104: 11 | M104: 0 | N104: 0 | O104: 0 | P104: 0 | Q104: 0 | R104: 0 | S104: 0 | T104: 0 | U104: 0 | V104: 0 | W104: 0 | X104: 0 | Y104: 0 | Z104: 0 | AA104: 0 | AB104: 0 | AC104: 0 | AD104: 0 | AE104: 0 | AF104: 0 | AG104: 0 | AH104: 0 | AI104: 0 | AJ104: 0 | AK104: 0 | AL104: 0 | AM104: 9 | AN104: 2 | AO104: 0 | AP104: 9 | AQ104: 0 | AR104: 0 | AS104: 0 | AT104: 0 | AU104: 0 | AV104: 0 | AW104: 0 | AX104: 0 | AY104: 0 | AZ104: 0 | BA104: 0 | BB104: 0 | BC104: 0 | BD104: 0 | BE104: 0 | BF104: 0 | BG104: 0 | BH104: 0 | BI104: 0 | BJ104: 0 | BK104: 0 | BL104: 0 | BM104: 0 | BN104: 0 | BO104: 0 | BP104: 0 | BQ104: 0 | BR104: 0 | BS104: 0 | BT104: 0 | BU104: 0 | BV104: 0 | BW104: 0 | BX104: 0 | BY104: 0 | BZ104: 0 | CA104: 0 | CB104: 0 | CC104: 0 | CD104: 0 | CE104: 0 | CF104: 0 | CG104: 9 | CH104: 0 | CI104: 0 | CJ104: 0 | CK104: 0 | CL104: 0 | CM104: 0 | CN104: 0 | CO104: 0 | CP104: 0 | CQ104: 0 | CR104: 0 | CS104: 0 | CT104: 0 | CU104: 0 | CV104: 0 | CW104: 0 | CX104: 0 | CY104: 0 | CZ104: 0 | DA104: 0 | DB104: 0 | DC104: 0 | DD104: 0 | DE104: 0 | DF104: 0 | DG104: 0 | DH104: 0 | DI104: 0 | DJ104: 0 | DK104: 0 | DL104: 0 | DM104: 0 | DN104: 0 | DO104: 0 | DP104: 0 | DQ104: 0 | DR104: 0 | DS104: 0 | DT104: 0 | DU104: 0 | DV104: 0 | DW104: 0 | DX104: 0 | DY104: 0 | DZ104: 0 | EA104: 0 | EB104: 0 | EC104: 0 | ED104: 0 | EE104: 0 | EF104: 0 | EG104: 0 | EH104: 0 | EI104: 0 | EJ104: 0 | EK104: 0 | EL104: 0 | EM104: 0 | EN104: 0 | EO104: 0 | EP104: 0 | EQ104: 0 | ER104: 0 | ES104: 0 | ET104: 0 | EU104: 0 | EV104: 0 | EW104: 0 | EX104: 0 | EY104: 0 | EZ104: 0 | FA104: 0 | FB104: 0 | FC104: 0 | FD104: 0 | FE104: 0 | FF104: 0 | FG104: 0 | FH104: 0 | FI104: 0 | FJ104: 0 | FK104: 0 | FL104: 0 | FM104: 0 | FN104: 0 | FO104: 0 | FP104: 0 | FQ104: 0 | FR104: 0
A105: LUCIANO CASTILLO COLONNA | B105: AYABACA | C105: 200201 | D105: ARREYPITE - PINGOLA | E105: I-1 | F105: AYABACA | G105: NINGUN CLAS | H105: AYABACA | I105: AYABACA | J105: SALUD LUCIANO CASTILLO COLONNA | K105: 1918 | L105: 9 | M105: 0 | N105: 0 | O105: 0 | P105: 0 | Q105: 0 | R105: 0 | S105: 0 | T105: 0 | U105: 0 | V105: 0 | W105: 0 | X105: 0 | Y105: 0 | Z105: 0 | AA105: 0 | AB105: 0 | AC105: 0 | AD105: 0 | AE105: 0 | AF105: 0 | AG105: 0 | AH105: 0 | AI105: 0 | AJ105: 0 | AK105: 0 | AL105: 0 | AM105: 17 | AN105: 1 | AO105: 0 | AP105: 17 | AQ105: 0 | AR105: 0 | AS105: 0 | AT105: 0 | AU105: 0 | AV105: 0 | AW105: 0 | AX105: 0 | AY105: 0 | AZ105: 0 | BA105: 0 | BB105: 0 | BC105: 0 | BD105: 0 | BE105: 0 | BF105: 0 | BG105: 0 | BH105: 0 | BI105: 0 | BJ105: 0 | BK105: 1 | BL105: 0 | BM105: 0 | BN105: 0 | BO105: 0 | BP105: 0 | BQ105: 0 | BR105: 0 | BS105: 0 | BT105: 0 | BU105: 0 | BV105: 0 | BW105: 0 | BX105: 0 | BY105: 0 | BZ105: 0 | CA105: 0 | CB105: 0 | CC105: 0 | CD105: 0 | CE105: 0 | CF105: 0 | CG105: 17 | CH105: 0 | CI105: 1 | CJ105: 0 | CK105: 0 | CL105: 0 | CM105: 0 | CN105: 0 | CO105: 0 | CP105: 0 | CQ105: 0 | CR105: 0 | CS105: 0 | CT105: 0 | CU105: 0 | CV105: 0 | CW105: 0 | CX105: 0 | CY105: 0 | CZ105: 0 | DA105: 0 | DB105: 0 | DC105: 0 | DD105: 0 | DE105: 0 | DF105: 0 | DG105: 0 | DH105: 0 | DI105: 0 | DJ105: 0 | DK105: 0 | DL105: 0 | DM105: 0 | DN105: 0 | DO105: 0 | DP105: 0 | DQ105: 0 | DR105: 0 | DS105: 0 | DT105: 0 | DU105: 0 | DV105: 0 | DW105: 0 | DX105: 0 | DY105: 0 | DZ105: 0 | EA105: 0 | EB105: 0 | EC105: 0 | ED105: 0 | EE105: 0 | EF105: 0 | EG105: 0 | EH105: 0 | EI105: 0 | EJ105: 0 | EK105: 0 | EL105: 0 | EM105: 0 | EN105: 0 | EO105: 0 | EP105: 0 | EQ105: 0 | ER105: 0 | ES105: 0 | ET105: 0 | EU105: 0 | EV105: 0 | EW105: 0 | EX105: 0 | EY105: 0 | EZ105: 0 | FA105: 0 | FB105: 0 | FC105: 0 | FD105: 0 | FE105: 0 | FF105: 0 | FG105: 0 | FH105: 0 | FI105: 0 | FJ105: 0 | FK105: 0 | FL105: 0 | FM105: 0 | FN105: 0 | FO105: 0 | FP105: 0 | FQ105: 0 | FR105: 0
A106: LUCIANO CASTILLO COLONNA | B106: AYABACA | C106: 200201 | D106: ARREYPITE - PINGOLA | E106: I-1 | F106: AYABACA | G106: NINGUN CLAS | H106: AYABACA | I106: AYABACA | J106: SALUD LUCIANO CASTILLO COLONNA | K106: 1918 | L106: 7 | M106: 0 | N106: 0 | O106: 0 | P106: 0 | Q106: 0 | R106: 0 | S106: 0 | T106: 0 | U106: 0 | V106: 0 | W106: 0 | X106: 0 | Y106: 0 | Z106: 0 | AA106: 0 | AB106: 0 | AC106: 0 | AD106: 0 | AE106: 0 | AF106: 3 | AG106: 1 | AH106: 0 | AI106: 0 | AJ106: 0 | AK106: 0 | AL106: 0 | AM106: 11 | AN106: 1 | AO106: 2 | AP106: 11 | AQ106: 0 | AR106: 0 | AS106: 0 | AT106: 0 | AU106: 0 | AV106: 0 | AW106: 0 | AX106: 0 | AY106: 0 | AZ106: 0 | BA106: 0 | BB106: 0 | BC106: 0 | BD106: 0 | BE106: 0 | BF106: 0 | BG106: 0 | BH106: 0 | BI106: 0 | BJ106: 0 | BK106: 0 | BL106: 0 | BM106: 0 | BN106: 0 | BO106: 0 | BP106: 0 | BQ106: 0 | BR106: 0 | BS106: 0 | BT106: 0 | BU106: 0 | BV106: 0 | BW106: 0 | BX106: 0 | BY106: 0 | BZ106: 0 | CA106: 0 | CB106: 0 | CC106: 0 | CD106: 0 | CE106: 0 | CF106: 0 | CG106: 11 | CH106: 0 | CI106: 0 | CJ106: 0 | CK106: 0 | CL106: 0 | CM106: 0 | CN106: 0 | CO106: 0 | CP106: 0 | CQ106: 0 | CR106: 0 | CS106: 0 | CT106: 0 | CU106: 0 | CV106: 0 | CW106: 0 | CX106: 0 | CY106: 0 | CZ106: 0 | DA106: 0 | DB106: 0 | DC106: 0 | DD106: 0 | DE106: 0 | DF106: 0 | DG106: 0 | DH106: 0 | DI106: 0 | DJ106: 0 | DK106: 0 | DL106: 0 | DM106: 0 | DN106: 0 | DO106: 0 | DP106: 0 | DQ106: 0 | DR106: 0 | DS106: 0 | DT106: 0 | DU106: 0 | DV106: 0 | DW106: 0 | DX106: 0 | DY106: 0 | DZ106: 0 | EA106: 0 | EB106: 0 | EC106: 0 | ED106: 0 | EE106: 0 | EF106: 0 | EG106: 0 | EH106: 0 | EI106: 0 | EJ106: 0 | EK106: 0 | EL106: 0 | EM106: 0 | EN106: 0 | EO106: 0 | EP106: 0 | EQ106: 0 | ER106: 0 | ES106: 0 | ET106: 0 | EU106: 0 | EV106: 0 | EW106: 0 | EX106: 0 | EY106: 0 | EZ106: 0 | FA106: 0 | FB106: 0 | FC106: 0 | FD106: 0 | FE106: 0 | FF106: 0 | FG106: 0 | FH106: 0 | FI106: 0 | FJ106: 0 | FK106: 0 | FL106: 0 | FM106: 0 | FN106: 0 | FO106: 0 | FP106: 0 | FQ106: 0 | FR106: 0
A107: LUCIANO CASTILLO COLONNA | B107: AYABACA | C107: 200201 | D107: ARREYPITE - PINGOLA | E107: I-1 | F107: AYABACA | G107: NINGUN CLAS | H107: AYABACA | I107: AYABACA | J107: SALUD LUCIANO CASTILLO COLONNA | K107: 1918 | L107: 6 | M107: 0 | N107: 0 | O107: 0 | P107: 0 | Q107: 0 | R107: 0 | S107: 0 | T107: 0 | U107: 0 | V107: 0 | W107: 0 | X107: 0 | Y107: 0 | Z107: 0 | AA107: 0 | AB107: 0 | AC107: 0 | AD107: 0 | AE107: 0 | AF107: 0 | AG107: 1 | AH107: 0 | AI107: 0 | AJ107: 0 | AK107: 1 | AL107: 2 | AM107: 4 | AN107: 1 | AO107: 2 | AP107: 4 | AQ107: 0 | AR107: 0 | AS107: 0 | AT107: 0 | AU107: 0 | AV107: 0 | AW107: 0 | AX107: 0 | AY107: 0 | AZ107: 0 | BA107: 0 | BB107: 0 | BC107: 0 | BD107: 0 | BE107: 0 | BF107: 0 | BG107: 0 | BH107: 0 | BI107: 0 | BJ107: 0 | BK107: 0 | BL107: 0 | BM107: 0 | BN107: 0 | BO107: 0 | BP107: 0 | BQ107: 0 | BR107: 0 | BS107: 0 | BT107: 0 | BU107: 0 | BV107: 0 | BW107: 0 | BX107: 0 | BY107: 0 | BZ107: 0 | CA107: 0 | CB107: 0 | CC107: 0 | CD107: 0 | CE107: 0 | CF107: 0 | CG107: 7 | CH107: 0 | CI107: 0 | CJ107: 0 | CK107: 0 | CL107: 0 | CM107: 0 | CN107: 0 | CO107: 0 | CP107: 0 | CQ107: 0 | CR107: 0 | CS107: 0 | CT107: 0 | CU107: 0 | CV107: 0 | CW107: 0 | CX107: 0 | CY107: 0 | CZ107: 0 | DA107: 0 | DB107: 0 | DC107: 0 | DD107: 0 | DE107: 0 | DF107: 0 | DG107: 0 | DH107: 0 | DI107: 0 | DJ107: 0 | DK107: 0 | DL107: 0 | DM107: 0 | DN107: 0 | DO107: 0 | DP107: 0 | DQ107: 0 | DR107: 0 | DS107: 0 | DT107: 0 | DU107: 0 | DV107: 0 | DW107: 0 | DX107: 0 | DY107: 0 | DZ107: 0 | EA107: 0 | EB107: 0 | EC107: 0 | ED107: 0 | EE107: 0 | EF107: 0 | EG107: 0 | EH107: 0 | EI107: 0 | EJ107: 0 | EK107: 0 | EL107: 0 | EM107: 0 | EN107: 0 | EO107: 0 | EP107: 0 | EQ107: 0 | ER107: 0 | ES107: 0 | ET107: 0 | EU107: 0 | EV107: 0 | EW107: 0 | EX107: 0 | EY107: 0 | EZ107: 0 | FA107: 0 | FB107: 0 | FC107: 0 | FD107: 0 | FE107: 0 | FF107: 0 | FG107: 0 | FH107: 0 | FI107: 0 | FJ107: 0 | FK107: 0 | FL107: 0 | FM107: 0 | FN107: 0 | FO107: 0 | FP107: 0 | FQ107: 0 | FR107: 0
A108: LUCIANO CASTILLO COLONNA | B108: AYABACA | C108: 200201 | D108: ARREYPITE - PINGOLA | E108: I-1 | F108: AYABACA | G108: NINGUN CLAS | H108: AYABACA | I108: AYABACA | J108: SALUD LUCIANO CASTILLO COLONNA | K108: 1918 | L108: 4 | M108: 0 | N108: 0 | O108: 0 | P108: 0 | Q108: 0 | R108: 0 | S108: 0 | T108: 0 | U108: 0 | V108: 0 | W108: 0 | X108: 0 | Y108: 0 | Z108: 0 | AA108: 0 | AB108: 0 | AC108: 0 | AD108: 0 | AE108: 0 | AF108: 1 | AG108: 0 | AH108: 0 | AI108: 0 | AJ108: 0 | AK108: 0 | AL108: 0 | AM108: 5 | AN108: 0 | AO108: 0 | AP108: 5 | AQ108: 0 | AR108: 0 | AS108: 0 | AT108: 0 | AU108: 0 | AV108: 0 | AW108: 0 | AX108: 0 | AY108: 0 | AZ108: 0 | BA108: 0 | BB108: 0 | BC108: 0 | BD108: 0 | BE108: 0 | BF108: 0 | BG108: 0 | BH108: 0 | BI108: 0 | BJ108: 0 | BK108: 0 | BL108: 0 | BM108: 0 | BN108: 0 | BO108: 0 | BP108: 0 | BQ108: 0 | BR108: 0 | BS108: 0 | BT108: 0 | BU108: 0 | BV108: 0 | BW108: 0 | BX108: 0 | BY108: 0 | BZ108: 0 | CA108: 0 | CB108: 0 | CC108: 0 | CD108: 0 | CE108: 0 | CF108: 0 | CG108: 5 | CH108: 0 | CI108: 0 | CJ108: 0 | CK108: 0 | CL108: 0 | CM108: 0 | CN108: 0 | CO108: 0 | CP108: 0 | CQ108: 0 | CR108: 0 | CS108: 0 | CT108: 0 | CU108: 0 | CV108: 0 | CW108: 0 | CX108: 0 | CY108: 0 | CZ108: 0 | DA108: 0 | DB108: 0 | DC108: 0 | DD108: 0 | DE108: 0 | DF108: 0 | DG108: 0 | DH108: 0 | DI108: 0 | DJ108: 0 | DK108: 0 | DL108: 0 | DM108: 0 | DN108: 0 | DO108: 0 | DP108: 0 | DQ108: 0 | DR108: 0 | DS108: 0 | DT108: 0 | DU108: 0 | DV108: 0 | DW108: 0 | DX108: 0 | DY108: 0 | DZ108: 0 | EA108: 0 | EB108: 0 | EC108: 0 | ED108: 0 | EE108: 0 | EF108: 0 | EG108: 0 | EH108: 0 | EI108: 0 | EJ108: 0 | EK108: 0 | EL108: 0 | EM108: 0 | EN108: 0 | EO108: 0 | EP108: 0 | EQ108: 0 | ER108: 0 | ES108: 0 | ET108: 0 | EU108: 0 | EV108: 0 | EW108: 0 | EX108: 0 | EY108: 0 | EZ108: 0 | FA108: 0 | FB108: 0 | FC108: 0 | FD108: 0 | FE108: 0 | FF108: 0 | FG108: 0 | FH108: 0 | FI108: 0 | FJ108: 0 | FK108: 0 | FL108: 0 | FM108: 0 | FN108: 0 | FO108: 0 | FP108: 0 | FQ108: 0 | FR108: 0
A109: LUCIANO CASTILLO COLONNA | B109: AYABACA | C109: 200201 | D109: ARREYPITE - PINGOLA | E109: I-1 | F109: AYABACA | G109: NINGUN CLAS | H109: AYABACA | I109: AYABACA | J109: SALUD LUCIANO CASTILLO COLONNA | K109: 1918 | L109: 1 | M109: 0 | N109: 0 | O109: 0 | P109: 0 | Q109: 0 | R109: 0 | S109: 0 | T109: 0 | U109: 0 | V109: 0 | W109: 0 | X109: 0 | Y109: 0 | Z109: 0 | AA109: 0 | AB109: 0 | AC109: 0 | AD109: 0 | AE109: 4 | AF109: 2 | AG109: 1 | AH109: 0 | AI109: 0 | AJ109: 0 | AK109: 3 | AL109: 1 | AM109: 14 | AN109: 3 | AO109: 1 | AP109: 14 | AQ109: 0 | AR109: 0 | AS109: 0 | AT109: 0 | AU109: 0 | AV109: 0 | AW109: 0 | AX109: 0 | AY109: 0 | AZ109: 0 | BA109: 0 | BB109: 0 | BC109: 0 | BD109: 0 | BE109: 0 | BF109: 0 | BG109: 0 | BH109: 0 | BI109: 0 | BJ109: 0 | BK109: 0 | BL109: 0 | BM109: 0 | BN109: 0 | BO109: 0 | BP109: 0 | BQ109: 0 | BR109: 0 | BS109: 0 | BT109: 0 | BU109: 0 | BV109: 0 | BW109: 0 | BX109: 0 | BY109: 0 | BZ109: 0 | CA109: 0 | CB109: 0 | CC109: 0 | CD109: 0 | CE109: 0 | CF109: 0 | CG109: 18 | CH109: 0 | CI109: 0 | CJ109: 0 | CK109: 0 | CL109: 0 | CM109: 0 | CN109: 0 | CO109: 0 | CP109: 0 | CQ109: 0 | CR109: 0 | CS109: 0 | CT109: 0 | CU109: 0 | CV109: 0 | CW109: 0 | CX109: 0 | CY109: 0 | CZ109: 0 | DA109: 0 | DB109: 0 | DC109: 0 | DD109: 0 | DE109: 0 | DF109: 0 | DG109: 0 | DH109: 0 | DI109: 0 | DJ109: 0 | DK109: 0 | DL109: 0 | DM109: 0 | DN109: 0 | DO109: 0 | DP109: 0 | DQ109: 0 | DR109: 0 | DS109: 0 | DT109: 0 | DU109: 0 | DV109: 0 | DW109: 0 | DX109: 0 | DY109: 0 | DZ109: 0 | EA109: 0 | EB109: 0 | EC109: 0 | ED109: 0 | EE109: 0 | EF109: 0 | EG109: 0 | EH109: 0 | EI109: 0 | EJ109: 0 | EK109: 0 | EL109: 0 | EM109: 0 | EN109: 0 | EO109: 0 | EP109: 0 | EQ109: 0 | ER109: 0 | ES109: 0 | ET109: 0 | EU109: 0 | EV109: 0 | EW109: 0 | EX109: 0 | EY109: 0 | EZ109: 0 | FA109: 0 | FB109: 0 | FC109: 0 | FD109: 0 | FE109: 0 | FF109: 0 | FG109: 0 | FH109: 0 | FI109: 0 | FJ109: 0 | FK109: 0 | FL109: 0 | FM109: 0 | FN109: 0 | FO109: 0 | FP109: 0 | FQ109: 0 | FR109: 0
A110: LUCIANO CASTILLO COLONNA | B110: AYABACA | C110: 200201 | D110: CALVAS DE SAMANGA | E110: I-1 | F110: AYABACA | G110: NINGUN CLAS | H110: AYABACA | I110: AYABACA | J110: SALUD LUCIANO CASTILLO COLONNA | K110: 1919 | L110: 9 | M110: 0 | N110: 0 | O110: 0 | P110: 0 | Q110: 0 | R110: 0 | S110: 0 | T110: 0 | U110: 0 | V110: 0 | W110: 0 | X110: 0 | Y110: 0 | Z110: 0 | AA110: 0 | AB110: 0 | AC110: 0 | AD110: 0 | AE110: 1 | AF110: 2 | AG110: 5 | AH110: 0 | AI110: 0 | AJ110: 0 | AK110: 0 | AL110: 0 | AM110: 20 | AN110: 2 | AO110: 1 | AP110: 20 | AQ110: 0 | AR110: 0 | AS110: 0 | AT110: 0 | AU110: 0 | AV110: 0 | AW110: 0 | AX110: 0 | AY110: 0 | AZ110: 0 | BA110: 0 | BB110: 0 | BC110: 0 | BD110: 0 | BE110: 0 | BF110: 0 | BG110: 0 | BH110: 0 | BI110: 0 | BJ110: 0 | BK110: 0 | BL110: 0 | BM110: 0 | BN110: 0 | BO110: 0 | BP110: 0 | BQ110: 0 | BR110: 0 | BS110: 0 | BT110: 0 | BU110: 0 | BV110: 0 | BW110: 0 | BX110: 0 | BY110: 0 | BZ110: 0 | CA110: 0 | CB110: 0 | CC110: 0 | CD110: 0 | CE110: 0 | CF110: 0 | CG110: 20 | CH110: 0 | CI110: 0 | CJ110: 0 | CK110: 0 | CL110: 0 | CM110: 0 | CN110: 0 | CO110: 0 | CP110: 0 | CQ110: 0 | CR110: 0 | CS110: 0 | CT110: 0 | CU110: 0 | CV110: 0 | CW110: 0 | CX110: 0 | CY110: 0 | CZ110: 0 | DA110: 0 | DB110: 0 | DC110: 0 | DD110: 0 | DE110: 0 | DF110: 0 | DG110: 0 | DH110: 0 | DI110: 0 | DJ110: 0 | DK110: 0 | DL110: 0 | DM110: 0 | DN110: 0 | DO110: 0 | DP110: 0 | DQ110: 0 | DR110: 0 | DS110: 0 | DT110: 0 | DU110: 0 | DV110: 0 | DW110: 0 | DX110: 0 | DY110: 0 | DZ110: 0 | EA110: 0 | EB110: 0 | EC110: 0 | ED110: 0 | EE110: 0 | EF110: 0 | EG110: 0 | EH110: 0 | EI110: 0 | EJ110: 0 | EK110: 0 | EL110: 0 | EM110: 0 | EN110: 0 | EO110: 0 | EP110: 0 | EQ110: 0 | ER110: 0 | ES110: 0 | ET110: 0 | EU110: 0 | EV110: 0 | EW110: 0 | EX110: 0 | EY110: 0 | EZ110: 0 | FA110: 0 | FB110: 0 | FC110: 0 | FD110: 0 | FE110: 0 | FF110: 0 | FG110: 0 | FH110: 0 | FI110: 0 | FJ110: 0 | FK110: 0 | FL110: 0 | FM110: 0 | FN110: 0 | FO110: 0 | FP110: 0 | FQ110: 0 | FR110: 0
